Workbook

Sheet ПРОВОЛОКА
A1: z | E1: z | F1: z | I1: z | M1: z | N1: z | AB1: z
B2: Согласовано: Нач.техотдела | P2: запуск | S2: =TODAY() -> 2023-08-05
B4: Технологическая ведомость материалов № _________по проволоке на
C5: 1 | O5: =CONCATENATE("Изделие из: ",IF(ПРОВОЛОКА!S259>0,"ПРОВОЛОКА, ",""),IF(ЛИСТ!L7>0,"ЛИСТ, ",""),IF(ТРУБА!M7>0,"ТРУБА, ",""),IF(ПВХ!L9>0,"ПВХ ","")) -> Изделие из:
B6: ! | C6: Наименование | E6: +10 | F6: План | G6: Ø проволоки мм | H6: длина заготовки мм | I6: вес метра проволоки | J6: Кол-во на изделие шт | K6: Кол-во на план шт | L6: время на заготовку | M6: время изготовления на 1 изделие, мин | N6: вес заготовки кг | O6: вес на изделие кг | P6: Время изготовления на план,мин | Q6: Остаток проволоки с преды-дущего изделия (бухты), кг | R6: Приход бухты прово-локи, кг | S6: Общий вес на план, кг | U6: Техноло-гический остаток обкуска в лом, кг | W6: Остаток бухты прово-локи, кг | X6: ОТК | Y6: Принял | Z6: Дата передачи | AA6: Время передачи
C7: Øх | D7: Длина
S8: теория | T8: факт | U8: теория | V8: факт
A10: =IF(O10=0,"z"," ") -> z | C10: Ø2,0х | F10: =$C$5 -> 1 | G10: 2 | H10: =D10+E10 -> 0 | I10: 0.025 | K10: =F10*J10 -> 0 | L10: =H10/162 -> 0 | M10: =J10*L10/60 -> 0 | N10: =H10*I10/1000 -> 0 | O10: =J10*N10 -> 0 | P10: =M10*F10 -> 0 | S10: =N10*K10 -> 0 | U10: =I10*0.01*K10 -> 0 | AB10: 1
A11: z | C11: Ø2,0х | F11: 1 | G11: 2 | H11: =D11+E11 -> 0 | I11: 0.025 | K11: =F11*J11 -> 0 | L11: =H11/162 -> 0 | M11: =J11*L11/60 -> 0 | N11: =H11*I11/1000 -> 0 | O11: =J11*N11 -> 0 | P11: =M11*F11 -> 0 | S11: =N11*K11 -> 0 | U11: =I11*0.01*K11 -> 0 | AB11: 2
A12: z | C12: Ø2,0х | F12: 1 | G12: 2 | H12: 0 | I12: 0.025 | K12: 0 | L12: 0 | M12: 0 | N12: 0 | O12: 0 | P12: 0 | S12: 0 | U12: 0 | AB12: 3
A13: z | C13: Ø2,0х | F13: 1 | G13: 2 | H13: 0 | I13: 0.025 | K13: 0 | L13: 0 | M13: 0 | N13: 0 | O13: 0 | P13: 0 | S13: 0 | U13: 0 | AB13: 4
A14: z | C14: Ø2,0х | F14: 1 | G14: 2 | H14: 0 | I14: 0.025 | K14: 0 | L14: 0 | M14: 0 | N14: 0 | O14: 0 | P14: 0 | S14: 0 | U14: 0 | AB14: 5
A15: z | C15: Ø2,0х | F15: 1 | G15: 2 | H15: 0 | I15: 0.025 | K15: 0 | L15: 0 | M15: 0 | N15: 0 | O15: 0 | P15: 0 | S15: 0 | U15: 0 | AB15: 6
A16: z | C16: Ø2,0х | F16: 1 | G16: 2 | H16: 0 | I16: 0.025 | K16: 0 | L16: 0 | M16: 0 | N16: 0 | O16: 0 | P16: 0 | S16: 0 | U16: 0 | AB16: 7
A17: z | C17: Ø2,0х | F17: 1 | G17: 2 | H17: 0 | I17: 0.025 | K17: 0 | L17: 0 | M17: 0 | N17: 0 | O17: 0 | P17: 0 | S17: 0 | U17: 0 | AB17: 8
A18: z | C18: Ø2,0х | F18: 1 | G18: 2 | H18: 0 | I18: 0.025 | K18: 0 | L18: 0 | M18: 0 | N18: 0 | O18: 0 | P18: 0 | S18: 0 | U18: 0 | AB18: 9
A19: z | C19: Ø2,0х | F19: 1 | G19: 2 | H19: 0 | I19: 0.025 | K19: 0 | L19: 0 | M19: 0 | N19: 0 | O19: 0 | P19: 0 | S19: 0 | U19: 0 | AB19: 10
A20: z | C20: Ø2,0х | F20: 1 | G20: 2 | H20: 0 | I20: 0.025 | K20: 0 | L20: 0 | M20: 0 | N20: 0 | O20: 0 | P20: 0 | S20: 0 | U20: 0 | AB20: 11
A21: z | C21: Ø2,0х | F21: 1 | G21: 2 | H21: 0 | I21: 0.025 | K21: 0 | L21: 0 | M21: 0 | N21: 0 | O21: 0 | P21: 0 | S21: 0 | U21: 0 | AB21: 12
A22: =IF(O22=0,"z"," ") -> z | C22: Ø2,0х | F22: 1 | G22: 2 | H22: 0 | I22: 0.025 | K22: 0 | L22: 0 | M22: 0 | N22: 0 | O22: 0 | P22: 0 | S22: 0 | U22: 0 | AB22: 13
A23: z | C23: Ø2,0х | F23: 1 | G23: 2 | H23: 0 | I23: 0.025 | K23: 0 | L23: 0 | M23: 0 | N23: 0 | O23: 0 | P23: 0 | S23: 0 | U23: 0 | AB23: 14
A24: =IF(O24=0,"z"," ") -> z | C24: Ø2,0х | F24: 1 | G24: 2 | H24: 0 | I24: 0.025 | K24: 0 | L24: 0 | M24: 0 | N24: 0 | O24: 0 | P24: 0 | S24: 0 | U24: 0 | AB24: 15
A25: z | C25: Ø2,0х | F25: 1 | G25: 2 | H25: 0 | I25: 0.025 | K25: 0 | L25: 0 | M25: 0 | N25: 0 | O25: 0 | P25: 0 | S25: 0 | U25: 0 | AB25: 16
A26: z | C26: Ø2,0х | F26: 1 | G26: 2 | H26: 0 | I26: 0.025 | K26: 0 | L26: 0 | M26: 0 | N26: 0 | O26: 0 | P26: 0 | S26: 0 | U26: 0 | AB26: 17
A27: z | C27: Ø2,0х | F27: 1 | G27: 2 | H27: 0 | I27: 0.025 | K27: 0 | L27: 0 | M27: 0 | N27: 0 | O27: 0 | P27: 0 | S27: 0 | U27: 0 | AB27: 18
A28: z | C28: Ø2,0х | F28: 1 | G28: 2 | H28: 0 | I28: 0.025 | K28: 0 | L28: 0 | M28: 0 | N28: 0 | O28: 0 | P28: 0 | S28: 0 | U28: 0 | AB28: 19
A29: z | C29: Ø2,0х | F29: 1 | G29: 2 | H29: 0 | I29: 0.025 | K29: 0 | L29: 0 | M29: 0 | N29: 0 | O29: 0 | P29: 0 | S29: 0 | U29: 0 | AB29: 20
A30: z | C30: Ø2,0х | F30: 1 | G30: 2 | H30: 0 | I30: 0.025 | K30: 0 | L30: 0 | M30: 0 | N30: 0 | O30: 0 | P30: 0 | S30: 0 | U30: 0 | AB30: 21
A31: z | C31: Ø2,0х | F31: 1 | G31: 2 | H31: 0 | I31: 0.025 | K31: 0 | L31: 0 | M31: 0 | N31: 0 | O31: 0 | P31: 0 | S31: 0 | U31: 0 | AB31: 22
A32: z | C32: Ø2,0х | F32: 1 | G32: 2 | H32: 0 | I32: 0.025 | K32: 0 | L32: 0 | M32: 0 | N32: 0 | O32: 0 | P32: 0 | S32: 0 | U32: 0 | AB32: 23
A33: z | C33: Ø2,0х | F33: 1 | G33: 2 | H33: 0 | I33: 0.025 | K33: 0 | L33: 0 | M33: 0 | N33: 0 | O33: 0 | P33: 0 | S33: 0 | U33: 0 | AB33: 24
A34: z | C34: Ø2,0х | F34: 1 | G34: 2 | H34: 0 | I34: 0.025 | K34: 0 | L34: 0 | M34: 0 | N34: 0 | O34: 0 | P34: 0 | S34: 0 | U34: 0 | AB34: 25
A35: z | C35: Ø2,0х | F35: 1 | G35: 2 | H35: 0 | I35: 0.025 | K35: 0 | L35: 0 | M35: 0 | N35: 0 | O35: 0 | P35: 0 | S35: 0 | U35: 0 | AB35: 26
A36: z | C36: Ø2,0х | F36: 1 | G36: 2 | H36: 0 | I36: 0.025 | K36: 0 | L36: 0 | M36: 0 | N36: 0 | O36: 0 | P36: 0 | S36: 0 | U36: 0 | AB36: 27
A37: =IF(O37=0,"z"," ") -> z | C37: Ø2,0х | F37: 1 | G37: 2 | H37: 0 | I37: 0.025 | K37: 0 | L37: 0 | M37: 0 | N37: 0 | O37: 0 | P37: 0 | S37: 0 | U37: 0 | AB37: 28
A38: z | C38: Ø2,0х | F38: 1 | G38: 2 | H38: 0 | I38: 0.025 | K38: 0 | L38: 0 | M38: 0 | N38: 0 | O38: 0 | P38: 0 | S38: 0 | U38: 0 | AB38: 29
A39: z | C39: Ø2,0х | F39: 1 | G39: 2 | H39: 0 | I39: 0.025 | K39: 0 | L39: 0 | M39: 0 | N39: 0 | O39: 0 | P39: 0 | S39: 0 | U39: 0 | AB39: 30
A40: z | O40: =SUM(O10:O39) -> 0 | P40: =SUM(P10:P39) -> 0 | S40: =SUM(S10:S39) -> 0
A41: =IF(O41=0,"z"," ") -> z | C41: Ø2,5х | F41: =$C$5 -> 1 | G41: 2.5 | H41: =D41+E41 -> 0 | I41: 0.0375 | K41: =F41*J41 -> 0 | L41: =H41/162 -> 0 | M41: =J41*L41/60 -> 0 | N41: =H41*I41/1000 -> 0 | O41: =J41*N41 -> 0 | P41: =M41*F41 -> 0 | S41: =N41*K41 -> 0 | U41: =I41*0.01*K41 -> 0 | AB41: 1
A42: z | C42: Ø2,5х | F42: 1 | G42: 2.5 | H42: =D42+E42 -> 0 | I42: 0.0375 | K42: =F42*J42 -> 0 | L42: =H42/162 -> 0 | M42: =J42*L42/60 -> 0 | N42: =H42*I42/1000 -> 0 | O42: =J42*N42 -> 0 | P42: =M42*F42 -> 0 | S42: =N42*K42 -> 0 | U42: =I42*0.01*K42 -> 0 | AB42: 2
A43: z | C43: Ø2,5х | F43: 1 | G43: 2.5 | H43: 0 | I43: 0.0375 | K43: 0 | L43: 0 | M43: 0 | N43: 0 | O43: 0 | P43: 0 | S43: 0 | U43: 0 | AB43: 3
A44: z | C44: Ø2,5х | F44: 1 | G44: 2.5 | H44: 0 | I44: 0.0375 | K44: 0 | L44: 0 | M44: 0 | N44: 0 | O44: 0 | P44: 0 | S44: 0 | U44: 0 | AB44: 4
A45: z | C45: Ø2,5х | F45: 1 | G45: 2.5 | H45: 0 | I45: 0.0375 | K45: 0 | L45: 0 | M45: 0 | N45: 0 | O45: 0 | P45: 0 | S45: 0 | U45: 0 | AB45: 5
A46: z | C46: Ø2,5х | F46: 1 | G46: 2.5 | H46: 0 | I46: 0.0375 | K46: 0 | L46: 0 | M46: 0 | N46: 0 | O46: 0 | P46: 0 | S46: 0 | U46: 0 | AB46: 6
A47: z | C47: Ø2,5х | F47: 1 | G47: 2.5 | H47: 0 | I47: 0.0375 | K47: 0 | L47: 0 | M47: 0 | N47: 0 | O47: 0 | P47: 0 | S47: 0 | U47: 0 | AB47: 7
A48: z | C48: Ø2,5х | F48: 1 | G48: 2.5 | H48: 0 | I48: 0.0375 | K48: 0 | L48: 0 | M48: 0 | N48: 0 | O48: 0 | P48: 0 | S48: 0 | U48: 0 | AB48: 8
A49: z | C49: Ø2,5х | F49: 1 | G49: 2.5 | H49: 0 | I49: 0.0375 | K49: 0 | L49: 0 | M49: 0 | N49: 0 | O49: 0 | P49: 0 | S49: 0 | U49: 0 | AB49: 9
A50: z | C50: Ø2,5х | F50: 1 | G50: 2.5 | H50: 0 | I50: 0.0375 | K50: 0 | L50: 0 | M50: 0 | N50: 0 | O50: 0 | P50: 0 | S50: 0 | U50: 0 | AB50: 10
A51: z | C51: Ø2,5х | F51: 1 | G51: 2.5 | H51: 0 | I51: 0.0375 | K51: 0 | L51: 0 | M51: 0 | N51: 0 | O51: 0 | P51: 0 | S51: 0 | U51: 0 | AB51: 11
A52: z | C52: Ø2,5х | F52: 1 | G52: 2.5 | H52: 0 | I52: 0.0375 | K52: 0 | L52: 0 | M52: 0 | N52: 0 | O52: 0 | P52: 0 | S52: 0 | U52: 0 | AB52: 12
A53: z | C53: Ø2,5х | F53: 1 | G53: 2.5 | H53: 0 | I53: 0.0375 | K53: 0 | L53: 0 | M53: 0 | N53: 0 | O53: 0 | P53: 0 | S53: 0 | U53: 0 | AB53: 13
A54: z | C54: Ø2,5х | F54: 1 | G54: 2.5 | H54: 0 | I54: 0.0375 | K54: 0 | L54: 0 | M54: 0 | N54: 0 | O54: 0 | P54: 0 | S54: 0 | U54: 0 | AB54: 14
A55: z | C55: Ø2,5х | F55: 1 | G55: 2.5 | H55: 0 | I55: 0.0375 | K55: 0 | L55: 0 | M55: 0 | N55: 0 | O55: 0 | P55: 0 | S55: 0 | U55: 0 | AB55: 15
A56: z | C56: Ø2,5х | F56: 1 | G56: 2.5 | H56: 0 | I56: 0.0375 | K56: 0 | L56: 0 | M56: 0 | N56: 0 | O56: 0 | P56: 0 | S56: 0 | U56: 0 | AB56: 16
A57: z | C57: Ø2,5х | F57: 1 | G57: 2.5 | H57: 0 | I57: 0.0375 | K57: 0 | L57: 0 | M57: 0 | N57: 0 | O57: 0 | P57: 0 | S57: 0 | U57: 0 | AB57: 17
A58: z | C58: Ø2,5х | F58: 1 | G58: 2.5 | H58: 0 | I58: 0.0375 | K58: 0 | L58: 0 | M58: 0 | N58: 0 | O58: 0 | P58: 0 | S58: 0 | U58: 0 | AB58: 18
A59: z | C59: Ø2,5х | F59: 1 | G59: 2.5 | H59: 0 | I59: 0.0375 | K59: 0 | L59: 0 | M59: 0 | N59: 0 | O59: 0 | P59: 0 | S59: 0 | U59: 0 | AB59: 19
A60: z | C60: Ø2,5х | F60: 1 | G60: 2.5 | H60: 0 | I60: 0.0375 | K60: 0 | L60: 0 | M60: 0 | N60: 0 | O60: 0 | P60: 0 | S60: 0 | U60: 0 | AB60: 20
A61: z | C61: Ø2,5х | F61: 1 | G61: 2.5 | H61: 0 | I61: 0.0375 | K61: 0 | L61: 0 | M61: 0 | N61: 0 | O61: 0 | P61: 0 | S61: 0 | U61: 0 | AB61: 21
A62: z | C62: Ø2,5х | F62: 1 | G62: 2.5 | H62: 0 | I62: 0.0375 | K62: 0 | L62: 0 | M62: 0 | N62: 0 | O62: 0 | P62: 0 | S62: 0 | U62: 0 | AB62: 22
A63: z | C63: Ø2,5х | F63: 1 | G63: 2.5 | H63: 0 | I63: 0.0375 | K63: 0 | L63: 0 | M63: 0 | N63: 0 | O63: 0 | P63: 0 | S63: 0 | U63: 0 | AB63: 23
A64: z | C64: Ø2,5х | F64: 1 | G64: 2.5 | H64: 0 | I64: 0.0375 | K64: 0 | L64: 0 | M64: 0 | N64: 0 | O64: 0 | P64: 0 | S64: 0 | U64: 0 | AB64: 24
A65: z | C65: Ø2,5х | F65: 1 | G65: 2.5 | H65: 0 | I65: 0.0375 | K65: 0 | L65: 0 | M65: 0 | N65: 0 | O65: 0 | P65: 0 | S65: 0 | U65: 0 | AB65: 25
A66: z | C66: Ø2,5х | F66: 1 | G66: 2.5 | H66: 0 | I66: 0.0375 | K66: 0 | L66: 0 | M66: 0 | N66: 0 | O66: 0 | P66: 0 | S66: 0 | U66: 0 | AB66: 26
A67: =IF(O67=0,"z"," ") -> z | C67: Ø2,5х | F67: 1 | G67: 2.5 | H67: 0 | I67: 0.0375 | K67: 0 | L67: 0 | M67: 0 | N67: 0 | O67: 0 | P67: 0 | S67: 0 | U67: 0 | AB67: 27
A68: z | C68: Ø2,5х | F68: 1 | G68: 2.5 | H68: 0 | I68: 0.0375 | K68: 0 | L68: 0 | M68: 0 | N68: 0 | O68: 0 | P68: 0 | S68: 0 | U68: 0 | AB68: 28
A69: z | C69: Ø2,5х | F69: 1 | G69: 2.5 | H69: 0 | I69: 0.0375 | K69: 0 | L69: 0 | M69: 0 | N69: 0 | O69: 0 | P69: 0 | S69: 0 | U69: 0 | AB69: 29
A70: z | C70: Ø2,5х | F70: 1 | G70: 2.5 | H70: 0 | I70: 0.0375 | K70: 0 | L70: 0 | M70: 0 | N70: 0 | O70: 0 | P70: 0 | S70: 0 | U70: 0 | AB70: 30
A71: z | O71: =SUM(O41:O70) -> 0 | P71: =SUM(P41:P70) -> 0 | S71: 0
A72: z | C72: Ø3,0х | F72: =$C$5 -> 1 | G72: 2.9 | H72: =D72+E72 -> 0 | I72: 0.052 | K72: =F72*J72 -> 0 | L72: =H72/162 -> 0 | M72: =J72*L72/60 -> 0 | N72: =H72*I72/1000 -> 0 | O72: =J72*N72 -> 0 | P72: =M72*F72 -> 0 | S72: =N72*K72 -> 0 | U72: =I72*0.01*K72 -> 0 | AB72: 1
A73: =IF(O73=0,"z"," ") -> z | C73: Ø3,0х | F73: 1 | G73: 2.9 | H73: =D73+E73 -> 0 | I73: 0.052 | K73: =F73*J73 -> 0 | L73: =H73/162 -> 0 | M73: =J73*L73/60 -> 0 | N73: =H73*I73/1000 -> 0 | O73: =J73*N73 -> 0 | P73: =M73*F73 -> 0 | S73: =N73*K73 -> 0 | U73: =I73*0.01*K73 -> 0 | AB73: 2
A74: z | C74: Ø3,0х | F74: 1 | G74: 2.9 | H74: 0 | I74: 0.052 | K74: 0 | L74: 0 | M74: 0 | N74: 0 | O74: 0 | P74: 0 | S74: 0 | U74: 0 | AB74: 3
A75: z | C75: Ø3,0х | F75: 1 | G75: 2.9 | H75: 0 | I75: 0.052 | K75: 0 | L75: 0 | M75: 0 | N75: 0 | O75: 0 | P75: 0 | S75: 0 | U75: 0 | AB75: 4
A76: z | C76: Ø3,0х | F76: 1 | G76: 2.9 | H76: 0 | I76: 0.052 | K76: 0 | L76: 0 | M76: 0 | N76: 0 | O76: 0 | P76: 0 | S76: 0 | U76: 0 | AB76: 5
A77: z | C77: Ø3,0х | F77: 1 | G77: 2.9 | H77: 0 | I77: 0.052 | K77: 0 | L77: 0 | M77: 0 | N77: 0 | O77: 0 | P77: 0 | S77: 0 | U77: 0 | AB77: 6
A78: z | C78: Ø3,0х | F78: 1 | G78: 2.9 | H78: 0 | I78: 0.052 | K78: 0 | L78: 0 | M78: 0 | N78: 0 | O78: 0 | P78: 0 | S78: 0 | U78: 0 | AB78: 7
A79: z | C79: Ø3,0х | F79: 1 | G79: 2.9 | H79: 0 | I79: 0.052 | K79: 0 | L79: 0 | M79: 0 | N79: 0 | O79: 0 | P79: 0 | S79: 0 | U79: 0 | AB79: 8
A80: z | C80: Ø3,0х | F80: 1 | G80: 2.9 | H80: 0 | I80: 0.052 | K80: 0 | L80: 0 | M80: 0 | N80: 0 | O80: 0 | P80: 0 | S80: 0 | U80: 0 | AB80: 9
A81: z | C81: Ø3,0х | F81: 1 | G81: 2.9 | H81: 0 | I81: 0.052 | K81: 0 | L81: 0 | M81: 0 | N81: 0 | O81: 0 | P81: 0 | S81: 0 | U81: 0 | AB81: 10
A82: z | C82: Ø3,0х | F82: 1 | G82: 2.9 | H82: 0 | I82: 0.052 | K82: 0 | L82: 0 | M82: 0 | N82: 0 | O82: 0 | P82: 0 | S82: 0 | U82: 0 | AB82: 11
A83: z | C83: Ø3,0х | F83: 1 | G83: 2.9 | H83: 0 | I83: 0.052 | K83: 0 | L83: 0 | M83: 0 | N83: 0 | O83: 0 | P83: 0 | S83: 0 | U83: 0 | AB83: 12
A84: z | C84: Ø3,0х | F84: 1 | G84: 2.9 | H84: 0 | I84: 0.052 | K84: 0 | L84: 0 | M84: 0 | N84: 0 | O84: 0 | P84: 0 | S84: 0 | U84: 0 | AB84: 13
A85: z | C85: Ø3,0х | F85: 1 | G85: 2.9 | H85: 0 | I85: 0.052 | K85: 0 | L85: 0 | M85: 0 | N85: 0 | O85: 0 | P85: 0 | S85: 0 | U85: 0 | AB85: 14
A86: z | C86: Ø3,0х | F86: 1 | G86: 2.9 | H86: 0 | I86: 0.052 | K86: 0 | L86: 0 | M86: 0 | N86: 0 | O86: 0 | P86: 0 | S86: 0 | U86: 0 | AB86: 15
A87: z | C87: Ø3,0х | F87: 1 | G87: 2.9 | H87: 0 | I87: 0.052 | K87: 0 | L87: 0 | M87: 0 | N87: 0 | O87: 0 | P87: 0 | S87: 0 | U87: 0 | AB87: 16
A88: z | C88: Ø3,0х | F88: 1 | G88: 2.9 | H88: 0 | I88: 0.052 | K88: 0 | L88: 0 | M88: 0 | N88: 0 | O88: 0 | P88: 0 | S88: 0 | U88: 0 | AB88: 17
A89: z | C89: Ø3,0х | F89: 1 | G89: 2.9 | H89: 0 | I89: 0.052 | K89: 0 | L89: 0 | M89: 0 | N89: 0 | O89: 0 | P89: 0 | S89: 0 | U89: 0 | AB89: 18
A90: z | C90: Ø3,0х | F90: 1 | G90: 2.9 | H90: 0 | I90: 0.052 | K90: 0 | L90: 0 | M90: 0 | N90: 0 | O90: 0 | P90: 0 | S90: 0 | U90: 0 | AB90: 19
A91: z | C91: Ø3,0х | F91: 1 | G91: 2.9 | H91: 0 | I91: 0.052 | K91: 0 | L91: 0 | M91: 0 | N91: 0 | O91: 0 | P91: 0 | S91: 0 | U91: 0 | AB91: 20
A92: z | C92: Ø3,0х | F92: 1 | G92: 2.9 | H92: 0 | I92: 0.052 | K92: 0 | L92: 0 | M92: 0 | N92: 0 | O92: 0 | P92: 0 | S92: 0 | U92: 0 | AB92: 21
A93: z | C93: Ø3,0х | F93: 1 | G93: 2.9 | H93: 0 | I93: 0.052 | K93: 0 | L93: 0 | M93: 0 | N93: 0 | O93: 0 | P93: 0 | S93: 0 | U93: 0 | AB93: 22
A94: z | C94: Ø3,0х | F94: 1 | G94: 2.9 | H94: 0 | I94: 0.052 | K94: 0 | L94: 0 | M94: 0 | N94: 0 | O94: 0 | P94: 0 | S94: 0 | U94: 0 | AB94: 23
A95: z | C95: Ø3,0х | F95: 1 | G95: 2.9 | H95: 0 | I95: 0.052 | K95: 0 | L95: 0 | M95: 0 | N95: 0 | O95: 0 | P95: 0 | S95: 0 | U95: 0 | AB95: 24
A96: z | C96: Ø3,0х | F96: 1 | G96: 2.9 | H96: 0 | I96: 0.052 | K96: 0 | L96: 0 | M96: 0 | N96: 0 | O96: 0 | P96: 0 | S96: 0 | U96: 0 | AB96: 25
A97: z | C97: Ø3,0х | F97: 1 | G97: 2.9 | H97: 0 | I97: 0.052 | K97: 0 | L97: 0 | M97: 0 | N97: 0 | O97: 0 | P97: 0 | S97: 0 | U97: 0 | AB97: 26
A98: z | C98: Ø3,0х | F98: 1 | G98: 2.9 | H98: 0 | I98: 0.052 | K98: 0 | L98: 0 | M98: 0 | N98: 0 | O98: 0 | P98: 0 | S98: 0 | U98: 0 | AB98: 27
A99: z | C99: Ø3,0х | F99: 1 | G99: 2.9 | H99: 0 | I99: 0.052 | K99: 0 | L99: 0 | M99: 0 | N99: 0 | O99: 0 | P99: 0 | S99: 0 | U99: 0 | AB99: 28
A100: z | C100: Ø3,0х | F100: 1 | G100: 2.9 | H100: 0 | I100: 0.052 | K100: 0 | L100: 0 | M100: 0 | N100: 0 | O100: 0 | P100: 0 | S100: 0 | U100: 0 | AB100: 29
A101: z | C101: Ø3,0х | F101: 1 | G101: 2.9 | H101: 0 | I101: 0.052 | K101: 0 | L101: 0 | M101: 0 | N101: 0 | O101: 0 | P101: 0 | S101: 0 | U101: 0 | AB101: 30
A102: z | O102: =SUM(O72:O101) -> 0 | P102: =SUM(P72:P101) -> 0 | S102: =SUM(S72:S101) -> 0
A103: =IF(O103=0,"z"," ") -> z | C103: Ø3,5х | F103: =$C$5 -> 1 | G103: 3.4 | H103: =D103+E103 -> 0 | I103: 0.072 | K103: =F103*J103 -> 0 | L103: =H103/162 -> 0 | M103: =J103*L103/60 -> 0 | N103: =H103*I103/1000 -> 0 | O103: =J103*N103 -> 0 | P103: =M103*F103 -> 0 | S103: =N103*K103 -> 0 | U103: =I103*0.01*K103 -> 0 | AB103: 1
A104: z | C104: Ø3,5х | F104: 1 | G104: 3.4 | H104: =D104+E104 -> 0 | I104: 0.072 | K104: =F104*J104 -> 0 | L104: =H104/162 -> 0 | M104: =J104*L104/60 -> 0 | N104: =H104*I104/1000 -> 0 | O104: =J104*N104 -> 0 | P104: =M104*F104 -> 0 | S104: =N104*K104 -> 0 | U104: =I104*0.01*K104 -> 0 | AB104: 2
A105: z | C105: Ø3,5х | F105: 1 | G105: 3.4 | H105: 0 | I105: 0.072 | K105: 0 | L105: 0 | M105: 0 | N105: 0 | O105: 0 | P105: 0 | S105: 0 | U105: 0 | AB105: 3
A106: z | C106: Ø3,5х | F106: 1 | G106: 3.4 | H106: 0 | I106: 0.072 | K106: 0 | L106: 0 | M106: 0 | N106: 0 | O106: 0 | P106: 0 | S106: 0 | U106: 0 | AB106: 4
A107: z | C107: Ø3,5х | F107: 1 | G107: 3.4 | H107: 0 | I107: 0.072 | K107: 0 | L107: 0 | M107: 0 | N107: 0 | O107: 0 | P107: 0 | S107: 0 | U107: 0 | AB107: 5
A108: z | C108: Ø3,5х | F108: 1 | G108: 3.4 | H108: 0 | I108: 0.072 | K108: 0 | L108: 0 | M108: 0 | N108: 0 | O108: 0 | P108: 0 | S108: 0 | U108: 0 | AB108: 6
A109: z | C109: Ø3,5х | F109: 1 | G109: 3.4 | H109: 0 | I109: 0.072 | K109: 0 | L109: 0 | M109: 0 | N109: 0 | O109: 0 | P109: 0 | S109: 0 | U109: 0 | AB109: 7
A110: z | C110: Ø3,5х | F110: 1 | G110: 3.4 | H110: 0 | I110: 0.072 | K110: 0 | L110: 0 | M110: 0 | N110: 0 | O110: 0 | P110: 0 | S110: 0 | U110: 0 | AB110: 8
A111: z | C111: Ø3,5х | F111: 1 | G111: 3.4 | H111: 0 | I111: 0.072 | K111: 0 | L111: 0 | M111: 0 | N111: 0 | O111: 0 | P111: 0 | S111: 0 | U111: 0 | AB111: 9
A112: z | C112: Ø3,5х | F112: 1 | G112: 3.4 | H112: 0 | I112: 0.072 | K112: 0 | L112: 0 | M112: 0 | N112: 0 | O112: 0 | P112: 0 | S112: 0 | U112: 0 | AB112: 10
A113: z | C113: Ø3,5х | F113: 1 | G113: 3.4 | H113: 0 | I113: 0.072 | K113: 0 | L113: 0 | M113: 0 | N113: 0 | O113: 0 | P113: 0 | S113: 0 | U113: 0 | AB113: 11
A114: z | C114: Ø3,5х | F114: 1 | G114: 3.4 | H114: 0 | I114: 0.072 | K114: 0 | L114: 0 | M114: 0 | N114: 0 | O114: 0 | P114: 0 | S114: 0 | U114: 0 | AB114: 12
A115: z | C115: Ø3,5х | F115: 1 | G115: 3.4 | H115: 0 | I115: 0.072 | K115: 0 | L115: 0 | M115: 0 | N115: 0 | O115: 0 | P115: 0 | S115: 0 | U115: 0 | AB115: 13
A116: z | C116: Ø3,5х | F116: 1 | G116: 3.4 | H116: 0 | I116: 0.072 | K116: 0 | L116: 0 | M116: 0 | N116: 0 | O116: 0 | P116: 0 | S116: 0 | U116: 0 | AB116: 14
A117: z | C117: Ø3,5х | F117: 1 | G117: 3.4 | H117: 0 | I117: 0.072 | K117: 0 | L117: 0 | M117: 0 | N117: 0 | O117: 0 | P117: 0 | S117: 0 | U117: 0 | AB117: 15
A118: z | C118: Ø3,5х | F118: 1 | G118: 3.4 | H118: 0 | I118: 0.072 | K118: 0 | L118: 0 | M118: 0 | N118: 0 | O118: 0 | P118: 0 | S118: 0 | U118: 0 | AB118: 16
A119: z | C119: Ø3,5х | F119: 1 | G119: 3.4 | H119: 0 | I119: 0.072 | K119: 0 | L119: 0 | M119: 0 | N119: 0 | O119: 0 | P119: 0 | S119: 0 | U119: 0 | AB119: 17
A120: z | C120: Ø3,5х | F120: 1 | G120: 3.4 | H120: 0 | I120: 0.072 | K120: 0 | L120: 0 | M120: 0 | N120: 0 | O120: 0 | P120: 0 | S120: 0 | U120: 0 | AB120: 18
A121: z | C121: Ø3,5х | F121: 1 | G121: 3.4 | H121: 0 | I121: 0.072 | K121: 0 | L121: 0 | M121: 0 | N121: 0 | O121: 0 | P121: 0 | S121: 0 | U121: 0 | AB121: 19
A122: z | C122: Ø3,5х | F122: 1 | G122: 3.4 | H122: 0 | I122: 0.072 | K122: 0 | L122: 0 | M122: 0 | N122: 0 | O122: 0 | P122: 0 | S122: 0 | U122: 0 | AB122: 20
A123: z | C123: Ø3,5х | F123: 1 | G123: 3.4 | H123: 0 | I123: 0.072 | K123: 0 | L123: 0 | M123: 0 | N123: 0 | O123: 0 | P123: 0 | S123: 0 | U123: 0 | AB123: 21
A124: z | C124: Ø3,5х | F124: 1 | G124: 3.4 | H124: 0 | I124: 0.072 | K124: 0 | L124: 0 | M124: 0 | N124: 0 | O124: 0 | P124: 0 | S124: 0 | U124: 0 | AB124: 22
A125: z | C125: Ø3,5х | F125: 1 | G125: 3.4 | H125: 0 | I125: 0.072 | K125: 0 | L125: 0 | M125: 0 | N125: 0 | O125: 0 | P125: 0 | S125: 0 | U125: 0 | AB125: 23
A126: z | C126: Ø3,5х | F126: 1 | G126: 3.4 | H126: 0 | I126: 0.072 | K126: 0 | L126: 0 | M126: 0 | N126: 0 | O126: 0 | P126: 0 | S126: 0 | U126: 0 | AB126: 24
A127: z | C127: Ø3,5х | F127: 1 | G127: 3.4 | H127: 0 | I127: 0.072 | K127: 0 | L127: 0 | M127: 0 | N127: 0 | O127: 0 | P127: 0 | S127: 0 | U127: 0 | AB127: 25
A128: z | C128: Ø3,5х | F128: 1 | G128: 3.4 | H128: 0 | I128: 0.072 | K128: 0 | L128: 0 | M128: 0 | N128: 0 | O128: 0 | P128: 0 | S128: 0 | U128: 0 | AB128: 26
A129: z | C129: Ø3,5х | F129: 1 | G129: 3.4 | H129: 0 | I129: 0.072 | K129: 0 | L129: 0 | M129: 0 | N129: 0 | O129: 0 | P129: 0 | S129: 0 | U129: 0 | AB129: 27
A130: z | C130: Ø3,5х | F130: 1 | G130: 3.4 | H130: 0 | I130: 0.072 | K130: 0 | L130: 0 | M130: 0 | N130: 0 | O130: 0 | P130: 0 | S130: 0 | U130: 0 | AB130: 28
A131: z | C131: Ø3,5х | F131: 1 | G131: 3.4 | H131: 0 | I131: 0.072 | K131: 0 | L131: 0 | M131: 0 | N131: 0 | O131: 0 | P131: 0 | S131: 0 | U131: 0 | AB131: 29
A132: z | C132: Ø3,5х | F132: 1 | G132: 3.4 | H132: 0 | I132: 0.072 | K132: 0 | L132: 0 | M132: 0 | N132: 0 | O132: 0 | P132: 0 | S132: 0 | U132: 0 | AB132: 30
A133: z | O133: =SUM(O103:O132) -> 0 | P133: =SUM(P103:P132) -> 0 | S133: =SUM(S103:S132) -> 0
A134: =IF(O134=0,"z"," ") -> z | C134: Ø4,0х | F134: =$C$5 -> 1 | G134: 3.8 | H134: =D134+E134 -> 0 | I134: 0.091 | K134: =F134*J134 -> 0 | L134: =H134/162 -> 0 | M134: =J134*L134/60 -> 0 | N134: =H134*I134/1000 -> 0 | O134: =J134*N134 -> 0 | P134: =M134*F134 -> 0 | S134: =N134*K134 -> 0 | U134: =I134*0.01*K134 -> 0 | AB134: 1
A135: z | C135: Ø4,0х | F135: 1 | G135: 3.8 | H135: =D135+E135 -> 0 | I135: 0.091 | K135: =F135*J135 -> 0 | L135: =H135/162 -> 0 | M135: =J135*L135/60 -> 0 | N135: =H135*I135/1000 -> 0 | O135: =J135*N135 -> 0 | P135: =M135*F135 -> 0 | S135: =N135*K135 -> 0 | U135: =I135*0.01*K135 -> 0 | AB135: 2
A136: z | C136: Ø4,0х | F136: 1 | G136: 3.8 | H136: 0 | I136: 0.091 | K136: 0 | L136: 0 | M136: 0 | N136: 0 | O136: 0 | P136: 0 | S136: 0 | U136: 0 | AB136: 3
A137: z | C137: Ø4,0х | F137: 1 | G137: 3.8 | H137: 0 | I137: 0.091 | K137: 0 | L137: 0 | M137: 0 | N137: 0 | O137: 0 | P137: 0 | S137: 0 | U137: 0 | AB137: 4
A138: z | C138: Ø4,0х | F138: 1 | G138: 3.8 | H138: 0 | I138: 0.091 | K138: 0 | L138: 0 | M138: 0 | N138: 0 | O138: 0 | P138: 0 | S138: 0 | U138: 0 | AB138: 5
A139: z | C139: Ø4,0х | F139: 1 | G139: 3.8 | H139: 0 | I139: 0.091 | K139: 0 | L139: 0 | M139: 0 | N139: 0 | O139: 0 | P139: 0 | S139: 0 | U139: 0 | AB139: 6
A140: z | C140: Ø4,0х | F140: 1 | G140: 3.8 | H140: 0 | I140: 0.091 | K140: 0 | L140: 0 | M140: 0 | N140: 0 | O140: 0 | P140: 0 | S140: 0 | U140: 0 | AB140: 7
A141: z | C141: Ø4,0х | F141: 1 | G141: 3.8 | H141: 0 | I141: 0.091 | K141: 0 | L141: 0 | M141: 0 | N141: 0 | O141: 0 | P141: 0 | S141: 0 | U141: 0 | AB141: 8
A142: z | C142: Ø4,0х | F142: 1 | G142: 3.8 | H142: 0 | I142: 0.091 | K142: 0 | L142: 0 | M142: 0 | N142: 0 | O142: 0 | P142: 0 | S142: 0 | U142: 0 | AB142: 9
A143: z | C143: Ø4,0х | F143: 1 | G143: 3.8 | H143: 0 | I143: 0.091 | K143: 0 | L143: 0 | M143: 0 | N143: 0 | O143: 0 | P143: 0 | S143: 0 | U143: 0 | AB143: 10
A144: z | C144: Ø4,0х | F144: 1 | G144: 3.8 | H144: 0 | I144: 0.091 | K144: 0 | L144: 0 | M144: 0 | N144: 0 | O144: 0 | P144: 0 | S144: 0 | U144: 0 | AB144: 11
A145: z | C145: Ø4,0х | F145: 1 | G145: 3.8 | H145: 0 | I145: 0.091 | K145: 0 | L145: 0 | M145: 0 | N145: 0 | O145: 0 | P145: 0 | S145: 0 | U145: 0 | AB145: 12
A146: z | C146: Ø4,0х | F146: 1 | G146: 3.8 | H146: 0 | I146: 0.091 | K146: 0 | L146: 0 | M146: 0 | N146: 0 | O146: 0 | P146: 0 | S146: 0 | U146: 0 | AB146: 13
A147: z | C147: Ø4,0х | F147: 1 | G147: 3.8 | H147: 0 | I147: 0.091 | K147: 0 | L147: 0 | M147: 0 | N147: 0 | O147: 0 | P147: 0 | S147: 0 | U147: 0 | AB147: 14
A148: z | C148: Ø4,0х | F148: 1 | G148: 3.8 | H148: 0 | I148: 0.091 | K148: 0 | L148: 0 | M148: 0 | N148: 0 | O148: 0 | P148: 0 | S148: 0 | U148: 0 | AB148: 15
A149: z | C149: Ø4,0х | F149: 1 | G149: 3.8 | H149: 0 | I149: 0.091 | K149: 0 | L149: 0 | M149: 0 | N149: 0 | O149: 0 | P149: 0 | S149: 0 | U149: 0 | AB149: 16
A150: z | C150: Ø4,0х | F150: 1 | G150: 3.8 | H150: 0 | I150: 0.091 | K150: 0 | L150: 0 | M150: 0 | N150: 0 | O150: 0 | P150: 0 | S150: 0 | U150: 0 | AB150: 17
A151: z | C151: Ø4,0х | F151: 1 | G151: 3.8 | H151: 0 | I151: 0.091 | K151: 0 | L151: 0 | M151: 0 | N151: 0 | O151: 0 | P151: 0 | S151: 0 | U151: 0 | AB151: 18
A152: z | C152: Ø4,0х | F152: 1 | G152: 3.8 | H152: 0 | I152: 0.091 | K152: 0 | L152: 0 | M152: 0 | N152: 0 | O152: 0 | P152: 0 | S152: 0 | U152: 0 | AB152: 19
A153: z | C153: Ø4,0х | F153: 1 | G153: 3.8 | H153: 0 | I153: 0.091 | K153: 0 | L153: 0 | M153: 0 | N153: 0 | O153: 0 | P153: 0 | S153: 0 | U153: 0 | AB153: 20
A154: z | C154: Ø4,0х | F154: 1 | G154: 3.8 | H154: 0 | I154: 0.091 | K154: 0 | L154: 0 | M154: 0 | N154: 0 | O154: 0 | P154: 0 | S154: 0 | U154: 0 | AB154: 21
A155: z | C155: Ø4,0х | F155: 1 | G155: 3.8 | H155: 0 | I155: 0.091 | K155: 0 | L155: 0 | M155: 0 | N155: 0 | O155: 0 | P155: 0 | S155: 0 | U155: 0 | AB155: 22
A156: z | C156: Ø4,0х | F156: 1 | G156: 3.8 | H156: 0 | I156: 0.091 | K156: 0 | L156: 0 | M156: 0 | N156: 0 | O156: 0 | P156: 0 | S156: 0 | U156: 0 | AB156: 23
A157: z | C157: Ø4,0х | F157: 1 | G157: 3.8 | H157: 0 | I157: 0.091 | K157: 0 | L157: 0 | M157: 0 | N157: 0 | O157: 0 | P157: 0 | S157: 0 | U157: 0 | AB157: 24
A158: z | C158: Ø4,0х | F158: 1 | G158: 3.8 | H158: 0 | I158: 0.091 | K158: 0 | L158: 0 | M158: 0 | N158: 0 | O158: 0 | P158: 0 | S158: 0 | U158: 0 | AB158: 25
A159: z | C159: Ø4,0х | F159: 1 | G159: 3.8 | H159: 0 | I159: 0.091 | K159: 0 | L159: 0 | M159: 0 | N159: 0 | O159: 0 | P159: 0 | S159: 0 | U159: 0 | AB159: 26
A160: z | C160: Ø4,0х | F160: 1 | G160: 3.8 | H160: 0 | I160: 0.091 | K160: 0 | L160: 0 | M160: 0 | N160: 0 | O160: 0 | P160: 0 | S160: 0 | U160: 0 | AB160: 27
A161: z | C161: Ø4,0х | F161: 1 | G161: 3.8 | H161: 0 | I161: 0.091 | K161: 0 | L161: 0 | M161: 0 | N161: 0 | O161: 0 | P161: 0 | S161: 0 | U161: 0 | AB161: 28
A162: z | C162: Ø4,0х | F162: 1 | G162: 3.8 | H162: 0 | I162: 0.091 | K162: 0 | L162: 0 | M162: 0 | N162: 0 | O162: 0 | P162: 0 | S162: 0 | U162: 0 | AB162: 29
A163: z | C163: Ø4,0х | F163: 1 | G163: 3.8 | H163: 0 | I163: 0.091 | K163: 0 | L163: 0 | M163: 0 | N163: 0 | O163: 0 | P163: 0 | S163: 0 | U163: 0 | AB163: 30
A164: z | O164: =SUM(O134:O163) -> 0 | P164: =SUM(P134:P163) -> 0 | S164: =SUM(S134:S163) -> 0
A165: z | C165: Ø5,0х | F165: =$C$5 -> 1 | G165: 4.8 | H165: =D165+E165 -> 0 | I165: 0.142 | K165: =F165*J165 -> 0 | L165: =H165/162 -> 0 | M165: =J165*L165/60 -> 0 | N165: =H165*I165/1000 -> 0 | O165: =J165*N165 -> 0 | P165: =M165*F165 -> 0 | S165: =N165*K165 -> 0 | U165: =I165*0.01*K165 -> 0 | AB165: 1
A166: =IF(O166=0,"z"," ") -> z | C166: Ø5,0х | F166: 1 | G166: 4.8 | H166: =D166+E166 -> 0 | I166: 0.142 | K166: =F166*J166 -> 0 | L166: =H166/162 -> 0 | M166: =J166*L166/60 -> 0 | N166: =H166*I166/1000 -> 0 | O166: =J166*N166 -> 0 | P166: =M166*F166 -> 0 | S166: =N166*K166 -> 0 | U166: =I166*0.01*K166 -> 0 | AB166: 2
A167: z | C167: Ø5,0х | F167: 1 | G167: 4.8 | H167: 0 | I167: 0.142 | K167: 0 | L167: 0 | M167: 0 | N167: 0 | O167: 0 | P167: 0 | S167: 0 | U167: 0 | AB167: 3
A168: z | C168: Ø5,0х | F168: 1 | G168: 4.8 | H168: 0 | I168: 0.142 | K168: 0 | L168: 0 | M168: 0 | N168: 0 | O168: 0 | P168: 0 | S168: 0 | U168: 0 | AB168: 4
A169: z | C169: Ø5,0х | F169: 1 | G169: 4.8 | H169: 0 | I169: 0.142 | K169: 0 | L169: 0 | M169: 0 | N169: 0 | O169: 0 | P169: 0 | S169: 0 | U169: 0 | AB169: 5
A170: z | C170: Ø5,0х | F170: 1 | G170: 4.8 | H170: 0 | I170: 0.142 | K170: 0 | L170: 0 | M170: 0 | N170: 0 | O170: 0 | P170: 0 | S170: 0 | U170: 0 | AB170: 6
A171: z | C171: Ø5,0х | F171: 1 | G171: 4.8 | H171: 0 | I171: 0.142 | K171: 0 | L171: 0 | M171: 0 | N171: 0 | O171: 0 | P171: 0 | S171: 0 | U171: 0 | AB171: 7
A172: z | C172: Ø5,0х | F172: 1 | G172: 4.8 | H172: 0 | I172: 0.142 | K172: 0 | L172: 0 | M172: 0 | N172: 0 | O172: 0 | P172: 0 | S172: 0 | U172: 0 | AB172: 8
A173: z | C173: Ø5,0х | F173: 1 | G173: 4.8 | H173: 0 | I173: 0.142 | K173: 0 | L173: 0 | M173: 0 | N173: 0 | O173: 0 | P173: 0 | S173: 0 | U173: 0 | AB173: 9
A174: z | C174: Ø5,0х | F174: 1 | G174: 4.8 | H174: 0 | I174: 0.142 | K174: 0 | L174: 0 | M174: 0 | N174: 0 | O174: 0 | P174: 0 | S174: 0 | U174: 0 | AB174: 10
A175: z | C175: Ø5,0х | F175: 1 | G175: 4.8 | H175: 0 | I175: 0.142 | K175: 0 | L175: 0 | M175: 0 | N175: 0 | O175: 0 | P175: 0 | S175: 0 | U175: 0 | AB175: 11
A176: z | C176: Ø5,0х | F176: 1 | G176: 4.8 | H176: 0 | I176: 0.142 | K176: 0 | L176: 0 | M176: 0 | N176: 0 | O176: 0 | P176: 0 | S176: 0 | U176: 0 | AB176: 12
A177: z | C177: Ø5,0х | F177: 1 | G177: 4.8 | H177: 0 | I177: 0.142 | K177: 0 | L177: 0 | M177: 0 | N177: 0 | O177: 0 | P177: 0 | S177: 0 | U177: 0 | AB177: 13
A178: z | C178: Ø5,0х | F178: 1 | G178: 4.8 | H178: 0 | I178: 0.142 | K178: 0 | L178: 0 | M178: 0 | N178: 0 | O178: 0 | P178: 0 | S178: 0 | U178: 0 | AB178: 14
A179: z | C179: Ø5,0х | F179: 1 | G179: 4.8 | H179: 0 | I179: 0.142 | K179: 0 | L179: 0 | M179: 0 | N179: 0 | O179: 0 | P179: 0 | S179: 0 | U179: 0 | AB179: 15
A180: z | C180: Ø5,0х | F180: 1 | G180: 4.8 | H180: 0 | I180: 0.142 | K180: 0 | L180: 0 | M180: 0 | N180: 0 | O180: 0 | P180: 0 | S180: 0 | U180: 0 | AB180: 16
A181: z | C181: Ø5,0х | F181: 1 | G181: 4.8 | H181: 0 | I181: 0.142 | K181: 0 | L181: 0 | M181: 0 | N181: 0 | O181: 0 | P181: 0 | S181: 0 | U181: 0 | AB181: 17
A182: z | C182: Ø5,0х | F182: 1 | G182: 4.8 | H182: 0 | I182: 0.142 | K182: 0 | L182: 0 | M182: 0 | N182: 0 | O182: 0 | P182: 0 | S182: 0 | U182: 0 | AB182: 18
A183: z | C183: Ø5,0х | F183: 1 | G183: 4.8 | H183: 0 | I183: 0.142 | K183: 0 | L183: 0 | M183: 0 | N183: 0 | O183: 0 | P183: 0 | S183: 0 | U183: 0 | AB183: 19
A184: z | C184: Ø5,0х | F184: 1 | G184: 4.8 | H184: 0 | I184: 0.142 | K184: 0 | L184: 0 | M184: 0 | N184: 0 | O184: 0 | P184: 0 | S184: 0 | U184: 0 | AB184: 20
A185: z | C185: Ø5,0х | F185: 1 | G185: 4.8 | H185: 0 | I185: 0.142 | K185: 0 | L185: 0 | M185: 0 | N185: 0 | O185: 0 | P185: 0 | S185: 0 | U185: 0 | AB185: 21
A186: z | C186: Ø5,0х | F186: 1 | G186: 4.8 | H186: 0 | I186: 0.142 | K186: 0 | L186: 0 | M186: 0 | N186: 0 | O186: 0 | P186: 0 | S186: 0 | U186: 0 | AB186: 22
A187: z | C187: Ø5,0х | F187: 1 | G187: 4.8 | H187: 0 | I187: 0.142 | K187: 0 | L187: 0 | M187: 0 | N187: 0 | O187: 0 | P187: 0 | S187: 0 | U187: 0 | AB187: 23
A188: z | C188: Ø5,0х | F188: 1 | G188: 4.8 | H188: 0 | I188: 0.142 | K188: 0 | L188: 0 | M188: 0 | N188: 0 | O188: 0 | P188: 0 | S188: 0 | U188: 0 | AB188: 24
A189: z | C189: Ø5,0х | F189: 1 | G189: 4.8 | H189: 0 | I189: 0.142 | K189: 0 | L189: 0 | M189: 0 | N189: 0 | O189: 0 | P189: 0 | S189: 0 | U189: 0 | AB189: 25
A190: z | C190: Ø5,0х | F190: 1 | G190: 4.8 | H190: 0 | I190: 0.142 | K190: 0 | L190: 0 | M190: 0 | N190: 0 | O190: 0 | P190: 0 | S190: 0 | U190: 0 | AB190: 26
A191: z | C191: Ø5,0х | F191: 1 | G191: 4.8 | H191: 0 | I191: 0.142 | K191: 0 | L191: 0 | M191: 0 | N191: 0 | O191: 0 | P191: 0 | S191: 0 | U191: 0 | AB191: 27
A192: z | C192: Ø5,0х | F192: 1 | G192: 4.8 | H192: 0 | I192: 0.142 | K192: 0 | L192: 0 | M192: 0 | N192: 0 | O192: 0 | P192: 0 | S192: 0 | U192: 0 | AB192: 28
A193: z | C193: Ø5,0х | F193: 1 | G193: 4.8 | H193: 0 | I193: 0.142 | K193: 0 | L193: 0 | M193: 0 | N193: 0 | O193: 0 | P193: 0 | S193: 0 | U193: 0 | AB193: 29
A194: z | C194: Ø5,0х | F194: 1 | G194: 4.8 | H194: 0 | I194: 0.142 | K194: 0 | L194: 0 | M194: 0 | N194: 0 | O194: 0 | P194: 0 | S194: 0 | U194: 0 | AB194: 30
A195: z | O195: =SUM(O165:O194) -> 0 | P195: =SUM(P165:P194) -> 0 | S195: =SUM(S165:S194) -> 0
A196: =IF(O196=0,"z"," ") -> z | C196: Ø6,0х | F196: =$C$5 -> 1 | G196: 6 | H196: =D196+E196 -> 0 | I196: 0.222 | K196: =F196*J196 -> 0 | L196: =H196/162 -> 0 | M196: =J196*L196/60 -> 0 | N196: =H196*I196/1000 -> 0 | O196: =J196*N196 -> 0 | P196: =M196*F196 -> 0 | S196: =N196*K196 -> 0 | U196: =I196*0.01*K196 -> 0 | AB196: 1
A197: z | C197: Ø6,0х | F197: 1 | G197: 6 | H197: =D197+E197 -> 0 | I197: 0.222 | K197: =F197*J197 -> 0 | L197: =H197/162 -> 0 | M197: =J197*L197/60 -> 0 | N197: =H197*I197/1000 -> 0 | O197: =J197*N197 -> 0 | P197: =M197*F197 -> 0 | S197: =N197*K197 -> 0 | U197: =I197*0.01*K197 -> 0 | AB197: 2
A198: z | C198: Ø6,0х | F198: 1 | G198: 6 | H198: 0 | I198: 0.222 | K198: 0 | L198: 0 | M198: 0 | N198: 0 | O198: 0 | P198: 0 | S198: 0 | U198: 0 | AB198: 3
A199: z | C199: Ø6,0х | F199: 1 | G199: 6 | H199: 0 | I199: 0.222 | K199: 0 | L199: 0 | M199: 0 | N199: 0 | O199: 0 | P199: 0 | S199: 0 | U199: 0 | AB199: 4
A200: z | C200: Ø6,0х | F200: 1 | G200: 6 | H200: 0 | I200: 0.222 | K200: 0 | L200: 0 | M200: 0 | N200: 0 | O200: 0 | P200: 0 | S200: 0 | U200: 0 | AB200: 5
A201: z | C201: Ø6,0х | F201: 1 | G201: 6 | H201: 0 | I201: 0.222 | K201: 0 | L201: 0 | M201: 0 | N201: 0 | O201: 0 | P201: 0 | S201: 0 | U201: 0 | AB201: 6
A202: z | C202: Ø6,0х | F202: 1 | G202: 6 | H202: 0 | I202: 0.222 | K202: 0 | L202: 0 | M202: 0 | N202: 0 | O202: 0 | P202: 0 | S202: 0 | U202: 0 | AB202: 7
... 60 more rows

Sheet ЛИСТ
A1: z | K1: z | L1: z | AA1: z | AB1: z | AC1: z | AD1: z | AE1: z | AF1: z | AG1: z | AH1: z | AI1: z
F2: Приложение № 1 к ЛЗК ___
H3: =CONCATENATE("НЕ СОВПАДЕНИЕ ",ROUND(L6-L7,3)," кг") -> НЕ СОВПАДЕНИЕ 0 кг | O3: =TODAY() -> 2023-08-05
D4: =ПРОВОЛОКА!M4 -> 0
H5: =CONCATENATE("Изделие из: ",IF(ПРОВОЛОКА!S259>0,"ПРОВОЛОКА, ",""),IF(ЛИСТ!L7>0,"ЛИСТ, ",""),IF(ТРУБА!M7>0,"ТРУБА, ",""),IF(ПВХ!L9>0,"ПВХ ","")) -> Изделие из: | O5: по картам | W5: Сумма
F6: План | H6: =ПРОВОЛОКА!C5 -> 1 | I6: шт | L6: =SUM(Таблица3[Столбец25]) -> 0 | O6: кол-во | P6: сумма | W6: =SUM(W8:W57) -> 0 | AA6: разница массы (рас-фак)
B7: № п/п | C7: Длина | D7: Ширина | E7: Кол-во на изделие | F7: Вращение детали 1 - да 0 - нет | G7: S тол-на | H7: материал | I7: Наименование детали | J7: Кол-во на план | K7: ГОСТ | L7: =SUM(L8:L57) -> 0 | M7: Площадь факт м2 | N7: Площадь расч м2 | P7: =SUM(P8:P57) -> 0 | Q7: коэф массы | R7: толщина (запятая) | S7: номерация | U7: Длина реза мм | V7: Кол-во на план | W7: Угар/ план/ детали | X7: общая длина реза/м/п
A8: =IF(E8=0,"z","") -> z | B8: =IF(E8=0,"",S8) ->  | F8: 1 | G8: =IF(K8="","",VLOOKUP(K8,Таблица3[[#All],[Столбец9]:[точка]],24,0)) ->  | H8: =IF(K8="","",VLOOKUP(K8,Таблица3[[#All],[Столбец9]:[точка]],21,0)) ->  | J8: =$H$6*E8 -> 0 | L8: =IFERROR(IF(M8=0,N8*J8*R8*Q8,M8*J8*R8*Q8),"") ->  | N8: =C8*D8/1000000 -> 0 | O8: 0 | P8: =O8*N8 -> 0 | Q8: =IFERROR(VLOOKUP(K8,Таблица3[[#All],[Столбец9]:[Столбец30]],23,0),"0") -> 0 | R8: =IF(K8="","",VLOOKUP(K8,Таблица3[[#All],[Столбец9]:[точка]],3,0)) ->  | S8: =IF(J8=0,0,1) -> 0 | U8: =(C8+D8)*2 -> 0 | V8: =U8*J8/1000 -> 0 | W8: =IF(R8="","",X8*0.15*R8*Q8/1000) ->  | X8: =U8*V8/1000 -> 0 | AA8: =IF(M8=0,0,(N8-M8)*J8*R8*Q8) -> 0
A9: =IF(E9=0,"z","") -> z | F9: 1 | G9: =IF(K9="","",VLOOKUP(K9,Таблица3[[#All],[Столбец9]:[точка]],24,0)) ->  | H9: =IF(K9="","",VLOOKUP(K9,Таблица3[[#All],[Столбец9]:[точка]],21,0)) ->  | J9: =$H$6*E9 -> 0 | L9: =IFERROR(IF(M9=0,N9*J9*R9*Q9,M9*J9*R9*Q9),"") ->  | N9: =C9*D9/1000000 -> 0 | O9: 0 | P9: =IF(M9=0,O9*N9,M9) -> 0 | Q9: =IFERROR(VLOOKUP(K9,Таблица3[[#All],[Столбец9]:[Столбец30]],23,0),"0") -> 0 | R9: =IF(K9="","",VLOOKUP(K9,Таблица3[[#All],[Столбец9]:[точка]],3,0)) ->  | S9: =IF(J9=0,S8,S8+1) -> 0 | U9: =(C9+D9)*2 -> 0 | V9: =U9*J9/1000 -> 0 | X9: =U9*V9/1000 -> 0 | AA9: =IF(M9=0,0,(N9-M9)*J9*R9*Q9) -> 0
A10: z | F10: 1 | G10: =IF(K10="","",VLOOKUP(K10,Таблица3[[#All],[Столбец9]:[точка]],24,0)) ->  | H10: =IF(K10="","",VLOOKUP(K10,Таблица3[[#All],[Столбец9]:[точка]],21,0)) ->  | J10: 0 | N10: =C10*D10/1000000 -> 0 | O10: 0 | P10: =IF(M10=0,O10*N10,M10) -> 0 | Q10: =IFERROR(VLOOKUP(K10,Таблица3[[#All],[Столбец9]:[Столбец30]],23,0),"0") -> 0 | R10: =IF(K10="","",VLOOKUP(K10,Таблица3[[#All],[Столбец9]:[точка]],3,0)) ->  | S10: =IF(J10=0,S9,S9+1) -> 0 | U10: =(C10+D10)*2 -> 0 | V10: =U10*J10/1000 -> 0 | W10: =IF(R10="","",X10*0.15*R10*Q10/1000) ->  | X10: =U10*V10/1000 -> 0 | AA10: 0
A11: =IF(E11=0,"z","") -> z | B11: =IF(E11=0,"",S11) ->  | F11: 1 | G11: =IF(K11="","",VLOOKUP(K11,Таблица3[[#All],[Столбец9]:[точка]],24,0)) ->  | H11: =IF(K11="","",VLOOKUP(K11,Таблица3[[#All],[Столбец9]:[точка]],21,0)) ->  | J11: =$H$6*E11 -> 0 | L11: =IFERROR(IF(M11=0,N11*J11*R11*Q11,M11*J11*R11*Q11),"") ->  | N11: =C11*D11/1000000 -> 0 | O11: 0 | P11: =IF(M11=0,O11*N11,M11) -> 0 | Q11: =IFERROR(VLOOKUP(K11,Таблица3[[#All],[Столбец9]:[Столбец30]],23,0),"0") -> 0 | R11: =IF(K11="","",VLOOKUP(K11,Таблица3[[#All],[Столбец9]:[точка]],3,0)) ->  | S11: =IF(J11=0,S10,S10+1) -> 0 | U11: =(C11+D11)*2 -> 0 | V11: =U11*J11/1000 -> 0 | W11: =IF(R11="","",X11*0.15*R11*Q11/1000) ->  | X11: =U11*V11/1000 -> 0 | AA11: =IF(M11=0,0,(N11-M11)*J11*R11*Q11) -> 0
A12: z | F12: 1 | G12: =IF(K12="","",VLOOKUP(K12,Таблица3[[#All],[Столбец9]:[точка]],24,0)) ->  | H12: =IF(K12="","",VLOOKUP(K12,Таблица3[[#All],[Столбец9]:[точка]],21,0)) ->  | J12: 0 | N12: 0 | O12: 0 | P12: 0 | Q12: =IFERROR(VLOOKUP(K12,Таблица3[[#All],[Столбец9]:[Столбец30]],23,0),"0") -> 0 | R12: =IF(K12="","",VLOOKUP(K12,Таблица3[[#All],[Столбец9]:[точка]],3,0)) ->  | S12: 0 | U12: 0 | V12: 0 | X12: 0 | AA12: 0
A13: z | F13: 1 | G13: =IF(K13="","",VLOOKUP(K13,Таблица3[[#All],[Столбец9]:[точка]],24,0)) ->  | H13: =IF(K13="","",VLOOKUP(K13,Таблица3[[#All],[Столбец9]:[точка]],21,0)) ->  | J13: 0 | N13: 0 | O13: 0 | P13: 0 | Q13: =IFERROR(VLOOKUP(K13,Таблица3[[#All],[Столбец9]:[Столбец30]],23,0),"0") -> 0 | R13: =IF(K13="","",VLOOKUP(K13,Таблица3[[#All],[Столбец9]:[точка]],3,0)) ->  | S13: 0 | U13: 0 | V13: 0 | X13: 0 | AA13: 0
A14: z | F14: 1 | G14: =IF(K14="","",VLOOKUP(K14,Таблица3[[#All],[Столбец9]:[точка]],24,0)) ->  | H14: =IF(K14="","",VLOOKUP(K14,Таблица3[[#All],[Столбец9]:[точка]],21,0)) ->  | J14: 0 | N14: 0 | O14: 0 | P14: 0 | Q14: =IFERROR(VLOOKUP(K14,Таблица3[[#All],[Столбец9]:[Столбец30]],23,0),"0") -> 0 | R14: =IF(K14="","",VLOOKUP(K14,Таблица3[[#All],[Столбец9]:[точка]],3,0)) ->  | S14: 0 | U14: 0 | V14: 0 | X14: 0 | AA14: 0
A15: z | F15: 1 | G15: =IF(K15="","",VLOOKUP(K15,Таблица3[[#All],[Столбец9]:[точка]],24,0)) ->  | H15: =IF(K15="","",VLOOKUP(K15,Таблица3[[#All],[Столбец9]:[точка]],21,0)) ->  | J15: 0 | N15: 0 | O15: 0 | P15: 0 | Q15: =IFERROR(VLOOKUP(K15,Таблица3[[#All],[Столбец9]:[Столбец30]],23,0),"0") -> 0 | R15: =IF(K15="","",VLOOKUP(K15,Таблица3[[#All],[Столбец9]:[точка]],3,0)) ->  | S15: 0 | U15: 0 | V15: 0 | X15: 0 | AA15: 0
A16: z | F16: 1 | G16: =IF(K16="","",VLOOKUP(K16,Таблица3[[#All],[Столбец9]:[точка]],24,0)) ->  | H16: =IF(K16="","",VLOOKUP(K16,Таблица3[[#All],[Столбец9]:[точка]],21,0)) ->  | J16: 0 | N16: 0 | O16: 0 | P16: 0 | Q16: =IFERROR(VLOOKUP(K16,Таблица3[[#All],[Столбец9]:[Столбец30]],23,0),"0") -> 0 | R16: =IF(K16="","",VLOOKUP(K16,Таблица3[[#All],[Столбец9]:[точка]],3,0)) ->  | S16: 0 | U16: 0 | V16: 0 | X16: 0 | AA16: 0
A17: z | F17: 1 | G17: =IF(K17="","",VLOOKUP(K17,Таблица3[[#All],[Столбец9]:[точка]],24,0)) ->  | H17: =IF(K17="","",VLOOKUP(K17,Таблица3[[#All],[Столбец9]:[точка]],21,0)) ->  | J17: 0 | N17: 0 | O17: 0 | P17: 0 | Q17: =IFERROR(VLOOKUP(K17,Таблица3[[#All],[Столбец9]:[Столбец30]],23,0),"0") -> 0 | R17: =IF(K17="","",VLOOKUP(K17,Таблица3[[#All],[Столбец9]:[точка]],3,0)) ->  | S17: 0 | U17: 0 | V17: 0 | X17: 0 | AA17: 0
A18: z | F18: 1 | G18: =IF(K18="","",VLOOKUP(K18,Таблица3[[#All],[Столбец9]:[точка]],24,0)) ->  | H18: =IF(K18="","",VLOOKUP(K18,Таблица3[[#All],[Столбец9]:[точка]],21,0)) ->  | J18: 0 | N18: 0 | O18: 0 | P18: 0 | Q18: =IFERROR(VLOOKUP(K18,Таблица3[[#All],[Столбец9]:[Столбец30]],23,0),"0") -> 0 | R18: =IF(K18="","",VLOOKUP(K18,Таблица3[[#All],[Столбец9]:[точка]],3,0)) ->  | S18: 0 | U18: 0 | V18: 0 | X18: 0 | AA18: 0
A19: z | F19: 1 | G19: =IF(K19="","",VLOOKUP(K19,Таблица3[[#All],[Столбец9]:[точка]],24,0)) ->  | H19: =IF(K19="","",VLOOKUP(K19,Таблица3[[#All],[Столбец9]:[точка]],21,0)) ->  | J19: 0 | N19: 0 | O19: 0 | P19: 0 | Q19: =IFERROR(VLOOKUP(K19,Таблица3[[#All],[Столбец9]:[Столбец30]],23,0),"0") -> 0 | R19: =IF(K19="","",VLOOKUP(K19,Таблица3[[#All],[Столбец9]:[точка]],3,0)) ->  | S19: 0 | U19: 0 | V19: 0 | X19: 0 | AA19: 0
A20: =IF(E20=0,"z","") -> z | B20: =IF(E20=0,"",S20) ->  | F20: 1 | G20: =IF(K20="","",VLOOKUP(K20,Таблица3[[#All],[Столбец9]:[точка]],24,0)) ->  | H20: =IF(K20="","",VLOOKUP(K20,Таблица3[[#All],[Столбец9]:[точка]],21,0)) ->  | J20: =$H$6*E20 -> 0 | L20: =IFERROR(IF(M20=0,N20*J20*R20*Q20,M20*J20*R20*Q20),"") ->  | N20: =C20*D20/1000000 -> 0 | O20: 0 | P20: =IF(M20=0,O20*N20,M20) -> 0 | Q20: =IFERROR(VLOOKUP(K20,Таблица3[[#All],[Столбец9]:[Столбец30]],23,0),"0") -> 0 | R20: =IF(K20="","",VLOOKUP(K20,Таблица3[[#All],[Столбец9]:[точка]],3,0)) ->  | S20: 0 | U20: =(C20+D20)*2 -> 0 | V20: =U20*J20/1000 -> 0 | W20: =IF(R20="","",X20*0.15*R20*Q20/1000) ->  | X20: =U20*V20/1000 -> 0 | AA20: =IF(M20=0,0,(N20-M20)*J20*R20*Q20) -> 0
A21: z | F21: 1 | G21: =IF(K21="","",VLOOKUP(K21,Таблица3[[#All],[Столбец9]:[точка]],24,0)) ->  | H21: =IF(K21="","",VLOOKUP(K21,Таблица3[[#All],[Столбец9]:[точка]],21,0)) ->  | J21: 0 | N21: 0 | O21: 0 | P21: 0 | Q21: =IFERROR(VLOOKUP(K21,Таблица3[[#All],[Столбец9]:[Столбец30]],23,0),"0") -> 0 | R21: =IF(K21="","",VLOOKUP(K21,Таблица3[[#All],[Столбец9]:[точка]],3,0)) ->  | S21: 0 | U21: 0 | V21: 0 | X21: 0 | AA21: 0
A22: z | F22: 1 | G22: =IF(K22="","",VLOOKUP(K22,Таблица3[[#All],[Столбец9]:[точка]],24,0)) ->  | H22: =IF(K22="","",VLOOKUP(K22,Таблица3[[#All],[Столбец9]:[точка]],21,0)) ->  | J22: 0 | N22: 0 | O22: 0 | P22: 0 | Q22: =IFERROR(VLOOKUP(K22,Таблица3[[#All],[Столбец9]:[Столбец30]],23,0),"0") -> 0 | R22: =IF(K22="","",VLOOKUP(K22,Таблица3[[#All],[Столбец9]:[точка]],3,0)) ->  | S22: 0 | U22: 0 | V22: 0 | X22: 0 | AA22: 0
A23: z | F23: 1 | G23: =IF(K23="","",VLOOKUP(K23,Таблица3[[#All],[Столбец9]:[точка]],24,0)) ->  | H23: =IF(K23="","",VLOOKUP(K23,Таблица3[[#All],[Столбец9]:[точка]],21,0)) ->  | J23: 0 | N23: 0 | O23: 0 | P23: 0 | Q23: =IFERROR(VLOOKUP(K23,Таблица3[[#All],[Столбец9]:[Столбец30]],23,0),"0") -> 0 | R23: =IF(K23="","",VLOOKUP(K23,Таблица3[[#All],[Столбец9]:[точка]],3,0)) ->  | S23: 0 | U23: 0 | V23: 0 | X23: 0 | AA23: 0
A24: z | F24: 1 | G24: =IF(K24="","",VLOOKUP(K24,Таблица3[[#All],[Столбец9]:[точка]],24,0)) ->  | H24: =IF(K24="","",VLOOKUP(K24,Таблица3[[#All],[Столбец9]:[точка]],21,0)) ->  | J24: 0 | N24: 0 | O24: 0 | P24: 0 | Q24: =IFERROR(VLOOKUP(K24,Таблица3[[#All],[Столбец9]:[Столбец30]],23,0),"0") -> 0 | R24: =IF(K24="","",VLOOKUP(K24,Таблица3[[#All],[Столбец9]:[точка]],3,0)) ->  | S24: 0 | U24: 0 | V24: 0 | X24: 0 | AA24: 0
A25: z | F25: 1 | G25: =IF(K25="","",VLOOKUP(K25,Таблица3[[#All],[Столбец9]:[точка]],24,0)) ->  | H25: =IF(K25="","",VLOOKUP(K25,Таблица3[[#All],[Столбец9]:[точка]],21,0)) ->  | J25: 0 | N25: 0 | O25: 0 | P25: 0 | Q25: =IFERROR(VLOOKUP(K25,Таблица3[[#All],[Столбец9]:[Столбец30]],23,0),"0") -> 0 | R25: =IF(K25="","",VLOOKUP(K25,Таблица3[[#All],[Столбец9]:[точка]],3,0)) ->  | S25: 0 | U25: 0 | V25: 0 | X25: 0 | AA25: 0
A26: z | F26: 1 | G26: =IF(K26="","",VLOOKUP(K26,Таблица3[[#All],[Столбец9]:[точка]],24,0)) ->  | H26: =IF(K26="","",VLOOKUP(K26,Таблица3[[#All],[Столбец9]:[точка]],21,0)) ->  | J26: 0 | N26: 0 | O26: 0 | P26: 0 | Q26: =IFERROR(VLOOKUP(K26,Таблица3[[#All],[Столбец9]:[Столбец30]],23,0),"0") -> 0 | R26: =IF(K26="","",VLOOKUP(K26,Таблица3[[#All],[Столбец9]:[точка]],3,0)) ->  | S26: 0 | U26: 0 | V26: 0 | X26: 0 | AA26: 0
A27: z | F27: 1 | G27: =IF(K27="","",VLOOKUP(K27,Таблица3[[#All],[Столбец9]:[точка]],24,0)) ->  | H27: =IF(K27="","",VLOOKUP(K27,Таблица3[[#All],[Столбец9]:[точка]],21,0)) ->  | J27: 0 | N27: 0 | O27: 0 | P27: 0 | Q27: =IFERROR(VLOOKUP(K27,Таблица3[[#All],[Столбец9]:[Столбец30]],23,0),"0") -> 0 | R27: =IF(K27="","",VLOOKUP(K27,Таблица3[[#All],[Столбец9]:[точка]],3,0)) ->  | S27: 0 | U27: 0 | V27: 0 | X27: 0 | AA27: 0
A28: z | F28: 1 | G28: =IF(K28="","",VLOOKUP(K28,Таблица3[[#All],[Столбец9]:[точка]],24,0)) ->  | H28: =IF(K28="","",VLOOKUP(K28,Таблица3[[#All],[Столбец9]:[точка]],21,0)) ->  | J28: 0 | N28: 0 | O28: 0 | P28: 0 | Q28: =IFERROR(VLOOKUP(K28,Таблица3[[#All],[Столбец9]:[Столбец30]],23,0),"0") -> 0 | R28: =IF(K28="","",VLOOKUP(K28,Таблица3[[#All],[Столбец9]:[точка]],3,0)) ->  | S28: 0 | U28: 0 | V28: 0 | X28: 0 | AA28: 0
A29: z | F29: 1 | G29: =IF(K29="","",VLOOKUP(K29,Таблица3[[#All],[Столбец9]:[точка]],24,0)) ->  | H29: =IF(K29="","",VLOOKUP(K29,Таблица3[[#All],[Столбец9]:[точка]],21,0)) ->  | J29: 0 | N29: 0 | O29: 0 | P29: 0 | Q29: =IFERROR(VLOOKUP(K29,Таблица3[[#All],[Столбец9]:[Столбец30]],23,0),"0") -> 0 | R29: =IF(K29="","",VLOOKUP(K29,Таблица3[[#All],[Столбец9]:[точка]],3,0)) ->  | S29: 0 | U29: 0 | V29: 0 | X29: 0 | AA29: 0
A30: z | F30: 1 | G30: =IF(K30="","",VLOOKUP(K30,Таблица3[[#All],[Столбец9]:[точка]],24,0)) ->  | H30: =IF(K30="","",VLOOKUP(K30,Таблица3[[#All],[Столбец9]:[точка]],21,0)) ->  | J30: 0 | N30: 0 | O30: 0 | P30: 0 | Q30: =IFERROR(VLOOKUP(K30,Таблица3[[#All],[Столбец9]:[Столбец30]],23,0),"0") -> 0 | R30: =IF(K30="","",VLOOKUP(K30,Таблица3[[#All],[Столбец9]:[точка]],3,0)) ->  | S30: 0 | U30: 0 | V30: 0 | X30: 0 | AA30: 0
A31: =IF(E31=0,"z","") -> z | B31: =IF(E31=0,"",S31) ->  | F31: 1 | G31: =IF(K31="","",VLOOKUP(K31,Таблица3[[#All],[Столбец9]:[точка]],24,0)) ->  | H31: =IF(K31="","",VLOOKUP(K31,Таблица3[[#All],[Столбец9]:[точка]],21,0)) ->  | J31: =$H$6*E31 -> 0 | L31: =IFERROR(IF(M31=0,N31*J31*R31*Q31,M31*J31*R31*Q31),"") ->  | N31: =C31*D31/1000000 -> 0 | O31: 0 | P31: =IF(M31=0,O31*N31,M31) -> 0 | Q31: =IFERROR(VLOOKUP(K31,Таблица3[[#All],[Столбец9]:[Столбец30]],23,0),"0") -> 0 | R31: =IF(K31="","",VLOOKUP(K31,Таблица3[[#All],[Столбец9]:[точка]],3,0)) ->  | S31: =IF(J31=0,S30,S30+1) -> 0 | U31: =(C31+D31)*2 -> 0 | V31: =U31*J31/1000 -> 0 | W31: =IF(R31="","",X31*0.15*R31*Q31/1000) ->  | X31: =U31*V31/1000 -> 0 | AA31: =IF(M31=0,0,(N31-M31)*J31*R31*Q31) -> 0
A32: z | F32: 1 | G32: =IF(K32="","",VLOOKUP(K32,Таблица3[[#All],[Столбец9]:[точка]],24,0)) ->  | H32: =IF(K32="","",VLOOKUP(K32,Таблица3[[#All],[Столбец9]:[точка]],21,0)) ->  | J32: 0 | N32: 0 | O32: 0 | P32: 0 | Q32: =IFERROR(VLOOKUP(K32,Таблица3[[#All],[Столбец9]:[Столбец30]],23,0),"0") -> 0 | R32: =IF(K32="","",VLOOKUP(K32,Таблица3[[#All],[Столбец9]:[точка]],3,0)) ->  | S32: 0 | U32: 0 | V32: 0 | X32: 0 | AA32: 0
A33: z | F33: 1 | G33: =IF(K33="","",VLOOKUP(K33,Таблица3[[#All],[Столбец9]:[точка]],24,0)) ->  | H33: =IF(K33="","",VLOOKUP(K33,Таблица3[[#All],[Столбец9]:[точка]],21,0)) ->  | J33: 0 | N33: 0 | O33: 0 | P33: 0 | Q33: =IFERROR(VLOOKUP(K33,Таблица3[[#All],[Столбец9]:[Столбец30]],23,0),"0") -> 0 | R33: =IF(K33="","",VLOOKUP(K33,Таблица3[[#All],[Столбец9]:[точка]],3,0)) ->  | S33: 0 | U33: 0 | V33: 0 | X33: 0 | AA33: 0
A34: z | F34: 1 | G34: =IF(K34="","",VLOOKUP(K34,Таблица3[[#All],[Столбец9]:[точка]],24,0)) ->  | H34: =IF(K34="","",VLOOKUP(K34,Таблица3[[#All],[Столбец9]:[точка]],21,0)) ->  | J34: 0 | N34: 0 | O34: 0 | P34: 0 | Q34: =IFERROR(VLOOKUP(K34,Таблица3[[#All],[Столбец9]:[Столбец30]],23,0),"0") -> 0 | R34: =IF(K34="","",VLOOKUP(K34,Таблица3[[#All],[Столбец9]:[точка]],3,0)) ->  | S34: 0 | U34: 0 | V34: 0 | X34: 0 | AA34: 0
A35: z | F35: 1 | G35: =IF(K35="","",VLOOKUP(K35,Таблица3[[#All],[Столбец9]:[точка]],24,0)) ->  | H35: =IF(K35="","",VLOOKUP(K35,Таблица3[[#All],[Столбец9]:[точка]],21,0)) ->  | J35: 0 | N35: 0 | O35: 0 | P35: 0 | Q35: =IFERROR(VLOOKUP(K35,Таблица3[[#All],[Столбец9]:[Столбец30]],23,0),"0") -> 0 | R35: =IF(K35="","",VLOOKUP(K35,Таблица3[[#All],[Столбец9]:[точка]],3,0)) ->  | S35: 0 | U35: 0 | V35: 0 | X35: 0 | AA35: 0
A36: z | F36: 1 | G36: =IF(K36="","",VLOOKUP(K36,Таблица3[[#All],[Столбец9]:[точка]],24,0)) ->  | H36: =IF(K36="","",VLOOKUP(K36,Таблица3[[#All],[Столбец9]:[точка]],21,0)) ->  | J36: 0 | N36: 0 | O36: 0 | P36: 0 | Q36: =IFERROR(VLOOKUP(K36,Таблица3[[#All],[Столбец9]:[Столбец30]],23,0),"0") -> 0 | R36: =IF(K36="","",VLOOKUP(K36,Таблица3[[#All],[Столбец9]:[точка]],3,0)) ->  | S36: 0 | U36: 0 | V36: 0 | X36: 0 | AA36: 0
A37: z | F37: 1 | G37: =IF(K37="","",VLOOKUP(K37,Таблица3[[#All],[Столбец9]:[точка]],24,0)) ->  | H37: =IF(K37="","",VLOOKUP(K37,Таблица3[[#All],[Столбец9]:[точка]],21,0)) ->  | J37: 0 | N37: 0 | O37: 0 | P37: 0 | Q37: =IFERROR(VLOOKUP(K37,Таблица3[[#All],[Столбец9]:[Столбец30]],23,0),"0") -> 0 | R37: =IF(K37="","",VLOOKUP(K37,Таблица3[[#All],[Столбец9]:[точка]],3,0)) ->  | S37: 0 | U37: 0 | V37: 0 | X37: 0 | AA37: 0
A38: z | F38: 1 | G38: =IF(K38="","",VLOOKUP(K38,Таблица3[[#All],[Столбец9]:[точка]],24,0)) ->  | H38: =IF(K38="","",VLOOKUP(K38,Таблица3[[#All],[Столбец9]:[точка]],21,0)) ->  | J38: 0 | N38: 0 | O38: 0 | P38: 0 | Q38: =IFERROR(VLOOKUP(K38,Таблица3[[#All],[Столбец9]:[Столбец30]],23,0),"0") -> 0 | R38: =IF(K38="","",VLOOKUP(K38,Таблица3[[#All],[Столбец9]:[точка]],3,0)) ->  | S38: 0 | U38: 0 | V38: 0 | X38: 0 | AA38: 0
A39: z | F39: 1 | G39: =IF(K39="","",VLOOKUP(K39,Таблица3[[#All],[Столбец9]:[точка]],24,0)) ->  | H39: =IF(K39="","",VLOOKUP(K39,Таблица3[[#All],[Столбец9]:[точка]],21,0)) ->  | J39: 0 | N39: 0 | O39: 0 | P39: 0 | Q39: =IFERROR(VLOOKUP(K39,Таблица3[[#All],[Столбец9]:[Столбец30]],23,0),"0") -> 0 | R39: =IF(K39="","",VLOOKUP(K39,Таблица3[[#All],[Столбец9]:[точка]],3,0)) ->  | S39: 0 | U39: 0 | V39: 0 | X39: 0 | AA39: 0
A40: z | F40: 1 | G40: =IF(K40="","",VLOOKUP(K40,Таблица3[[#All],[Столбец9]:[точка]],24,0)) ->  | H40: =IF(K40="","",VLOOKUP(K40,Таблица3[[#All],[Столбец9]:[точка]],21,0)) ->  | J40: 0 | N40: 0 | O40: 0 | P40: 0 | Q40: =IFERROR(VLOOKUP(K40,Таблица3[[#All],[Столбец9]:[Столбец30]],23,0),"0") -> 0 | R40: =IF(K40="","",VLOOKUP(K40,Таблица3[[#All],[Столбец9]:[точка]],3,0)) ->  | S40: 0 | U40: 0 | V40: 0 | X40: 0 | AA40: 0
A41: z | F41: 1 | G41: =IF(K41="","",VLOOKUP(K41,Таблица3[[#All],[Столбец9]:[точка]],24,0)) ->  | H41: =IF(K41="","",VLOOKUP(K41,Таблица3[[#All],[Столбец9]:[точка]],21,0)) ->  | J41: 0 | N41: 0 | O41: 0 | P41: 0 | Q41: =IFERROR(VLOOKUP(K41,Таблица3[[#All],[Столбец9]:[Столбец30]],23,0),"0") -> 0 | R41: =IF(K41="","",VLOOKUP(K41,Таблица3[[#All],[Столбец9]:[точка]],3,0)) ->  | S41: 0 | U41: 0 | V41: 0 | X41: 0 | AA41: 0
A42: z | F42: 1 | G42: =IF(K42="","",VLOOKUP(K42,Таблица3[[#All],[Столбец9]:[точка]],24,0)) ->  | H42: =IF(K42="","",VLOOKUP(K42,Таблица3[[#All],[Столбец9]:[точка]],21,0)) ->  | J42: 0 | N42: 0 | O42: 0 | P42: 0 | Q42: =IFERROR(VLOOKUP(K42,Таблица3[[#All],[Столбец9]:[Столбец30]],23,0),"0") -> 0 | R42: =IF(K42="","",VLOOKUP(K42,Таблица3[[#All],[Столбец9]:[точка]],3,0)) ->  | S42: 0 | U42: 0 | V42: 0 | X42: 0 | AA42: 0
A43: z | F43: 1 | G43: =IF(K43="","",VLOOKUP(K43,Таблица3[[#All],[Столбец9]:[точка]],24,0)) ->  | H43: =IF(K43="","",VLOOKUP(K43,Таблица3[[#All],[Столбец9]:[точка]],21,0)) ->  | J43: 0 | N43: 0 | O43: 0 | P43: 0 | Q43: =IFERROR(VLOOKUP(K43,Таблица3[[#All],[Столбец9]:[Столбец30]],23,0),"0") -> 0 | R43: =IF(K43="","",VLOOKUP(K43,Таблица3[[#All],[Столбец9]:[точка]],3,0)) ->  | S43: 0 | U43: 0 | V43: 0 | X43: 0 | AA43: 0
A44: z | F44: 1 | G44: =IF(K44="","",VLOOKUP(K44,Таблица3[[#All],[Столбец9]:[точка]],24,0)) ->  | H44: =IF(K44="","",VLOOKUP(K44,Таблица3[[#All],[Столбец9]:[точка]],21,0)) ->  | J44: 0 | N44: 0 | O44: 0 | P44: 0 | Q44: =IFERROR(VLOOKUP(K44,Таблица3[[#All],[Столбец9]:[Столбец30]],23,0),"0") -> 0 | R44: =IF(K44="","",VLOOKUP(K44,Таблица3[[#All],[Столбец9]:[точка]],3,0)) ->  | S44: 0 | U44: 0 | V44: 0 | X44: 0 | AA44: 0
A45: z | F45: 1 | G45: =IF(K45="","",VLOOKUP(K45,Таблица3[[#All],[Столбец9]:[точка]],24,0)) ->  | H45: =IF(K45="","",VLOOKUP(K45,Таблица3[[#All],[Столбец9]:[точка]],21,0)) ->  | J45: 0 | N45: 0 | O45: 0 | P45: 0 | Q45: =IFERROR(VLOOKUP(K45,Таблица3[[#All],[Столбец9]:[Столбец30]],23,0),"0") -> 0 | R45: =IF(K45="","",VLOOKUP(K45,Таблица3[[#All],[Столбец9]:[точка]],3,0)) ->  | S45: 0 | U45: 0 | V45: 0 | X45: 0 | AA45: 0
A46: z | F46: 1 | G46: =IF(K46="","",VLOOKUP(K46,Таблица3[[#All],[Столбец9]:[точка]],24,0)) ->  | H46: =IF(K46="","",VLOOKUP(K46,Таблица3[[#All],[Столбец9]:[точка]],21,0)) ->  | J46: 0 | N46: 0 | O46: 0 | P46: 0 | Q46: =IFERROR(VLOOKUP(K46,Таблица3[[#All],[Столбец9]:[Столбец30]],23,0),"0") -> 0 | R46: =IF(K46="","",VLOOKUP(K46,Таблица3[[#All],[Столбец9]:[точка]],3,0)) ->  | S46: 0 | U46: 0 | V46: 0 | X46: 0 | AA46: 0
A47: z | F47: 1 | G47: =IF(K47="","",VLOOKUP(K47,Таблица3[[#All],[Столбец9]:[точка]],24,0)) ->  | H47: =IF(K47="","",VLOOKUP(K47,Таблица3[[#All],[Столбец9]:[точка]],21,0)) ->  | J47: 0 | N47: 0 | O47: 0 | P47: 0 | Q47: =IFERROR(VLOOKUP(K47,Таблица3[[#All],[Столбец9]:[Столбец30]],23,0),"0") -> 0 | R47: =IF(K47="","",VLOOKUP(K47,Таблица3[[#All],[Столбец9]:[точка]],3,0)) ->  | S47: 0 | U47: 0 | V47: 0 | X47: 0 | AA47: 0
A48: z | F48: 1 | G48: =IF(K48="","",VLOOKUP(K48,Таблица3[[#All],[Столбец9]:[точка]],24,0)) ->  | H48: =IF(K48="","",VLOOKUP(K48,Таблица3[[#All],[Столбец9]:[точка]],21,0)) ->  | J48: 0 | N48: 0 | O48: 0 | P48: 0 | Q48: =IFERROR(VLOOKUP(K48,Таблица3[[#All],[Столбец9]:[Столбец30]],23,0),"0") -> 0 | R48: =IF(K48="","",VLOOKUP(K48,Таблица3[[#All],[Столбец9]:[точка]],3,0)) ->  | S48: 0 | U48: 0 | V48: 0 | X48: 0 | AA48: 0
A49: z | F49: 1 | G49: =IF(K49="","",VLOOKUP(K49,Таблица3[[#All],[Столбец9]:[точка]],24,0)) ->  | H49: =IF(K49="","",VLOOKUP(K49,Таблица3[[#All],[Столбец9]:[точка]],21,0)) ->  | J49: 0 | N49: 0 | O49: 0 | P49: 0 | Q49: =IFERROR(VLOOKUP(K49,Таблица3[[#All],[Столбец9]:[Столбец30]],23,0),"0") -> 0 | R49: =IF(K49="","",VLOOKUP(K49,Таблица3[[#All],[Столбец9]:[точка]],3,0)) ->  | S49: 0 | U49: 0 | V49: 0 | X49: 0 | AA49: 0
A50: z | F50: 1 | G50: =IF(K50="","",VLOOKUP(K50,Таблица3[[#All],[Столбец9]:[точка]],24,0)) ->  | H50: =IF(K50="","",VLOOKUP(K50,Таблица3[[#All],[Столбец9]:[точка]],21,0)) ->  | J50: 0 | N50: 0 | O50: 0 | P50: 0 | Q50: =IFERROR(VLOOKUP(K50,Таблица3[[#All],[Столбец9]:[Столбец30]],23,0),"0") -> 0 | R50: =IF(K50="","",VLOOKUP(K50,Таблица3[[#All],[Столбец9]:[точка]],3,0)) ->  | S50: 0 | U50: 0 | V50: 0 | X50: 0 | AA50: 0
A51: z | F51: 1 | G51: =IF(K51="","",VLOOKUP(K51,Таблица3[[#All],[Столбец9]:[точка]],24,0)) ->  | H51: =IF(K51="","",VLOOKUP(K51,Таблица3[[#All],[Столбец9]:[точка]],21,0)) ->  | J51: 0 | N51: 0 | O51: 0 | P51: 0 | Q51: =IFERROR(VLOOKUP(K51,Таблица3[[#All],[Столбец9]:[Столбец30]],23,0),"0") -> 0 | R51: =IF(K51="","",VLOOKUP(K51,Таблица3[[#All],[Столбец9]:[точка]],3,0)) ->  | S51: 0 | U51: 0 | V51: 0 | X51: 0 | AA51: 0
A52: z | F52: 1 | G52: =IF(K52="","",VLOOKUP(K52,Таблица3[[#All],[Столбец9]:[точка]],24,0)) ->  | H52: =IF(K52="","",VLOOKUP(K52,Таблица3[[#All],[Столбец9]:[точка]],21,0)) ->  | J52: 0 | N52: 0 | O52: 0 | P52: 0 | Q52: =IFERROR(VLOOKUP(K52,Таблица3[[#All],[Столбец9]:[Столбец30]],23,0),"0") -> 0 | R52: =IF(K52="","",VLOOKUP(K52,Таблица3[[#All],[Столбец9]:[точка]],3,0)) ->  | S52: 0 | U52: 0 | V52: 0 | X52: 0 | AA52: 0
A53: z | F53: 1 | G53: =IF(K53="","",VLOOKUP(K53,Таблица3[[#All],[Столбец9]:[точка]],24,0)) ->  | H53: =IF(K53="","",VLOOKUP(K53,Таблица3[[#All],[Столбец9]:[точка]],21,0)) ->  | J53: 0 | N53: 0 | O53: 0 | P53: 0 | Q53: =IFERROR(VLOOKUP(K53,Таблица3[[#All],[Столбец9]:[Столбец30]],23,0),"0") -> 0 | R53: =IF(K53="","",VLOOKUP(K53,Таблица3[[#All],[Столбец9]:[точка]],3,0)) ->  | S53: 0 | U53: 0 | V53: 0 | X53: 0 | AA53: 0
A54: z | F54: 1 | G54: =IF(K54="","",VLOOKUP(K54,Таблица3[[#All],[Столбец9]:[точка]],24,0)) ->  | H54: =IF(K54="","",VLOOKUP(K54,Таблица3[[#All],[Столбец9]:[точка]],21,0)) ->  | J54: 0 | N54: 0 | O54: 0 | P54: 0 | Q54: =IFERROR(VLOOKUP(K54,Таблица3[[#All],[Столбец9]:[Столбец30]],23,0),"0") -> 0 | R54: =IF(K54="","",VLOOKUP(K54,Таблица3[[#All],[Столбец9]:[точка]],3,0)) ->  | S54: 0 | U54: 0 | V54: 0 | X54: 0 | AA54: 0
A55: z | F55: 1 | G55: =IF(K55="","",VLOOKUP(K55,Таблица3[[#All],[Столбец9]:[точка]],24,0)) ->  | H55: =IF(K55="","",VLOOKUP(K55,Таблица3[[#All],[Столбец9]:[точка]],21,0)) ->  | J55: 0 | N55: 0 | O55: 0 | P55: 0 | Q55: =IFERROR(VLOOKUP(K55,Таблица3[[#All],[Столбец9]:[Столбец30]],23,0),"0") -> 0 | R55: =IF(K55="","",VLOOKUP(K55,Таблица3[[#All],[Столбец9]:[точка]],3,0)) ->  | S55: 0 | U55: 0 | V55: 0 | X55: 0 | AA55: 0
A56: z | F56: 1 | G56: =IF(K56="","",VLOOKUP(K56,Таблица3[[#All],[Столбец9]:[точка]],24,0)) ->  | H56: =IF(K56="","",VLOOKUP(K56,Таблица3[[#All],[Столбец9]:[точка]],21,0)) ->  | J56: 0 | N56: 0 | O56: 0 | P56: 0 | Q56: =IFERROR(VLOOKUP(K56,Таблица3[[#All],[Столбец9]:[Столбец30]],23,0),"0") -> 0 | R56: =IF(K56="","",VLOOKUP(K56,Таблица3[[#All],[Столбец9]:[точка]],3,0)) ->  | S56: 0 | U56: 0 | V56: 0 | X56: 0 | AA56: 0
A57: z | F57: 1 | G57: =IF(K57="","",VLOOKUP(K57,Таблица3[[#All],[Столбец9]:[точка]],24,0)) ->  | H57: =IF(K57="","",VLOOKUP(K57,Таблица3[[#All],[Столбец9]:[точка]],21,0)) ->  | J57: 0 | N57: 0 | O57: 0 | P57: 0 | Q57: =IFERROR(VLOOKUP(K57,Таблица3[[#All],[Столбец9]:[Столбец30]],23,0),"0") -> 0 | R57: =IF(K57="","",VLOOKUP(K57,Таблица3[[#All],[Столбец9]:[точка]],3,0)) ->  | S57: 0 | U57: 0 | V57: 0 | X57: 0 | AA57: 0
I58: Всего | J58: =SUM(J8:J57) -> 0
B60: Карта раскроя № | C60: Ширина, мм | D60: Длина, мм | E60: Толщина, мм | F60: Марка материала | G60: Кол-во | H60: Площадь остатков всего, кв.м | I60: Площадь деталей всего, кв.м | J60: Кол-во деталей | L60: Плот-ность | M60: Лист / деловые остатка со склада кг | O60: Получил | P60: Деловой остаток на склад кг | R60: Получил кладовщик | S60: ЛОМ кг | U60: Получил кладовщик | V60: Масса деталей кг | X60: Количество деталей | Y60: Получил | AA60: Расход (кг) | AB60: ЛОМ (кг) дубль
M61: теория | N61: факт | P61: теория | Q61: факт | S61: теория | T61: факт | V61: теория | W61: факт | AB61: теория
A62: =IF(G62=0,"z","") -> z | K62: 1 | L62: =IFERROR(VLOOKUP(F62,Таблица3[[#All],[Астра]:[Столбец30]],4,0),"0") -> 0 | M62: =C62*D62*E62*L62*G62/1000000 -> 0 | P62: =E62*H62*L62 -> 0 | S62: =AA62-V62 -> 0 | V62: =E62*I62*L62 -> 0 | AA62: =M62-P62 -> 0 | AB62: =AA62-V62 -> 0
A63: =IF(G63=0,"z","") -> z | K63: 2 | L63: =IFERROR(VLOOKUP(F63,Таблица3[[#All],[Астра]:[Столбец30]],4,0),"0") -> 0 | M63: =C63*D63*E63*L63*G63/1000000 -> 0 | P63: =E63*H63*L63 -> 0 | S63: 0 | V63: =E63*I63*L63 -> 0 | AA63: 0 | AB63: 0
A64: z | K64: 3 | L64: =IFERROR(VLOOKUP(F64,Таблица3[[#All],[Астра]:[Столбец30]],4,0),"0") -> 0 | M64: 0 | P64: 0 | S64: 0 | V64: 0 | AA64: 0 | AB64: 0
A65: z | K65: 4 | L65: =IFERROR(VLOOKUP(F65,Таблица3[[#All],[Астра]:[Столбец30]],4,0),"0") -> 0 | M65: 0 | P65: 0 | S65: 0 | V65: 0 | AA65: 0 | AB65: 0
A66: =IF(G66=0,"z","") -> z | K66: 5 | L66: =IFERROR(VLOOKUP(F66,Таблица3[[#All],[Астра]:[Столбец30]],4,0),"0") -> 0 | M66: =C66*D66*E66*L66*G66/1000000 -> 0 | P66: =E66*H66*L66 -> 0 | S66: =AA66-V66 -> 0 | V66: =E66*I66*L66 -> 0 | AA66: =M66-P66 -> 0 | AB66: =AA66-V66 -> 0
A67: z | K67: 6 | L67: =IFERROR(VLOOKUP(F67,Таблица3[[#All],[Астра]:[Столбец30]],4,0),"0") -> 0 | M67: 0 | P67: 0 | S67: 0 | V67: 0 | AA67: 0 | AB67: 0
A68: z | K68: 7 | L68: =IFERROR(VLOOKUP(F68,Таблица3[[#All],[Астра]:[Столбец30]],4,0),"0") -> 0 | M68: 0 | P68: 0 | S68: 0 | V68: 0 | AA68: 0 | AB68: 0
A69: z | K69: 8 | L69: =IFERROR(VLOOKUP(F69,Таблица3[[#All],[Астра]:[Столбец30]],4,0),"0") -> 0 | M69: 0 | P69: 0 | S69: 0 | V69: 0 | AA69: 0 | AB69: 0
A70: z | K70: 9 | L70: =IFERROR(VLOOKUP(F70,Таблица3[[#All],[Астра]:[Столбец30]],4,0),"0") -> 0 | M70: 0 | P70: 0 | S70: 0 | V70: 0 | AA70: 0 | AB70: 0
A71: z | K71: 10 | L71: =IFERROR(VLOOKUP(F71,Таблица3[[#All],[Астра]:[Столбец30]],4,0),"0") -> 0 | M71: 0 | P71: 0 | S71: 0 | V71: 0 | AA71: 0 | AB71: 0
A72: z | K72: 11 | L72: =IFERROR(VLOOKUP(F72,Таблица3[[#All],[Астра]:[Столбец30]],4,0),"0") -> 0 | M72: 0 | P72: 0 | S72: 0 | V72: 0 | AA72: 0 | AB72: 0
A73: z | K73: 12 | L73: =IFERROR(VLOOKUP(F73,Таблица3[[#All],[Астра]:[Столбец30]],4,0),"0") -> 0 | M73: 0 | P73: 0 | S73: 0 | V73: 0 | AA73: 0 | AB73: 0
A74: z | K74: 13 | L74: =IFERROR(VLOOKUP(F74,Таблица3[[#All],[Астра]:[Столбец30]],4,0),"0") -> 0 | M74: 0 | P74: 0 | S74: 0 | V74: 0 | AA74: 0 | AB74: 0
A75: z | K75: 14 | L75: =IFERROR(VLOOKUP(F75,Таблица3[[#All],[Астра]:[Столбец30]],4,0),"0") -> 0 | M75: 0 | P75: 0 | S75: 0 | V75: 0 | AA75: 0 | AB75: 0
A76: z | K76: 15 | L76: =IFERROR(VLOOKUP(F76,Таблица3[[#All],[Астра]:[Столбец30]],4,0),"0") -> 0 | M76: 0 | P76: 0 | S76: 0 | V76: 0 | AA76: 0 | AB76: 0
A77: z | K77: 16 | L77: =IFERROR(VLOOKUP(F77,Таблица3[[#All],[Астра]:[Столбец30]],4,0),"0") -> 0 | M77: 0 | P77: 0 | S77: 0 | V77: 0 | AA77: 0 | AB77: 0
A78: z | K78: 17 | L78: =IFERROR(VLOOKUP(F78,Таблица3[[#All],[Астра]:[Столбец30]],4,0),"0") -> 0 | M78: 0 | P78: 0 | S78: 0 | V78: 0 | AA78: 0 | AB78: 0
A79: z | K79: 18 | L79: =IFERROR(VLOOKUP(F79,Таблица3[[#All],[Астра]:[Столбец30]],4,0),"0") -> 0 | M79: 0 | P79: 0 | S79: 0 | V79: 0 | AA79: 0 | AB79: 0
A80: z | K80: 19 | L80: =IFERROR(VLOOKUP(F80,Таблица3[[#All],[Астра]:[Столбец30]],4,0),"0") -> 0 | M80: 0 | P80: 0 | S80: 0 | V80: 0 | AA80: 0 | AB80: 0
A81: z | K81: 20 | L81: =IFERROR(VLOOKUP(F81,Таблица3[[#All],[Астра]:[Столбец30]],4,0),"0") -> 0 | M81: 0 | P81: 0 | S81: 0 | V81: 0 | AA81: 0 | AB81: 0
A82: z | K82: 21 | L82: =IFERROR(VLOOKUP(F82,Таблица3[[#All],[Астра]:[Столбец30]],4,0),"0") -> 0 | M82: 0 | P82: 0 | S82: 0 | V82: 0 | AA82: 0 | AB82: 0
A83: z | K83: 22 | L83: =IFERROR(VLOOKUP(F83,Таблица3[[#All],[Астра]:[Столбец30]],4,0),"0") -> 0 | M83: 0 | P83: 0 | S83: 0 | V83: 0 | AA83: 0 | AB83: 0
A84: z | K84: 23 | L84: =IFERROR(VLOOKUP(F84,Таблица3[[#All],[Астра]:[Столбец30]],4,0),"0") -> 0 | M84: 0 | P84: 0 | S84: 0 | V84: 0 | AA84: 0 | AB84: 0
A85: z | K85: 24 | L85: =IFERROR(VLOOKUP(F85,Таблица3[[#All],[Астра]:[Столбец30]],4,0),"0") -> 0 | M85: 0 | P85: 0 | S85: 0 | V85: 0 | AA85: 0 | AB85: 0
A86: z | K86: 25 | L86: =IFERROR(VLOOKUP(F86,Таблица3[[#All],[Астра]:[Столбец30]],4,0),"0") -> 0 | M86: 0 | P86: 0 | S86: 0 | V86: 0 | AA86: 0 | AB86: 0
A87: z | K87: 26 | L87: =IFERROR(VLOOKUP(F87,Таблица3[[#All],[Астра]:[Столбец30]],4,0),"0") -> 0 | M87: 0 | P87: 0 | S87: 0 | V87: 0 | AA87: 0 | AB87: 0
A88: z | K88: 27 | L88: =IFERROR(VLOOKUP(F88,Таблица3[[#All],[Астра]:[Столбец30]],4,0),"0") -> 0 | M88: 0 | P88: 0 | S88: 0 | V88: 0 | AA88: 0 | AB88: 0
A89: z | K89: 28 | L89: =IFERROR(VLOOKUP(F89,Таблица3[[#All],[Астра]:[Столбец30]],4,0),"0") -> 0 | M89: 0 | P89: 0 | S89: 0 | V89: 0 | AA89: 0 | AB89: 0
A90: z | K90: 29 | L90: =IFERROR(VLOOKUP(F90,Таблица3[[#All],[Астра]:[Столбец30]],4,0),"0") -> 0 | M90: 0 | P90: 0 | S90: 0 | V90: 0 | AA90: 0 | AB90: 0
A91: z | K91: 30 | L91: =IFERROR(VLOOKUP(F91,Таблица3[[#All],[Астра]:[Столбец30]],4,0),"0") -> 0 | M91: 0 | P91: 0 | S91: 0 | V91: 0 | AA91: 0 | AB91: 0
A92: z | K92: 31 | L92: =IFERROR(VLOOKUP(F92,Таблица3[[#All],[Астра]:[Столбец30]],4,0),"0") -> 0 | M92: 0 | P92: 0 | S92: 0 | V92: 0 | AA92: 0 | AB92: 0
A93: z | K93: 32 | L93: =IFERROR(VLOOKUP(F93,Таблица3[[#All],[Астра]:[Столбец30]],4,0),"0") -> 0 | M93: 0 | P93: 0 | S93: 0 | V93: 0 | AA93: 0 | AB93: 0
A94: z | K94: 33 | L94: =IFERROR(VLOOKUP(F94,Таблица3[[#All],[Астра]:[Столбец30]],4,0),"0") -> 0 | M94: 0 | P94: 0 | S94: 0 | V94: 0 | AA94: 0 | AB94: 0
A95: z | K95: 34 | L95: =IFERROR(VLOOKUP(F95,Таблица3[[#All],[Астра]:[Столбец30]],4,0),"0") -> 0 | M95: =C95*D95*E95*L95*G95/1000000 -> 0 | P95: =E95*H95*L95 -> 0 | S95: 0 | V95: =E95*I95*L95 -> 0 | AA95: 0 | AB95: 0
A96: z | K96: 35 | L96: =IFERROR(VLOOKUP(F96,Таблица3[[#All],[Астра]:[Столбец30]],4,0),"0") -> 0 | M96: 0 | P96: 0 | S96: 0 | V96: =E96*I96*L96 -> 0 | AA96: 0 | AB96: 0
A97: z | K97: 36 | L97: =IFERROR(VLOOKUP(F97,Таблица3[[#All],[Астра]:[Столбец30]],4,0),"0") -> 0 | M97: 0 | P97: 0 | S97: 0 | V97: 0 | AA97: 0 | AB97: 0
A98: z | K98: 37 | L98: =IFERROR(VLOOKUP(F98,Таблица3[[#All],[Астра]:[Столбец30]],4,0),"0") -> 0 | M98: 0 | P98: 0 | S98: 0 | V98: 0 | AA98: 0 | AB98: 0
A99: z | K99: 38 | L99: =IFERROR(VLOOKUP(F99,Таблица3[[#All],[Астра]:[Столбец30]],4,0),"0") -> 0 | M99: 0 | P99: 0 | S99: 0 | V99: 0 | AA99: 0 | AB99: 0
A100: z | K100: 39 | L100: =IFERROR(VLOOKUP(F100,Таблица3[[#All],[Астра]:[Столбец30]],4,0),"0") -> 0 | M100: 0 | P100: 0 | S100: 0 | V100: 0 | AA100: 0 | AB100: 0
A101: z | K101: 40 | L101: =IFERROR(VLOOKUP(F101,Таблица3[[#All],[Астра]:[Столбец30]],4,0),"0") -> 0 | M101: 0 | P101: 0 | S101: 0 | V101: 0 | AA101: 0 | AB101: 0
A102: z | K102: 41 | L102: =IFERROR(VLOOKUP(F102,Таблица3[[#All],[Астра]:[Столбец30]],4,0),"0") -> 0 | M102: 0 | P102: 0 | S102: 0 | V102: 0 | AA102: 0 | AB102: 0
A103: z | K103: 42 | L103: =IFERROR(VLOOKUP(F103,Таблица3[[#All],[Астра]:[Столбец30]],4,0),"0") -> 0 | M103: 0 | P103: 0 | S103: 0 | V103: 0 | AA103: 0 | AB103: 0
A104: z | K104: 43 | L104: =IFERROR(VLOOKUP(F104,Таблица3[[#All],[Астра]:[Столбец30]],4,0),"0") -> 0 | M104: 0 | P104: 0 | S104: 0 | V104: 0 | AA104: 0 | AB104: 0
A105: z | K105: 44 | L105: =IFERROR(VLOOKUP(F105,Таблица3[[#All],[Астра]:[Столбец30]],4,0),"0") -> 0 | M105: 0 | P105: 0 | S105: 0 | V105: 0 | AA105: 0 | AB105: 0
A106: z | K106: 45 | L106: =IFERROR(VLOOKUP(F106,Таблица3[[#All],[Астра]:[Столбец30]],4,0),"0") -> 0 | M106: 0 | P106: 0 | S106: 0 | V106: 0 | AA106: 0 | AB106: 0
A107: z | K107: 46 | L107: =IFERROR(VLOOKUP(F107,Таблица3[[#All],[Астра]:[Столбец30]],4,0),"0") -> 0 | M107: 0 | P107: 0 | S107: 0 | V107: 0 | AA107: 0 | AB107: 0
A108: z | K108: 47 | L108: =IFERROR(VLOOKUP(F108,Таблица3[[#All],[Астра]:[Столбец30]],4,0),"0") -> 0 | M108: 0 | P108: 0 | S108: 0 | V108: 0 | AA108: 0 | AB108: 0
A109: z | K109: 48 | L109: =IFERROR(VLOOKUP(F109,Таблица3[[#All],[Астра]:[Столбец30]],4,0),"0") -> 0 | M109: 0 | P109: 0 | S109: 0 | V109: 0 | AA109: 0 | AB109: 0
A110: z | K110: 49 | L110: =IFERROR(VLOOKUP(F110,Таблица3[[#All],[Астра]:[Столбец30]],4,0),"0") -> 0 | M110: 0 | P110: 0 | S110: 0 | V110: 0 | AA110: 0 | AB110: 0
A111: z | K111: 50 | L111: =IFERROR(VLOOKUP(F111,Таблица3[[#All],[Астра]:[Столбец30]],4,0),"0") -> 0 | M111: 0 | P111: 0 | S111: 0 | V111: 0 | AA111: 0 | AB111: 0
A112: z | K112: 51 | L112: =IFERROR(VLOOKUP(F112,Таблица3[[#All],[Астра]:[Столбец30]],4,0),"0") -> 0 | M112: 0 | P112: 0 | S112: 0 | V112: 0 | AA112: 0 | AB112: 0
A113: z | K113: 52 | L113: =IFERROR(VLOOKUP(F113,Таблица3[[#All],[Астра]:[Столбец30]],4,0),"0") -> 0 | M113: 0 | P113: 0 | S113: 0 | V113: 0 | AA113: 0 | AB113: 0
A114: z | K114: 53 | L114: =IFERROR(VLOOKUP(F114,Таблица3[[#All],[Астра]:[Столбец30]],4,0),"0") -> 0 | M114: 0 | P114: 0 | S114: 0 | V114: 0 | AA114: 0 | AB114: 0
A115: z | K115: 54 | L115: =IFERROR(VLOOKUP(F115,Таблица3[[#All],[Астра]:[Столбец30]],4,0),"0") -> 0 | M115: 0 | P115: 0 | S115: 0 | V115: 0 | AA115: 0 | AB115: 0
A116: =IF(G116=0,"z","") -> z | K116: 55 | L116: =IFERROR(VLOOKUP(F116,Таблица3[[#All],[Астра]:[Столбец30]],4,0),"0") -> 0 | M116: 0 | P116: 0 | S116: 0 | V116: 0 | AA116: 0 | AB116: 0
B117: Данные раскроя АСТРА (без уточнения масс) | M117: =SUM(M62:M116) -> 0 | P117: =SUM(P62:P116) -> 0 | S117: =SUM(S62:S116) -> 0 | V117: =SUM(V62:V116) -> 0 | AA117: =SUM(AA62:AA116) -> 0 | AB117: =SUM(AB62:AB116) -> 0
P119: Угар суммарный в составе лома в колличестве, кг | V119: =W6 -> 0
C120: Стандартный р-р | M120: Получить | P120: Остаток на склад | S120: ЛОМ | V120: Точная масса ЛОМА кг | W120: Детали | Z120: Точная масса деталей кг
B121: № п/п | C121: Ширина мм | D121: Длина мм | E121: Толщина мм | G121: Целых листов со склада | I121: Название | M121: Масса целых кг | N121: Масса деловых кг | O121: Общий кг | P121: Деловой остаток с целых кг | Q121: Деловой остаок с деловых кг | R121: Общий кг | S121: Лом целых кг | T121: Лом деловых кг | U121: Общий кг | W121: Масса деталей целых кг | X121: Масса деталей деловых кг | Y121: Общая кг | AB121: АСТРА | AC121: Для ДАНО АСТРА | AD121: название листа для Д | AE121: коэф | AG121: разница массы кг
A122: z
A123: z | B123: Столбец2 | C123: Шир | D123: Дл | E123: Толщ | F123: Ст6 | G123: Ст7 | H123: Ст8 | I123: Столбец9 | J123: Столбец22 | K123: Столбец222 | L123: Столбец23 | M123: Ст10 | N123: Ст11 | O123: Ст12 | P123: Ст13 | Q123: Ст14 | R123: Ст15 | S123: Ст16 | T123: Ст17 | U123: Ст18 | V123: Столбец24 | W123: Ст19 | X123: Ст20 | Y123: Ст21 | Z123: Столбец25 | AA123: Столбец26 | AB123: Астра | AC123: Столбец28 | AD123: Столбец29 | AE123: Столбец30 | AF123: точка | AG123: Столбец32 | AH123: Столбец33 | AI123: Столбец34
A124: =IF(Таблица3[[#All],[Ст21]]=0,"z","") -> z | C124: 1250 | D124: 2500 | E124: 0.4 | G124: =SUMIFS($G$62:$G$116,$D$62:$D$116,Таблица3[[#This Row],[Дл]],$C$62:$C$116,Таблица3[[#This Row],[Шир]],$F$62:$F$116,Таблица3[[#This Row],[Астра]]) -> 0 | I124: =CONCATENATE(Таблица3[[#This Row],[Столбец29]]," ",Таблица3[[#This Row],[Толщ]]) -> Лист 0,4 | K124: =Таблица3[[#This Row],[Толщ]] -> 0.4 | M124: =SUMIFS($M$62:$M$116,$C$62:$C$116,Таблица3[[#This Row],[Шир]],$D$62:$D$116,Таблица3[[#This Row],[Дл]],$F$62:$F$116,Таблица3[[#This Row],[Астра]]) -> 0 | N124: =SUMIFS($M$62:$M$116,$C$62:$C$116,"<"&Таблица3[[#This Row],[Шир]],$D$62:$D$116,Таблица3[[#This Row],[Дл]],$F$62:$F$116,Таблица3[[#This Row],[Астра]])+SUMIFS($M$62:$M$116,$C$62:$C$116,Таблица3[[#This Row],[Шир]],$D$62:$D$116,"<"&Таблица3[[#This Row],[Дл]],$F$62:$F$116,Таблица3[[#This Row],[Астра]])+SUMIFS($M$62:$M$116,$C$62:$C$116,"<"&Таблица3[[#This Row],[Шир]],$D$62:$D$116,"<"&Таблица3[[#This Row],[Дл]],$F$62:$F$116,Таблица3[[#This Row],[Астра]]) -> 0 | O124: =Таблица3[[#This Row],[Ст10]]+Таблица3[[#This Row],[Ст11]] -> 0 | P124: =SUMIFS($P$62:$P$116,$C$62:$C$116,Таблица3[[#This Row],[Шир]],$D$62:$D$116,Таблица3[[#This Row],[Дл]],$F$62:$F$116,Таблица3[[#This Row],[Астра]]) -> 0 | Q124: =SUMIFS($P$62:$P$116,$C$62:$C$116,"<"&Таблица3[[#This Row],[Шир]],$D$62:$D$116,Таблица3[[#This Row],[Дл]],$F$62:$F$116,Таблица3[[#This Row],[Астра]])+SUMIFS($P$62:$P$116,$C$62:$C$116,Таблица3[[#This Row],[Шир]],$D$62:$D$116,"<"&Таблица3[[#This Row],[Дл]],$F$62:$F$116,Таблица3[[#This Row],[Астра]])+SUMIFS($P$62:$P$116,$C$62:$C$116,"<"&Таблица3[[#This Row],[Шир]],$D$62:$D$116,"<"&Таблица3[[#This Row],[Дл]],$F$62:$F$116,Таблица3[[#This Row],[Астра]]) -> 0 | R124: =Таблица3[[#This Row],[Ст13]]+Таблица3[[#This Row],[Ст14]] -> 0 | S124: =SUMIFS($S$62:$S$116,$C$62:$C$116,Таблица3[[#This Row],[Шир]],$D$62:$D$116,Таблица3[[#This Row],[Дл]],$F$62:$F$116,Таблица3[[#This Row],[Астра]]) -> 0 | T124: =SUMIFS($S$62:$S$116,$C$62:$C$116,"<"&Таблица3[[#This Row],[Шир]],$D$62:$D$116,Таблица3[[#This Row],[Дл]],$F$62:$F$116,Таблица3[[#This Row],[Астра]])+SUMIFS($S$62:$S$116,$C$62:$C$116,Таблица3[[#This Row],[Шир]],$D$62:$D$116,"<"&Таблица3[[#This Row],[Дл]],$F$62:$F$116,Таблица3[[#This Row],[Астра]])+SUMIFS($S$62:$S$116,$C$62:$C$116,"<"&Таблица3[[#This Row],[Шир]],$D$62:$D$116,"<"&Таблица3[[#This Row],[Дл]],$F$62:$F$116,Таблица3[[#This Row],[Астра]]) -> 0 | U124: =Таблица3[[#This Row],[Ст16]]+Таблица3[[#This Row],[Ст17]] -> 0 | V124: =Таблица3[[#This Row],[Ст18]]+Таблица3[[#This Row],[Столбец32]] -> 0 | W124: =SUMIFS($V$62:$V$116,$C$62:$C$116,Таблица3[[#This Row],[Шир]],$D$62:$D$116,Таблица3[[#This Row],[Дл]],$F$62:$F$116,Таблица3[[#This Row],[Астра]]) -> 0 | X124: =SUMIFS($V$62:$V$116,$C$62:$C$116,"<"&Таблица3[[#This Row],[Шир]],$D$62:$D$116,Таблица3[[#This Row],[Дл]],$F$62:$F$116,Таблица3[[#This Row],[Астра]])+SUMIFS($V$62:$V$116,$C$62:$C$116,Таблица3[[#This Row],[Шир]],$D$62:$D$116,"<"&Таблица3[[#This Row],[Дл]],$F$62:$F$116,Таблица3[[#This Row],[Астра]])+SUMIFS($V$62:$V$116,$C$62:$C$116,"<"&Таблица3[[#This Row],[Шир]],$D$62:$D$116,"<"&Таблица3[[#This Row],[Дл]],$F$62:$F$116,Таблица3[[#This Row],[Астра]]) -> 0 | Y124: =Таблица3[[#This Row],[Ст19]]+Таблица3[[#This Row],[Ст20]] -> 0 | Z124: =Таблица3[[#This Row],[Ст21]]-Таблица3[[#This Row],[Столбец32]] -> 0 | AB124: Лист лазер, 0.4 мм, лт | AC124: Лист лазер | AD124: Лист | AE124: 7.874 | AF124: =SUBSTITUTE(Таблица3[[#This Row],[Толщ]],",",".") -> 0.4 | AG124: =SUMIFS($AA$8:$AA$57,$K$8:$K$57,Таблица3[[#This Row],[Столбец9]]) -> 0
A125: =IF(Таблица3[[#All],[Ст21]]=0,"z","") -> z | C125: 1250 | D125: 2500 | E125: 0.6 | G125: =SUMIFS($G$62:$G$116,$D$62:$D$116,Таблица3[[#This Row],[Дл]],$C$62:$C$116,Таблица3[[#This Row],[Шир]],$F$62:$F$116,Таблица3[[#This Row],[Астра]]) -> 0 | I125: =CONCATENATE(Таблица3[[#This Row],[Столбец29]]," ",Таблица3[[#This Row],[Толщ]]) -> Лист 0,6 | K125: =Таблица3[[#This Row],[Толщ]] -> 0.6 | M125: =SUMIFS($M$62:$M$116,$C$62:$C$116,Таблица3[[#This Row],[Шир]],$D$62:$D$116,Таблица3[[#This Row],[Дл]],$F$62:$F$116,Таблица3[[#This Row],[Астра]]) -> 0 | N125: =SUMIFS($M$62:$M$116,$C$62:$C$116,"<"&Таблица3[[#This Row],[Шир]],$D$62:$D$116,Таблица3[[#This Row],[Дл]],$F$62:$F$116,Таблица3[[#This Row],[Астра]])+SUMIFS($M$62:$M$116,$C$62:$C$116,Таблица3[[#This Row],[Шир]],$D$62:$D$116,"<"&Таблица3[[#This Row],[Дл]],$F$62:$F$116,Таблица3[[#This Row],[Астра]])+SUMIFS($M$62:$M$116,$C$62:$C$116,"<"&Таблица3[[#This Row],[Шир]],$D$62:$D$116,"<"&Таблица3[[#This Row],[Дл]],$F$62:$F$116,Таблица3[[#This Row],[Астра]]) -> 0 | O125: =Таблица3[[#This Row],[Ст10]]+Таблица3[[#This Row],[Ст11]] -> 0 | P125: =SUMIFS($P$62:$P$116,$C$62:$C$116,Таблица3[[#This Row],[Шир]],$D$62:$D$116,Таблица3[[#This Row],[Дл]],$F$62:$F$116,Таблица3[[#This Row],[Астра]]) -> 0 | Q125: =SUMIFS($P$62:$P$116,$C$62:$C$116,"<"&Таблица3[[#This Row],[Шир]],$D$62:$D$116,Таблица3[[#This Row],[Дл]],$F$62:$F$116,Таблица3[[#This Row],[Астра]])+SUMIFS($P$62:$P$116,$C$62:$C$116,Таблица3[[#This Row],[Шир]],$D$62:$D$116,"<"&Таблица3[[#This Row],[Дл]],$F$62:$F$116,Таблица3[[#This Row],[Астра]])+SUMIFS($P$62:$P$116,$C$62:$C$116,"<"&Таблица3[[#This Row],[Шир]],$D$62:$D$116,"<"&Таблица3[[#This Row],[Дл]],$F$62:$F$116,Таблица3[[#This Row],[Астра]]) -> 0 | R125: =Таблица3[[#This Row],[Ст13]]+Таблица3[[#This Row],[Ст14]] -> 0 | S125: =SUMIFS($S$62:$S$116,$C$62:$C$116,Таблица3[[#This Row],[Шир]],$D$62:$D$116,Таблица3[[#This Row],[Дл]],$F$62:$F$116,Таблица3[[#This Row],[Астра]]) -> 0 | T125: =SUMIFS($S$62:$S$116,$C$62:$C$116,"<"&Таблица3[[#This Row],[Шир]],$D$62:$D$116,Таблица3[[#This Row],[Дл]],$F$62:$F$116,Таблица3[[#This Row],[Астра]])+SUMIFS($S$62:$S$116,$C$62:$C$116,Таблица3[[#This Row],[Шир]],$D$62:$D$116,"<"&Таблица3[[#This Row],[Дл]],$F$62:$F$116,Таблица3[[#This Row],[Астра]])+SUMIFS($S$62:$S$116,$C$62:$C$116,"<"&Таблица3[[#This Row],[Шир]],$D$62:$D$116,"<"&Таблица3[[#This Row],[Дл]],$F$62:$F$116,Таблица3[[#This Row],[Астра]]) -> 0 | U125: =Таблица3[[#This Row],[Ст16]]+Таблица3[[#This Row],[Ст17]] -> 0 | V125: =Таблица3[[#This Row],[Ст18]]+Таблица3[[#This Row],[Столбец32]] -> 0 | W125: =SUMIFS($V$62:$V$116,$C$62:$C$116,Таблица3[[#This Row],[Шир]],$D$62:$D$116,Таблица3[[#This Row],[Дл]],$F$62:$F$116,Таблица3[[#This Row],[Астра]]) -> 0 | X125: =SUMIFS($V$62:$V$116,$C$62:$C$116,"<"&Таблица3[[#This Row],[Шир]],$D$62:$D$116,Таблица3[[#This Row],[Дл]],$F$62:$F$116,Таблица3[[#This Row],[Астра]])+SUMIFS($V$62:$V$116,$C$62:$C$116,Таблица3[[#This Row],[Шир]],$D$62:$D$116,"<"&Таблица3[[#This Row],[Дл]],$F$62:$F$116,Таблица3[[#This Row],[Астра]])+SUMIFS($V$62:$V$116,$C$62:$C$116,"<"&Таблица3[[#This Row],[Шир]],$D$62:$D$116,"<"&Таблица3[[#This Row],[Дл]],$F$62:$F$116,Таблица3[[#This Row],[Астра]]) -> 0 | Y125: =Таблица3[[#This Row],[Ст19]]+Таблица3[[#This Row],[Ст20]] -> 0 | Z125: =Таблица3[[#This Row],[Ст21]]-Таблица3[[#This Row],[Столбец32]] -> 0 | AB125: Лист лазер, 0.6 мм, лт | AC125: Лист лазер | AD125: Лист | AE125: 7.874 | AF125: =SUBSTITUTE(Таблица3[[#This Row],[Толщ]],",",".") -> 0.6 | AG125: =SUMIFS($AA$8:$AA$57,$K$8:$K$57,Таблица3[[#This Row],[Столбец9]]) -> 0
A126: =IF(Таблица3[[#All],[Ст21]]=0,"z","") -> z | C126: 1250 | D126: 2500 | E126: 0.7 | G126: =SUMIFS($G$62:$G$116,$D$62:$D$116,Таблица3[[#This Row],[Дл]],$C$62:$C$116,Таблица3[[#This Row],[Шир]],$F$62:$F$116,Таблица3[[#This Row],[Астра]]) -> 0 | I126: =CONCATENATE(Таблица3[[#This Row],[Столбец29]]," ",Таблица3[[#This Row],[Толщ]]) -> Лист 0,7 | K126: =Таблица3[[#This Row],[Толщ]] -> 0.7 | M126: =SUMIFS($M$62:$M$116,$C$62:$C$116,Таблица3[[#This Row],[Шир]],$D$62:$D$116,Таблица3[[#This Row],[Дл]],$F$62:$F$116,Таблица3[[#This Row],[Астра]]) -> 0 | N126: =SUMIFS($M$62:$M$116,$C$62:$C$116,"<"&Таблица3[[#This Row],[Шир]],$D$62:$D$116,Таблица3[[#This Row],[Дл]],$F$62:$F$116,Таблица3[[#This Row],[Астра]])+SUMIFS($M$62:$M$116,$C$62:$C$116,Таблица3[[#This Row],[Шир]],$D$62:$D$116,"<"&Таблица3[[#This Row],[Дл]],$F$62:$F$116,Таблица3[[#This Row],[Астра]])+SUMIFS($M$62:$M$116,$C$62:$C$116,"<"&Таблица3[[#This Row],[Шир]],$D$62:$D$116,"<"&Таблица3[[#This Row],[Дл]],$F$62:$F$116,Таблица3[[#This Row],[Астра]]) -> 0 | O126: =Таблица3[[#This Row],[Ст10]]+Таблица3[[#This Row],[Ст11]] -> 0 | P126: =SUMIFS($P$62:$P$116,$C$62:$C$116,Таблица3[[#This Row],[Шир]],$D$62:$D$116,Таблица3[[#This Row],[Дл]],$F$62:$F$116,Таблица3[[#This Row],[Астра]]) -> 0 | Q126: =SUMIFS($P$62:$P$116,$C$62:$C$116,"<"&Таблица3[[#This Row],[Шир]],$D$62:$D$116,Таблица3[[#This Row],[Дл]],$F$62:$F$116,Таблица3[[#This Row],[Астра]])+SUMIFS($P$62:$P$116,$C$62:$C$116,Таблица3[[#This Row],[Шир]],$D$62:$D$116,"<"&Таблица3[[#This Row],[Дл]],$F$62:$F$116,Таблица3[[#This Row],[Астра]])+SUMIFS($P$62:$P$116,$C$62:$C$116,"<"&Таблица3[[#This Row],[Шир]],$D$62:$D$116,"<"&Таблица3[[#This Row],[Дл]],$F$62:$F$116,Таблица3[[#This Row],[Астра]]) -> 0 | R126: =Таблица3[[#This Row],[Ст13]]+Таблица3[[#This Row],[Ст14]] -> 0 | S126: =SUMIFS($S$62:$S$116,$C$62:$C$116,Таблица3[[#This Row],[Шир]],$D$62:$D$116,Таблица3[[#This Row],[Дл]],$F$62:$F$116,Таблица3[[#This Row],[Астра]]) -> 0 | T126: =SUMIFS($S$62:$S$116,$C$62:$C$116,"<"&Таблица3[[#This Row],[Шир]],$D$62:$D$116,Таблица3[[#This Row],[Дл]],$F$62:$F$116,Таблица3[[#This Row],[Астра]])+SUMIFS($S$62:$S$116,$C$62:$C$116,Таблица3[[#This Row],[Шир]],$D$62:$D$116,"<"&Таблица3[[#This Row],[Дл]],$F$62:$F$116,Таблица3[[#This Row],[Астра]])+SUMIFS($S$62:$S$116,$C$62:$C$116,"<"&Таблица3[[#This Row],[Шир]],$D$62:$D$116,"<"&Таблица3[[#This Row],[Дл]],$F$62:$F$116,Таблица3[[#This Row],[Астра]]) -> 0 | U126: =Таблица3[[#This Row],[Ст16]]+Таблица3[[#This Row],[Ст17]] -> 0 | V126: =Таблица3[[#This Row],[Ст18]]+Таблица3[[#This Row],[Столбец32]] -> 0 | W126: =SUMIFS($V$62:$V$116,$C$62:$C$116,Таблица3[[#This Row],[Шир]],$D$62:$D$116,Таблица3[[#This Row],[Дл]],$F$62:$F$116,Таблица3[[#This Row],[Астра]]) -> 0 | X126: =SUMIFS($V$62:$V$116,$C$62:$C$116,"<"&Таблица3[[#This Row],[Шир]],$D$62:$D$116,Таблица3[[#This Row],[Дл]],$F$62:$F$116,Таблица3[[#This Row],[Астра]])+SUMIFS($V$62:$V$116,$C$62:$C$116,Таблица3[[#This Row],[Шир]],$D$62:$D$116,"<"&Таблица3[[#This Row],[Дл]],$F$62:$F$116,Таблица3[[#This Row],[Астра]])+SUMIFS($V$62:$V$116,$C$62:$C$116,"<"&Таблица3[[#This Row],[Шир]],$D$62:$D$116,"<"&Таблица3[[#This Row],[Дл]],$F$62:$F$116,Таблица3[[#This Row],[Астра]]) -> 0 | Y126: =Таблица3[[#This Row],[Ст19]]+Таблица3[[#This Row],[Ст20]] -> 0 | Z126: =Таблица3[[#This Row],[Ст21]]-Таблица3[[#This Row],[Столбец32]] -> 0 | AB126: Лист лазер, 0.7 мм, лт | AC126: Лист лазер | AD126: Лист | AE126: 7.874 | AF126: =SUBSTITUTE(Таблица3[[#This Row],[Толщ]],",",".") -> 0.7 | AG126: =SUMIFS($AA$8:$AA$57,$K$8:$K$57,Таблица3[[#This Row],[Столбец9]]) -> 0
A127: =IF(Таблица3[[#All],[Ст21]]=0,"z","") -> z | C127: 1250 | D127: 2500 | E127: 0.8 | G127: =SUMIFS($G$62:$G$116,$D$62:$D$116,Таблица3[[#This Row],[Дл]],$C$62:$C$116,Таблица3[[#This Row],[Шир]],$F$62:$F$116,Таблица3[[#This Row],[Астра]]) -> 0 | I127: =CONCATENATE(Таблица3[[#This Row],[Столбец29]]," ",Таблица3[[#This Row],[Толщ]]) -> Лист 0,8 | K127: =Таблица3[[#This Row],[Толщ]] -> 0.8 | M127: =SUMIFS($M$62:$M$116,$C$62:$C$116,Таблица3[[#This Row],[Шир]],$D$62:$D$116,Таблица3[[#This Row],[Дл]],$F$62:$F$116,Таблица3[[#This Row],[Астра]]) -> 0 | N127: =SUMIFS($M$62:$M$116,$C$62:$C$116,"<"&Таблица3[[#This Row],[Шир]],$D$62:$D$116,Таблица3[[#This Row],[Дл]],$F$62:$F$116,Таблица3[[#This Row],[Астра]])+SUMIFS($M$62:$M$116,$C$62:$C$116,Таблица3[[#This Row],[Шир]],$D$62:$D$116,"<"&Таблица3[[#This Row],[Дл]],$F$62:$F$116,Таблица3[[#This Row],[Астра]])+SUMIFS($M$62:$M$116,$C$62:$C$116,"<"&Таблица3[[#This Row],[Шир]],$D$62:$D$116,"<"&Таблица3[[#This Row],[Дл]],$F$62:$F$116,Таблица3[[#This Row],[Астра]]) -> 0 | O127: =Таблица3[[#This Row],[Ст10]]+Таблица3[[#This Row],[Ст11]] -> 0 | P127: =SUMIFS($P$62:$P$116,$C$62:$C$116,Таблица3[[#This Row],[Шир]],$D$62:$D$116,Таблица3[[#This Row],[Дл]],$F$62:$F$116,Таблица3[[#This Row],[Астра]]) -> 0 | Q127: =SUMIFS($P$62:$P$116,$C$62:$C$116,"<"&Таблица3[[#This Row],[Шир]],$D$62:$D$116,Таблица3[[#This Row],[Дл]],$F$62:$F$116,Таблица3[[#This Row],[Астра]])+SUMIFS($P$62:$P$116,$C$62:$C$116,Таблица3[[#This Row],[Шир]],$D$62:$D$116,"<"&Таблица3[[#This Row],[Дл]],$F$62:$F$116,Таблица3[[#This Row],[Астра]])+SUMIFS($P$62:$P$116,$C$62:$C$116,"<"&Таблица3[[#This Row],[Шир]],$D$62:$D$116,"<"&Таблица3[[#This Row],[Дл]],$F$62:$F$116,Таблица3[[#This Row],[Астра]]) -> 0 | R127: =Таблица3[[#This Row],[Ст13]]+Таблица3[[#This Row],[Ст14]] -> 0 | S127: =SUMIFS($S$62:$S$116,$C$62:$C$116,Таблица3[[#This Row],[Шир]],$D$62:$D$116,Таблица3[[#This Row],[Дл]],$F$62:$F$116,Таблица3[[#This Row],[Астра]]) -> 0 | T127: =SUMIFS($S$62:$S$116,$C$62:$C$116,"<"&Таблица3[[#This Row],[Шир]],$D$62:$D$116,Таблица3[[#This Row],[Дл]],$F$62:$F$116,Таблица3[[#This Row],[Астра]])+SUMIFS($S$62:$S$116,$C$62:$C$116,Таблица3[[#This Row],[Шир]],$D$62:$D$116,"<"&Таблица3[[#This Row],[Дл]],$F$62:$F$116,Таблица3[[#This Row],[Астра]])+SUMIFS($S$62:$S$116,$C$62:$C$116,"<"&Таблица3[[#This Row],[Шир]],$D$62:$D$116,"<"&Таблица3[[#This Row],[Дл]],$F$62:$F$116,Таблица3[[#This Row],[Астра]]) -> 0 | U127: =Таблица3[[#This Row],[Ст16]]+Таблица3[[#This Row],[Ст17]] -> 0 | V127: =Таблица3[[#This Row],[Ст18]]+Таблица3[[#This Row],[Столбец32]] -> 0 | W127: =SUMIFS($V$62:$V$116,$C$62:$C$116,Таблица3[[#This Row],[Шир]],$D$62:$D$116,Таблица3[[#This Row],[Дл]],$F$62:$F$116,Таблица3[[#This Row],[Астра]]) -> 0 | X127: =SUMIFS($V$62:$V$116,$C$62:$C$116,"<"&Таблица3[[#This Row],[Шир]],$D$62:$D$116,Таблица3[[#This Row],[Дл]],$F$62:$F$116,Таблица3[[#This Row],[Астра]])+SUMIFS($V$62:$V$116,$C$62:$C$116,Таблица3[[#This Row],[Шир]],$D$62:$D$116,"<"&Таблица3[[#This Row],[Дл]],$F$62:$F$116,Таблица3[[#This Row],[Астра]])+SUMIFS($V$62:$V$116,$C$62:$C$116,"<"&Таблица3[[#This Row],[Шир]],$D$62:$D$116,"<"&Таблица3[[#This Row],[Дл]],$F$62:$F$116,Таблица3[[#This Row],[Астра]]) -> 0 | Y127: =Таблица3[[#This Row],[Ст19]]+Таблица3[[#This Row],[Ст20]] -> 0 | Z127: =Таблица3[[#This Row],[Ст21]]-Таблица3[[#This Row],[Столбец32]] -> 0 | AB127: Лист лазер, 0.8 мм, лт | AC127: Лист лазер | AD127: Лист | AE127: 7.874 | AF127: =SUBSTITUTE(Таблица3[[#This Row],[Толщ]],",",".") -> 0.8 | AG127: =SUMIFS($AA$8:$AA$57,$K$8:$K$57,Таблица3[[#This Row],[Столбец9]]) -> 0
A128: =IF(Таблица3[[#All],[Ст21]]=0,"z","") -> z | C128: 1250 | D128: 2500 | E128: 1 | G128: =SUMIFS($G$62:$G$116,$D$62:$D$116,Таблица3[[#This Row],[Дл]],$C$62:$C$116,Таблица3[[#This Row],[Шир]],$F$62:$F$116,Таблица3[[#This Row],[Астра]]) -> 0 | I128: =CONCATENATE(Таблица3[[#This Row],[Столбец29]]," ",Таблица3[[#This Row],[Толщ]]) -> Лист 1 | K128: =Таблица3[[#This Row],[Толщ]] -> 1 | M128: =SUMIFS($M$62:$M$116,$C$62:$C$116,Таблица3[[#This Row],[Шир]],$D$62:$D$116,Таблица3[[#This Row],[Дл]],$F$62:$F$116,Таблица3[[#This Row],[Астра]]) -> 0 | N128: =SUMIFS($M$62:$M$116,$C$62:$C$116,"<"&Таблица3[[#This Row],[Шир]],$D$62:$D$116,Таблица3[[#This Row],[Дл]],$F$62:$F$116,Таблица3[[#This Row],[Астра]])+SUMIFS($M$62:$M$116,$C$62:$C$116,Таблица3[[#This Row],[Шир]],$D$62:$D$116,"<"&Таблица3[[#This Row],[Дл]],$F$62:$F$116,Таблица3[[#This Row],[Астра]])+SUMIFS($M$62:$M$116,$C$62:$C$116,"<"&Таблица3[[#This Row],[Шир]],$D$62:$D$116,"<"&Таблица3[[#This Row],[Дл]],$F$62:$F$116,Таблица3[[#This Row],[Астра]]) -> 0 | O128: =Таблица3[[#This Row],[Ст10]]+Таблица3[[#This Row],[Ст11]] -> 0 | P128: =SUMIFS($P$62:$P$116,$C$62:$C$116,Таблица3[[#This Row],[Шир]],$D$62:$D$116,Таблица3[[#This Row],[Дл]],$F$62:$F$116,Таблица3[[#This Row],[Астра]]) -> 0 | Q128: =SUMIFS($P$62:$P$116,$C$62:$C$116,"<"&Таблица3[[#This Row],[Шир]],$D$62:$D$116,Таблица3[[#This Row],[Дл]],$F$62:$F$116,Таблица3[[#This Row],[Астра]])+SUMIFS($P$62:$P$116,$C$62:$C$116,Таблица3[[#This Row],[Шир]],$D$62:$D$116,"<"&Таблица3[[#This Row],[Дл]],$F$62:$F$116,Таблица3[[#This Row],[Астра]])+SUMIFS($P$62:$P$116,$C$62:$C$116,"<"&Таблица3[[#This Row],[Шир]],$D$62:$D$116,"<"&Таблица3[[#This Row],[Дл]],$F$62:$F$116,Таблица3[[#This Row],[Астра]]) -> 0 | R128: =Таблица3[[#This Row],[Ст13]]+Таблица3[[#This Row],[Ст14]] -> 0 | S128: =SUMIFS($S$62:$S$116,$C$62:$C$116,Таблица3[[#This Row],[Шир]],$D$62:$D$116,Таблица3[[#This Row],[Дл]],$F$62:$F$116,Таблица3[[#This Row],[Астра]]) -> 0 | T128: =SUMIFS($S$62:$S$116,$C$62:$C$116,"<"&Таблица3[[#This Row],[Шир]],$D$62:$D$116,Таблица3[[#This Row],[Дл]],$F$62:$F$116,Таблица3[[#This Row],[Астра]])+SUMIFS($S$62:$S$116,$C$62:$C$116,Таблица3[[#This Row],[Шир]],$D$62:$D$116,"<"&Таблица3[[#This Row],[Дл]],$F$62:$F$116,Таблица3[[#This Row],[Астра]])+SUMIFS($S$62:$S$116,$C$62:$C$116,"<"&Таблица3[[#This Row],[Шир]],$D$62:$D$116,"<"&Таблица3[[#This Row],[Дл]],$F$62:$F$116,Таблица3[[#This Row],[Астра]]) -> 0 | U128: =Таблица3[[#This Row],[Ст16]]+Таблица3[[#This Row],[Ст17]] -> 0 | V128: =Таблица3[[#This Row],[Ст18]]+Таблица3[[#This Row],[Столбец32]] -> 0 | W128: =SUMIFS($V$62:$V$116,$C$62:$C$116,Таблица3[[#This Row],[Шир]],$D$62:$D$116,Таблица3[[#This Row],[Дл]],$F$62:$F$116,Таблица3[[#This Row],[Астра]]) -> 0 | X128: =SUMIFS($V$62:$V$116,$C$62:$C$116,"<"&Таблица3[[#This Row],[Шир]],$D$62:$D$116,Таблица3[[#This Row],[Дл]],$F$62:$F$116,Таблица3[[#This Row],[Астра]])+SUMIFS($V$62:$V$116,$C$62:$C$116,Таблица3[[#This Row],[Шир]],$D$62:$D$116,"<"&Таблица3[[#This Row],[Дл]],$F$62:$F$116,Таблица3[[#This Row],[Астра]])+SUMIFS($V$62:$V$116,$C$62:$C$116,"<"&Таблица3[[#This Row],[Шир]],$D$62:$D$116,"<"&Таблица3[[#This Row],[Дл]],$F$62:$F$116,Таблица3[[#This Row],[Астра]]) -> 0 | Y128: =Таблица3[[#This Row],[Ст19]]+Таблица3[[#This Row],[Ст20]] -> 0 | Z128: =Таблица3[[#This Row],[Ст21]]-Таблица3[[#This Row],[Столбец32]] -> 0 | AB128: Лист лазер, 1.0 мм, лт | AC128: Лист лазер | AD128: Лист | AE128: 7.874 | AF128: =SUBSTITUTE(Таблица3[[#This Row],[Толщ]],",",".") -> 1 | AG128: =SUMIFS($AA$8:$AA$57,$K$8:$K$57,Таблица3[[#This Row],[Столбец9]]) -> 0
A129: =IF(Таблица3[[#All],[Ст21]]=0,"z","") -> z | C129: 1250 | D129: 2500 | E129: 1.2 | G129: =SUMIFS($G$62:$G$116,$D$62:$D$116,Таблица3[[#This Row],[Дл]],$C$62:$C$116,Таблица3[[#This Row],[Шир]],$F$62:$F$116,Таблица3[[#This Row],[Астра]]) -> 0 | I129: =CONCATENATE(Таблица3[[#This Row],[Столбец29]]," ",Таблица3[[#This Row],[Толщ]]) -> Лист 1,2 | K129: =Таблица3[[#This Row],[Толщ]] -> 1.2 | M129: =SUMIFS($M$62:$M$116,$C$62:$C$116,Таблица3[[#This Row],[Шир]],$D$62:$D$116,Таблица3[[#This Row],[Дл]],$F$62:$F$116,Таблица3[[#This Row],[Астра]]) -> 0 | N129: =SUMIFS($M$62:$M$116,$C$62:$C$116,"<"&Таблица3[[#This Row],[Шир]],$D$62:$D$116,Таблица3[[#This Row],[Дл]],$F$62:$F$116,Таблица3[[#This Row],[Астра]])+SUMIFS($M$62:$M$116,$C$62:$C$116,Таблица3[[#This Row],[Шир]],$D$62:$D$116,"<"&Таблица3[[#This Row],[Дл]],$F$62:$F$116,Таблица3[[#This Row],[Астра]])+SUMIFS($M$62:$M$116,$C$62:$C$116,"<"&Таблица3[[#This Row],[Шир]],$D$62:$D$116,"<"&Таблица3[[#This Row],[Дл]],$F$62:$F$116,Таблица3[[#This Row],[Астра]]) -> 0 | O129: =Таблица3[[#This Row],[Ст10]]+Таблица3[[#This Row],[Ст11]] -> 0 | P129: =SUMIFS($P$62:$P$116,$C$62:$C$116,Таблица3[[#This Row],[Шир]],$D$62:$D$116,Таблица3[[#This Row],[Дл]],$F$62:$F$116,Таблица3[[#This Row],[Астра]]) -> 0 | Q129: =SUMIFS($P$62:$P$116,$C$62:$C$116,"<"&Таблица3[[#This Row],[Шир]],$D$62:$D$116,Таблица3[[#This Row],[Дл]],$F$62:$F$116,Таблица3[[#This Row],[Астра]])+SUMIFS($P$62:$P$116,$C$62:$C$116,Таблица3[[#This Row],[Шир]],$D$62:$D$116,"<"&Таблица3[[#This Row],[Дл]],$F$62:$F$116,Таблица3[[#This Row],[Астра]])+SUMIFS($P$62:$P$116,$C$62:$C$116,"<"&Таблица3[[#This Row],[Шир]],$D$62:$D$116,"<"&Таблица3[[#This Row],[Дл]],$F$62:$F$116,Таблица3[[#This Row],[Астра]]) -> 0 | R129: =Таблица3[[#This Row],[Ст13]]+Таблица3[[#This Row],[Ст14]] -> 0 | S129: =SUMIFS($S$62:$S$116,$C$62:$C$116,Таблица3[[#This Row],[Шир]],$D$62:$D$116,Таблица3[[#This Row],[Дл]],$F$62:$F$116,Таблица3[[#This Row],[Астра]]) -> 0 | T129: =SUMIFS($S$62:$S$116,$C$62:$C$116,"<"&Таблица3[[#This Row],[Шир]],$D$62:$D$116,Таблица3[[#This Row],[Дл]],$F$62:$F$116,Таблица3[[#This Row],[Астра]])+SUMIFS($S$62:$S$116,$C$62:$C$116,Таблица3[[#This Row],[Шир]],$D$62:$D$116,"<"&Таблица3[[#This Row],[Дл]],$F$62:$F$116,Таблица3[[#This Row],[Астра]])+SUMIFS($S$62:$S$116,$C$62:$C$116,"<"&Таблица3[[#This Row],[Шир]],$D$62:$D$116,"<"&Таблица3[[#This Row],[Дл]],$F$62:$F$116,Таблица3[[#This Row],[Астра]]) -> 0 | U129: =Таблица3[[#This Row],[Ст16]]+Таблица3[[#This Row],[Ст17]] -> 0 | V129: =Таблица3[[#This Row],[Ст18]]+Таблица3[[#This Row],[Столбец32]] -> 0 | W129: =SUMIFS($V$62:$V$116,$C$62:$C$116,Таблица3[[#This Row],[Шир]],$D$62:$D$116,Таблица3[[#This Row],[Дл]],$F$62:$F$116,Таблица3[[#This Row],[Астра]]) -> 0 | X129: =SUMIFS($V$62:$V$116,$C$62:$C$116,"<"&Таблица3[[#This Row],[Шир]],$D$62:$D$116,Таблица3[[#This Row],[Дл]],$F$62:$F$116,Таблица3[[#This Row],[Астра]])+SUMIFS($V$62:$V$116,$C$62:$C$116,Таблица3[[#This Row],[Шир]],$D$62:$D$116,"<"&Таблица3[[#This Row],[Дл]],$F$62:$F$116,Таблица3[[#This Row],[Астра]])+SUMIFS($V$62:$V$116,$C$62:$C$116,"<"&Таблица3[[#This Row],[Шир]],$D$62:$D$116,"<"&Таблица3[[#This Row],[Дл]],$F$62:$F$116,Таблица3[[#This Row],[Астра]]) -> 0 | Y129: =Таблица3[[#This Row],[Ст19]]+Таблица3[[#This Row],[Ст20]] -> 0 | Z129: =Таблица3[[#This Row],[Ст21]]-Таблица3[[#This Row],[Столбец32]] -> 0 | AB129: Лист лазер, 1.2 мм, лт | AC129: Лист лазер | AD129: Лист | AE129: 7.874 | AF129: =SUBSTITUTE(Таблица3[[#This Row],[Толщ]],",",".") -> 1.2 | AG129: =SUMIFS($AA$8:$AA$57,$K$8:$K$57,Таблица3[[#This Row],[Столбец9]]) -> 0
A130: =IF(Таблица3[[#All],[Ст21]]=0,"z","") -> z | C130: 1250 | D130: 2500 | E130: 1.5 | G130: =SUMIFS($G$62:$G$116,$D$62:$D$116,Таблица3[[#This Row],[Дл]],$C$62:$C$116,Таблица3[[#This Row],[Шир]],$F$62:$F$116,Таблица3[[#This Row],[Астра]]) -> 0 | I130: =CONCATENATE(Таблица3[[#This Row],[Столбец29]]," ",Таблица3[[#This Row],[Толщ]]) -> Лист 1,5 | K130: =Таблица3[[#This Row],[Толщ]] -> 1.5 | M130: =SUMIFS($M$62:$M$116,$C$62:$C$116,Таблица3[[#This Row],[Шир]],$D$62:$D$116,Таблица3[[#This Row],[Дл]],$F$62:$F$116,Таблица3[[#This Row],[Астра]]) -> 0 | N130: =SUMIFS($M$62:$M$116,$C$62:$C$116,"<"&Таблица3[[#This Row],[Шир]],$D$62:$D$116,Таблица3[[#This Row],[Дл]],$F$62:$F$116,Таблица3[[#This Row],[Астра]])+SUMIFS($M$62:$M$116,$C$62:$C$116,Таблица3[[#This Row],[Шир]],$D$62:$D$116,"<"&Таблица3[[#This Row],[Дл]],$F$62:$F$116,Таблица3[[#This Row],[Астра]])+SUMIFS($M$62:$M$116,$C$62:$C$116,"<"&Таблица3[[#This Row],[Шир]],$D$62:$D$116,"<"&Таблица3[[#This Row],[Дл]],$F$62:$F$116,Таблица3[[#This Row],[Астра]]) -> 0 | O130: =Таблица3[[#This Row],[Ст10]]+Таблица3[[#This Row],[Ст11]] -> 0 | P130: =SUMIFS($P$62:$P$116,$C$62:$C$116,Таблица3[[#This Row],[Шир]],$D$62:$D$116,Таблица3[[#This Row],[Дл]],$F$62:$F$116,Таблица3[[#This Row],[Астра]]) -> 0 | Q130: =SUMIFS($P$62:$P$116,$C$62:$C$116,"<"&Таблица3[[#This Row],[Шир]],$D$62:$D$116,Таблица3[[#This Row],[Дл]],$F$62:$F$116,Таблица3[[#This Row],[Астра]])+SUMIFS($P$62:$P$116,$C$62:$C$116,Таблица3[[#This Row],[Шир]],$D$62:$D$116,"<"&Таблица3[[#This Row],[Дл]],$F$62:$F$116,Таблица3[[#This Row],[Астра]])+SUMIFS($P$62:$P$116,$C$62:$C$116,"<"&Таблица3[[#This Row],[Шир]],$D$62:$D$116,"<"&Таблица3[[#This Row],[Дл]],$F$62:$F$116,Таблица3[[#This Row],[Астра]]) -> 0 | R130: =Таблица3[[#This Row],[Ст13]]+Таблица3[[#This Row],[Ст14]] -> 0 | S130: =SUMIFS($S$62:$S$116,$C$62:$C$116,Таблица3[[#This Row],[Шир]],$D$62:$D$116,Таблица3[[#This Row],[Дл]],$F$62:$F$116,Таблица3[[#This Row],[Астра]]) -> 0 | T130: =SUMIFS($S$62:$S$116,$C$62:$C$116,"<"&Таблица3[[#This Row],[Шир]],$D$62:$D$116,Таблица3[[#This Row],[Дл]],$F$62:$F$116,Таблица3[[#This Row],[Астра]])+SUMIFS($S$62:$S$116,$C$62:$C$116,Таблица3[[#This Row],[Шир]],$D$62:$D$116,"<"&Таблица3[[#This Row],[Дл]],$F$62:$F$116,Таблица3[[#This Row],[Астра]])+SUMIFS($S$62:$S$116,$C$62:$C$116,"<"&Таблица3[[#This Row],[Шир]],$D$62:$D$116,"<"&Таблица3[[#This Row],[Дл]],$F$62:$F$116,Таблица3[[#This Row],[Астра]]) -> 0 | U130: =Таблица3[[#This Row],[Ст16]]+Таблица3[[#This Row],[Ст17]] -> 0 | V130: =Таблица3[[#This Row],[Ст18]]+Таблица3[[#This Row],[Столбец32]] -> 0 | W130: =SUMIFS($V$62:$V$116,$C$62:$C$116,Таблица3[[#This Row],[Шир]],$D$62:$D$116,Таблица3[[#This Row],[Дл]],$F$62:$F$116,Таблица3[[#This Row],[Астра]]) -> 0 | X130: =SUMIFS($V$62:$V$116,$C$62:$C$116,"<"&Таблица3[[#This Row],[Шир]],$D$62:$D$116,Таблица3[[#This Row],[Дл]],$F$62:$F$116,Таблица3[[#This Row],[Астра]])+SUMIFS($V$62:$V$116,$C$62:$C$116,Таблица3[[#This Row],[Шир]],$D$62:$D$116,"<"&Таблица3[[#This Row],[Дл]],$F$62:$F$116,Таблица3[[#This Row],[Астра]])+SUMIFS($V$62:$V$116,$C$62:$C$116,"<"&Таблица3[[#This Row],[Шир]],$D$62:$D$116,"<"&Таблица3[[#This Row],[Дл]],$F$62:$F$116,Таблица3[[#This Row],[Астра]]) -> 0 | Y130: =Таблица3[[#This Row],[Ст19]]+Таблица3[[#This Row],[Ст20]] -> 0 | Z130: =Таблица3[[#This Row],[Ст21]]-Таблица3[[#This Row],[Столбец32]] -> 0 | AB130: Лист лазер, 1.5 мм, лт | AC130: Лист лазер | AD130: Лист | AE130: 7.874 | AF130: =SUBSTITUTE(Таблица3[[#This Row],[Толщ]],",",".") -> 1.5 | AG130: =SUMIFS($AA$8:$AA$57,$K$8:$K$57,Таблица3[[#This Row],[Столбец9]]) -> 0
A131: =IF(Таблица3[[#All],[Ст21]]=0,"z","") -> z | C131: 1250 | D131: 2500 | E131: 2 | G131: =SUMIFS($G$62:$G$116,$D$62:$D$116,Таблица3[[#This Row],[Дл]],$C$62:$C$116,Таблица3[[#This Row],[Шир]],$F$62:$F$116,Таблица3[[#This Row],[Астра]]) -> 0 | I131: =CONCATENATE(Таблица3[[#This Row],[Столбец29]]," ",Таблица3[[#This Row],[Толщ]]) -> Лист 2 | K131: =Таблица3[[#This Row],[Толщ]] -> 2 | M131: =SUMIFS($M$62:$M$116,$C$62:$C$116,Таблица3[[#This Row],[Шир]],$D$62:$D$116,Таблица3[[#This Row],[Дл]],$F$62:$F$116,Таблица3[[#This Row],[Астра]]) -> 0 | N131: =SUMIFS($M$62:$M$116,$C$62:$C$116,"<"&Таблица3[[#This Row],[Шир]],$D$62:$D$116,Таблица3[[#This Row],[Дл]],$F$62:$F$116,Таблица3[[#This Row],[Астра]])+SUMIFS($M$62:$M$116,$C$62:$C$116,Таблица3[[#This Row],[Шир]],$D$62:$D$116,"<"&Таблица3[[#This Row],[Дл]],$F$62:$F$116,Таблица3[[#This Row],[Астра]])+SUMIFS($M$62:$M$116,$C$62:$C$116,"<"&Таблица3[[#This Row],[Шир]],$D$62:$D$116,"<"&Таблица3[[#This Row],[Дл]],$F$62:$F$116,Таблица3[[#This Row],[Астра]]) -> 0 | O131: =Таблица3[[#This Row],[Ст10]]+Таблица3[[#This Row],[Ст11]] -> 0 | P131: =SUMIFS($P$62:$P$116,$C$62:$C$116,Таблица3[[#This Row],[Шир]],$D$62:$D$116,Таблица3[[#This Row],[Дл]],$F$62:$F$116,Таблица3[[#This Row],[Астра]]) -> 0 | Q131: =SUMIFS($P$62:$P$116,$C$62:$C$116,"<"&Таблица3[[#This Row],[Шир]],$D$62:$D$116,Таблица3[[#This Row],[Дл]],$F$62:$F$116,Таблица3[[#This Row],[Астра]])+SUMIFS($P$62:$P$116,$C$62:$C$116,Таблица3[[#This Row],[Шир]],$D$62:$D$116,"<"&Таблица3[[#This Row],[Дл]],$F$62:$F$116,Таблица3[[#This Row],[Астра]])+SUMIFS($P$62:$P$116,$C$62:$C$116,"<"&Таблица3[[#This Row],[Шир]],$D$62:$D$116,"<"&Таблица3[[#This Row],[Дл]],$F$62:$F$116,Таблица3[[#This Row],[Астра]]) -> 0 | R131: =Таблица3[[#This Row],[Ст13]]+Таблица3[[#This Row],[Ст14]] -> 0 | S131: =SUMIFS($S$62:$S$116,$C$62:$C$116,Таблица3[[#This Row],[Шир]],$D$62:$D$116,Таблица3[[#This Row],[Дл]],$F$62:$F$116,Таблица3[[#This Row],[Астра]]) -> 0 | T131: =SUMIFS($S$62:$S$116,$C$62:$C$116,"<"&Таблица3[[#This Row],[Шир]],$D$62:$D$116,Таблица3[[#This Row],[Дл]],$F$62:$F$116,Таблица3[[#This Row],[Астра]])+SUMIFS($S$62:$S$116,$C$62:$C$116,Таблица3[[#This Row],[Шир]],$D$62:$D$116,"<"&Таблица3[[#This Row],[Дл]],$F$62:$F$116,Таблица3[[#This Row],[Астра]])+SUMIFS($S$62:$S$116,$C$62:$C$116,"<"&Таблица3[[#This Row],[Шир]],$D$62:$D$116,"<"&Таблица3[[#This Row],[Дл]],$F$62:$F$116,Таблица3[[#This Row],[Астра]]) -> 0 | U131: =Таблица3[[#This Row],[Ст16]]+Таблица3[[#This Row],[Ст17]] -> 0 | V131: =Таблица3[[#This Row],[Ст18]]+Таблица3[[#This Row],[Столбец32]] -> 0 | W131: =SUMIFS($V$62:$V$116,$C$62:$C$116,Таблица3[[#This Row],[Шир]],$D$62:$D$116,Таблица3[[#This Row],[Дл]],$F$62:$F$116,Таблица3[[#This Row],[Астра]]) -> 0 | X131: =SUMIFS($V$62:$V$116,$C$62:$C$116,"<"&Таблица3[[#This Row],[Шир]],$D$62:$D$116,Таблица3[[#This Row],[Дл]],$F$62:$F$116,Таблица3[[#This Row],[Астра]])+SUMIFS($V$62:$V$116,$C$62:$C$116,Таблица3[[#This Row],[Шир]],$D$62:$D$116,"<"&Таблица3[[#This Row],[Дл]],$F$62:$F$116,Таблица3[[#This Row],[Астра]])+SUMIFS($V$62:$V$116,$C$62:$C$116,"<"&Таблица3[[#This Row],[Шир]],$D$62:$D$116,"<"&Таблица3[[#This Row],[Дл]],$F$62:$F$116,Таблица3[[#This Row],[Астра]]) -> 0 | Y131: =Таблица3[[#This Row],[Ст19]]+Таблица3[[#This Row],[Ст20]] -> 0 | Z131: =Таблица3[[#This Row],[Ст21]]-Таблица3[[#This Row],[Столбец32]] -> 0 | AB131: Лист лазер, 2.0 мм, лт | AC131: Лист лазер | AD131: Лист | AE131: 7.874 | AF131: =SUBSTITUTE(Таблица3[[#This Row],[Толщ]],",",".") -> 2 | AG131: =SUMIFS($AA$8:$AA$57,$K$8:$K$57,Таблица3[[#This Row],[Столбец9]]) -> 0
A132: =IF(Таблица3[[#All],[Ст21]]=0,"z","") -> z | C132: 1250 | D132: 2500 | E132: 2.5 | G132: =SUMIFS($G$62:$G$116,$D$62:$D$116,Таблица3[[#This Row],[Дл]],$C$62:$C$116,Таблица3[[#This Row],[Шир]],$F$62:$F$116,Таблица3[[#This Row],[Астра]]) -> 0 | I132: =CONCATENATE(Таблица3[[#This Row],[Столбец29]]," ",Таблица3[[#This Row],[Толщ]]) -> Лист 2,5 | K132: =Таблица3[[#This Row],[Толщ]] -> 2.5 | M132: =SUMIFS($M$62:$M$116,$C$62:$C$116,Таблица3[[#This Row],[Шир]],$D$62:$D$116,Таблица3[[#This Row],[Дл]],$F$62:$F$116,Таблица3[[#This Row],[Астра]]) -> 0 | N132: =SUMIFS($M$62:$M$116,$C$62:$C$116,"<"&Таблица3[[#This Row],[Шир]],$D$62:$D$116,Таблица3[[#This Row],[Дл]],$F$62:$F$116,Таблица3[[#This Row],[Астра]])+SUMIFS($M$62:$M$116,$C$62:$C$116,Таблица3[[#This Row],[Шир]],$D$62:$D$116,"<"&Таблица3[[#This Row],[Дл]],$F$62:$F$116,Таблица3[[#This Row],[Астра]])+SUMIFS($M$62:$M$116,$C$62:$C$116,"<"&Таблица3[[#This Row],[Шир]],$D$62:$D$116,"<"&Таблица3[[#This Row],[Дл]],$F$62:$F$116,Таблица3[[#This Row],[Астра]]) -> 0 | O132: =Таблица3[[#This Row],[Ст10]]+Таблица3[[#This Row],[Ст11]] -> 0 | P132: =SUMIFS($P$62:$P$116,$C$62:$C$116,Таблица3[[#This Row],[Шир]],$D$62:$D$116,Таблица3[[#This Row],[Дл]],$F$62:$F$116,Таблица3[[#This Row],[Астра]]) -> 0 | Q132: =SUMIFS($P$62:$P$116,$C$62:$C$116,"<"&Таблица3[[#This Row],[Шир]],$D$62:$D$116,Таблица3[[#This Row],[Дл]],$F$62:$F$116,Таблица3[[#This Row],[Астра]])+SUMIFS($P$62:$P$116,$C$62:$C$116,Таблица3[[#This Row],[Шир]],$D$62:$D$116,"<"&Таблица3[[#This Row],[Дл]],$F$62:$F$116,Таблица3[[#This Row],[Астра]])+SUMIFS($P$62:$P$116,$C$62:$C$116,"<"&Таблица3[[#This Row],[Шир]],$D$62:$D$116,"<"&Таблица3[[#This Row],[Дл]],$F$62:$F$116,Таблица3[[#This Row],[Астра]]) -> 0 | R132: =Таблица3[[#This Row],[Ст13]]+Таблица3[[#This Row],[Ст14]] -> 0 | S132: =SUMIFS($S$62:$S$116,$C$62:$C$116,Таблица3[[#This Row],[Шир]],$D$62:$D$116,Таблица3[[#This Row],[Дл]],$F$62:$F$116,Таблица3[[#This Row],[Астра]]) -> 0 | T132: =SUMIFS($S$62:$S$116,$C$62:$C$116,"<"&Таблица3[[#This Row],[Шир]],$D$62:$D$116,Таблица3[[#This Row],[Дл]],$F$62:$F$116,Таблица3[[#This Row],[Астра]])+SUMIFS($S$62:$S$116,$C$62:$C$116,Таблица3[[#This Row],[Шир]],$D$62:$D$116,"<"&Таблица3[[#This Row],[Дл]],$F$62:$F$116,Таблица3[[#This Row],[Астра]])+SUMIFS($S$62:$S$116,$C$62:$C$116,"<"&Таблица3[[#This Row],[Шир]],$D$62:$D$116,"<"&Таблица3[[#This Row],[Дл]],$F$62:$F$116,Таблица3[[#This Row],[Астра]]) -> 0 | U132: =Таблица3[[#This Row],[Ст16]]+Таблица3[[#This Row],[Ст17]] -> 0 | V132: =Таблица3[[#This Row],[Ст18]]+Таблица3[[#This Row],[Столбец32]] -> 0 | W132: =SUMIFS($V$62:$V$116,$C$62:$C$116,Таблица3[[#This Row],[Шир]],$D$62:$D$116,Таблица3[[#This Row],[Дл]],$F$62:$F$116,Таблица3[[#This Row],[Астра]]) -> 0 | X132: =SUMIFS($V$62:$V$116,$C$62:$C$116,"<"&Таблица3[[#This Row],[Шир]],$D$62:$D$116,Таблица3[[#This Row],[Дл]],$F$62:$F$116,Таблица3[[#This Row],[Астра]])+SUMIFS($V$62:$V$116,$C$62:$C$116,Таблица3[[#This Row],[Шир]],$D$62:$D$116,"<"&Таблица3[[#This Row],[Дл]],$F$62:$F$116,Таблица3[[#This Row],[Астра]])+SUMIFS($V$62:$V$116,$C$62:$C$116,"<"&Таблица3[[#This Row],[Шир]],$D$62:$D$116,"<"&Таблица3[[#This Row],[Дл]],$F$62:$F$116,Таблица3[[#This Row],[Астра]]) -> 0 | Y132: =Таблица3[[#This Row],[Ст19]]+Таблица3[[#This Row],[Ст20]] -> 0 | Z132: =Таблица3[[#This Row],[Ст21]]-Таблица3[[#This Row],[Столбец32]] -> 0 | AB132: Лист лазер, 2.5 мм, лт | AC132: Лист лазер | AD132: Лист | AE132: 7.874 | AF132: =SUBSTITUTE(Таблица3[[#This Row],[Толщ]],",",".") -> 2.5 | AG132: =SUMIFS($AA$8:$AA$57,$K$8:$K$57,Таблица3[[#This Row],[Столбец9]]) -> 0
A133: =IF(Таблица3[[#All],[Ст21]]=0,"z","") -> z | C133: 1250 | D133: 2500 | E133: 3 | G133: =SUMIFS($G$62:$G$116,$D$62:$D$116,Таблица3[[#This Row],[Дл]],$C$62:$C$116,Таблица3[[#This Row],[Шир]],$F$62:$F$116,Таблица3[[#This Row],[Астра]]) -> 0 | I133: =CONCATENATE(Таблица3[[#This Row],[Столбец29]]," ",Таблица3[[#This Row],[Толщ]]) -> Лист 3 | K133: =Таблица3[[#This Row],[Толщ]] -> 3 | M133: =SUMIFS($M$62:$M$116,$C$62:$C$116,Таблица3[[#This Row],[Шир]],$D$62:$D$116,Таблица3[[#This Row],[Дл]],$F$62:$F$116,Таблица3[[#This Row],[Астра]]) -> 0 | N133: =SUMIFS($M$62:$M$116,$C$62:$C$116,"<"&Таблица3[[#This Row],[Шир]],$D$62:$D$116,Таблица3[[#This Row],[Дл]],$F$62:$F$116,Таблица3[[#This Row],[Астра]])+SUMIFS($M$62:$M$116,$C$62:$C$116,Таблица3[[#This Row],[Шир]],$D$62:$D$116,"<"&Таблица3[[#This Row],[Дл]],$F$62:$F$116,Таблица3[[#This Row],[Астра]])+SUMIFS($M$62:$M$116,$C$62:$C$116,"<"&Таблица3[[#This Row],[Шир]],$D$62:$D$116,"<"&Таблица3[[#This Row],[Дл]],$F$62:$F$116,Таблица3[[#This Row],[Астра]]) -> 0 | O133: =Таблица3[[#This Row],[Ст10]]+Таблица3[[#This Row],[Ст11]] -> 0 | P133: =SUMIFS($P$62:$P$116,$C$62:$C$116,Таблица3[[#This Row],[Шир]],$D$62:$D$116,Таблица3[[#This Row],[Дл]],$F$62:$F$116,Таблица3[[#This Row],[Астра]]) -> 0 | Q133: =SUMIFS($P$62:$P$116,$C$62:$C$116,"<"&Таблица3[[#This Row],[Шир]],$D$62:$D$116,Таблица3[[#This Row],[Дл]],$F$62:$F$116,Таблица3[[#This Row],[Астра]])+SUMIFS($P$62:$P$116,$C$62:$C$116,Таблица3[[#This Row],[Шир]],$D$62:$D$116,"<"&Таблица3[[#This Row],[Дл]],$F$62:$F$116,Таблица3[[#This Row],[Астра]])+SUMIFS($P$62:$P$116,$C$62:$C$116,"<"&Таблица3[[#This Row],[Шир]],$D$62:$D$116,"<"&Таблица3[[#This Row],[Дл]],$F$62:$F$116,Таблица3[[#This Row],[Астра]]) -> 0 | R133: =Таблица3[[#This Row],[Ст13]]+Таблица3[[#This Row],[Ст14]] -> 0 | S133: =SUMIFS($S$62:$S$116,$C$62:$C$116,Таблица3[[#This Row],[Шир]],$D$62:$D$116,Таблица3[[#This Row],[Дл]],$F$62:$F$116,Таблица3[[#This Row],[Астра]]) -> 0 | T133: =SUMIFS($S$62:$S$116,$C$62:$C$116,"<"&Таблица3[[#This Row],[Шир]],$D$62:$D$116,Таблица3[[#This Row],[Дл]],$F$62:$F$116,Таблица3[[#This Row],[Астра]])+SUMIFS($S$62:$S$116,$C$62:$C$116,Таблица3[[#This Row],[Шир]],$D$62:$D$116,"<"&Таблица3[[#This Row],[Дл]],$F$62:$F$116,Таблица3[[#This Row],[Астра]])+SUMIFS($S$62:$S$116,$C$62:$C$116,"<"&Таблица3[[#This Row],[Шир]],$D$62:$D$116,"<"&Таблица3[[#This Row],[Дл]],$F$62:$F$116,Таблица3[[#This Row],[Астра]]) -> 0 | U133: =Таблица3[[#This Row],[Ст16]]+Таблица3[[#This Row],[Ст17]] -> 0 | V133: =Таблица3[[#This Row],[Ст18]]+Таблица3[[#This Row],[Столбец32]] -> 0 | W133: =SUMIFS($V$62:$V$116,$C$62:$C$116,Таблица3[[#This Row],[Шир]],$D$62:$D$116,Таблица3[[#This Row],[Дл]],$F$62:$F$116,Таблица3[[#This Row],[Астра]]) -> 0 | X133: =SUMIFS($V$62:$V$116,$C$62:$C$116,"<"&Таблица3[[#This Row],[Шир]],$D$62:$D$116,Таблица3[[#This Row],[Дл]],$F$62:$F$116,Таблица3[[#This Row],[Астра]])+SUMIFS($V$62:$V$116,$C$62:$C$116,Таблица3[[#This Row],[Шир]],$D$62:$D$116,"<"&Таблица3[[#This Row],[Дл]],$F$62:$F$116,Таблица3[[#This Row],[Астра]])+SUMIFS($V$62:$V$116,$C$62:$C$116,"<"&Таблица3[[#This Row],[Шир]],$D$62:$D$116,"<"&Таблица3[[#This Row],[Дл]],$F$62:$F$116,Таблица3[[#This Row],[Астра]]) -> 0 | Y133: =Таблица3[[#This Row],[Ст19]]+Таблица3[[#This Row],[Ст20]] -> 0 | Z133: =Таблица3[[#This Row],[Ст21]]-Таблица3[[#This Row],[Столбец32]] -> 0 | AB133: Лист лазер, 3.0 мм, лт | AC133: Лист лазер | AD133: Лист | AE133: 7.874 | AF133: =SUBSTITUTE(Таблица3[[#This Row],[Толщ]],",",".") -> 3 | AG133: =SUMIFS($AA$8:$AA$57,$K$8:$K$57,Таблица3[[#This Row],[Столбец9]]) -> 0
A134: =IF(Таблица3[[#All],[Ст21]]=0,"z","") -> z | C134: 1250 | D134: 2500 | E134: 4 | G134: =SUMIFS($G$62:$G$116,$D$62:$D$116,Таблица3[[#This Row],[Дл]],$C$62:$C$116,Таблица3[[#This Row],[Шир]],$F$62:$F$116,Таблица3[[#This Row],[Астра]]) -> 0 | I134: =CONCATENATE(Таблица3[[#This Row],[Столбец29]]," ",Таблица3[[#This Row],[Толщ]]) -> Лист 4 | K134: =Таблица3[[#This Row],[Толщ]] -> 4 | M134: =SUMIFS($M$62:$M$116,$C$62:$C$116,Таблица3[[#This Row],[Шир]],$D$62:$D$116,Таблица3[[#This Row],[Дл]],$F$62:$F$116,Таблица3[[#This Row],[Астра]]) -> 0 | N134: =SUMIFS($M$62:$M$116,$C$62:$C$116,"<"&Таблица3[[#This Row],[Шир]],$D$62:$D$116,Таблица3[[#This Row],[Дл]],$F$62:$F$116,Таблица3[[#This Row],[Астра]])+SUMIFS($M$62:$M$116,$C$62:$C$116,Таблица3[[#This Row],[Шир]],$D$62:$D$116,"<"&Таблица3[[#This Row],[Дл]],$F$62:$F$116,Таблица3[[#This Row],[Астра]])+SUMIFS($M$62:$M$116,$C$62:$C$116,"<"&Таблица3[[#This Row],[Шир]],$D$62:$D$116,"<"&Таблица3[[#This Row],[Дл]],$F$62:$F$116,Таблица3[[#This Row],[Астра]]) -> 0 | O134: =Таблица3[[#This Row],[Ст10]]+Таблица3[[#This Row],[Ст11]] -> 0 | P134: =SUMIFS($P$62:$P$116,$C$62:$C$116,Таблица3[[#This Row],[Шир]],$D$62:$D$116,Таблица3[[#This Row],[Дл]],$F$62:$F$116,Таблица3[[#This Row],[Астра]]) -> 0 | Q134: =SUMIFS($P$62:$P$116,$C$62:$C$116,"<"&Таблица3[[#This Row],[Шир]],$D$62:$D$116,Таблица3[[#This Row],[Дл]],$F$62:$F$116,Таблица3[[#This Row],[Астра]])+SUMIFS($P$62:$P$116,$C$62:$C$116,Таблица3[[#This Row],[Шир]],$D$62:$D$116,"<"&Таблица3[[#This Row],[Дл]],$F$62:$F$116,Таблица3[[#This Row],[Астра]])+SUMIFS($P$62:$P$116,$C$62:$C$116,"<"&Таблица3[[#This Row],[Шир]],$D$62:$D$116,"<"&Таблица3[[#This Row],[Дл]],$F$62:$F$116,Таблица3[[#This Row],[Астра]]) -> 0 | R134: =Таблица3[[#This Row],[Ст13]]+Таблица3[[#This Row],[Ст14]] -> 0 | S134: =SUMIFS($S$62:$S$116,$C$62:$C$116,Таблица3[[#This Row],[Шир]],$D$62:$D$116,Таблица3[[#This Row],[Дл]],$F$62:$F$116,Таблица3[[#This Row],[Астра]]) -> 0 | T134: =SUMIFS($S$62:$S$116,$C$62:$C$116,"<"&Таблица3[[#This Row],[Шир]],$D$62:$D$116,Таблица3[[#This Row],[Дл]],$F$62:$F$116,Таблица3[[#This Row],[Астра]])+SUMIFS($S$62:$S$116,$C$62:$C$116,Таблица3[[#This Row],[Шир]],$D$62:$D$116,"<"&Таблица3[[#This Row],[Дл]],$F$62:$F$116,Таблица3[[#This Row],[Астра]])+SUMIFS($S$62:$S$116,$C$62:$C$116,"<"&Таблица3[[#This Row],[Шир]],$D$62:$D$116,"<"&Таблица3[[#This Row],[Дл]],$F$62:$F$116,Таблица3[[#This Row],[Астра]]) -> 0 | U134: =Таблица3[[#This Row],[Ст16]]+Таблица3[[#This Row],[Ст17]] -> 0 | V134: =Таблица3[[#This Row],[Ст18]]+Таблица3[[#This Row],[Столбец32]] -> 0 | W134: =SUMIFS($V$62:$V$116,$C$62:$C$116,Таблица3[[#This Row],[Шир]],$D$62:$D$116,Таблица3[[#This Row],[Дл]],$F$62:$F$116,Таблица3[[#This Row],[Астра]]) -> 0 | X134: =SUMIFS($V$62:$V$116,$C$62:$C$116,"<"&Таблица3[[#This Row],[Шир]],$D$62:$D$116,Таблица3[[#This Row],[Дл]],$F$62:$F$116,Таблица3[[#This Row],[Астра]])+SUMIFS($V$62:$V$116,$C$62:$C$116,Таблица3[[#This Row],[Шир]],$D$62:$D$116,"<"&Таблица3[[#This Row],[Дл]],$F$62:$F$116,Таблица3[[#This Row],[Астра]])+SUMIFS($V$62:$V$116,$C$62:$C$116,"<"&Таблица3[[#This Row],[Шир]],$D$62:$D$116,"<"&Таблица3[[#This Row],[Дл]],$F$62:$F$116,Таблица3[[#This Row],[Астра]]) -> 0 | Y134: =Таблица3[[#This Row],[Ст19]]+Таблица3[[#This Row],[Ст20]] -> 0 | Z134: =Таблица3[[#This Row],[Ст21]]-Таблица3[[#This Row],[Столбец32]] -> 0 | AB134: Лист лазер, 4.0 мм, лт | AC134: Лист лазер | AD134: Лист | AE134: 7.874 | AF134: =SUBSTITUTE(Таблица3[[#This Row],[Толщ]],",",".") -> 4 | AG134: =SUMIFS($AA$8:$AA$57,$K$8:$K$57,Таблица3[[#This Row],[Столбец9]]) -> 0
A135: =IF(Таблица3[[#All],[Ст21]]=0,"z","") -> z | C135: 1250 | D135: 2500 | E135: 5 | G135: =SUMIFS($G$62:$G$116,$D$62:$D$116,Таблица3[[#This Row],[Дл]],$C$62:$C$116,Таблица3[[#This Row],[Шир]],$F$62:$F$116,Таблица3[[#This Row],[Астра]]) -> 0 | I135: =CONCATENATE(Таблица3[[#This Row],[Столбец29]]," ",Таблица3[[#This Row],[Толщ]]) -> Лист 5 | K135: =Таблица3[[#This Row],[Толщ]] -> 5 | M135: =SUMIFS($M$62:$M$116,$C$62:$C$116,Таблица3[[#This Row],[Шир]],$D$62:$D$116,Таблица3[[#This Row],[Дл]],$F$62:$F$116,Таблица3[[#This Row],[Астра]]) -> 0 | N135: =SUMIFS($M$62:$M$116,$C$62:$C$116,"<"&Таблица3[[#This Row],[Шир]],$D$62:$D$116,Таблица3[[#This Row],[Дл]],$F$62:$F$116,Таблица3[[#This Row],[Астра]])+SUMIFS($M$62:$M$116,$C$62:$C$116,Таблица3[[#This Row],[Шир]],$D$62:$D$116,"<"&Таблица3[[#This Row],[Дл]],$F$62:$F$116,Таблица3[[#This Row],[Астра]])+SUMIFS($M$62:$M$116,$C$62:$C$116,"<"&Таблица3[[#This Row],[Шир]],$D$62:$D$116,"<"&Таблица3[[#This Row],[Дл]],$F$62:$F$116,Таблица3[[#This Row],[Астра]]) -> 0 | O135: =Таблица3[[#This Row],[Ст10]]+Таблица3[[#This Row],[Ст11]] -> 0 | P135: =SUMIFS($P$62:$P$116,$C$62:$C$116,Таблица3[[#This Row],[Шир]],$D$62:$D$116,Таблица3[[#This Row],[Дл]],$F$62:$F$116,Таблица3[[#This Row],[Астра]]) -> 0 | Q135: =SUMIFS($P$62:$P$116,$C$62:$C$116,"<"&Таблица3[[#This Row],[Шир]],$D$62:$D$116,Таблица3[[#This Row],[Дл]],$F$62:$F$116,Таблица3[[#This Row],[Астра]])+SUMIFS($P$62:$P$116,$C$62:$C$116,Таблица3[[#This Row],[Шир]],$D$62:$D$116,"<"&Таблица3[[#This Row],[Дл]],$F$62:$F$116,Таблица3[[#This Row],[Астра]])+SUMIFS($P$62:$P$116,$C$62:$C$116,"<"&Таблица3[[#This Row],[Шир]],$D$62:$D$116,"<"&Таблица3[[#This Row],[Дл]],$F$62:$F$116,Таблица3[[#This Row],[Астра]]) -> 0 | R135: =Таблица3[[#This Row],[Ст13]]+Таблица3[[#This Row],[Ст14]] -> 0 | S135: =SUMIFS($S$62:$S$116,$C$62:$C$116,Таблица3[[#This Row],[Шир]],$D$62:$D$116,Таблица3[[#This Row],[Дл]],$F$62:$F$116,Таблица3[[#This Row],[Астра]]) -> 0 | T135: =SUMIFS($S$62:$S$116,$C$62:$C$116,"<"&Таблица3[[#This Row],[Шир]],$D$62:$D$116,Таблица3[[#This Row],[Дл]],$F$62:$F$116,Таблица3[[#This Row],[Астра]])+SUMIFS($S$62:$S$116,$C$62:$C$116,Таблица3[[#This Row],[Шир]],$D$62:$D$116,"<"&Таблица3[[#This Row],[Дл]],$F$62:$F$116,Таблица3[[#This Row],[Астра]])+SUMIFS($S$62:$S$116,$C$62:$C$116,"<"&Таблица3[[#This Row],[Шир]],$D$62:$D$116,"<"&Таблица3[[#This Row],[Дл]],$F$62:$F$116,Таблица3[[#This Row],[Астра]]) -> 0 | U135: =Таблица3[[#This Row],[Ст16]]+Таблица3[[#This Row],[Ст17]] -> 0 | V135: =Таблица3[[#This Row],[Ст18]]+Таблица3[[#This Row],[Столбец32]] -> 0 | W135: =SUMIFS($V$62:$V$116,$C$62:$C$116,Таблица3[[#This Row],[Шир]],$D$62:$D$116,Таблица3[[#This Row],[Дл]],$F$62:$F$116,Таблица3[[#This Row],[Астра]]) -> 0 | X135: =SUMIFS($V$62:$V$116,$C$62:$C$116,"<"&Таблица3[[#This Row],[Шир]],$D$62:$D$116,Таблица3[[#This Row],[Дл]],$F$62:$F$116,Таблица3[[#This Row],[Астра]])+SUMIFS($V$62:$V$116,$C$62:$C$116,Таблица3[[#This Row],[Шир]],$D$62:$D$116,"<"&Таблица3[[#This Row],[Дл]],$F$62:$F$116,Таблица3[[#This Row],[Астра]])+SUMIFS($V$62:$V$116,$C$62:$C$116,"<"&Таблица3[[#This Row],[Шир]],$D$62:$D$116,"<"&Таблица3[[#This Row],[Дл]],$F$62:$F$116,Таблица3[[#This Row],[Астра]]) -> 0 | Y135: =Таблица3[[#This Row],[Ст19]]+Таблица3[[#This Row],[Ст20]] -> 0 | Z135: =Таблица3[[#This Row],[Ст21]]-Таблица3[[#This Row],[Столбец32]] -> 0 | AB135: Лист лазер, 5.0 мм, лт | AC135: Лист лазер | AD135: Лист | AE135: 7.874 | AF135: =SUBSTITUTE(Таблица3[[#This Row],[Толщ]],",",".") -> 5 | AG135: =SUMIFS($AA$8:$AA$57,$K$8:$K$57,Таблица3[[#This Row],[Столбец9]]) -> 0
A136: =IF(Таблица3[[#All],[Ст21]]=0,"z","") -> z | C136: 1250 | D136: 2500 | E136: 6 | G136: =SUMIFS($G$62:$G$116,$D$62:$D$116,Таблица3[[#This Row],[Дл]],$C$62:$C$116,Таблица3[[#This Row],[Шир]],$F$62:$F$116,Таблица3[[#This Row],[Астра]]) -> 0 | I136: =CONCATENATE(Таблица3[[#This Row],[Столбец29]]," ",Таблица3[[#This Row],[Толщ]]) -> Лист 6 | K136: =Таблица3[[#This Row],[Толщ]] -> 6 | M136: =SUMIFS($M$62:$M$116,$C$62:$C$116,Таблица3[[#This Row],[Шир]],$D$62:$D$116,Таблица3[[#This Row],[Дл]],$F$62:$F$116,Таблица3[[#This Row],[Астра]]) -> 0 | N136: =SUMIFS($M$62:$M$116,$C$62:$C$116,"<"&Таблица3[[#This Row],[Шир]],$D$62:$D$116,Таблица3[[#This Row],[Дл]],$F$62:$F$116,Таблица3[[#This Row],[Астра]])+SUMIFS($M$62:$M$116,$C$62:$C$116,Таблица3[[#This Row],[Шир]],$D$62:$D$116,"<"&Таблица3[[#This Row],[Дл]],$F$62:$F$116,Таблица3[[#This Row],[Астра]])+SUMIFS($M$62:$M$116,$C$62:$C$116,"<"&Таблица3[[#This Row],[Шир]],$D$62:$D$116,"<"&Таблица3[[#This Row],[Дл]],$F$62:$F$116,Таблица3[[#This Row],[Астра]]) -> 0 | O136: =Таблица3[[#This Row],[Ст10]]+Таблица3[[#This Row],[Ст11]] -> 0 | P136: =SUMIFS($P$62:$P$116,$C$62:$C$116,Таблица3[[#This Row],[Шир]],$D$62:$D$116,Таблица3[[#This Row],[Дл]],$F$62:$F$116,Таблица3[[#This Row],[Астра]]) -> 0 | Q136: =SUMIFS($P$62:$P$116,$C$62:$C$116,"<"&Таблица3[[#This Row],[Шир]],$D$62:$D$116,Таблица3[[#This Row],[Дл]],$F$62:$F$116,Таблица3[[#This Row],[Астра]])+SUMIFS($P$62:$P$116,$C$62:$C$116,Таблица3[[#This Row],[Шир]],$D$62:$D$116,"<"&Таблица3[[#This Row],[Дл]],$F$62:$F$116,Таблица3[[#This Row],[Астра]])+SUMIFS($P$62:$P$116,$C$62:$C$116,"<"&Таблица3[[#This Row],[Шир]],$D$62:$D$116,"<"&Таблица3[[#This Row],[Дл]],$F$62:$F$116,Таблица3[[#This Row],[Астра]]) -> 0 | R136: =Таблица3[[#This Row],[Ст13]]+Таблица3[[#This Row],[Ст14]] -> 0 | S136: =SUMIFS($S$62:$S$116,$C$62:$C$116,Таблица3[[#This Row],[Шир]],$D$62:$D$116,Таблица3[[#This Row],[Дл]],$F$62:$F$116,Таблица3[[#This Row],[Астра]]) -> 0 | T136: =SUMIFS($S$62:$S$116,$C$62:$C$116,"<"&Таблица3[[#This Row],[Шир]],$D$62:$D$116,Таблица3[[#This Row],[Дл]],$F$62:$F$116,Таблица3[[#This Row],[Астра]])+SUMIFS($S$62:$S$116,$C$62:$C$116,Таблица3[[#This Row],[Шир]],$D$62:$D$116,"<"&Таблица3[[#This Row],[Дл]],$F$62:$F$116,Таблица3[[#This Row],[Астра]])+SUMIFS($S$62:$S$116,$C$62:$C$116,"<"&Таблица3[[#This Row],[Шир]],$D$62:$D$116,"<"&Таблица3[[#This Row],[Дл]],$F$62:$F$116,Таблица3[[#This Row],[Астра]]) -> 0 | U136: =Таблица3[[#This Row],[Ст16]]+Таблица3[[#This Row],[Ст17]] -> 0 | V136: =Таблица3[[#This Row],[Ст18]]+Таблица3[[#This Row],[Столбец32]] -> 0 | W136: =SUMIFS($V$62:$V$116,$C$62:$C$116,Таблица3[[#This Row],[Шир]],$D$62:$D$116,Таблица3[[#This Row],[Дл]],$F$62:$F$116,Таблица3[[#This Row],[Астра]]) -> 0 | X136: =SUMIFS($V$62:$V$116,$C$62:$C$116,"<"&Таблица3[[#This Row],[Шир]],$D$62:$D$116,Таблица3[[#This Row],[Дл]],$F$62:$F$116,Таблица3[[#This Row],[Астра]])+SUMIFS($V$62:$V$116,$C$62:$C$116,Таблица3[[#This Row],[Шир]],$D$62:$D$116,"<"&Таблица3[[#This Row],[Дл]],$F$62:$F$116,Таблица3[[#This Row],[Астра]])+SUMIFS($V$62:$V$116,$C$62:$C$116,"<"&Таблица3[[#This Row],[Шир]],$D$62:$D$116,"<"&Таблица3[[#This Row],[Дл]],$F$62:$F$116,Таблица3[[#This Row],[Астра]]) -> 0 | Y136: =Таблица3[[#This Row],[Ст19]]+Таблица3[[#This Row],[Ст20]] -> 0 | Z136: =Таблица3[[#This Row],[Ст21]]-Таблица3[[#This Row],[Столбец32]] -> 0 | AB136: Лист лазер, 6.0 мм, лт | AC136: Лист лазер | AD136: Лист | AE136: 7.874 | AF136: =SUBSTITUTE(Таблица3[[#This Row],[Толщ]],",",".") -> 6 | AG136: =SUMIFS($AA$8:$AA$57,$K$8:$K$57,Таблица3[[#This Row],[Столбец9]]) -> 0
A137: =IF(Таблица3[[#All],[Ст21]]=0,"z","") -> z | C137: 1250 | D137: 2500 | E137: 8 | G137: =SUMIFS($G$62:$G$116,$D$62:$D$116,Таблица3[[#This Row],[Дл]],$C$62:$C$116,Таблица3[[#This Row],[Шир]],$F$62:$F$116,Таблица3[[#This Row],[Астра]]) -> 0 | I137: =CONCATENATE(Таблица3[[#This Row],[Столбец29]]," ",Таблица3[[#This Row],[Толщ]]) -> Лист 8 | K137: =Таблица3[[#This Row],[Толщ]] -> 8 | M137: =SUMIFS($M$62:$M$116,$C$62:$C$116,Таблица3[[#This Row],[Шир]],$D$62:$D$116,Таблица3[[#This Row],[Дл]],$F$62:$F$116,Таблица3[[#This Row],[Астра]]) -> 0 | N137: =SUMIFS($M$62:$M$116,$C$62:$C$116,"<"&Таблица3[[#This Row],[Шир]],$D$62:$D$116,Таблица3[[#This Row],[Дл]],$F$62:$F$116,Таблица3[[#This Row],[Астра]])+SUMIFS($M$62:$M$116,$C$62:$C$116,Таблица3[[#This Row],[Шир]],$D$62:$D$116,"<"&Таблица3[[#This Row],[Дл]],$F$62:$F$116,Таблица3[[#This Row],[Астра]])+SUMIFS($M$62:$M$116,$C$62:$C$116,"<"&Таблица3[[#This Row],[Шир]],$D$62:$D$116,"<"&Таблица3[[#This Row],[Дл]],$F$62:$F$116,Таблица3[[#This Row],[Астра]]) -> 0 | O137: =Таблица3[[#This Row],[Ст10]]+Таблица3[[#This Row],[Ст11]] -> 0 | P137: =SUMIFS($P$62:$P$116,$C$62:$C$116,Таблица3[[#This Row],[Шир]],$D$62:$D$116,Таблица3[[#This Row],[Дл]],$F$62:$F$116,Таблица3[[#This Row],[Астра]]) -> 0 | Q137: =SUMIFS($P$62:$P$116,$C$62:$C$116,"<"&Таблица3[[#This Row],[Шир]],$D$62:$D$116,Таблица3[[#This Row],[Дл]],$F$62:$F$116,Таблица3[[#This Row],[Астра]])+SUMIFS($P$62:$P$116,$C$62:$C$116,Таблица3[[#This Row],[Шир]],$D$62:$D$116,"<"&Таблица3[[#This Row],[Дл]],$F$62:$F$116,Таблица3[[#This Row],[Астра]])+SUMIFS($P$62:$P$116,$C$62:$C$116,"<"&Таблица3[[#This Row],[Шир]],$D$62:$D$116,"<"&Таблица3[[#This Row],[Дл]],$F$62:$F$116,Таблица3[[#This Row],[Астра]]) -> 0 | R137: =Таблица3[[#This Row],[Ст13]]+Таблица3[[#This Row],[Ст14]] -> 0 | S137: =SUMIFS($S$62:$S$116,$C$62:$C$116,Таблица3[[#This Row],[Шир]],$D$62:$D$116,Таблица3[[#This Row],[Дл]],$F$62:$F$116,Таблица3[[#This Row],[Астра]]) -> 0 | T137: =SUMIFS($S$62:$S$116,$C$62:$C$116,"<"&Таблица3[[#This Row],[Шир]],$D$62:$D$116,Таблица3[[#This Row],[Дл]],$F$62:$F$116,Таблица3[[#This Row],[Астра]])+SUMIFS($S$62:$S$116,$C$62:$C$116,Таблица3[[#This Row],[Шир]],$D$62:$D$116,"<"&Таблица3[[#This Row],[Дл]],$F$62:$F$116,Таблица3[[#This Row],[Астра]])+SUMIFS($S$62:$S$116,$C$62:$C$116,"<"&Таблица3[[#This Row],[Шир]],$D$62:$D$116,"<"&Таблица3[[#This Row],[Дл]],$F$62:$F$116,Таблица3[[#This Row],[Астра]]) -> 0 | U137: =Таблица3[[#This Row],[Ст16]]+Таблица3[[#This Row],[Ст17]] -> 0 | V137: =Таблица3[[#This Row],[Ст18]]+Таблица3[[#This Row],[Столбец32]] -> 0 | W137: =SUMIFS($V$62:$V$116,$C$62:$C$116,Таблица3[[#This Row],[Шир]],$D$62:$D$116,Таблица3[[#This Row],[Дл]],$F$62:$F$116,Таблица3[[#This Row],[Астра]]) -> 0 | X137: =SUMIFS($V$62:$V$116,$C$62:$C$116,"<"&Таблица3[[#This Row],[Шир]],$D$62:$D$116,Таблица3[[#This Row],[Дл]],$F$62:$F$116,Таблица3[[#This Row],[Астра]])+SUMIFS($V$62:$V$116,$C$62:$C$116,Таблица3[[#This Row],[Шир]],$D$62:$D$116,"<"&Таблица3[[#This Row],[Дл]],$F$62:$F$116,Таблица3[[#This Row],[Астра]])+SUMIFS($V$62:$V$116,$C$62:$C$116,"<"&Таблица3[[#This Row],[Шир]],$D$62:$D$116,"<"&Таблица3[[#This Row],[Дл]],$F$62:$F$116,Таблица3[[#This Row],[Астра]]) -> 0 | Y137: =Таблица3[[#This Row],[Ст19]]+Таблица3[[#This Row],[Ст20]] -> 0 | Z137: =Таблица3[[#This Row],[Ст21]]-Таблица3[[#This Row],[Столбец32]] -> 0 | AB137: Лист лазер, 8.0 мм, лт | AC137: Лист лазер | AD137: Лист | AE137: 7.874 | AF137: =SUBSTITUTE(Таблица3[[#This Row],[Толщ]],",",".") -> 8 | AG137: =SUMIFS($AA$8:$AA$57,$K$8:$K$57,Таблица3[[#This Row],[Столбец9]]) -> 0
A138: =IF(Таблица3[[#All],[Ст21]]=0,"z","") -> z | C138: 1250 | D138: 2500 | E138: 1 | G138: =SUMIFS($G$62:$G$116,$D$62:$D$116,Таблица3[[#This Row],[Дл]],$C$62:$C$116,Таблица3[[#This Row],[Шир]],$F$62:$F$116,Таблица3[[#This Row],[Астра]]) -> 0 | I138: =CONCATENATE(Таблица3[[#This Row],[Столбец29]]," ",Таблица3[[#This Row],[Толщ]]) -> Лист НЖ AISI 304 1 | K138: =Таблица3[[#This Row],[Толщ]] -> 1 | M138: =SUMIFS($M$62:$M$116,$C$62:$C$116,Таблица3[[#This Row],[Шир]],$D$62:$D$116,Таблица3[[#This Row],[Дл]],$F$62:$F$116,Таблица3[[#This Row],[Астра]]) -> 0 | N138: =SUMIFS($M$62:$M$116,$C$62:$C$116,"<"&Таблица3[[#This Row],[Шир]],$D$62:$D$116,Таблица3[[#This Row],[Дл]],$F$62:$F$116,Таблица3[[#This Row],[Астра]])+SUMIFS($M$62:$M$116,$C$62:$C$116,Таблица3[[#This Row],[Шир]],$D$62:$D$116,"<"&Таблица3[[#This Row],[Дл]],$F$62:$F$116,Таблица3[[#This Row],[Астра]])+SUMIFS($M$62:$M$116,$C$62:$C$116,"<"&Таблица3[[#This Row],[Шир]],$D$62:$D$116,"<"&Таблица3[[#This Row],[Дл]],$F$62:$F$116,Таблица3[[#This Row],[Астра]]) -> 0 | O138: =Таблица3[[#This Row],[Ст10]]+Таблица3[[#This Row],[Ст11]] -> 0 | P138: =SUMIFS($P$62:$P$116,$C$62:$C$116,Таблица3[[#This Row],[Шир]],$D$62:$D$116,Таблица3[[#This Row],[Дл]],$F$62:$F$116,Таблица3[[#This Row],[Астра]]) -> 0 | Q138: =SUMIFS($P$62:$P$116,$C$62:$C$116,"<"&Таблица3[[#This Row],[Шир]],$D$62:$D$116,Таблица3[[#This Row],[Дл]],$F$62:$F$116,Таблица3[[#This Row],[Астра]])+SUMIFS($P$62:$P$116,$C$62:$C$116,Таблица3[[#This Row],[Шир]],$D$62:$D$116,"<"&Таблица3[[#This Row],[Дл]],$F$62:$F$116,Таблица3[[#This Row],[Астра]])+SUMIFS($P$62:$P$116,$C$62:$C$116,"<"&Таблица3[[#This Row],[Шир]],$D$62:$D$116,"<"&Таблица3[[#This Row],[Дл]],$F$62:$F$116,Таблица3[[#This Row],[Астра]]) -> 0 | R138: =Таблица3[[#This Row],[Ст13]]+Таблица3[[#This Row],[Ст14]] -> 0 | S138: =SUMIFS($S$62:$S$116,$C$62:$C$116,Таблица3[[#This Row],[Шир]],$D$62:$D$116,Таблица3[[#This Row],[Дл]],$F$62:$F$116,Таблица3[[#This Row],[Астра]]) -> 0 | T138: =SUMIFS($S$62:$S$116,$C$62:$C$116,"<"&Таблица3[[#This Row],[Шир]],$D$62:$D$116,Таблица3[[#This Row],[Дл]],$F$62:$F$116,Таблица3[[#This Row],[Астра]])+SUMIFS($S$62:$S$116,$C$62:$C$116,Таблица3[[#This Row],[Шир]],$D$62:$D$116,"<"&Таблица3[[#This Row],[Дл]],$F$62:$F$116,Таблица3[[#This Row],[Астра]])+SUMIFS($S$62:$S$116,$C$62:$C$116,"<"&Таблица3[[#This Row],[Шир]],$D$62:$D$116,"<"&Таблица3[[#This Row],[Дл]],$F$62:$F$116,Таблица3[[#This Row],[Астра]]) -> 0 | U138: =Таблица3[[#This Row],[Ст16]]+Таблица3[[#This Row],[Ст17]] -> 0 | V138: =Таблица3[[#This Row],[Ст18]]+Таблица3[[#This Row],[Столбец32]] -> 0 | W138: =SUMIFS($V$62:$V$116,$C$62:$C$116,Таблица3[[#This Row],[Шир]],$D$62:$D$116,Таблица3[[#This Row],[Дл]],$F$62:$F$116,Таблица3[[#This Row],[Астра]]) -> 0 | X138: =SUMIFS($V$62:$V$116,$C$62:$C$116,"<"&Таблица3[[#This Row],[Шир]],$D$62:$D$116,Таблица3[[#This Row],[Дл]],$F$62:$F$116,Таблица3[[#This Row],[Астра]])+SUMIFS($V$62:$V$116,$C$62:$C$116,Таблица3[[#This Row],[Шир]],$D$62:$D$116,"<"&Таблица3[[#This Row],[Дл]],$F$62:$F$116,Таблица3[[#This Row],[Астра]])+SUMIFS($V$62:$V$116,$C$62:$C$116,"<"&Таблица3[[#This Row],[Шир]],$D$62:$D$116,"<"&Таблица3[[#This Row],[Дл]],$F$62:$F$116,Таблица3[[#This Row],[Астра]]) -> 0 | Y138: =Таблица3[[#This Row],[Ст19]]+Таблица3[[#This Row],[Ст20]] -> 0 | Z138: =Таблица3[[#This Row],[Ст21]]-Таблица3[[#This Row],[Столбец32]] -> 0 | AB138: Лист НЖ AISI 304, 1.0 мм, лтнж | AC138: Лист НЖ AISI 304 | AD138: Лист НЖ AISI 304 | AE138: 7.874 | AF138: =SUBSTITUTE(Таблица3[[#This Row],[Толщ]],",",".") -> 1 | AG138: =SUMIFS($AA$8:$AA$57,$K$8:$K$57,Таблица3[[#This Row],[Столбец9]]) -> 0
A139: =IF(Таблица3[[#All],[Ст21]]=0,"z","") -> z | C139: 1250 | D139: 2500 | E139: 1.2 | G139: =SUMIFS($G$62:$G$116,$D$62:$D$116,Таблица3[[#This Row],[Дл]],$C$62:$C$116,Таблица3[[#This Row],[Шир]],$F$62:$F$116,Таблица3[[#This Row],[Астра]]) -> 0 | I139: =CONCATENATE(Таблица3[[#This Row],[Столбец29]]," ",Таблица3[[#This Row],[Толщ]]) -> Лист НЖ AISI 304 1,2 | K139: =Таблица3[[#This Row],[Толщ]] -> 1.2 | M139: =SUMIFS($M$62:$M$116,$C$62:$C$116,Таблица3[[#This Row],[Шир]],$D$62:$D$116,Таблица3[[#This Row],[Дл]],$F$62:$F$116,Таблица3[[#This Row],[Астра]]) -> 0 | N139: =SUMIFS($M$62:$M$116,$C$62:$C$116,"<"&Таблица3[[#This Row],[Шир]],$D$62:$D$116,Таблица3[[#This Row],[Дл]],$F$62:$F$116,Таблица3[[#This Row],[Астра]])+SUMIFS($M$62:$M$116,$C$62:$C$116,Таблица3[[#This Row],[Шир]],$D$62:$D$116,"<"&Таблица3[[#This Row],[Дл]],$F$62:$F$116,Таблица3[[#This Row],[Астра]])+SUMIFS($M$62:$M$116,$C$62:$C$116,"<"&Таблица3[[#This Row],[Шир]],$D$62:$D$116,"<"&Таблица3[[#This Row],[Дл]],$F$62:$F$116,Таблица3[[#This Row],[Астра]]) -> 0 | O139: =Таблица3[[#This Row],[Ст10]]+Таблица3[[#This Row],[Ст11]] -> 0 | P139: =SUMIFS($P$62:$P$116,$C$62:$C$116,Таблица3[[#This Row],[Шир]],$D$62:$D$116,Таблица3[[#This Row],[Дл]],$F$62:$F$116,Таблица3[[#This Row],[Астра]]) -> 0 | Q139: =SUMIFS($P$62:$P$116,$C$62:$C$116,"<"&Таблица3[[#This Row],[Шир]],$D$62:$D$116,Таблица3[[#This Row],[Дл]],$F$62:$F$116,Таблица3[[#This Row],[Астра]])+SUMIFS($P$62:$P$116,$C$62:$C$116,Таблица3[[#This Row],[Шир]],$D$62:$D$116,"<"&Таблица3[[#This Row],[Дл]],$F$62:$F$116,Таблица3[[#This Row],[Астра]])+SUMIFS($P$62:$P$116,$C$62:$C$116,"<"&Таблица3[[#This Row],[Шир]],$D$62:$D$116,"<"&Таблица3[[#This Row],[Дл]],$F$62:$F$116,Таблица3[[#This Row],[Астра]]) -> 0 | R139: =Таблица3[[#This Row],[Ст13]]+Таблица3[[#This Row],[Ст14]] -> 0 | S139: =SUMIFS($S$62:$S$116,$C$62:$C$116,Таблица3[[#This Row],[Шир]],$D$62:$D$116,Таблица3[[#This Row],[Дл]],$F$62:$F$116,Таблица3[[#This Row],[Астра]]) -> 0 | T139: =SUMIFS($S$62:$S$116,$C$62:$C$116,"<"&Таблица3[[#This Row],[Шир]],$D$62:$D$116,Таблица3[[#This Row],[Дл]],$F$62:$F$116,Таблица3[[#This Row],[Астра]])+SUMIFS($S$62:$S$116,$C$62:$C$116,Таблица3[[#This Row],[Шир]],$D$62:$D$116,"<"&Таблица3[[#This Row],[Дл]],$F$62:$F$116,Таблица3[[#This Row],[Астра]])+SUMIFS($S$62:$S$116,$C$62:$C$116,"<"&Таблица3[[#This Row],[Шир]],$D$62:$D$116,"<"&Таблица3[[#This Row],[Дл]],$F$62:$F$116,Таблица3[[#This Row],[Астра]]) -> 0 | U139: =Таблица3[[#This Row],[Ст16]]+Таблица3[[#This Row],[Ст17]] -> 0 | V139: =Таблица3[[#This Row],[Ст18]]+Таблица3[[#This Row],[Столбец32]] -> 0 | W139: =SUMIFS($V$62:$V$116,$C$62:$C$116,Таблица3[[#This Row],[Шир]],$D$62:$D$116,Таблица3[[#This Row],[Дл]],$F$62:$F$116,Таблица3[[#This Row],[Астра]]) -> 0 | X139: =SUMIFS($V$62:$V$116,$C$62:$C$116,"<"&Таблица3[[#This Row],[Шир]],$D$62:$D$116,Таблица3[[#This Row],[Дл]],$F$62:$F$116,Таблица3[[#This Row],[Астра]])+SUMIFS($V$62:$V$116,$C$62:$C$116,Таблица3[[#This Row],[Шир]],$D$62:$D$116,"<"&Таблица3[[#This Row],[Дл]],$F$62:$F$116,Таблица3[[#This Row],[Астра]])+SUMIFS($V$62:$V$116,$C$62:$C$116,"<"&Таблица3[[#This Row],[Шир]],$D$62:$D$116,"<"&Таблица3[[#This Row],[Дл]],$F$62:$F$116,Таблица3[[#This Row],[Астра]]) -> 0 | Y139: =Таблица3[[#This Row],[Ст19]]+Таблица3[[#This Row],[Ст20]] -> 0 | Z139: =Таблица3[[#This Row],[Ст21]]-Таблица3[[#This Row],[Столбец32]] -> 0 | AB139: Лист НЖ AISI 304, 1.2 мм, лтнж | AC139: Лист НЖ AISI 304 | AD139: Лист НЖ AISI 304 | AE139: 7.874 | AF139: =SUBSTITUTE(Таблица3[[#This Row],[Толщ]],",",".") -> 1.2 | AG139: =SUMIFS($AA$8:$AA$57,$K$8:$K$57,Таблица3[[#This Row],[Столбец9]]) -> 0
A140: =IF(Таблица3[[#All],[Ст21]]=0,"z","") -> z | C140: 1250 | D140: 2500 | E140: 1.5 | G140: =SUMIFS($G$62:$G$116,$D$62:$D$116,Таблица3[[#This Row],[Дл]],$C$62:$C$116,Таблица3[[#This Row],[Шир]],$F$62:$F$116,Таблица3[[#This Row],[Астра]]) -> 0 | I140: =CONCATENATE(Таблица3[[#This Row],[Столбец29]]," ",Таблица3[[#This Row],[Толщ]]) -> Лист НЖ AISI 304 1,5 | K140: =Таблица3[[#This Row],[Толщ]] -> 1.5 | M140: =SUMIFS($M$62:$M$116,$C$62:$C$116,Таблица3[[#This Row],[Шир]],$D$62:$D$116,Таблица3[[#This Row],[Дл]],$F$62:$F$116,Таблица3[[#This Row],[Астра]]) -> 0 | N140: =SUMIFS($M$62:$M$116,$C$62:$C$116,"<"&Таблица3[[#This Row],[Шир]],$D$62:$D$116,Таблица3[[#This Row],[Дл]],$F$62:$F$116,Таблица3[[#This Row],[Астра]])+SUMIFS($M$62:$M$116,$C$62:$C$116,Таблица3[[#This Row],[Шир]],$D$62:$D$116,"<"&Таблица3[[#This Row],[Дл]],$F$62:$F$116,Таблица3[[#This Row],[Астра]])+SUMIFS($M$62:$M$116,$C$62:$C$116,"<"&Таблица3[[#This Row],[Шир]],$D$62:$D$116,"<"&Таблица3[[#This Row],[Дл]],$F$62:$F$116,Таблица3[[#This Row],[Астра]]) -> 0 | O140: =Таблица3[[#This Row],[Ст10]]+Таблица3[[#This Row],[Ст11]] -> 0 | P140: =SUMIFS($P$62:$P$116,$C$62:$C$116,Таблица3[[#This Row],[Шир]],$D$62:$D$116,Таблица3[[#This Row],[Дл]],$F$62:$F$116,Таблица3[[#This Row],[Астра]]) -> 0 | Q140: =SUMIFS($P$62:$P$116,$C$62:$C$116,"<"&Таблица3[[#This Row],[Шир]],$D$62:$D$116,Таблица3[[#This Row],[Дл]],$F$62:$F$116,Таблица3[[#This Row],[Астра]])+SUMIFS($P$62:$P$116,$C$62:$C$116,Таблица3[[#This Row],[Шир]],$D$62:$D$116,"<"&Таблица3[[#This Row],[Дл]],$F$62:$F$116,Таблица3[[#This Row],[Астра]])+SUMIFS($P$62:$P$116,$C$62:$C$116,"<"&Таблица3[[#This Row],[Шир]],$D$62:$D$116,"<"&Таблица3[[#This Row],[Дл]],$F$62:$F$116,Таблица3[[#This Row],[Астра]]) -> 0 | R140: =Таблица3[[#This Row],[Ст13]]+Таблица3[[#This Row],[Ст14]] -> 0 | S140: =SUMIFS($S$62:$S$116,$C$62:$C$116,Таблица3[[#This Row],[Шир]],$D$62:$D$116,Таблица3[[#This Row],[Дл]],$F$62:$F$116,Таблица3[[#This Row],[Астра]]) -> 0 | T140: =SUMIFS($S$62:$S$116,$C$62:$C$116,"<"&Таблица3[[#This Row],[Шир]],$D$62:$D$116,Таблица3[[#This Row],[Дл]],$F$62:$F$116,Таблица3[[#This Row],[Астра]])+SUMIFS($S$62:$S$116,$C$62:$C$116,Таблица3[[#This Row],[Шир]],$D$62:$D$116,"<"&Таблица3[[#This Row],[Дл]],$F$62:$F$116,Таблица3[[#This Row],[Астра]])+SUMIFS($S$62:$S$116,$C$62:$C$116,"<"&Таблица3[[#This Row],[Шир]],$D$62:$D$116,"<"&Таблица3[[#This Row],[Дл]],$F$62:$F$116,Таблица3[[#This Row],[Астра]]) -> 0 | U140: =Таблица3[[#This Row],[Ст16]]+Таблица3[[#This Row],[Ст17]] -> 0 | V140: =Таблица3[[#This Row],[Ст18]]+Таблица3[[#This Row],[Столбец32]] -> 0 | W140: =SUMIFS($V$62:$V$116,$C$62:$C$116,Таблица3[[#This Row],[Шир]],$D$62:$D$116,Таблица3[[#This Row],[Дл]],$F$62:$F$116,Таблица3[[#This Row],[Астра]]) -> 0 | X140: =SUMIFS($V$62:$V$116,$C$62:$C$116,"<"&Таблица3[[#This Row],[Шир]],$D$62:$D$116,Таблица3[[#This Row],[Дл]],$F$62:$F$116,Таблица3[[#This Row],[Астра]])+SUMIFS($V$62:$V$116,$C$62:$C$116,Таблица3[[#This Row],[Шир]],$D$62:$D$116,"<"&Таблица3[[#This Row],[Дл]],$F$62:$F$116,Таблица3[[#This Row],[Астра]])+SUMIFS($V$62:$V$116,$C$62:$C$116,"<"&Таблица3[[#This Row],[Шир]],$D$62:$D$116,"<"&Таблица3[[#This Row],[Дл]],$F$62:$F$116,Таблица3[[#This Row],[Астра]]) -> 0 | Y140: =Таблица3[[#This Row],[Ст19]]+Таблица3[[#This Row],[Ст20]] -> 0 | Z140: =Таблица3[[#This Row],[Ст21]]-Таблица3[[#This Row],[Столбец32]] -> 0 | AB140: Лист НЖ AISI 304, 1.5 мм, лтнж | AC140: Лист НЖ AISI 304 | AD140: Лист НЖ AISI 304 | AE140: 7.874 | AF140: =SUBSTITUTE(Таблица3[[#This Row],[Толщ]],",",".") -> 1.5 | AG140: =SUMIFS($AA$8:$AA$57,$K$8:$K$57,Таблица3[[#This Row],[Столбец9]]) -> 0
A141: =IF(Таблица3[[#All],[Ст21]]=0,"z","") -> z | C141: 1250 | D141: 2500 | E141: 2 | G141: =SUMIFS($G$62:$G$116,$D$62:$D$116,Таблица3[[#This Row],[Дл]],$C$62:$C$116,Таблица3[[#This Row],[Шир]],$F$62:$F$116,Таблица3[[#This Row],[Астра]]) -> 0 | I141: =CONCATENATE(Таблица3[[#This Row],[Столбец29]]," ",Таблица3[[#This Row],[Толщ]]) -> Лист НЖ AISI 304 2 | K141: =Таблица3[[#This Row],[Толщ]] -> 2 | M141: =SUMIFS($M$62:$M$116,$C$62:$C$116,Таблица3[[#This Row],[Шир]],$D$62:$D$116,Таблица3[[#This Row],[Дл]],$F$62:$F$116,Таблица3[[#This Row],[Астра]]) -> 0 | N141: =SUMIFS($M$62:$M$116,$C$62:$C$116,"<"&Таблица3[[#This Row],[Шир]],$D$62:$D$116,Таблица3[[#This Row],[Дл]],$F$62:$F$116,Таблица3[[#This Row],[Астра]])+SUMIFS($M$62:$M$116,$C$62:$C$116,Таблица3[[#This Row],[Шир]],$D$62:$D$116,"<"&Таблица3[[#This Row],[Дл]],$F$62:$F$116,Таблица3[[#This Row],[Астра]])+SUMIFS($M$62:$M$116,$C$62:$C$116,"<"&Таблица3[[#This Row],[Шир]],$D$62:$D$116,"<"&Таблица3[[#This Row],[Дл]],$F$62:$F$116,Таблица3[[#This Row],[Астра]]) -> 0 | O141: =Таблица3[[#This Row],[Ст10]]+Таблица3[[#This Row],[Ст11]] -> 0 | P141: =SUMIFS($P$62:$P$116,$C$62:$C$116,Таблица3[[#This Row],[Шир]],$D$62:$D$116,Таблица3[[#This Row],[Дл]],$F$62:$F$116,Таблица3[[#This Row],[Астра]]) -> 0 | Q141: =SUMIFS($P$62:$P$116,$C$62:$C$116,"<"&Таблица3[[#This Row],[Шир]],$D$62:$D$116,Таблица3[[#This Row],[Дл]],$F$62:$F$116,Таблица3[[#This Row],[Астра]])+SUMIFS($P$62:$P$116,$C$62:$C$116,Таблица3[[#This Row],[Шир]],$D$62:$D$116,"<"&Таблица3[[#This Row],[Дл]],$F$62:$F$116,Таблица3[[#This Row],[Астра]])+SUMIFS($P$62:$P$116,$C$62:$C$116,"<"&Таблица3[[#This Row],[Шир]],$D$62:$D$116,"<"&Таблица3[[#This Row],[Дл]],$F$62:$F$116,Таблица3[[#This Row],[Астра]]) -> 0 | R141: =Таблица3[[#This Row],[Ст13]]+Таблица3[[#This Row],[Ст14]] -> 0 | S141: =SUMIFS($S$62:$S$116,$C$62:$C$116,Таблица3[[#This Row],[Шир]],$D$62:$D$116,Таблица3[[#This Row],[Дл]],$F$62:$F$116,Таблица3[[#This Row],[Астра]]) -> 0 | T141: =SUMIFS($S$62:$S$116,$C$62:$C$116,"<"&Таблица3[[#This Row],[Шир]],$D$62:$D$116,Таблица3[[#This Row],[Дл]],$F$62:$F$116,Таблица3[[#This Row],[Астра]])+SUMIFS($S$62:$S$116,$C$62:$C$116,Таблица3[[#This Row],[Шир]],$D$62:$D$116,"<"&Таблица3[[#This Row],[Дл]],$F$62:$F$116,Таблица3[[#This Row],[Астра]])+SUMIFS($S$62:$S$116,$C$62:$C$116,"<"&Таблица3[[#This Row],[Шир]],$D$62:$D$116,"<"&Таблица3[[#This Row],[Дл]],$F$62:$F$116,Таблица3[[#This Row],[Астра]]) -> 0 | U141: =Таблица3[[#This Row],[Ст16]]+Таблица3[[#This Row],[Ст17]] -> 0 | V141: =Таблица3[[#This Row],[Ст18]]+Таблица3[[#This Row],[Столбец32]] -> 0 | W141: =SUMIFS($V$62:$V$116,$C$62:$C$116,Таблица3[[#This Row],[Шир]],$D$62:$D$116,Таблица3[[#This Row],[Дл]],$F$62:$F$116,Таблица3[[#This Row],[Астра]]) -> 0 | X141: =SUMIFS($V$62:$V$116,$C$62:$C$116,"<"&Таблица3[[#This Row],[Шир]],$D$62:$D$116,Таблица3[[#This Row],[Дл]],$F$62:$F$116,Таблица3[[#This Row],[Астра]])+SUMIFS($V$62:$V$116,$C$62:$C$116,Таблица3[[#This Row],[Шир]],$D$62:$D$116,"<"&Таблица3[[#This Row],[Дл]],$F$62:$F$116,Таблица3[[#This Row],[Астра]])+SUMIFS($V$62:$V$116,$C$62:$C$116,"<"&Таблица3[[#This Row],[Шир]],$D$62:$D$116,"<"&Таблица3[[#This Row],[Дл]],$F$62:$F$116,Таблица3[[#This Row],[Астра]]) -> 0 | Y141: =Таблица3[[#This Row],[Ст19]]+Таблица3[[#This Row],[Ст20]] -> 0 | Z141: =Таблица3[[#This Row],[Ст21]]-Таблица3[[#This Row],[Столбец32]] -> 0 | AB141: Лист НЖ AISI 304, 2.0 мм, лтнж | AC141: Лист НЖ AISI 304 | AD141: Лист НЖ AISI 304 | AE141: 7.874 | AF141: =SUBSTITUTE(Таблица3[[#This Row],[Толщ]],",",".") -> 2 | AG141: =SUMIFS($AA$8:$AA$57,$K$8:$K$57,Таблица3[[#This Row],[Столбец9]]) -> 0
A142: =IF(Таблица3[[#All],[Ст21]]=0,"z","") -> z | C142: 1250 | D142: 2500 | E142: 3 | G142: =SUMIFS($G$62:$G$116,$D$62:$D$116,Таблица3[[#This Row],[Дл]],$C$62:$C$116,Таблица3[[#This Row],[Шир]],$F$62:$F$116,Таблица3[[#This Row],[Астра]]) -> 0 | I142: =CONCATENATE(Таблица3[[#This Row],[Столбец29]]," ",Таблица3[[#This Row],[Толщ]]) -> Лист НЖ AISI 304 3 | K142: =Таблица3[[#This Row],[Толщ]] -> 3 | M142: =SUMIFS($M$62:$M$116,$C$62:$C$116,Таблица3[[#This Row],[Шир]],$D$62:$D$116,Таблица3[[#This Row],[Дл]],$F$62:$F$116,Таблица3[[#This Row],[Астра]]) -> 0 | N142: =SUMIFS($M$62:$M$116,$C$62:$C$116,"<"&Таблица3[[#This Row],[Шир]],$D$62:$D$116,Таблица3[[#This Row],[Дл]],$F$62:$F$116,Таблица3[[#This Row],[Астра]])+SUMIFS($M$62:$M$116,$C$62:$C$116,Таблица3[[#This Row],[Шир]],$D$62:$D$116,"<"&Таблица3[[#This Row],[Дл]],$F$62:$F$116,Таблица3[[#This Row],[Астра]])+SUMIFS($M$62:$M$116,$C$62:$C$116,"<"&Таблица3[[#This Row],[Шир]],$D$62:$D$116,"<"&Таблица3[[#This Row],[Дл]],$F$62:$F$116,Таблица3[[#This Row],[Астра]]) -> 0 | O142: =Таблица3[[#This Row],[Ст10]]+Таблица3[[#This Row],[Ст11]] -> 0 | P142: =SUMIFS($P$62:$P$116,$C$62:$C$116,Таблица3[[#This Row],[Шир]],$D$62:$D$116,Таблица3[[#This Row],[Дл]],$F$62:$F$116,Таблица3[[#This Row],[Астра]]) -> 0 | Q142: =SUMIFS($P$62:$P$116,$C$62:$C$116,"<"&Таблица3[[#This Row],[Шир]],$D$62:$D$116,Таблица3[[#This Row],[Дл]],$F$62:$F$116,Таблица3[[#This Row],[Астра]])+SUMIFS($P$62:$P$116,$C$62:$C$116,Таблица3[[#This Row],[Шир]],$D$62:$D$116,"<"&Таблица3[[#This Row],[Дл]],$F$62:$F$116,Таблица3[[#This Row],[Астра]])+SUMIFS($P$62:$P$116,$C$62:$C$116,"<"&Таблица3[[#This Row],[Шир]],$D$62:$D$116,"<"&Таблица3[[#This Row],[Дл]],$F$62:$F$116,Таблица3[[#This Row],[Астра]]) -> 0 | R142: =Таблица3[[#This Row],[Ст13]]+Таблица3[[#This Row],[Ст14]] -> 0 | S142: =SUMIFS($S$62:$S$116,$C$62:$C$116,Таблица3[[#This Row],[Шир]],$D$62:$D$116,Таблица3[[#This Row],[Дл]],$F$62:$F$116,Таблица3[[#This Row],[Астра]]) -> 0 | T142: =SUMIFS($S$62:$S$116,$C$62:$C$116,"<"&Таблица3[[#This Row],[Шир]],$D$62:$D$116,Таблица3[[#This Row],[Дл]],$F$62:$F$116,Таблица3[[#This Row],[Астра]])+SUMIFS($S$62:$S$116,$C$62:$C$116,Таблица3[[#This Row],[Шир]],$D$62:$D$116,"<"&Таблица3[[#This Row],[Дл]],$F$62:$F$116,Таблица3[[#This Row],[Астра]])+SUMIFS($S$62:$S$116,$C$62:$C$116,"<"&Таблица3[[#This Row],[Шир]],$D$62:$D$116,"<"&Таблица3[[#This Row],[Дл]],$F$62:$F$116,Таблица3[[#This Row],[Астра]]) -> 0 | U142: =Таблица3[[#This Row],[Ст16]]+Таблица3[[#This Row],[Ст17]] -> 0 | V142: =Таблица3[[#This Row],[Ст18]]+Таблица3[[#This Row],[Столбец32]] -> 0 | W142: =SUMIFS($V$62:$V$116,$C$62:$C$116,Таблица3[[#This Row],[Шир]],$D$62:$D$116,Таблица3[[#This Row],[Дл]],$F$62:$F$116,Таблица3[[#This Row],[Астра]]) -> 0 | X142: =SUMIFS($V$62:$V$116,$C$62:$C$116,"<"&Таблица3[[#This Row],[Шир]],$D$62:$D$116,Таблица3[[#This Row],[Дл]],$F$62:$F$116,Таблица3[[#This Row],[Астра]])+SUMIFS($V$62:$V$116,$C$62:$C$116,Таблица3[[#This Row],[Шир]],$D$62:$D$116,"<"&Таблица3[[#This Row],[Дл]],$F$62:$F$116,Таблица3[[#This Row],[Астра]])+SUMIFS($V$62:$V$116,$C$62:$C$116,"<"&Таблица3[[#This Row],[Шир]],$D$62:$D$116,"<"&Таблица3[[#This Row],[Дл]],$F$62:$F$116,Таблица3[[#This Row],[Астра]]) -> 0 | Y142: =Таблица3[[#This Row],[Ст19]]+Таблица3[[#This Row],[Ст20]] -> 0 | Z142: =Таблица3[[#This Row],[Ст21]]-Таблица3[[#This Row],[Столбец32]] -> 0 | AB142: Лист НЖ AISI 304, 3.0 мм, лтнж | AC142: Лист НЖ AISI 304 | AD142: Лист НЖ AISI 304 | AE142: 7.874 | AF142: =SUBSTITUTE(Таблица3[[#This Row],[Толщ]],",",".") -> 3 | AG142: =SUMIFS($AA$8:$AA$57,$K$8:$K$57,Таблица3[[#This Row],[Столбец9]]) -> 0
A143: =IF(Таблица3[[#All],[Ст21]]=0,"z","") -> z | C143: 1250 | D143: 2500 | E143: 0.8 | G143: =SUMIFS($G$62:$G$116,$D$62:$D$116,Таблица3[[#This Row],[Дл]],$C$62:$C$116,Таблица3[[#This Row],[Шир]],$F$62:$F$116,Таблица3[[#This Row],[Астра]]) -> 0 | I143: =CONCATENATE(Таблица3[[#This Row],[Столбец29]]," ",Таблица3[[#This Row],[Толщ]]) -> Лист ОЦ 0,8 | K143: =Таблица3[[#This Row],[Толщ]] -> 0.8 | M143: =SUMIFS($M$62:$M$116,$C$62:$C$116,Таблица3[[#This Row],[Шир]],$D$62:$D$116,Таблица3[[#This Row],[Дл]],$F$62:$F$116,Таблица3[[#This Row],[Астра]]) -> 0 | N143: =SUMIFS($M$62:$M$116,$C$62:$C$116,"<"&Таблица3[[#This Row],[Шир]],$D$62:$D$116,Таблица3[[#This Row],[Дл]],$F$62:$F$116,Таблица3[[#This Row],[Астра]])+SUMIFS($M$62:$M$116,$C$62:$C$116,Таблица3[[#This Row],[Шир]],$D$62:$D$116,"<"&Таблица3[[#This Row],[Дл]],$F$62:$F$116,Таблица3[[#This Row],[Астра]])+SUMIFS($M$62:$M$116,$C$62:$C$116,"<"&Таблица3[[#This Row],[Шир]],$D$62:$D$116,"<"&Таблица3[[#This Row],[Дл]],$F$62:$F$116,Таблица3[[#This Row],[Астра]]) -> 0 | O143: =Таблица3[[#This Row],[Ст10]]+Таблица3[[#This Row],[Ст11]] -> 0 | P143: =SUMIFS($P$62:$P$116,$C$62:$C$116,Таблица3[[#This Row],[Шир]],$D$62:$D$116,Таблица3[[#This Row],[Дл]],$F$62:$F$116,Таблица3[[#This Row],[Астра]]) -> 0 | Q143: =SUMIFS($P$62:$P$116,$C$62:$C$116,"<"&Таблица3[[#This Row],[Шир]],$D$62:$D$116,Таблица3[[#This Row],[Дл]],$F$62:$F$116,Таблица3[[#This Row],[Астра]])+SUMIFS($P$62:$P$116,$C$62:$C$116,Таблица3[[#This Row],[Шир]],$D$62:$D$116,"<"&Таблица3[[#This Row],[Дл]],$F$62:$F$116,Таблица3[[#This Row],[Астра]])+SUMIFS($P$62:$P$116,$C$62:$C$116,"<"&Таблица3[[#This Row],[Шир]],$D$62:$D$116,"<"&Таблица3[[#This Row],[Дл]],$F$62:$F$116,Таблица3[[#This Row],[Астра]]) -> 0 | R143: =Таблица3[[#This Row],[Ст13]]+Таблица3[[#This Row],[Ст14]] -> 0 | S143: =SUMIFS($S$62:$S$116,$C$62:$C$116,Таблица3[[#This Row],[Шир]],$D$62:$D$116,Таблица3[[#This Row],[Дл]],$F$62:$F$116,Таблица3[[#This Row],[Астра]]) -> 0 | T143: =SUMIFS($S$62:$S$116,$C$62:$C$116,"<"&Таблица3[[#This Row],[Шир]],$D$62:$D$116,Таблица3[[#This Row],[Дл]],$F$62:$F$116,Таблица3[[#This Row],[Астра]])+SUMIFS($S$62:$S$116,$C$62:$C$116,Таблица3[[#This Row],[Шир]],$D$62:$D$116,"<"&Таблица3[[#This Row],[Дл]],$F$62:$F$116,Таблица3[[#This Row],[Астра]])+SUMIFS($S$62:$S$116,$C$62:$C$116,"<"&Таблица3[[#This Row],[Шир]],$D$62:$D$116,"<"&Таблица3[[#This Row],[Дл]],$F$62:$F$116,Таблица3[[#This Row],[Астра]]) -> 0 | U143: =Таблица3[[#This Row],[Ст16]]+Таблица3[[#This Row],[Ст17]] -> 0 | V143: =Таблица3[[#This Row],[Ст18]]+Таблица3[[#This Row],[Столбец32]] -> 0 | W143: =SUMIFS($V$62:$V$116,$C$62:$C$116,Таблица3[[#This Row],[Шир]],$D$62:$D$116,Таблица3[[#This Row],[Дл]],$F$62:$F$116,Таблица3[[#This Row],[Астра]]) -> 0 | X143: =SUMIFS($V$62:$V$116,$C$62:$C$116,"<"&Таблица3[[#This Row],[Шир]],$D$62:$D$116,Таблица3[[#This Row],[Дл]],$F$62:$F$116,Таблица3[[#This Row],[Астра]])+SUMIFS($V$62:$V$116,$C$62:$C$116,Таблица3[[#This Row],[Шир]],$D$62:$D$116,"<"&Таблица3[[#This Row],[Дл]],$F$62:$F$116,Таблица3[[#This Row],[Астра]])+SUMIFS($V$62:$V$116,$C$62:$C$116,"<"&Таблица3[[#This Row],[Шир]],$D$62:$D$116,"<"&Таблица3[[#This Row],[Дл]],$F$62:$F$116,Таблица3[[#This Row],[Астра]]) -> 0 | Y143: =Таблица3[[#This Row],[Ст19]]+Таблица3[[#This Row],[Ст20]] -> 0 | Z143: =Таблица3[[#This Row],[Ст21]]-Таблица3[[#This Row],[Столбец32]] -> 0 | AB143: Лист ОЦ, 0.8 мм, лтоц | AC143: Лист ОЦ | AD143: Лист ОЦ | AE143: 7.874 | AF143: =SUBSTITUTE(Таблица3[[#This Row],[Толщ]],",",".") -> 0.8 | AG143: =SUMIFS($AA$8:$AA$57,$K$8:$K$57,Таблица3[[#This Row],[Столбец9]]) -> 0
A144: =IF(Таблица3[[#All],[Ст21]]=0,"z","") -> z | C144: 1000 | D144: 2000 | E144: 1 | G144: =SUMIFS($G$62:$G$116,$D$62:$D$116,Таблица3[[#This Row],[Дл]],$C$62:$C$116,Таблица3[[#This Row],[Шир]],$F$62:$F$116,Таблица3[[#This Row],[Астра]]) -> 0 | I144: =CONCATENATE(Таблица3[[#This Row],[Столбец29]]," ",Таблица3[[#This Row],[Толщ]]) -> Лист ОЦ 1 | K144: =Таблица3[[#This Row],[Толщ]] -> 1 | M144: =SUMIFS($M$62:$M$116,$C$62:$C$116,Таблица3[[#This Row],[Шир]],$D$62:$D$116,Таблица3[[#This Row],[Дл]],$F$62:$F$116,Таблица3[[#This Row],[Астра]]) -> 0 | N144: =SUMIFS($M$62:$M$116,$C$62:$C$116,"<"&Таблица3[[#This Row],[Шир]],$D$62:$D$116,Таблица3[[#This Row],[Дл]],$F$62:$F$116,Таблица3[[#This Row],[Астра]])+SUMIFS($M$62:$M$116,$C$62:$C$116,Таблица3[[#This Row],[Шир]],$D$62:$D$116,"<"&Таблица3[[#This Row],[Дл]],$F$62:$F$116,Таблица3[[#This Row],[Астра]])+SUMIFS($M$62:$M$116,$C$62:$C$116,"<"&Таблица3[[#This Row],[Шир]],$D$62:$D$116,"<"&Таблица3[[#This Row],[Дл]],$F$62:$F$116,Таблица3[[#This Row],[Астра]]) -> 0 | O144: =Таблица3[[#This Row],[Ст10]]+Таблица3[[#This Row],[Ст11]] -> 0 | P144: =SUMIFS($P$62:$P$116,$C$62:$C$116,Таблица3[[#This Row],[Шир]],$D$62:$D$116,Таблица3[[#This Row],[Дл]],$F$62:$F$116,Таблица3[[#This Row],[Астра]]) -> 0 | Q144: =SUMIFS($P$62:$P$116,$C$62:$C$116,"<"&Таблица3[[#This Row],[Шир]],$D$62:$D$116,Таблица3[[#This Row],[Дл]],$F$62:$F$116,Таблица3[[#This Row],[Астра]])+SUMIFS($P$62:$P$116,$C$62:$C$116,Таблица3[[#This Row],[Шир]],$D$62:$D$116,"<"&Таблица3[[#This Row],[Дл]],$F$62:$F$116,Таблица3[[#This Row],[Астра]])+SUMIFS($P$62:$P$116,$C$62:$C$116,"<"&Таблица3[[#This Row],[Шир]],$D$62:$D$116,"<"&Таблица3[[#This Row],[Дл]],$F$62:$F$116,Таблица3[[#This Row],[Астра]]) -> 0 | R144: =Таблица3[[#This Row],[Ст13]]+Таблица3[[#This Row],[Ст14]] -> 0 | S144: =SUMIFS($S$62:$S$116,$C$62:$C$116,Таблица3[[#This Row],[Шир]],$D$62:$D$116,Таблица3[[#This Row],[Дл]],$F$62:$F$116,Таблица3[[#This Row],[Астра]]) -> 0 | T144: =SUMIFS($S$62:$S$116,$C$62:$C$116,"<"&Таблица3[[#This Row],[Шир]],$D$62:$D$116,Таблица3[[#This Row],[Дл]],$F$62:$F$116,Таблица3[[#This Row],[Астра]])+SUMIFS($S$62:$S$116,$C$62:$C$116,Таблица3[[#This Row],[Шир]],$D$62:$D$116,"<"&Таблица3[[#This Row],[Дл]],$F$62:$F$116,Таблица3[[#This Row],[Астра]])+SUMIFS($S$62:$S$116,$C$62:$C$116,"<"&Таблица3[[#This Row],[Шир]],$D$62:$D$116,"<"&Таблица3[[#This Row],[Дл]],$F$62:$F$116,Таблица3[[#This Row],[Астра]]) -> 0 | U144: =Таблица3[[#This Row],[Ст16]]+Таблица3[[#This Row],[Ст17]] -> 0 | V144: =Таблица3[[#This Row],[Ст18]]+Таблица3[[#This Row],[Столбец32]] -> 0 | W144: =SUMIFS($V$62:$V$116,$C$62:$C$116,Таблица3[[#This Row],[Шир]],$D$62:$D$116,Таблица3[[#This Row],[Дл]],$F$62:$F$116,Таблица3[[#This Row],[Астра]]) -> 0 | X144: =SUMIFS($V$62:$V$116,$C$62:$C$116,"<"&Таблица3[[#This Row],[Шир]],$D$62:$D$116,Таблица3[[#This Row],[Дл]],$F$62:$F$116,Таблица3[[#This Row],[Астра]])+SUMIFS($V$62:$V$116,$C$62:$C$116,Таблица3[[#This Row],[Шир]],$D$62:$D$116,"<"&Таблица3[[#This Row],[Дл]],$F$62:$F$116,Таблица3[[#This Row],[Астра]])+SUMIFS($V$62:$V$116,$C$62:$C$116,"<"&Таблица3[[#This Row],[Шир]],$D$62:$D$116,"<"&Таблица3[[#This Row],[Дл]],$F$62:$F$116,Таблица3[[#This Row],[Астра]]) -> 0 | Y144: =Таблица3[[#This Row],[Ст19]]+Таблица3[[#This Row],[Ст20]] -> 0 | Z144: =Таблица3[[#This Row],[Ст21]]-Таблица3[[#This Row],[Столбец32]] -> 0 | AB144: Лист ОЦ, 1.0 мм, лтоц | AC144: Лист ОЦ | AD144: Лист ОЦ | AE144: 7.874 | AF144: =SUBSTITUTE(Таблица3[[#This Row],[Толщ]],",",".") -> 1 | AG144: =SUMIFS($AA$8:$AA$57,$K$8:$K$57,Таблица3[[#This Row],[Столбец9]]) -> 0
A145: =IF(Таблица3[[#All],[Ст21]]=0,"z","") -> z | C145: 1000 | D145: 2000 | E145: 1.5 | G145: =SUMIFS($G$62:$G$116,$D$62:$D$116,Таблица3[[#This Row],[Дл]],$C$62:$C$116,Таблица3[[#This Row],[Шир]],$F$62:$F$116,Таблица3[[#This Row],[Астра]]) -> 0 | I145: =CONCATENATE(Таблица3[[#This Row],[Столбец29]]," ",Таблица3[[#This Row],[Толщ]]) -> Лист ОЦ 1,5 | K145: =Таблица3[[#This Row],[Толщ]] -> 1.5 | M145: =SUMIFS($M$62:$M$116,$C$62:$C$116,Таблица3[[#This Row],[Шир]],$D$62:$D$116,Таблица3[[#This Row],[Дл]],$F$62:$F$116,Таблица3[[#This Row],[Астра]]) -> 0 | N145: =SUMIFS($M$62:$M$116,$C$62:$C$116,"<"&Таблица3[[#This Row],[Шир]],$D$62:$D$116,Таблица3[[#This Row],[Дл]],$F$62:$F$116,Таблица3[[#This Row],[Астра]])+SUMIFS($M$62:$M$116,$C$62:$C$116,Таблица3[[#This Row],[Шир]],$D$62:$D$116,"<"&Таблица3[[#This Row],[Дл]],$F$62:$F$116,Таблица3[[#This Row],[Астра]])+SUMIFS($M$62:$M$116,$C$62:$C$116,"<"&Таблица3[[#This Row],[Шир]],$D$62:$D$116,"<"&Таблица3[[#This Row],[Дл]],$F$62:$F$116,Таблица3[[#This Row],[Астра]]) -> 0 | O145: =Таблица3[[#This Row],[Ст10]]+Таблица3[[#This Row],[Ст11]] -> 0 | P145: =SUMIFS($P$62:$P$116,$C$62:$C$116,Таблица3[[#This Row],[Шир]],$D$62:$D$116,Таблица3[[#This Row],[Дл]],$F$62:$F$116,Таблица3[[#This Row],[Астра]]) -> 0 | Q145: =SUMIFS($P$62:$P$116,$C$62:$C$116,"<"&Таблица3[[#This Row],[Шир]],$D$62:$D$116,Таблица3[[#This Row],[Дл]],$F$62:$F$116,Таблица3[[#This Row],[Астра]])+SUMIFS($P$62:$P$116,$C$62:$C$116,Таблица3[[#This Row],[Шир]],$D$62:$D$116,"<"&Таблица3[[#This Row],[Дл]],$F$62:$F$116,Таблица3[[#This Row],[Астра]])+SUMIFS($P$62:$P$116,$C$62:$C$116,"<"&Таблица3[[#This Row],[Шир]],$D$62:$D$116,"<"&Таблица3[[#This Row],[Дл]],$F$62:$F$116,Таблица3[[#This Row],[Астра]]) -> 0 | R145: =Таблица3[[#This Row],[Ст13]]+Таблица3[[#This Row],[Ст14]] -> 0 | S145: =SUMIFS($S$62:$S$116,$C$62:$C$116,Таблица3[[#This Row],[Шир]],$D$62:$D$116,Таблица3[[#This Row],[Дл]],$F$62:$F$116,Таблица3[[#This Row],[Астра]]) -> 0 | T145: =SUMIFS($S$62:$S$116,$C$62:$C$116,"<"&Таблица3[[#This Row],[Шир]],$D$62:$D$116,Таблица3[[#This Row],[Дл]],$F$62:$F$116,Таблица3[[#This Row],[Астра]])+SUMIFS($S$62:$S$116,$C$62:$C$116,Таблица3[[#This Row],[Шир]],$D$62:$D$116,"<"&Таблица3[[#This Row],[Дл]],$F$62:$F$116,Таблица3[[#This Row],[Астра]])+SUMIFS($S$62:$S$116,$C$62:$C$116,"<"&Таблица3[[#This Row],[Шир]],$D$62:$D$116,"<"&Таблица3[[#This Row],[Дл]],$F$62:$F$116,Таблица3[[#This Row],[Астра]]) -> 0 | U145: =Таблица3[[#This Row],[Ст16]]+Таблица3[[#This Row],[Ст17]] -> 0 | V145: =Таблица3[[#This Row],[Ст18]]+Таблица3[[#This Row],[Столбец32]] -> 0 | W145: =SUMIFS($V$62:$V$116,$C$62:$C$116,Таблица3[[#This Row],[Шир]],$D$62:$D$116,Таблица3[[#This Row],[Дл]],$F$62:$F$116,Таблица3[[#This Row],[Астра]]) -> 0 | X145: =SUMIFS($V$62:$V$116,$C$62:$C$116,"<"&Таблица3[[#This Row],[Шир]],$D$62:$D$116,Таблица3[[#This Row],[Дл]],$F$62:$F$116,Таблица3[[#This Row],[Астра]])+SUMIFS($V$62:$V$116,$C$62:$C$116,Таблица3[[#This Row],[Шир]],$D$62:$D$116,"<"&Таблица3[[#This Row],[Дл]],$F$62:$F$116,Таблица3[[#This Row],[Астра]])+SUMIFS($V$62:$V$116,$C$62:$C$116,"<"&Таблица3[[#This Row],[Шир]],$D$62:$D$116,"<"&Таблица3[[#This Row],[Дл]],$F$62:$F$116,Таблица3[[#This Row],[Астра]]) -> 0 | Y145: =Таблица3[[#This Row],[Ст19]]+Таблица3[[#This Row],[Ст20]] -> 0 | Z145: =Таблица3[[#This Row],[Ст21]]-Таблица3[[#This Row],[Столбец32]] -> 0 | AB145: Лист ОЦ, 1.5 мм, лтоц | AC145: Лист ОЦ | AD145: Лист ОЦ | AE145: 7.874 | AF145: =SUBSTITUTE(Таблица3[[#This Row],[Толщ]],",",".") -> 1.5 | AG145: =SUMIFS($AA$8:$AA$57,$K$8:$K$57,Таблица3[[#This Row],[Столбец9]]) -> 0
A146: =IF(Таблица3[[#All],[Ст21]]=0,"z","") -> z | C146: 1000 | D146: 2000 | E146: 2 | G146: =SUMIFS($G$62:$G$116,$D$62:$D$116,Таблица3[[#This Row],[Дл]],$C$62:$C$116,Таблица3[[#This Row],[Шир]],$F$62:$F$116,Таблица3[[#This Row],[Астра]]) -> 0 | I146: =CONCATENATE(Таблица3[[#This Row],[Столбец29]]," ",Таблица3[[#This Row],[Толщ]]) -> Лист ОЦ 2 | K146: =Таблица3[[#This Row],[Толщ]] -> 2 | M146: =SUMIFS($M$62:$M$116,$C$62:$C$116,Таблица3[[#This Row],[Шир]],$D$62:$D$116,Таблица3[[#This Row],[Дл]],$F$62:$F$116,Таблица3[[#This Row],[Астра]]) -> 0 | N146: =SUMIFS($M$62:$M$116,$C$62:$C$116,"<"&Таблица3[[#This Row],[Шир]],$D$62:$D$116,Таблица3[[#This Row],[Дл]],$F$62:$F$116,Таблица3[[#This Row],[Астра]])+SUMIFS($M$62:$M$116,$C$62:$C$116,Таблица3[[#This Row],[Шир]],$D$62:$D$116,"<"&Таблица3[[#This Row],[Дл]],$F$62:$F$116,Таблица3[[#This Row],[Астра]])+SUMIFS($M$62:$M$116,$C$62:$C$116,"<"&Таблица3[[#This Row],[Шир]],$D$62:$D$116,"<"&Таблица3[[#This Row],[Дл]],$F$62:$F$116,Таблица3[[#This Row],[Астра]]) -> 0 | O146: =Таблица3[[#This Row],[Ст10]]+Таблица3[[#This Row],[Ст11]] -> 0 | P146: =SUMIFS($P$62:$P$116,$C$62:$C$116,Таблица3[[#This Row],[Шир]],$D$62:$D$116,Таблица3[[#This Row],[Дл]],$F$62:$F$116,Таблица3[[#This Row],[Астра]]) -> 0 | Q146: =SUMIFS($P$62:$P$116,$C$62:$C$116,"<"&Таблица3[[#This Row],[Шир]],$D$62:$D$116,Таблица3[[#This Row],[Дл]],$F$62:$F$116,Таблица3[[#This Row],[Астра]])+SUMIFS($P$62:$P$116,$C$62:$C$116,Таблица3[[#This Row],[Шир]],$D$62:$D$116,"<"&Таблица3[[#This Row],[Дл]],$F$62:$F$116,Таблица3[[#This Row],[Астра]])+SUMIFS($P$62:$P$116,$C$62:$C$116,"<"&Таблица3[[#This Row],[Шир]],$D$62:$D$116,"<"&Таблица3[[#This Row],[Дл]],$F$62:$F$116,Таблица3[[#This Row],[Астра]]) -> 0 | R146: =Таблица3[[#This Row],[Ст13]]+Таблица3[[#This Row],[Ст14]] -> 0 | S146: =SUMIFS($S$62:$S$116,$C$62:$C$116,Таблица3[[#This Row],[Шир]],$D$62:$D$116,Таблица3[[#This Row],[Дл]],$F$62:$F$116,Таблица3[[#This Row],[Астра]]) -> 0 | T146: =SUMIFS($S$62:$S$116,$C$62:$C$116,"<"&Таблица3[[#This Row],[Шир]],$D$62:$D$116,Таблица3[[#This Row],[Дл]],$F$62:$F$116,Таблица3[[#This Row],[Астра]])+SUMIFS($S$62:$S$116,$C$62:$C$116,Таблица3[[#This Row],[Шир]],$D$62:$D$116,"<"&Таблица3[[#This Row],[Дл]],$F$62:$F$116,Таблица3[[#This Row],[Астра]])+SUMIFS($S$62:$S$116,$C$62:$C$116,"<"&Таблица3[[#This Row],[Шир]],$D$62:$D$116,"<"&Таблица3[[#This Row],[Дл]],$F$62:$F$116,Таблица3[[#This Row],[Астра]]) -> 0 | U146: =Таблица3[[#This Row],[Ст16]]+Таблица3[[#This Row],[Ст17]] -> 0 | V146: =Таблица3[[#This Row],[Ст18]]+Таблица3[[#This Row],[Столбец32]] -> 0 | W146: =SUMIFS($V$62:$V$116,$C$62:$C$116,Таблица3[[#This Row],[Шир]],$D$62:$D$116,Таблица3[[#This Row],[Дл]],$F$62:$F$116,Таблица3[[#This Row],[Астра]]) -> 0 | X146: =SUMIFS($V$62:$V$116,$C$62:$C$116,"<"&Таблица3[[#This Row],[Шир]],$D$62:$D$116,Таблица3[[#This Row],[Дл]],$F$62:$F$116,Таблица3[[#This Row],[Астра]])+SUMIFS($V$62:$V$116,$C$62:$C$116,Таблица3[[#This Row],[Шир]],$D$62:$D$116,"<"&Таблица3[[#This Row],[Дл]],$F$62:$F$116,Таблица3[[#This Row],[Астра]])+SUMIFS($V$62:$V$116,$C$62:$C$116,"<"&Таблица3[[#This Row],[Шир]],$D$62:$D$116,"<"&Таблица3[[#This Row],[Дл]],$F$62:$F$116,Таблица3[[#This Row],[Астра]]) -> 0 | Y146: =Таблица3[[#This Row],[Ст19]]+Таблица3[[#This Row],[Ст20]] -> 0 | Z146: =Таблица3[[#This Row],[Ст21]]-Таблица3[[#This Row],[Столбец32]] -> 0 | AB146: Лист ОЦ, 2.0 мм, лтоц | AC146: Лист ОЦ | AD146: Лист ОЦ | AE146: 7.874 | AF146: =SUBSTITUTE(Таблица3[[#This Row],[Толщ]],",",".") -> 2 | AG146: =SUMIFS($AA$8:$AA$57,$K$8:$K$57,Таблица3[[#This Row],[Столбец9]]) -> 0
A147: =IF(Таблица3[[#All],[Ст21]]=0,"z","") -> z | C147: 1000 | D147: 2000 | E147: 1 | G147: =SUMIFS($G$62:$G$116,$D$62:$D$116,Таблица3[[#This Row],[Дл]],$C$62:$C$116,Таблица3[[#This Row],[Шир]],$F$62:$F$116,Таблица3[[#This Row],[Астра]]) -> 0 | I147: =CONCATENATE(Таблица3[[#This Row],[Столбец29]]," ",Таблица3[[#This Row],[Толщ]]) -> Сетка ПВЛ 1 | K147: =Таблица3[[#This Row],[Толщ]] -> 1 | M147: =SUMIFS($M$62:$M$116,$C$62:$C$116,Таблица3[[#This Row],[Шир]],$D$62:$D$116,Таблица3[[#This Row],[Дл]],$F$62:$F$116,Таблица3[[#This Row],[Астра]]) -> 0 | N147: =SUMIFS($M$62:$M$116,$C$62:$C$116,"<"&Таблица3[[#This Row],[Шир]],$D$62:$D$116,Таблица3[[#This Row],[Дл]],$F$62:$F$116,Таблица3[[#This Row],[Астра]])+SUMIFS($M$62:$M$116,$C$62:$C$116,Таблица3[[#This Row],[Шир]],$D$62:$D$116,"<"&Таблица3[[#This Row],[Дл]],$F$62:$F$116,Таблица3[[#This Row],[Астра]])+SUMIFS($M$62:$M$116,$C$62:$C$116,"<"&Таблица3[[#This Row],[Шир]],$D$62:$D$116,"<"&Таблица3[[#This Row],[Дл]],$F$62:$F$116,Таблица3[[#This Row],[Астра]]) -> 0 | O147: =Таблица3[[#This Row],[Ст10]]+Таблица3[[#This Row],[Ст11]] -> 0 | P147: =SUMIFS($P$62:$P$116,$C$62:$C$116,Таблица3[[#This Row],[Шир]],$D$62:$D$116,Таблица3[[#This Row],[Дл]],$F$62:$F$116,Таблица3[[#This Row],[Астра]]) -> 0 | Q147: =SUMIFS($P$62:$P$116,$C$62:$C$116,"<"&Таблица3[[#This Row],[Шир]],$D$62:$D$116,Таблица3[[#This Row],[Дл]],$F$62:$F$116,Таблица3[[#This Row],[Астра]])+SUMIFS($P$62:$P$116,$C$62:$C$116,Таблица3[[#This Row],[Шир]],$D$62:$D$116,"<"&Таблица3[[#This Row],[Дл]],$F$62:$F$116,Таблица3[[#This Row],[Астра]])+SUMIFS($P$62:$P$116,$C$62:$C$116,"<"&Таблица3[[#This Row],[Шир]],$D$62:$D$116,"<"&Таблица3[[#This Row],[Дл]],$F$62:$F$116,Таблица3[[#This Row],[Астра]]) -> 0 | R147: =Таблица3[[#This Row],[Ст13]]+Таблица3[[#This Row],[Ст14]] -> 0 | S147: =SUMIFS($S$62:$S$116,$C$62:$C$116,Таблица3[[#This Row],[Шир]],$D$62:$D$116,Таблица3[[#This Row],[Дл]],$F$62:$F$116,Таблица3[[#This Row],[Астра]]) -> 0 | T147: =SUMIFS($S$62:$S$116,$C$62:$C$116,"<"&Таблица3[[#This Row],[Шир]],$D$62:$D$116,Таблица3[[#This Row],[Дл]],$F$62:$F$116,Таблица3[[#This Row],[Астра]])+SUMIFS($S$62:$S$116,$C$62:$C$116,Таблица3[[#This Row],[Шир]],$D$62:$D$116,"<"&Таблица3[[#This Row],[Дл]],$F$62:$F$116,Таблица3[[#This Row],[Астра]])+SUMIFS($S$62:$S$116,$C$62:$C$116,"<"&Таблица3[[#This Row],[Шир]],$D$62:$D$116,"<"&Таблица3[[#This Row],[Дл]],$F$62:$F$116,Таблица3[[#This Row],[Астра]]) -> 0 | U147: =Таблица3[[#This Row],[Ст16]]+Таблица3[[#This Row],[Ст17]] -> 0 | V147: =Таблица3[[#This Row],[Ст18]]+Таблица3[[#This Row],[Столбец32]] -> 0 | W147: =SUMIFS($V$62:$V$116,$C$62:$C$116,Таблица3[[#This Row],[Шир]],$D$62:$D$116,Таблица3[[#This Row],[Дл]],$F$62:$F$116,Таблица3[[#This Row],[Астра]]) -> 0 | X147: =SUMIFS($V$62:$V$116,$C$62:$C$116,"<"&Таблица3[[#This Row],[Шир]],$D$62:$D$116,Таблица3[[#This Row],[Дл]],$F$62:$F$116,Таблица3[[#This Row],[Астра]])+SUMIFS($V$62:$V$116,$C$62:$C$116,Таблица3[[#This Row],[Шир]],$D$62:$D$116,"<"&Таблица3[[#This Row],[Дл]],$F$62:$F$116,Таблица3[[#This Row],[Астра]])+SUMIFS($V$62:$V$116,$C$62:$C$116,"<"&Таблица3[[#This Row],[Шир]],$D$62:$D$116,"<"&Таблица3[[#This Row],[Дл]],$F$62:$F$116,Таблица3[[#This Row],[Астра]]) -> 0 | Y147: =Таблица3[[#This Row],[Ст19]]+Таблица3[[#This Row],[Ст20]] -> 0 | Z147: =Таблица3[[#This Row],[Ст21]]-Таблица3[[#This Row],[Столбец32]] -> 0 | AB147: Сетка ПВЛ, 1.0 мм | AC147: Сетка ПВЛ | AD147: Сетка ПВЛ | AE147: 1.68 | AF147: =SUBSTITUTE(Таблица3[[#This Row],[Толщ]],",",".") -> 1 | AG147: =SUMIFS($AA$8:$AA$57,$K$8:$K$57,Таблица3[[#This Row],[Столбец9]]) -> 0
A148: =IF(Таблица3[[#All],[Ст21]]=0,"z","") -> z | C148: 1000 | D148: 2000 | E148: 5 | G148: =SUMIFS($G$62:$G$116,$D$62:$D$116,Таблица3[[#This Row],[Дл]],$C$62:$C$116,Таблица3[[#This Row],[Шир]],$F$62:$F$116,Таблица3[[#This Row],[Астра]]) -> 0 | I148: =CONCATENATE(Таблица3[[#This Row],[Столбец29]]," ",Таблица3[[#This Row],[Толщ]]) -> Сетка ПВЛ 5 | K148: =Таблица3[[#This Row],[Толщ]] -> 5 | M148: =SUMIFS($M$62:$M$116,$C$62:$C$116,Таблица3[[#This Row],[Шир]],$D$62:$D$116,Таблица3[[#This Row],[Дл]],$F$62:$F$116,Таблица3[[#This Row],[Астра]]) -> 0 | N148: =SUMIFS($M$62:$M$116,$C$62:$C$116,"<"&Таблица3[[#This Row],[Шир]],$D$62:$D$116,Таблица3[[#This Row],[Дл]],$F$62:$F$116,Таблица3[[#This Row],[Астра]])+SUMIFS($M$62:$M$116,$C$62:$C$116,Таблица3[[#This Row],[Шир]],$D$62:$D$116,"<"&Таблица3[[#This Row],[Дл]],$F$62:$F$116,Таблица3[[#This Row],[Астра]])+SUMIFS($M$62:$M$116,$C$62:$C$116,"<"&Таблица3[[#This Row],[Шир]],$D$62:$D$116,"<"&Таблица3[[#This Row],[Дл]],$F$62:$F$116,Таблица3[[#This Row],[Астра]]) -> 0 | O148: =Таблица3[[#This Row],[Ст10]]+Таблица3[[#This Row],[Ст11]] -> 0 | P148: =SUMIFS($P$62:$P$116,$C$62:$C$116,Таблица3[[#This Row],[Шир]],$D$62:$D$116,Таблица3[[#This Row],[Дл]],$F$62:$F$116,Таблица3[[#This Row],[Астра]]) -> 0 | Q148: =SUMIFS($P$62:$P$116,$C$62:$C$116,"<"&Таблица3[[#This Row],[Шир]],$D$62:$D$116,Таблица3[[#This Row],[Дл]],$F$62:$F$116,Таблица3[[#This Row],[Астра]])+SUMIFS($P$62:$P$116,$C$62:$C$116,Таблица3[[#This Row],[Шир]],$D$62:$D$116,"<"&Таблица3[[#This Row],[Дл]],$F$62:$F$116,Таблица3[[#This Row],[Астра]])+SUMIFS($P$62:$P$116,$C$62:$C$116,"<"&Таблица3[[#This Row],[Шир]],$D$62:$D$116,"<"&Таблица3[[#This Row],[Дл]],$F$62:$F$116,Таблица3[[#This Row],[Астра]]) -> 0 | R148: =Таблица3[[#This Row],[Ст13]]+Таблица3[[#This Row],[Ст14]] -> 0 | S148: =SUMIFS($S$62:$S$116,$C$62:$C$116,Таблица3[[#This Row],[Шир]],$D$62:$D$116,Таблица3[[#This Row],[Дл]],$F$62:$F$116,Таблица3[[#This Row],[Астра]]) -> 0 | T148: =SUMIFS($S$62:$S$116,$C$62:$C$116,"<"&Таблица3[[#This Row],[Шир]],$D$62:$D$116,Таблица3[[#This Row],[Дл]],$F$62:$F$116,Таблица3[[#This Row],[Астра]])+SUMIFS($S$62:$S$116,$C$62:$C$116,Таблица3[[#This Row],[Шир]],$D$62:$D$116,"<"&Таблица3[[#This Row],[Дл]],$F$62:$F$116,Таблица3[[#This Row],[Астра]])+SUMIFS($S$62:$S$116,$C$62:$C$116,"<"&Таблица3[[#This Row],[Шир]],$D$62:$D$116,"<"&Таблица3[[#This Row],[Дл]],$F$62:$F$116,Таблица3[[#This Row],[Астра]]) -> 0 | U148: =Таблица3[[#This Row],[Ст16]]+Таблица3[[#This Row],[Ст17]] -> 0 | V148: =Таблица3[[#This Row],[Ст18]]+Таблица3[[#This Row],[Столбец32]] -> 0 | W148: =SUMIFS($V$62:$V$116,$C$62:$C$116,Таблица3[[#This Row],[Шир]],$D$62:$D$116,Таблица3[[#This Row],[Дл]],$F$62:$F$116,Таблица3[[#This Row],[Астра]]) -> 0 | X148: =SUMIFS($V$62:$V$116,$C$62:$C$116,"<"&Таблица3[[#This Row],[Шир]],$D$62:$D$116,Таблица3[[#This Row],[Дл]],$F$62:$F$116,Таблица3[[#This Row],[Астра]])+SUMIFS($V$62:$V$116,$C$62:$C$116,Таблица3[[#This Row],[Шир]],$D$62:$D$116,"<"&Таблица3[[#This Row],[Дл]],$F$62:$F$116,Таблица3[[#This Row],[Астра]])+SUMIFS($V$62:$V$116,$C$62:$C$116,"<"&Таблица3[[#This Row],[Шир]],$D$62:$D$116,"<"&Таблица3[[#This Row],[Дл]],$F$62:$F$116,Таблица3[[#This Row],[Астра]]) -> 0 | Y148: =Таблица3[[#This Row],[Ст19]]+Таблица3[[#This Row],[Ст20]] -> 0 | Z148: =Таблица3[[#This Row],[Ст21]]-Таблица3[[#This Row],[Столбец32]] -> 0 | AB148: Сетка ПВЛ, 5.0 мм | AC148: Сетка ПВЛ | AD148: Сетка ПВЛ | AE148: 4 | AF148: =SUBSTITUTE(Таблица3[[#This Row],[Толщ]],",",".") -> 5 | AG148: =SUMIFS($AA$8:$AA$57,$K$8:$K$57,Таблица3[[#This Row],[Столбец9]]) -> 0
A149: =IF(Таблица3[[#All],[Ст21]]=0,"z","") -> z | C149: 1250 | D149: 2500 | E149: 3 | G149: =SUMIFS($G$62:$G$116,$D$62:$D$116,Таблица3[[#This Row],[Дл]],$C$62:$C$116,Таблица3[[#This Row],[Шир]],$F$62:$F$116,Таблица3[[#This Row],[Астра]]) -> 0 | I149: =CONCATENATE(Таблица3[[#This Row],[Столбец29]]," ",Таблица3[[#This Row],[Толщ]]) -> Сталь котловая 3 | K149: =Таблица3[[#This Row],[Толщ]] -> 3 | M149: =SUMIFS($M$62:$M$116,$C$62:$C$116,Таблица3[[#This Row],[Шир]],$D$62:$D$116,Таблица3[[#This Row],[Дл]],$F$62:$F$116,Таблица3[[#This Row],[Астра]]) -> 0 | N149: =SUMIFS($M$62:$M$116,$C$62:$C$116,"<"&Таблица3[[#This Row],[Шир]],$D$62:$D$116,Таблица3[[#This Row],[Дл]],$F$62:$F$116,Таблица3[[#This Row],[Астра]])+SUMIFS($M$62:$M$116,$C$62:$C$116,Таблица3[[#This Row],[Шир]],$D$62:$D$116,"<"&Таблица3[[#This Row],[Дл]],$F$62:$F$116,Таблица3[[#This Row],[Астра]])+SUMIFS($M$62:$M$116,$C$62:$C$116,"<"&Таблица3[[#This Row],[Шир]],$D$62:$D$116,"<"&Таблица3[[#This Row],[Дл]],$F$62:$F$116,Таблица3[[#This Row],[Астра]]) -> 0 | O149: =Таблица3[[#This Row],[Ст10]]+Таблица3[[#This Row],[Ст11]] -> 0 | P149: =SUMIFS($P$62:$P$116,$C$62:$C$116,Таблица3[[#This Row],[Шир]],$D$62:$D$116,Таблица3[[#This Row],[Дл]],$F$62:$F$116,Таблица3[[#This Row],[Астра]]) -> 0 | Q149: =SUMIFS($P$62:$P$116,$C$62:$C$116,"<"&Таблица3[[#This Row],[Шир]],$D$62:$D$116,Таблица3[[#This Row],[Дл]],$F$62:$F$116,Таблица3[[#This Row],[Астра]])+SUMIFS($P$62:$P$116,$C$62:$C$116,Таблица3[[#This Row],[Шир]],$D$62:$D$116,"<"&Таблица3[[#This Row],[Дл]],$F$62:$F$116,Таблица3[[#This Row],[Астра]])+SUMIFS($P$62:$P$116,$C$62:$C$116,"<"&Таблица3[[#This Row],[Шир]],$D$62:$D$116,"<"&Таблица3[[#This Row],[Дл]],$F$62:$F$116,Таблица3[[#This Row],[Астра]]) -> 0 | R149: =Таблица3[[#This Row],[Ст13]]+Таблица3[[#This Row],[Ст14]] -> 0 | S149: =SUMIFS($S$62:$S$116,$C$62:$C$116,Таблица3[[#This Row],[Шир]],$D$62:$D$116,Таблица3[[#This Row],[Дл]],$F$62:$F$116,Таблица3[[#This Row],[Астра]]) -> 0 | T149: =SUMIFS($S$62:$S$116,$C$62:$C$116,"<"&Таблица3[[#This Row],[Шир]],$D$62:$D$116,Таблица3[[#This Row],[Дл]],$F$62:$F$116,Таблица3[[#This Row],[Астра]])+SUMIFS($S$62:$S$116,$C$62:$C$116,Таблица3[[#This Row],[Шир]],$D$62:$D$116,"<"&Таблица3[[#This Row],[Дл]],$F$62:$F$116,Таблица3[[#This Row],[Астра]])+SUMIFS($S$62:$S$116,$C$62:$C$116,"<"&Таблица3[[#This Row],[Шир]],$D$62:$D$116,"<"&Таблица3[[#This Row],[Дл]],$F$62:$F$116,Таблица3[[#This Row],[Астра]]) -> 0 | U149: =Таблица3[[#This Row],[Ст16]]+Таблица3[[#This Row],[Ст17]] -> 0 | V149: =Таблица3[[#This Row],[Ст18]]+Таблица3[[#This Row],[Столбец32]] -> 0 | W149: =SUMIFS($V$62:$V$116,$C$62:$C$116,Таблица3[[#This Row],[Шир]],$D$62:$D$116,Таблица3[[#This Row],[Дл]],$F$62:$F$116,Таблица3[[#This Row],[Астра]]) -> 0 | X149: =SUMIFS($V$62:$V$116,$C$62:$C$116,"<"&Таблица3[[#This Row],[Шир]],$D$62:$D$116,Таблица3[[#This Row],[Дл]],$F$62:$F$116,Таблица3[[#This Row],[Астра]])+SUMIFS($V$62:$V$116,$C$62:$C$116,Таблица3[[#This Row],[Шир]],$D$62:$D$116,"<"&Таблица3[[#This Row],[Дл]],$F$62:$F$116,Таблица3[[#This Row],[Астра]])+SUMIFS($V$62:$V$116,$C$62:$C$116,"<"&Таблица3[[#This Row],[Шир]],$D$62:$D$116,"<"&Таблица3[[#This Row],[Дл]],$F$62:$F$116,Таблица3[[#This Row],[Астра]]) -> 0 | Y149: =Таблица3[[#This Row],[Ст19]]+Таблица3[[#This Row],[Ст20]] -> 0 | Z149: =Таблица3[[#This Row],[Ст21]]-Таблица3[[#This Row],[Столбец32]] -> 0 | AB149: Сталь котловая, 3.0 мм | AC149: Сталь котловая | AD149: Сталь котловая | AE149: 7.874 | AF149: =SUBSTITUTE(Таблица3[[#This Row],[Толщ]],",",".") -> 3 | AG149: =SUMIFS($AA$8:$AA$57,$K$8:$K$57,Таблица3[[#This Row],[Столбец9]]) -> 0
A150: =IF(Таблица3[[#All],[Ст21]]=0,"z","") -> z | C150: 1250 | D150: 2500 | E150: 4 | G150: =SUMIFS($G$62:$G$116,$D$62:$D$116,Таблица3[[#This Row],[Дл]],$C$62:$C$116,Таблица3[[#This Row],[Шир]],$F$62:$F$116,Таблица3[[#This Row],[Астра]]) -> 0 | I150: =CONCATENATE(Таблица3[[#This Row],[Столбец29]]," ",Таблица3[[#This Row],[Толщ]]) -> Сталь котловая 4 | K150: =Таблица3[[#This Row],[Толщ]] -> 4 | M150: =SUMIFS($M$62:$M$116,$C$62:$C$116,Таблица3[[#This Row],[Шир]],$D$62:$D$116,Таблица3[[#This Row],[Дл]],$F$62:$F$116,Таблица3[[#This Row],[Астра]]) -> 0 | N150: =SUMIFS($M$62:$M$116,$C$62:$C$116,"<"&Таблица3[[#This Row],[Шир]],$D$62:$D$116,Таблица3[[#This Row],[Дл]],$F$62:$F$116,Таблица3[[#This Row],[Астра]])+SUMIFS($M$62:$M$116,$C$62:$C$116,Таблица3[[#This Row],[Шир]],$D$62:$D$116,"<"&Таблица3[[#This Row],[Дл]],$F$62:$F$116,Таблица3[[#This Row],[Астра]])+SUMIFS($M$62:$M$116,$C$62:$C$116,"<"&Таблица3[[#This Row],[Шир]],$D$62:$D$116,"<"&Таблица3[[#This Row],[Дл]],$F$62:$F$116,Таблица3[[#This Row],[Астра]]) -> 0 | O150: =Таблица3[[#This Row],[Ст10]]+Таблица3[[#This Row],[Ст11]] -> 0 | P150: =SUMIFS($P$62:$P$116,$C$62:$C$116,Таблица3[[#This Row],[Шир]],$D$62:$D$116,Таблица3[[#This Row],[Дл]],$F$62:$F$116,Таблица3[[#This Row],[Астра]]) -> 0 | Q150: =SUMIFS($P$62:$P$116,$C$62:$C$116,"<"&Таблица3[[#This Row],[Шир]],$D$62:$D$116,Таблица3[[#This Row],[Дл]],$F$62:$F$116,Таблица3[[#This Row],[Астра]])+SUMIFS($P$62:$P$116,$C$62:$C$116,Таблица3[[#This Row],[Шир]],$D$62:$D$116,"<"&Таблица3[[#This Row],[Дл]],$F$62:$F$116,Таблица3[[#This Row],[Астра]])+SUMIFS($P$62:$P$116,$C$62:$C$116,"<"&Таблица3[[#This Row],[Шир]],$D$62:$D$116,"<"&Таблица3[[#This Row],[Дл]],$F$62:$F$116,Таблица3[[#This Row],[Астра]]) -> 0 | R150: =Таблица3[[#This Row],[Ст13]]+Таблица3[[#This Row],[Ст14]] -> 0 | S150: =SUMIFS($S$62:$S$116,$C$62:$C$116,Таблица3[[#This Row],[Шир]],$D$62:$D$116,Таблица3[[#This Row],[Дл]],$F$62:$F$116,Таблица3[[#This Row],[Астра]]) -> 0 | T150: =SUMIFS($S$62:$S$116,$C$62:$C$116,"<"&Таблица3[[#This Row],[Шир]],$D$62:$D$116,Таблица3[[#This Row],[Дл]],$F$62:$F$116,Таблица3[[#This Row],[Астра]])+SUMIFS($S$62:$S$116,$C$62:$C$116,Таблица3[[#This Row],[Шир]],$D$62:$D$116,"<"&Таблица3[[#This Row],[Дл]],$F$62:$F$116,Таблица3[[#This Row],[Астра]])+SUMIFS($S$62:$S$116,$C$62:$C$116,"<"&Таблица3[[#This Row],[Шир]],$D$62:$D$116,"<"&Таблица3[[#This Row],[Дл]],$F$62:$F$116,Таблица3[[#This Row],[Астра]]) -> 0 | U150: =Таблица3[[#This Row],[Ст16]]+Таблица3[[#This Row],[Ст17]] -> 0 | V150: =Таблица3[[#This Row],[Ст18]]+Таблица3[[#This Row],[Столбец32]] -> 0 | W150: =SUMIFS($V$62:$V$116,$C$62:$C$116,Таблица3[[#This Row],[Шир]],$D$62:$D$116,Таблица3[[#This Row],[Дл]],$F$62:$F$116,Таблица3[[#This Row],[Астра]]) -> 0 | X150: =SUMIFS($V$62:$V$116,$C$62:$C$116,"<"&Таблица3[[#This Row],[Шир]],$D$62:$D$116,Таблица3[[#This Row],[Дл]],$F$62:$F$116,Таблица3[[#This Row],[Астра]])+SUMIFS($V$62:$V$116,$C$62:$C$116,Таблица3[[#This Row],[Шир]],$D$62:$D$116,"<"&Таблица3[[#This Row],[Дл]],$F$62:$F$116,Таблица3[[#This Row],[Астра]])+SUMIFS($V$62:$V$116,$C$62:$C$116,"<"&Таблица3[[#This Row],[Шир]],$D$62:$D$116,"<"&Таблица3[[#This Row],[Дл]],$F$62:$F$116,Таблица3[[#This Row],[Астра]]) -> 0 | Y150: =Таблица3[[#This Row],[Ст19]]+Таблица3[[#This Row],[Ст20]] -> 0 | Z150: =Таблица3[[#This Row],[Ст21]]-Таблица3[[#This Row],[Столбец32]] -> 0 | AB150: Сталь котловая, 4.0 мм | AC150: Сталь котловая | AD150: Сталь котловая | AE150: 7.874 | AF150: =SUBSTITUTE(Таблица3[[#This Row],[Толщ]],",",".") -> 4 | AG150: =SUMIFS($AA$8:$AA$57,$K$8:$K$57,Таблица3[[#This Row],[Столбец9]]) -> 0
A151: =IF(Таблица3[[#All],[Ст21]]=0,"z","") -> z | C151: 1250 | D151: 2500 | E151: 5 | G151: =SUMIFS($G$62:$G$116,$D$62:$D$116,Таблица3[[#This Row],[Дл]],$C$62:$C$116,Таблица3[[#This Row],[Шир]],$F$62:$F$116,Таблица3[[#This Row],[Астра]]) -> 0 | I151: =CONCATENATE(Таблица3[[#This Row],[Столбец29]]," ",Таблица3[[#This Row],[Толщ]]) -> Сталь котловая 5 | K151: =Таблица3[[#This Row],[Толщ]] -> 5 | M151: =SUMIFS($M$62:$M$116,$C$62:$C$116,Таблица3[[#This Row],[Шир]],$D$62:$D$116,Таблица3[[#This Row],[Дл]],$F$62:$F$116,Таблица3[[#This Row],[Астра]]) -> 0 | N151: =SUMIFS($M$62:$M$116,$C$62:$C$116,"<"&Таблица3[[#This Row],[Шир]],$D$62:$D$116,Таблица3[[#This Row],[Дл]],$F$62:$F$116,Таблица3[[#This Row],[Астра]])+SUMIFS($M$62:$M$116,$C$62:$C$116,Таблица3[[#This Row],[Шир]],$D$62:$D$116,"<"&Таблица3[[#This Row],[Дл]],$F$62:$F$116,Таблица3[[#This Row],[Астра]])+SUMIFS($M$62:$M$116,$C$62:$C$116,"<"&Таблица3[[#This Row],[Шир]],$D$62:$D$116,"<"&Таблица3[[#This Row],[Дл]],$F$62:$F$116,Таблица3[[#This Row],[Астра]]) -> 0 | O151: =Таблица3[[#This Row],[Ст10]]+Таблица3[[#This Row],[Ст11]] -> 0 | P151: =SUMIFS($P$62:$P$116,$C$62:$C$116,Таблица3[[#This Row],[Шир]],$D$62:$D$116,Таблица3[[#This Row],[Дл]],$F$62:$F$116,Таблица3[[#This Row],[Астра]]) -> 0 | Q151: =SUMIFS($P$62:$P$116,$C$62:$C$116,"<"&Таблица3[[#This Row],[Шир]],$D$62:$D$116,Таблица3[[#This Row],[Дл]],$F$62:$F$116,Таблица3[[#This Row],[Астра]])+SUMIFS($P$62:$P$116,$C$62:$C$116,Таблица3[[#This Row],[Шир]],$D$62:$D$116,"<"&Таблица3[[#This Row],[Дл]],$F$62:$F$116,Таблица3[[#This Row],[Астра]])+SUMIFS($P$62:$P$116,$C$62:$C$116,"<"&Таблица3[[#This Row],[Шир]],$D$62:$D$116,"<"&Таблица3[[#This Row],[Дл]],$F$62:$F$116,Таблица3[[#This Row],[Астра]]) -> 0 | R151: =Таблица3[[#This Row],[Ст13]]+Таблица3[[#This Row],[Ст14]] -> 0 | S151: =SUMIFS($S$62:$S$116,$C$62:$C$116,Таблица3[[#This Row],[Шир]],$D$62:$D$116,Таблица3[[#This Row],[Дл]],$F$62:$F$116,Таблица3[[#This Row],[Астра]]) -> 0 | T151: =SUMIFS($S$62:$S$116,$C$62:$C$116,"<"&Таблица3[[#This Row],[Шир]],$D$62:$D$116,Таблица3[[#This Row],[Дл]],$F$62:$F$116,Таблица3[[#This Row],[Астра]])+SUMIFS($S$62:$S$116,$C$62:$C$116,Таблица3[[#This Row],[Шир]],$D$62:$D$116,"<"&Таблица3[[#This Row],[Дл]],$F$62:$F$116,Таблица3[[#This Row],[Астра]])+SUMIFS($S$62:$S$116,$C$62:$C$116,"<"&Таблица3[[#This Row],[Шир]],$D$62:$D$116,"<"&Таблица3[[#This Row],[Дл]],$F$62:$F$116,Таблица3[[#This Row],[Астра]]) -> 0 | U151: =Таблица3[[#This Row],[Ст16]]+Таблица3[[#This Row],[Ст17]] -> 0 | V151: =Таблица3[[#This Row],[Ст18]]+Таблица3[[#This Row],[Столбец32]] -> 0 | W151: =SUMIFS($V$62:$V$116,$C$62:$C$116,Таблица3[[#This Row],[Шир]],$D$62:$D$116,Таблица3[[#This Row],[Дл]],$F$62:$F$116,Таблица3[[#This Row],[Астра]]) -> 0 | X151: =SUMIFS($V$62:$V$116,$C$62:$C$116,"<"&Таблица3[[#This Row],[Шир]],$D$62:$D$116,Таблица3[[#This Row],[Дл]],$F$62:$F$116,Таблица3[[#This Row],[Астра]])+SUMIFS($V$62:$V$116,$C$62:$C$116,Таблица3[[#This Row],[Шир]],$D$62:$D$116,"<"&Таблица3[[#This Row],[Дл]],$F$62:$F$116,Таблица3[[#This Row],[Астра]])+SUMIFS($V$62:$V$116,$C$62:$C$116,"<"&Таблица3[[#This Row],[Шир]],$D$62:$D$116,"<"&Таблица3[[#This Row],[Дл]],$F$62:$F$116,Таблица3[[#This Row],[Астра]]) -> 0 | Y151: =Таблица3[[#This Row],[Ст19]]+Таблица3[[#This Row],[Ст20]] -> 0 | Z151: =Таблица3[[#This Row],[Ст21]]-Таблица3[[#This Row],[Столбец32]] -> 0 | AB151: Сталь котловая, 5.0 мм | AC151: Сталь котловая | AD151: Сталь котловая | AE151: 7.874 | AF151: =SUBSTITUTE(Таблица3[[#This Row],[Толщ]],",",".") -> 5 | AG151: =SUMIFS($AA$8:$AA$57,$K$8:$K$57,Таблица3[[#This Row],[Столбец9]]) -> 0
C154: Подпись | G154: Инженер-технолог
C156: Подпись | G156: Нач техотдела
C158: Подпись | G158: Генеральный директор

Sheet ТРУБА
A1: z | K1: z | L1: z | M1: z | X1: z | Y1: z | Z1: z | AA1: z | AB1: z | AC1: z | AD1: z | AE1: z | AF1: z | AG1: z | AH1: z | AI1: z | AJ1: z | AK1: z | AL1: z | AM1: z | AN1: z | AO1: z | AP1: z
F2: Приложение № 2 к ЛЗК ___ | N2: =TODAY() -> 2023-08-05
H3: =CONCATENATE("НЕ СОВПАДЕНИЕ ",ROUND(M6-M7,3)," кг.") -> НЕ СОВПАДЕНИЕ 0 кг.
C4: =ПРОВОЛОКА!M4 -> 0
H5: =CONCATENATE("Изделие из: ",IF(ПРОВОЛОКА!S259>0,"ПРОВОЛОКА, ",""),IF(ЛИСТ!L7>0,"ЛИСТ, ",""),IF(ТРУБА!M7>0,"ТРУБА, ",""),IF(ПВХ!L9>0,"ПВХ ","")) -> Изделие из: | L5: Коэфициент | M5: Маса
B6: См. Косые резы и выполнять согласно чертежа | I6: План / шт | J6: =ПРОВОЛОКА!C5 -> 1 | M6: =SUM(Таблица1[Столбец21])-SUM(Таблица1[лом.на.пор.]) -> 0
B7: № п/п | C7: Длина | D7: Ширина (условная расчет программы) | E7: Кол-во на изделие | F7: Вращение детали 1 - да 0 - нет | G7: Толщина | H7: Материал (профиль трубы) | I7: Наименование детали | J7: кол-во на план | K7: ГОСТ | L7: =SUM(J8:J57) -> 0 | M7: =SUM(M8:M57) -> 0 | N7: Масса факт кг | O7: Косые резы | S7: номерация | U7: Разница массы
A8: =IF(E8=0,"z","") -> z | B8: =IF(J8=0,"",S8) ->  | D8: 500 | F8: 0 | G8: =IF(K8="","",VLOOKUP(K8,Таблица1[[#All],[ГОСТ]:[точка]],8,0)) ->  | H8: =IF(K8="","",VLOOKUP(K8,Таблица1[[#All],[ГОСТ]:[точка]],2,0)) ->  | J8: =E8*$J$6 -> 0 | L8: =IF(K8="","",VLOOKUP(K8,Таблица1[[#All],[ГОСТ]:[коэф]],9,0)) ->  | M8: =IFERROR(C8/1000*L8/2*J8,"") ->  | P8: 1 | S8: =IF(J8=0,0,1) -> 0 | U8: =IF(N8=0,0,(C8/1000*L8/2-N8)*J8) -> 0
A9: =IF(E9=0,"z","") -> z | D9: 500 | F9: 0 | G9: =IF(K9="","",VLOOKUP(K9,Таблица1[[#All],[ГОСТ]:[точка]],8,0)) ->  | H9: =IF(K9="","",VLOOKUP(K9,Таблица1[[#All],[ГОСТ]:[точка]],2,0)) ->  | J9: =E9*$J$6 -> 0 | L9: =IF(K9="","",VLOOKUP(K9,Таблица1[[#All],[ГОСТ]:[коэф]],9,0)) ->  | P9: 2 | S9: =IF(J9=0,S8,S8+1) -> 0 | U9: =IF(N9=0,0,(C9/1000*L9/2-N9)*J9) -> 0
A10: z | D10: 500 | F10: 0 | G10: =IF(K10="","",VLOOKUP(K10,Таблица1[[#All],[ГОСТ]:[точка]],8,0)) ->  | H10: =IF(K10="","",VLOOKUP(K10,Таблица1[[#All],[ГОСТ]:[точка]],2,0)) ->  | J10: 0 | L10: =IF(K10="","",VLOOKUP(K10,Таблица1[[#All],[ГОСТ]:[коэф]],9,0)) ->  | P10: 3 | S10: 0 | U10: 0
A11: z | D11: 500 | F11: 0 | G11: =IF(K11="","",VLOOKUP(K11,Таблица1[[#All],[ГОСТ]:[точка]],8,0)) ->  | H11: =IF(K11="","",VLOOKUP(K11,Таблица1[[#All],[ГОСТ]:[точка]],2,0)) ->  | J11: 0 | L11: =IF(K11="","",VLOOKUP(K11,Таблица1[[#All],[ГОСТ]:[коэф]],9,0)) ->  | P11: 4 | S11: 0 | U11: 0
A12: z | D12: 500 | F12: 0 | G12: =IF(K12="","",VLOOKUP(K12,Таблица1[[#All],[ГОСТ]:[точка]],8,0)) ->  | H12: =IF(K12="","",VLOOKUP(K12,Таблица1[[#All],[ГОСТ]:[точка]],2,0)) ->  | J12: 0 | L12: =IF(K12="","",VLOOKUP(K12,Таблица1[[#All],[ГОСТ]:[коэф]],9,0)) ->  | P12: 5 | S12: 0 | U12: 0
A13: z | D13: 500 | F13: 0 | G13: =IF(K13="","",VLOOKUP(K13,Таблица1[[#All],[ГОСТ]:[точка]],8,0)) ->  | H13: =IF(K13="","",VLOOKUP(K13,Таблица1[[#All],[ГОСТ]:[точка]],2,0)) ->  | J13: 0 | L13: =IF(K13="","",VLOOKUP(K13,Таблица1[[#All],[ГОСТ]:[коэф]],9,0)) ->  | P13: 6 | S13: 0 | U13: 0
A14: =IF(E14=0,"z","") -> z | B14: =IF(J14=0,"",S14) ->  | D14: 500 | F14: 0 | G14: =IF(K14="","",VLOOKUP(K14,Таблица1[[#All],[ГОСТ]:[точка]],8,0)) ->  | H14: =IF(K14="","",VLOOKUP(K14,Таблица1[[#All],[ГОСТ]:[точка]],2,0)) ->  | J14: =E14*$J$6 -> 0 | L14: =IF(K14="","",VLOOKUP(K14,Таблица1[[#All],[ГОСТ]:[коэф]],9,0)) ->  | P14: 7 | S14: =IF(J14=0,S13,S13+1) -> 0 | U14: 0
A15: z | D15: 500 | F15: 0 | G15: =IF(K15="","",VLOOKUP(K15,Таблица1[[#All],[ГОСТ]:[точка]],8,0)) ->  | H15: =IF(K15="","",VLOOKUP(K15,Таблица1[[#All],[ГОСТ]:[точка]],2,0)) ->  | J15: 0 | L15: =IF(K15="","",VLOOKUP(K15,Таблица1[[#All],[ГОСТ]:[коэф]],9,0)) ->  | P15: 8 | S15: 0 | U15: 0
A16: z | D16: 500 | F16: 0 | G16: =IF(K16="","",VLOOKUP(K16,Таблица1[[#All],[ГОСТ]:[точка]],8,0)) ->  | H16: =IF(K16="","",VLOOKUP(K16,Таблица1[[#All],[ГОСТ]:[точка]],2,0)) ->  | J16: 0 | L16: =IF(K16="","",VLOOKUP(K16,Таблица1[[#All],[ГОСТ]:[коэф]],9,0)) ->  | P16: 9 | S16: 0 | U16: 0
A17: z | D17: 500 | F17: 0 | G17: =IF(K17="","",VLOOKUP(K17,Таблица1[[#All],[ГОСТ]:[точка]],8,0)) ->  | H17: =IF(K17="","",VLOOKUP(K17,Таблица1[[#All],[ГОСТ]:[точка]],2,0)) ->  | J17: 0 | L17: =IF(K17="","",VLOOKUP(K17,Таблица1[[#All],[ГОСТ]:[коэф]],9,0)) ->  | P17: 10 | S17: 0 | U17: 0
A18: z | D18: 500 | F18: 0 | G18: =IF(K18="","",VLOOKUP(K18,Таблица1[[#All],[ГОСТ]:[точка]],8,0)) ->  | H18: =IF(K18="","",VLOOKUP(K18,Таблица1[[#All],[ГОСТ]:[точка]],2,0)) ->  | J18: 0 | L18: =IF(K18="","",VLOOKUP(K18,Таблица1[[#All],[ГОСТ]:[коэф]],9,0)) ->  | P18: 11 | S18: 0 | U18: 0
A19: z | D19: 500 | F19: 0 | G19: =IF(K19="","",VLOOKUP(K19,Таблица1[[#All],[ГОСТ]:[точка]],8,0)) ->  | H19: =IF(K19="","",VLOOKUP(K19,Таблица1[[#All],[ГОСТ]:[точка]],2,0)) ->  | J19: 0 | L19: =IF(K19="","",VLOOKUP(K19,Таблица1[[#All],[ГОСТ]:[коэф]],9,0)) ->  | P19: 12 | S19: 0 | U19: 0
A20: z | D20: 500 | F20: 0 | G20: =IF(K20="","",VLOOKUP(K20,Таблица1[[#All],[ГОСТ]:[точка]],8,0)) ->  | H20: =IF(K20="","",VLOOKUP(K20,Таблица1[[#All],[ГОСТ]:[точка]],2,0)) ->  | J20: 0 | L20: =IF(K20="","",VLOOKUP(K20,Таблица1[[#All],[ГОСТ]:[коэф]],9,0)) ->  | P20: 13 | S20: 0 | U20: 0
A21: z | D21: 500 | F21: 0 | G21: =IF(K21="","",VLOOKUP(K21,Таблица1[[#All],[ГОСТ]:[точка]],8,0)) ->  | H21: =IF(K21="","",VLOOKUP(K21,Таблица1[[#All],[ГОСТ]:[точка]],2,0)) ->  | J21: 0 | L21: =IF(K21="","",VLOOKUP(K21,Таблица1[[#All],[ГОСТ]:[коэф]],9,0)) ->  | P21: 14 | S21: 0 | U21: 0
A22: z | D22: 500 | F22: 0 | G22: =IF(K22="","",VLOOKUP(K22,Таблица1[[#All],[ГОСТ]:[точка]],8,0)) ->  | H22: =IF(K22="","",VLOOKUP(K22,Таблица1[[#All],[ГОСТ]:[точка]],2,0)) ->  | J22: 0 | L22: =IF(K22="","",VLOOKUP(K22,Таблица1[[#All],[ГОСТ]:[коэф]],9,0)) ->  | P22: 15 | S22: 0 | U22: 0
A23: z | D23: 500 | F23: 0 | G23: =IF(K23="","",VLOOKUP(K23,Таблица1[[#All],[ГОСТ]:[точка]],8,0)) ->  | H23: =IF(K23="","",VLOOKUP(K23,Таблица1[[#All],[ГОСТ]:[точка]],2,0)) ->  | J23: 0 | L23: =IF(K23="","",VLOOKUP(K23,Таблица1[[#All],[ГОСТ]:[коэф]],9,0)) ->  | P23: 16 | S23: 0 | U23: 0
A24: z | D24: 500 | F24: 0 | G24: =IF(K24="","",VLOOKUP(K24,Таблица1[[#All],[ГОСТ]:[точка]],8,0)) ->  | H24: =IF(K24="","",VLOOKUP(K24,Таблица1[[#All],[ГОСТ]:[точка]],2,0)) ->  | J24: 0 | L24: =IF(K24="","",VLOOKUP(K24,Таблица1[[#All],[ГОСТ]:[коэф]],9,0)) ->  | P24: 17 | S24: 0 | U24: 0
A25: z | D25: 500 | F25: 0 | G25: =IF(K25="","",VLOOKUP(K25,Таблица1[[#All],[ГОСТ]:[точка]],8,0)) ->  | H25: =IF(K25="","",VLOOKUP(K25,Таблица1[[#All],[ГОСТ]:[точка]],2,0)) ->  | J25: 0 | L25: =IF(K25="","",VLOOKUP(K25,Таблица1[[#All],[ГОСТ]:[коэф]],9,0)) ->  | P25: 18 | S25: 0 | U25: 0
A26: z | D26: 500 | F26: 0 | G26: =IF(K26="","",VLOOKUP(K26,Таблица1[[#All],[ГОСТ]:[точка]],8,0)) ->  | H26: =IF(K26="","",VLOOKUP(K26,Таблица1[[#All],[ГОСТ]:[точка]],2,0)) ->  | J26: 0 | L26: =IF(K26="","",VLOOKUP(K26,Таблица1[[#All],[ГОСТ]:[коэф]],9,0)) ->  | P26: 19 | S26: 0 | U26: 0
A27: z | D27: 500 | F27: 0 | G27: =IF(K27="","",VLOOKUP(K27,Таблица1[[#All],[ГОСТ]:[точка]],8,0)) ->  | H27: =IF(K27="","",VLOOKUP(K27,Таблица1[[#All],[ГОСТ]:[точка]],2,0)) ->  | J27: 0 | L27: =IF(K27="","",VLOOKUP(K27,Таблица1[[#All],[ГОСТ]:[коэф]],9,0)) ->  | P27: 20 | S27: 0 | U27: 0
A28: z | D28: 500 | F28: 0 | G28: =IF(K28="","",VLOOKUP(K28,Таблица1[[#All],[ГОСТ]:[точка]],8,0)) ->  | H28: =IF(K28="","",VLOOKUP(K28,Таблица1[[#All],[ГОСТ]:[точка]],2,0)) ->  | J28: 0 | L28: =IF(K28="","",VLOOKUP(K28,Таблица1[[#All],[ГОСТ]:[коэф]],9,0)) ->  | P28: 21 | S28: 0 | U28: 0
A29: z | D29: 500 | F29: 0 | G29: =IF(K29="","",VLOOKUP(K29,Таблица1[[#All],[ГОСТ]:[точка]],8,0)) ->  | H29: =IF(K29="","",VLOOKUP(K29,Таблица1[[#All],[ГОСТ]:[точка]],2,0)) ->  | J29: 0 | L29: =IF(K29="","",VLOOKUP(K29,Таблица1[[#All],[ГОСТ]:[коэф]],9,0)) ->  | P29: 22 | S29: 0 | U29: 0
A30: z | D30: 500 | F30: 0 | G30: =IF(K30="","",VLOOKUP(K30,Таблица1[[#All],[ГОСТ]:[точка]],8,0)) ->  | H30: =IF(K30="","",VLOOKUP(K30,Таблица1[[#All],[ГОСТ]:[точка]],2,0)) ->  | J30: 0 | L30: =IF(K30="","",VLOOKUP(K30,Таблица1[[#All],[ГОСТ]:[коэф]],9,0)) ->  | P30: 23 | S30: 0 | U30: 0
A31: z | D31: 500 | F31: 0 | G31: =IF(K31="","",VLOOKUP(K31,Таблица1[[#All],[ГОСТ]:[точка]],8,0)) ->  | H31: =IF(K31="","",VLOOKUP(K31,Таблица1[[#All],[ГОСТ]:[точка]],2,0)) ->  | J31: 0 | L31: =IF(K31="","",VLOOKUP(K31,Таблица1[[#All],[ГОСТ]:[коэф]],9,0)) ->  | P31: 24 | S31: 0 | U31: 0
A32: z | D32: 500 | F32: 0 | G32: =IF(K32="","",VLOOKUP(K32,Таблица1[[#All],[ГОСТ]:[точка]],8,0)) ->  | H32: =IF(K32="","",VLOOKUP(K32,Таблица1[[#All],[ГОСТ]:[точка]],2,0)) ->  | J32: 0 | L32: =IF(K32="","",VLOOKUP(K32,Таблица1[[#All],[ГОСТ]:[коэф]],9,0)) ->  | P32: 25 | S32: 0 | U32: 0
A33: =IF(E33=0,"z","") -> z | B33: =IF(J33=0,"",S33) ->  | D33: 500 | F33: 0 | G33: =IF(K33="","",VLOOKUP(K33,Таблица1[[#All],[ГОСТ]:[точка]],8,0)) ->  | H33: =IF(K33="","",VLOOKUP(K33,Таблица1[[#All],[ГОСТ]:[точка]],2,0)) ->  | J33: =E33*$J$6 -> 0 | L33: =IF(K33="","",VLOOKUP(K33,Таблица1[[#All],[ГОСТ]:[коэф]],9,0)) ->  | P33: 26 | S33: =IF(J33=0,S32,S32+1) -> 0 | U33: 0
A34: z | D34: 500 | F34: 0 | G34: =IF(K34="","",VLOOKUP(K34,Таблица1[[#All],[ГОСТ]:[точка]],8,0)) ->  | H34: =IF(K34="","",VLOOKUP(K34,Таблица1[[#All],[ГОСТ]:[точка]],2,0)) ->  | J34: 0 | L34: =IF(K34="","",VLOOKUP(K34,Таблица1[[#All],[ГОСТ]:[коэф]],9,0)) ->  | P34: 27 | S34: 0 | U34: 0
A35: z | D35: 500 | F35: 0 | G35: =IF(K35="","",VLOOKUP(K35,Таблица1[[#All],[ГОСТ]:[точка]],8,0)) ->  | H35: =IF(K35="","",VLOOKUP(K35,Таблица1[[#All],[ГОСТ]:[точка]],2,0)) ->  | J35: 0 | L35: =IF(K35="","",VLOOKUP(K35,Таблица1[[#All],[ГОСТ]:[коэф]],9,0)) ->  | P35: 28 | S35: 0 | U35: 0
A36: z | D36: 500 | F36: 0 | G36: =IF(K36="","",VLOOKUP(K36,Таблица1[[#All],[ГОСТ]:[точка]],8,0)) ->  | H36: =IF(K36="","",VLOOKUP(K36,Таблица1[[#All],[ГОСТ]:[точка]],2,0)) ->  | J36: 0 | L36: =IF(K36="","",VLOOKUP(K36,Таблица1[[#All],[ГОСТ]:[коэф]],9,0)) ->  | P36: 29 | S36: 0 | U36: 0
A37: z | D37: 500 | F37: 0 | G37: =IF(K37="","",VLOOKUP(K37,Таблица1[[#All],[ГОСТ]:[точка]],8,0)) ->  | H37: =IF(K37="","",VLOOKUP(K37,Таблица1[[#All],[ГОСТ]:[точка]],2,0)) ->  | J37: 0 | L37: =IF(K37="","",VLOOKUP(K37,Таблица1[[#All],[ГОСТ]:[коэф]],9,0)) ->  | P37: 30 | S37: 0 | U37: 0
A38: z | D38: 500 | F38: 0 | G38: =IF(K38="","",VLOOKUP(K38,Таблица1[[#All],[ГОСТ]:[точка]],8,0)) ->  | H38: =IF(K38="","",VLOOKUP(K38,Таблица1[[#All],[ГОСТ]:[точка]],2,0)) ->  | J38: 0 | L38: =IF(K38="","",VLOOKUP(K38,Таблица1[[#All],[ГОСТ]:[коэф]],9,0)) ->  | P38: 31 | S38: 0 | U38: 0
A39: z | D39: 500 | F39: 0 | G39: =IF(K39="","",VLOOKUP(K39,Таблица1[[#All],[ГОСТ]:[точка]],8,0)) ->  | H39: =IF(K39="","",VLOOKUP(K39,Таблица1[[#All],[ГОСТ]:[точка]],2,0)) ->  | J39: 0 | L39: =IF(K39="","",VLOOKUP(K39,Таблица1[[#All],[ГОСТ]:[коэф]],9,0)) ->  | P39: 32 | S39: 0 | U39: 0
A40: z | D40: 500 | F40: 0 | G40: =IF(K40="","",VLOOKUP(K40,Таблица1[[#All],[ГОСТ]:[точка]],8,0)) ->  | H40: =IF(K40="","",VLOOKUP(K40,Таблица1[[#All],[ГОСТ]:[точка]],2,0)) ->  | J40: 0 | L40: =IF(K40="","",VLOOKUP(K40,Таблица1[[#All],[ГОСТ]:[коэф]],9,0)) ->  | P40: 33 | S40: 0 | U40: 0
A41: z | D41: 500 | F41: 0 | G41: =IF(K41="","",VLOOKUP(K41,Таблица1[[#All],[ГОСТ]:[точка]],8,0)) ->  | H41: =IF(K41="","",VLOOKUP(K41,Таблица1[[#All],[ГОСТ]:[точка]],2,0)) ->  | J41: 0 | L41: =IF(K41="","",VLOOKUP(K41,Таблица1[[#All],[ГОСТ]:[коэф]],9,0)) ->  | P41: 34 | S41: 0 | U41: 0
A42: z | D42: 500 | F42: 0 | G42: =IF(K42="","",VLOOKUP(K42,Таблица1[[#All],[ГОСТ]:[точка]],8,0)) ->  | H42: =IF(K42="","",VLOOKUP(K42,Таблица1[[#All],[ГОСТ]:[точка]],2,0)) ->  | J42: 0 | L42: =IF(K42="","",VLOOKUP(K42,Таблица1[[#All],[ГОСТ]:[коэф]],9,0)) ->  | P42: 35 | S42: 0 | U42: 0
A43: z | D43: 500 | F43: 0 | G43: =IF(K43="","",VLOOKUP(K43,Таблица1[[#All],[ГОСТ]:[точка]],8,0)) ->  | H43: =IF(K43="","",VLOOKUP(K43,Таблица1[[#All],[ГОСТ]:[точка]],2,0)) ->  | J43: 0 | L43: =IF(K43="","",VLOOKUP(K43,Таблица1[[#All],[ГОСТ]:[коэф]],9,0)) ->  | P43: 36 | S43: 0 | U43: 0
A44: z | D44: 500 | F44: 0 | G44: =IF(K44="","",VLOOKUP(K44,Таблица1[[#All],[ГОСТ]:[точка]],8,0)) ->  | H44: =IF(K44="","",VLOOKUP(K44,Таблица1[[#All],[ГОСТ]:[точка]],2,0)) ->  | J44: 0 | L44: =IF(K44="","",VLOOKUP(K44,Таблица1[[#All],[ГОСТ]:[коэф]],9,0)) ->  | P44: 37 | S44: 0 | U44: 0
A45: z | D45: 500 | F45: 0 | G45: =IF(K45="","",VLOOKUP(K45,Таблица1[[#All],[ГОСТ]:[точка]],8,0)) ->  | H45: =IF(K45="","",VLOOKUP(K45,Таблица1[[#All],[ГОСТ]:[точка]],2,0)) ->  | J45: 0 | L45: =IF(K45="","",VLOOKUP(K45,Таблица1[[#All],[ГОСТ]:[коэф]],9,0)) ->  | P45: 38 | S45: 0 | U45: 0
A46: z | D46: 500 | F46: 0 | G46: =IF(K46="","",VLOOKUP(K46,Таблица1[[#All],[ГОСТ]:[точка]],8,0)) ->  | H46: =IF(K46="","",VLOOKUP(K46,Таблица1[[#All],[ГОСТ]:[точка]],2,0)) ->  | J46: 0 | L46: =IF(K46="","",VLOOKUP(K46,Таблица1[[#All],[ГОСТ]:[коэф]],9,0)) ->  | P46: 39 | S46: 0 | U46: 0
A47: z | D47: 500 | F47: 0 | G47: =IF(K47="","",VLOOKUP(K47,Таблица1[[#All],[ГОСТ]:[точка]],8,0)) ->  | H47: =IF(K47="","",VLOOKUP(K47,Таблица1[[#All],[ГОСТ]:[точка]],2,0)) ->  | J47: 0 | L47: =IF(K47="","",VLOOKUP(K47,Таблица1[[#All],[ГОСТ]:[коэф]],9,0)) ->  | P47: 40 | S47: 0 | U47: 0
A48: z | D48: 500 | F48: 0 | G48: =IF(K48="","",VLOOKUP(K48,Таблица1[[#All],[ГОСТ]:[точка]],8,0)) ->  | H48: =IF(K48="","",VLOOKUP(K48,Таблица1[[#All],[ГОСТ]:[точка]],2,0)) ->  | J48: 0 | L48: =IF(K48="","",VLOOKUP(K48,Таблица1[[#All],[ГОСТ]:[коэф]],9,0)) ->  | P48: 41 | S48: 0 | U48: 0
A49: z | D49: 500 | F49: 0 | G49: =IF(K49="","",VLOOKUP(K49,Таблица1[[#All],[ГОСТ]:[точка]],8,0)) ->  | H49: =IF(K49="","",VLOOKUP(K49,Таблица1[[#All],[ГОСТ]:[точка]],2,0)) ->  | J49: 0 | L49: =IF(K49="","",VLOOKUP(K49,Таблица1[[#All],[ГОСТ]:[коэф]],9,0)) ->  | P49: 42 | S49: 0 | U49: 0
A50: z | D50: 500 | F50: 0 | G50: =IF(K50="","",VLOOKUP(K50,Таблица1[[#All],[ГОСТ]:[точка]],8,0)) ->  | H50: =IF(K50="","",VLOOKUP(K50,Таблица1[[#All],[ГОСТ]:[точка]],2,0)) ->  | J50: 0 | L50: =IF(K50="","",VLOOKUP(K50,Таблица1[[#All],[ГОСТ]:[коэф]],9,0)) ->  | P50: 43 | S50: 0 | U50: 0
A51: z | D51: 500 | F51: 0 | G51: =IF(K51="","",VLOOKUP(K51,Таблица1[[#All],[ГОСТ]:[точка]],8,0)) ->  | H51: =IF(K51="","",VLOOKUP(K51,Таблица1[[#All],[ГОСТ]:[точка]],2,0)) ->  | J51: 0 | L51: =IF(K51="","",VLOOKUP(K51,Таблица1[[#All],[ГОСТ]:[коэф]],9,0)) ->  | P51: 44 | S51: 0 | U51: 0
A52: z | D52: 500 | F52: 0 | G52: =IF(K52="","",VLOOKUP(K52,Таблица1[[#All],[ГОСТ]:[точка]],8,0)) ->  | H52: =IF(K52="","",VLOOKUP(K52,Таблица1[[#All],[ГОСТ]:[точка]],2,0)) ->  | J52: 0 | L52: =IF(K52="","",VLOOKUP(K52,Таблица1[[#All],[ГОСТ]:[коэф]],9,0)) ->  | P52: 45 | S52: 0 | U52: 0
A53: z | D53: 500 | F53: 0 | G53: =IF(K53="","",VLOOKUP(K53,Таблица1[[#All],[ГОСТ]:[точка]],8,0)) ->  | H53: =IF(K53="","",VLOOKUP(K53,Таблица1[[#All],[ГОСТ]:[точка]],2,0)) ->  | J53: 0 | L53: =IF(K53="","",VLOOKUP(K53,Таблица1[[#All],[ГОСТ]:[коэф]],9,0)) ->  | P53: 46 | S53: 0 | U53: 0
A54: z | D54: 500 | F54: 0 | G54: =IF(K54="","",VLOOKUP(K54,Таблица1[[#All],[ГОСТ]:[точка]],8,0)) ->  | H54: =IF(K54="","",VLOOKUP(K54,Таблица1[[#All],[ГОСТ]:[точка]],2,0)) ->  | J54: 0 | L54: =IF(K54="","",VLOOKUP(K54,Таблица1[[#All],[ГОСТ]:[коэф]],9,0)) ->  | P54: 47 | S54: 0 | U54: 0
A55: z | D55: 500 | F55: 0 | G55: =IF(K55="","",VLOOKUP(K55,Таблица1[[#All],[ГОСТ]:[точка]],8,0)) ->  | H55: =IF(K55="","",VLOOKUP(K55,Таблица1[[#All],[ГОСТ]:[точка]],2,0)) ->  | J55: 0 | L55: =IF(K55="","",VLOOKUP(K55,Таблица1[[#All],[ГОСТ]:[коэф]],9,0)) ->  | P55: 48 | S55: 0 | U55: 0
A56: z | D56: 500 | F56: 0 | G56: =IF(K56="","",VLOOKUP(K56,Таблица1[[#All],[ГОСТ]:[точка]],8,0)) ->  | H56: =IF(K56="","",VLOOKUP(K56,Таблица1[[#All],[ГОСТ]:[точка]],2,0)) ->  | J56: 0 | L56: =IF(K56="","",VLOOKUP(K56,Таблица1[[#All],[ГОСТ]:[коэф]],9,0)) ->  | P56: 49 | S56: 0 | U56: 0
A57: z | D57: 500 | F57: 0 | G57: =IF(K57="","",VLOOKUP(K57,Таблица1[[#All],[ГОСТ]:[точка]],8,0)) ->  | H57: =IF(K57="","",VLOOKUP(K57,Таблица1[[#All],[ГОСТ]:[точка]],2,0)) ->  | J57: 0 | L57: =IF(K57="","",VLOOKUP(K57,Таблица1[[#All],[ГОСТ]:[коэф]],9,0)) ->  | P57: 50 | S57: 0 | U57: 0
I58: Всего | J58: =SUM(J8:J57) -> 0
B60: Карта раскроя № | C60: Длина, мм | D60: Ширина, мм | E60: Толщина, мм | F60: Марка материала | G60: Кол-во | H60: Площадь остатков всего, кв.м | I60: Площадь деталей всего, кв.м | J60: Количество деталей | M60: Коэфициент | N60: Трубы/остатка со склада масса кг | P60: Получил | Q60: Деловой остаток на склад кг | S60: Получил кладовщик | T60: Масса деталей кг | V60: Количество деталей | W60: Получил | X60: Расход кг | Y60: ЛОМ кг
N61: теория | O61: факт | Q61: теория | R61: факт | T61: теория | U61: факт
A62: =IF(G62=0,"z","") -> z | K62: 1 | M62: =IFERROR(VLOOKUP(F62,Таблица1[[#All],[АСТРА]:[коэф]],7,0),"0") -> 0 | N62: =C62*D62*G62*M62/1000000 -> 0 | Q62: =H62*M62 -> 0 | T62: =I62*M62 -> 0 | X62: =N62-Q62 -> 0 | Y62: =X62-T62 -> 0
A63: =IF(G63=0,"z","") -> z | K63: 2 | M63: =IFERROR(VLOOKUP(F63,Таблица1[[#All],[АСТРА]:[коэф]],7,0),"0") -> 0 | N63: 0 | Q63: 0 | T63: 0 | X63: 0 | Y63: =X63-T63 -> 0
A64: z | K64: 3 | M64: =IFERROR(VLOOKUP(F64,Таблица1[[#All],[АСТРА]:[коэф]],7,0),"0") -> 0 | N64: 0 | Q64: 0 | T64: 0 | X64: 0 | Y64: 0
A65: z | K65: 4 | M65: =IFERROR(VLOOKUP(F65,Таблица1[[#All],[АСТРА]:[коэф]],7,0),"0") -> 0 | N65: 0 | Q65: 0 | T65: 0 | X65: 0 | Y65: 0
A66: z | K66: 5 | M66: =IFERROR(VLOOKUP(F66,Таблица1[[#All],[АСТРА]:[коэф]],7,0),"0") -> 0 | N66: 0 | Q66: 0 | T66: 0 | X66: 0 | Y66: 0
A67: z | K67: 6 | M67: =IFERROR(VLOOKUP(F67,Таблица1[[#All],[АСТРА]:[коэф]],7,0),"0") -> 0 | N67: 0 | Q67: 0 | T67: 0 | X67: 0 | Y67: 0
A68: z | K68: 7 | M68: =IFERROR(VLOOKUP(F68,Таблица1[[#All],[АСТРА]:[коэф]],7,0),"0") -> 0 | N68: 0 | Q68: 0 | T68: 0 | X68: 0 | Y68: 0
A69: z | K69: 8 | M69: =IFERROR(VLOOKUP(F69,Таблица1[[#All],[АСТРА]:[коэф]],7,0),"0") -> 0 | N69: 0 | Q69: 0 | T69: 0 | X69: 0 | Y69: 0
A70: z | K70: 9 | M70: =IFERROR(VLOOKUP(F70,Таблица1[[#All],[АСТРА]:[коэф]],7,0),"0") -> 0 | N70: 0 | Q70: 0 | T70: 0 | X70: 0 | Y70: 0
A71: z | K71: 10 | M71: =IFERROR(VLOOKUP(F71,Таблица1[[#All],[АСТРА]:[коэф]],7,0),"0") -> 0 | N71: 0 | Q71: 0 | T71: 0 | X71: 0 | Y71: 0
A72: =IF(G72=0,"z","") -> z | K72: 11 | M72: =IFERROR(VLOOKUP(F72,Таблица1[[#All],[АСТРА]:[коэф]],7,0),"0") -> 0 | N72: =C72*D72*G72*M72/1000000 -> 0 | Q72: =H72*M72 -> 0 | T72: =I72*M72 -> 0 | X72: =N72-Q72 -> 0 | Y72: =X72-T72 -> 0
A73: z | K73: 12 | M73: =IFERROR(VLOOKUP(F73,Таблица1[[#All],[АСТРА]:[коэф]],7,0),"0") -> 0 | N73: 0 | Q73: 0 | T73: 0 | X73: 0 | Y73: 0
A74: z | K74: 13 | M74: =IFERROR(VLOOKUP(F74,Таблица1[[#All],[АСТРА]:[коэф]],7,0),"0") -> 0 | N74: 0 | Q74: 0 | T74: 0 | X74: 0 | Y74: 0
A75: z | K75: 14 | M75: =IFERROR(VLOOKUP(F75,Таблица1[[#All],[АСТРА]:[коэф]],7,0),"0") -> 0 | N75: 0 | Q75: 0 | T75: 0 | X75: 0 | Y75: 0
A76: z | K76: 15 | M76: =IFERROR(VLOOKUP(F76,Таблица1[[#All],[АСТРА]:[коэф]],7,0),"0") -> 0 | N76: 0 | Q76: 0 | T76: 0 | X76: 0 | Y76: 0
A77: z | K77: 16 | M77: =IFERROR(VLOOKUP(F77,Таблица1[[#All],[АСТРА]:[коэф]],7,0),"0") -> 0 | N77: 0 | Q77: 0 | T77: 0 | X77: 0 | Y77: 0
A78: z | K78: 17 | M78: =IFERROR(VLOOKUP(F78,Таблица1[[#All],[АСТРА]:[коэф]],7,0),"0") -> 0 | N78: 0 | Q78: 0 | T78: 0 | X78: 0 | Y78: 0
A79: z | K79: 18 | M79: =IFERROR(VLOOKUP(F79,Таблица1[[#All],[АСТРА]:[коэф]],7,0),"0") -> 0 | N79: 0 | Q79: 0 | T79: 0 | X79: 0 | Y79: 0
A80: z | K80: 19 | M80: =IFERROR(VLOOKUP(F80,Таблица1[[#All],[АСТРА]:[коэф]],7,0),"0") -> 0 | N80: 0 | Q80: 0 | T80: 0 | X80: 0 | Y80: 0
A81: z | K81: 20 | M81: =IFERROR(VLOOKUP(F81,Таблица1[[#All],[АСТРА]:[коэф]],7,0),"0") -> 0 | N81: 0 | Q81: 0 | T81: 0 | X81: 0 | Y81: 0
A82: z | K82: 21 | M82: =IFERROR(VLOOKUP(F82,Таблица1[[#All],[АСТРА]:[коэф]],7,0),"0") -> 0 | N82: 0 | Q82: 0 | T82: 0 | X82: 0 | Y82: 0
A83: z | K83: 22 | M83: =IFERROR(VLOOKUP(F83,Таблица1[[#All],[АСТРА]:[коэф]],7,0),"0") -> 0 | N83: 0 | Q83: 0 | T83: 0 | X83: 0 | Y83: 0
A84: z | K84: 23 | M84: =IFERROR(VLOOKUP(F84,Таблица1[[#All],[АСТРА]:[коэф]],7,0),"0") -> 0 | N84: 0 | Q84: 0 | T84: 0 | X84: 0 | Y84: 0
A85: z | K85: 24 | M85: =IFERROR(VLOOKUP(F85,Таблица1[[#All],[АСТРА]:[коэф]],7,0),"0") -> 0 | N85: 0 | Q85: 0 | T85: 0 | X85: 0 | Y85: 0
A86: z | K86: 25 | M86: =IFERROR(VLOOKUP(F86,Таблица1[[#All],[АСТРА]:[коэф]],7,0),"0") -> 0 | N86: 0 | Q86: 0 | T86: 0 | X86: 0 | Y86: 0
A87: z | K87: 26 | M87: =IFERROR(VLOOKUP(F87,Таблица1[[#All],[АСТРА]:[коэф]],7,0),"0") -> 0 | N87: 0 | Q87: 0 | T87: 0 | X87: 0 | Y87: 0
A88: z | K88: 27 | M88: =IFERROR(VLOOKUP(F88,Таблица1[[#All],[АСТРА]:[коэф]],7,0),"0") -> 0 | N88: 0 | Q88: 0 | T88: 0 | X88: 0 | Y88: 0
A89: z | K89: 28 | M89: =IFERROR(VLOOKUP(F89,Таблица1[[#All],[АСТРА]:[коэф]],7,0),"0") -> 0 | N89: 0 | Q89: 0 | T89: 0 | X89: 0 | Y89: 0
A90: z | K90: 29 | M90: =IFERROR(VLOOKUP(F90,Таблица1[[#All],[АСТРА]:[коэф]],7,0),"0") -> 0 | N90: 0 | Q90: 0 | T90: 0 | X90: 0 | Y90: 0
A91: z | K91: 30 | M91: =IFERROR(VLOOKUP(F91,Таблица1[[#All],[АСТРА]:[коэф]],7,0),"0") -> 0 | N91: 0 | Q91: 0 | T91: 0 | X91: 0 | Y91: 0
A92: z | K92: 31 | M92: =IFERROR(VLOOKUP(F92,Таблица1[[#All],[АСТРА]:[коэф]],7,0),"0") -> 0 | N92: 0 | Q92: 0 | T92: 0 | X92: 0 | Y92: 0
A93: z | K93: 32 | M93: =IFERROR(VLOOKUP(F93,Таблица1[[#All],[АСТРА]:[коэф]],7,0),"0") -> 0 | N93: 0 | Q93: 0 | T93: 0 | X93: 0 | Y93: 0
A94: z | K94: 33 | M94: =IFERROR(VLOOKUP(F94,Таблица1[[#All],[АСТРА]:[коэф]],7,0),"0") -> 0 | N94: 0 | Q94: 0 | T94: 0 | X94: 0 | Y94: 0
A95: z | K95: 34 | M95: =IFERROR(VLOOKUP(F95,Таблица1[[#All],[АСТРА]:[коэф]],7,0),"0") -> 0 | N95: 0 | Q95: 0 | T95: 0 | X95: 0 | Y95: 0
A96: z | K96: 35 | M96: =IFERROR(VLOOKUP(F96,Таблица1[[#All],[АСТРА]:[коэф]],7,0),"0") -> 0 | N96: 0 | Q96: 0 | T96: 0 | X96: 0 | Y96: 0
A97: z | K97: 36 | M97: =IFERROR(VLOOKUP(F97,Таблица1[[#All],[АСТРА]:[коэф]],7,0),"0") -> 0 | N97: 0 | Q97: 0 | T97: 0 | X97: 0 | Y97: 0
A98: z | K98: 37 | M98: =IFERROR(VLOOKUP(F98,Таблица1[[#All],[АСТРА]:[коэф]],7,0),"0") -> 0 | N98: 0 | Q98: 0 | T98: 0 | X98: 0 | Y98: 0
A99: z | K99: 38 | M99: =IFERROR(VLOOKUP(F99,Таблица1[[#All],[АСТРА]:[коэф]],7,0),"0") -> 0 | N99: 0 | Q99: 0 | T99: 0 | X99: 0 | Y99: 0
A100: z | K100: 39 | M100: =IFERROR(VLOOKUP(F100,Таблица1[[#All],[АСТРА]:[коэф]],7,0),"0") -> 0 | N100: 0 | Q100: 0 | T100: 0 | X100: 0 | Y100: 0
A101: z | K101: 40 | M101: =IFERROR(VLOOKUP(F101,Таблица1[[#All],[АСТРА]:[коэф]],7,0),"0") -> 0 | N101: 0 | Q101: 0 | T101: 0 | X101: 0 | Y101: 0
A102: z | K102: 41 | M102: =IFERROR(VLOOKUP(F102,Таблица1[[#All],[АСТРА]:[коэф]],7,0),"0") -> 0 | N102: 0 | Q102: 0 | T102: 0 | X102: 0 | Y102: 0
A103: z | K103: 42 | M103: =IFERROR(VLOOKUP(F103,Таблица1[[#All],[АСТРА]:[коэф]],7,0),"0") -> 0 | N103: 0 | Q103: 0 | T103: 0 | X103: 0 | Y103: 0
A104: z | K104: 43 | M104: =IFERROR(VLOOKUP(F104,Таблица1[[#All],[АСТРА]:[коэф]],7,0),"0") -> 0 | N104: 0 | Q104: 0 | T104: 0 | X104: 0 | Y104: 0
A105: z | K105: 44 | M105: =IFERROR(VLOOKUP(F105,Таблица1[[#All],[АСТРА]:[коэф]],7,0),"0") -> 0 | N105: 0 | Q105: 0 | T105: 0 | X105: 0 | Y105: 0
A106: z | K106: 45 | M106: =IFERROR(VLOOKUP(F106,Таблица1[[#All],[АСТРА]:[коэф]],7,0),"0") -> 0 | N106: 0 | Q106: 0 | T106: 0 | X106: 0 | Y106: 0
A107: z | K107: 46 | M107: =IFERROR(VLOOKUP(F107,Таблица1[[#All],[АСТРА]:[коэф]],7,0),"0") -> 0 | N107: 0 | Q107: 0 | T107: 0 | X107: 0 | Y107: 0
A108: z | K108: 47 | M108: =IFERROR(VLOOKUP(F108,Таблица1[[#All],[АСТРА]:[коэф]],7,0),"0") -> 0 | N108: 0 | Q108: 0 | T108: 0 | X108: 0 | Y108: 0
A109: z | K109: 48 | M109: =IFERROR(VLOOKUP(F109,Таблица1[[#All],[АСТРА]:[коэф]],7,0),"0") -> 0 | N109: 0 | Q109: 0 | T109: 0 | X109: 0 | Y109: 0
A110: z | K110: 49 | M110: =IFERROR(VLOOKUP(F110,Таблица1[[#All],[АСТРА]:[коэф]],7,0),"0") -> 0 | N110: 0 | Q110: 0 | T110: 0 | X110: 0 | Y110: 0
A111: z | K111: 50 | M111: =IFERROR(VLOOKUP(F111,Таблица1[[#All],[АСТРА]:[коэф]],7,0),"0") -> 0 | N111: 0 | Q111: 0 | T111: 0 | X111: 0 | Y111: 0
A112: z | K112: 51 | M112: =IFERROR(VLOOKUP(F112,Таблица1[[#All],[АСТРА]:[коэф]],7,0),"0") -> 0 | N112: 0 | Q112: 0 | T112: 0 | X112: 0 | Y112: 0
A113: z | K113: 52 | M113: =IFERROR(VLOOKUP(F113,Таблица1[[#All],[АСТРА]:[коэф]],7,0),"0") -> 0 | N113: 0 | Q113: 0 | T113: 0 | X113: 0 | Y113: 0
A114: z | K114: 53 | M114: =IFERROR(VLOOKUP(F114,Таблица1[[#All],[АСТРА]:[коэф]],7,0),"0") -> 0 | N114: 0 | Q114: 0 | T114: 0 | X114: 0 | Y114: 0
A115: z | K115: 54 | M115: =IFERROR(VLOOKUP(F115,Таблица1[[#All],[АСТРА]:[коэф]],7,0),"0") -> 0 | N115: 0 | Q115: 0 | T115: 0 | X115: 0 | Y115: 0
A116: z | K116: 55 | M116: =IFERROR(VLOOKUP(F116,Таблица1[[#All],[АСТРА]:[коэф]],7,0),"0") -> 0 | N116: 0 | Q116: 0 | T116: 0 | X116: 0 | Y116: 0
B117: Данные раскроя АСТРА (без уточнения масс) | N117: =SUM(N62:N116) -> 0 | Q117: =SUM(Q62:Q116) -> 0 | T117: =SUM(T62:T116) -> 0 | X117: =SUM(X62:X116) -> 0 | Y117: =SUM(Y62:Y116) -> 0
I119: Получить | O119: Остаток | R119: ЛОМ кг | S119: Точная масса ЛОМА кг | T119: Детали | W119: Точная масса деталей кг | Y119: Расход | AB119: лом
D120: Длина целых мм | F120: Труб со склада | G120: Толщина мм | H120: Марка материала | I120: Масса целых кг | J120: Масса деловых кг | M120: Резы | N120: Общая кг | O120: Деловой остаток с целых кг | P120: Деловой остаок с деловых кг | Q120: Общая кг | T120: Масса деталей целых кг | U120: Масса деталей деловых кг | V120: Общая кг | Y120: Расход целых кг | Z120: Расход деловых кг | AA120: Общий кг | AB120: ЛОМ дубль кг | AC120: отход на порезку | AD120: лом чистый целых | AE120: лом чистый деловых | AO120: коэф 2м | AP120: Разница массы
A121: z | G121: копия | H121: копия
A122: z | B122: Столбец1 | C122: Столбец2 | D122: Дл | E122: Столбец4 | F122: со.склада.шт. | G122: Толщ.копия | H122: Столбец5 | I122: пол.мас.цел | J122: пол.мас.дел | K122: Столбец10 | L122: Столбец6 | M122: резы | N122: пол.общ | O122: ост.с.цел | P122: ост.с.дел | Q122: ост.общ | R122: лом | S122: Столбец20 | T122: Столбец17 | U122: Столбец18 | V122: Столбец19 | W122: Столбец21 | X122: Столбец22 | Y122: Столбец23 | Z122: Столбец24 | AA122: Столбец25 | AB122: Столбец26 | AC122: лом.на.пор. | AD122: лом.целых | AE122: лом.делов | AF122: шир.рез | AG122: ГОСТ | AH122: Для.дано | AI122: АСТРА | AJ122: Столбец33 | AK122: Столбец34 | AL122: профиль | AM122: толщ | AN122: точка | AO122: коэф | AP122: корр.масс
A123: =IF(Таблица1[[#This Row],[Столбец19]]=0,"z","") -> z | D123: 6000 | F123: =SUMIFS($G$62:$G$116,$D$62:$D$116,500,$C$62:$C$116,Таблица1[[#This Row],[Дл]],$F$62:$F$116,Таблица1[[#This Row],[АСТРА]]) -> 0 | G123: =Таблица1[[#This Row],[толщ]] -> 10 | H123: =Таблица1[[#This Row],[ГОСТ]] -> Арматура 10 | I123: =SUMIFS($N$62:$N$116,$C$62:$C$116,Таблица1[[#This Row],[Дл]],$D$62:$D$116,"=500",$F$62:$F$116,Таблица1[[#This Row],[АСТРА]]) -> 0 | J123: =SUMIFS($N$62:$N$116,$C$62:$C$116,"<"&Таблица1[[#This Row],[Дл]],$D$62:$D$116,"=500",$F$62:$F$116,Таблица1[[#This Row],[АСТРА]]) -> 0 | M123: =SUMIFS($J$8:$J$57,$K$8:$K$57,Таблица1[[#This Row],[Столбец5]]) -> 0 | N123: =Таблица1[[#This Row],[пол.мас.цел]]+Таблица1[[#This Row],[пол.мас.дел]] -> 0 | O123: =SUMIFS($Q$62:$Q$116,$C$62:$C$116,Таблица1[[#This Row],[Дл]],$D$62:$D$116,"=500",$F$62:$F$116,Таблица1[[#This Row],[АСТРА]]) -> 0 | P123: =SUMIFS($Q$62:$Q$116,$C$62:$C$116,"<"&Таблица1[[#This Row],[Дл]],$D$62:$D$116,"=500",$F$62:$F$116,Таблица1[[#This Row],[АСТРА]]) -> 0 | Q123: =Таблица1[[#This Row],[ост.с.цел]]+Таблица1[[#This Row],[ост.с.дел]] -> 0 | R123: =Таблица1[[#This Row],[лом.целых]]+Таблица1[[#This Row],[лом.делов]]-Таблица1[[#This Row],[лом.на.пор.]] -> 0 | S123: =Таблица1[[#This Row],[лом]]+Таблица1[[#This Row],[корр.масс]] -> 0 | T123: =SUMIFS($T$62:$T$116,$C$62:$C$116,Таблица1[[#This Row],[Дл]],$D$62:$D$116,"=500",$F$62:$F$116,Таблица1[[#This Row],[АСТРА]]) -> 0 | U123: =SUMIFS($T$62:$T$116,$C$62:$C$116,"<"&Таблица1[[#This Row],[Дл]],$D$62:$D$116,"=500",$F$62:$F$116,Таблица1[[#This Row],[АСТРА]]) -> 0 | V123: =Таблица1[[#This Row],[Столбец17]]+Таблица1[[#This Row],[Столбец18]]+Таблица1[[#This Row],[лом.на.пор.]] -> 0 | W123: =Таблица1[[#This Row],[Столбец19]]-Таблица1[[#This Row],[корр.масс]] -> 0 | Y123: =SUMIFS($X$62:$X$116,$C$62:$C$116,Таблица1[[#This Row],[Дл]],$D$62:$D$116,"=500",$F$62:$F$116,Таблица1[[#This Row],[АСТРА]]) -> 0 | Z123: =SUMIFS($X$62:$X$116,$C$62:$C$116,"<"&Таблица1[[#This Row],[Дл]],$D$62:$D$116,"=500",$F$62:$F$116,Таблица1[[#This Row],[АСТРА]]) -> 0 | AA123: =Таблица1[[#This Row],[Столбец23]]+Таблица1[[#This Row],[Столбец24]] -> 0 | AB123: =Таблица1[[#This Row],[лом.целых]]+Таблица1[[#This Row],[лом.делов]]-Таблица1[[#This Row],[лом.на.пор.]] -> 0 | AC123: =IF(Таблица1[[#This Row],[резы]]*Таблица1[[#This Row],[шир.рез]]/1000*Таблица1[[#This Row],[коэф]]/2<0,0,Таблица1[[#This Row],[резы]]*Таблица1[[#This Row],[шир.рез]]/1000*Таблица1[[#This Row],[коэф]]/2) -> 0 | AD123: =SUMIFS($Y$62:$Y$116,$C$62:$C$116,Таблица1[[#This Row],[Дл]],$D$62:$D$116,"=500",$F$62:$F$116,Таблица1[[#This Row],[АСТРА]]) -> 0 | AE123: =SUMIFS($Y$62:$Y$116,$C$62:$C$116,"<"&Таблица1[[#This Row],[Дл]],$D$62:$D$116,"=500",$F$62:$F$116,Таблица1[[#This Row],[АСТРА]]) -> 0 | AF123: 5 | AG123: =IF(Таблица1[[#This Row],[профиль]]=Таблица1[[#This Row],[толщ]],CONCATENATE(Таблица1[[#This Row],[Столбец33]]," ",Таблица1[[#This Row],[толщ]]),CONCATENATE(Таблица1[[#This Row],[Столбец33]]," ",Таблица1[[#This Row],[профиль]],"х",Таблица1[[#This Row],[толщ]])) -> Арматура 10 | AH123: =CONCATENATE(Таблица1[[#This Row],[Столбец33]]," ",Таблица1[[#This Row],[профиль]]) -> Арматура 10 | AI123: Арматура 10, 10.0 мм | AJ123: Арматура | AK123: =IF(Таблица1[[#This Row],[профиль]]=Таблица1[[#This Row],[толщ]],Таблица1[[#This Row],[толщ]],CONCATENATE(Таблица1[[#This Row],[профиль]],"х",Таблица1[[#This Row],[точка]])) -> 10 | AL123: 10 | AM123: 10 | AN123: =SUBSTITUTE(Таблица1[[#This Row],[толщ]],",",".") -> 10 | AO123: =0.617*2 -> 1.234 | AP123: =SUMIFS($U$8:$U$57,$K$8:$K$57,Таблица1[[#This Row],[ГОСТ]]) -> 0
A124: =IF(Таблица1[[#This Row],[Столбец19]]=0,"z","") -> z | D124: 6000 | F124: =SUMIFS($G$62:$G$116,$D$62:$D$116,500,$C$62:$C$116,Таблица1[[#This Row],[Дл]],$F$62:$F$116,Таблица1[[#This Row],[АСТРА]]) -> 0 | G124: =Таблица1[[#This Row],[толщ]] -> 20 | H124: =Таблица1[[#This Row],[ГОСТ]] -> Арматура 20 | I124: =SUMIFS($N$62:$N$116,$C$62:$C$116,Таблица1[[#This Row],[Дл]],$D$62:$D$116,"=500",$F$62:$F$116,Таблица1[[#This Row],[АСТРА]]) -> 0 | J124: =SUMIFS($N$62:$N$116,$C$62:$C$116,"<"&Таблица1[[#This Row],[Дл]],$D$62:$D$116,"=500",$F$62:$F$116,Таблица1[[#This Row],[АСТРА]]) -> 0 | M124: =SUMIFS($J$8:$J$57,$K$8:$K$57,Таблица1[[#This Row],[Столбец5]]) -> 0 | N124: =Таблица1[[#This Row],[пол.мас.цел]]+Таблица1[[#This Row],[пол.мас.дел]] -> 0 | O124: =SUMIFS($Q$62:$Q$116,$C$62:$C$116,Таблица1[[#This Row],[Дл]],$D$62:$D$116,"=500",$F$62:$F$116,Таблица1[[#This Row],[АСТРА]]) -> 0 | P124: =SUMIFS($Q$62:$Q$116,$C$62:$C$116,"<"&Таблица1[[#This Row],[Дл]],$D$62:$D$116,"=500",$F$62:$F$116,Таблица1[[#This Row],[АСТРА]]) -> 0 | Q124: =Таблица1[[#This Row],[ост.с.цел]]+Таблица1[[#This Row],[ост.с.дел]] -> 0 | R124: =Таблица1[[#This Row],[лом.целых]]+Таблица1[[#This Row],[лом.делов]]-Таблица1[[#This Row],[лом.на.пор.]] -> 0 | S124: =Таблица1[[#This Row],[лом]]+Таблица1[[#This Row],[корр.масс]] -> 0 | T124: =SUMIFS($T$62:$T$116,$C$62:$C$116,Таблица1[[#This Row],[Дл]],$D$62:$D$116,"=500",$F$62:$F$116,Таблица1[[#This Row],[АСТРА]]) -> 0 | U124: =SUMIFS($T$62:$T$116,$C$62:$C$116,"<"&Таблица1[[#This Row],[Дл]],$D$62:$D$116,"=500",$F$62:$F$116,Таблица1[[#This Row],[АСТРА]]) -> 0 | V124: =Таблица1[[#This Row],[Столбец17]]+Таблица1[[#This Row],[Столбец18]]+Таблица1[[#This Row],[лом.на.пор.]] -> 0 | W124: =Таблица1[[#This Row],[Столбец19]]-Таблица1[[#This Row],[корр.масс]] -> 0 | Y124: =SUMIFS($X$62:$X$116,$C$62:$C$116,Таблица1[[#This Row],[Дл]],$D$62:$D$116,"=500",$F$62:$F$116,Таблица1[[#This Row],[АСТРА]]) -> 0 | Z124: =SUMIFS($X$62:$X$116,$C$62:$C$116,"<"&Таблица1[[#This Row],[Дл]],$D$62:$D$116,"=500",$F$62:$F$116,Таблица1[[#This Row],[АСТРА]]) -> 0 | AA124: =Таблица1[[#This Row],[Столбец23]]+Таблица1[[#This Row],[Столбец24]] -> 0 | AB124: =Таблица1[[#This Row],[лом.целых]]+Таблица1[[#This Row],[лом.делов]]-Таблица1[[#This Row],[лом.на.пор.]] -> 0 | AC124: =IF(Таблица1[[#This Row],[резы]]*Таблица1[[#This Row],[шир.рез]]/1000*Таблица1[[#This Row],[коэф]]/2<0,0,Таблица1[[#This Row],[резы]]*Таблица1[[#This Row],[шир.рез]]/1000*Таблица1[[#This Row],[коэф]]/2) -> 0 | AD124: =SUMIFS($Y$62:$Y$116,$C$62:$C$116,Таблица1[[#This Row],[Дл]],$D$62:$D$116,"=500",$F$62:$F$116,Таблица1[[#This Row],[АСТРА]]) -> 0 | AE124: =SUMIFS($Y$62:$Y$116,$C$62:$C$116,"<"&Таблица1[[#This Row],[Дл]],$D$62:$D$116,"=500",$F$62:$F$116,Таблица1[[#This Row],[АСТРА]]) -> 0 | AF124: 5 | AG124: =IF(Таблица1[[#This Row],[профиль]]=Таблица1[[#This Row],[толщ]],CONCATENATE(Таблица1[[#This Row],[Столбец33]]," ",Таблица1[[#This Row],[толщ]]),CONCATENATE(Таблица1[[#This Row],[Столбец33]]," ",Таблица1[[#This Row],[профиль]],"х",Таблица1[[#This Row],[толщ]])) -> Арматура 20 | AH124: =CONCATENATE(Таблица1[[#This Row],[Столбец33]]," ",Таблица1[[#This Row],[профиль]]) -> Арматура 20 | AI124: Арматура 20, 20.0 мм | AJ124: Арматура | AK124: =IF(Таблица1[[#This Row],[профиль]]=Таблица1[[#This Row],[толщ]],Таблица1[[#This Row],[толщ]],CONCATENATE(Таблица1[[#This Row],[профиль]],"х",Таблица1[[#This Row],[точка]])) -> 20 | AL124: 20 | AM124: 20 | AN124: =SUBSTITUTE(Таблица1[[#This Row],[толщ]],",",".") -> 20 | AO124: =2.47*2 -> 4.94 | AP124: =SUMIFS($U$8:$U$57,$K$8:$K$57,Таблица1[[#This Row],[ГОСТ]]) -> 0
A125: =IF(Таблица1[[#This Row],[Столбец19]]=0,"z","") -> z | D125: 6000 | F125: =SUMIFS($G$62:$G$116,$D$62:$D$116,500,$C$62:$C$116,Таблица1[[#This Row],[Дл]],$F$62:$F$116,Таблица1[[#This Row],[АСТРА]]) -> 0 | G125: =Таблица1[[#This Row],[толщ]] -> 25 | H125: =Таблица1[[#This Row],[ГОСТ]] -> Квадрат 25 | I125: =SUMIFS($N$62:$N$116,$C$62:$C$116,Таблица1[[#This Row],[Дл]],$D$62:$D$116,"=500",$F$62:$F$116,Таблица1[[#This Row],[АСТРА]]) -> 0 | J125: =SUMIFS($N$62:$N$116,$C$62:$C$116,"<"&Таблица1[[#This Row],[Дл]],$D$62:$D$116,"=500",$F$62:$F$116,Таблица1[[#This Row],[АСТРА]]) -> 0 | M125: =SUMIFS($J$8:$J$57,$K$8:$K$57,Таблица1[[#This Row],[Столбец5]]) -> 0 | N125: =Таблица1[[#This Row],[пол.мас.цел]]+Таблица1[[#This Row],[пол.мас.дел]] -> 0 | O125: =SUMIFS($Q$62:$Q$116,$C$62:$C$116,Таблица1[[#This Row],[Дл]],$D$62:$D$116,"=500",$F$62:$F$116,Таблица1[[#This Row],[АСТРА]]) -> 0 | P125: =SUMIFS($Q$62:$Q$116,$C$62:$C$116,"<"&Таблица1[[#This Row],[Дл]],$D$62:$D$116,"=500",$F$62:$F$116,Таблица1[[#This Row],[АСТРА]]) -> 0 | Q125: =Таблица1[[#This Row],[ост.с.цел]]+Таблица1[[#This Row],[ост.с.дел]] -> 0 | R125: =Таблица1[[#This Row],[лом.целых]]+Таблица1[[#This Row],[лом.делов]]-Таблица1[[#This Row],[лом.на.пор.]] -> 0 | S125: =Таблица1[[#This Row],[лом]]+Таблица1[[#This Row],[корр.масс]] -> 0 | T125: =SUMIFS($T$62:$T$116,$C$62:$C$116,Таблица1[[#This Row],[Дл]],$D$62:$D$116,"=500",$F$62:$F$116,Таблица1[[#This Row],[АСТРА]]) -> 0 | U125: =SUMIFS($T$62:$T$116,$C$62:$C$116,"<"&Таблица1[[#This Row],[Дл]],$D$62:$D$116,"=500",$F$62:$F$116,Таблица1[[#This Row],[АСТРА]]) -> 0 | V125: =Таблица1[[#This Row],[Столбец17]]+Таблица1[[#This Row],[Столбец18]]+Таблица1[[#This Row],[лом.на.пор.]] -> 0 | W125: =Таблица1[[#This Row],[Столбец19]]-Таблица1[[#This Row],[корр.масс]] -> 0 | Y125: =SUMIFS($X$62:$X$116,$C$62:$C$116,Таблица1[[#This Row],[Дл]],$D$62:$D$116,"=500",$F$62:$F$116,Таблица1[[#This Row],[АСТРА]]) -> 0 | Z125: =SUMIFS($X$62:$X$116,$C$62:$C$116,"<"&Таблица1[[#This Row],[Дл]],$D$62:$D$116,"=500",$F$62:$F$116,Таблица1[[#This Row],[АСТРА]]) -> 0 | AA125: =Таблица1[[#This Row],[Столбец23]]+Таблица1[[#This Row],[Столбец24]] -> 0 | AB125: =Таблица1[[#This Row],[лом.целых]]+Таблица1[[#This Row],[лом.делов]]-Таблица1[[#This Row],[лом.на.пор.]] -> 0 | AC125: =IF(Таблица1[[#This Row],[резы]]*Таблица1[[#This Row],[шир.рез]]/1000*Таблица1[[#This Row],[коэф]]/2<0,0,Таблица1[[#This Row],[резы]]*Таблица1[[#This Row],[шир.рез]]/1000*Таблица1[[#This Row],[коэф]]/2) -> 0 | AD125: =SUMIFS($Y$62:$Y$116,$C$62:$C$116,Таблица1[[#This Row],[Дл]],$D$62:$D$116,"=500",$F$62:$F$116,Таблица1[[#This Row],[АСТРА]]) -> 0 | AE125: =SUMIFS($Y$62:$Y$116,$C$62:$C$116,"<"&Таблица1[[#This Row],[Дл]],$D$62:$D$116,"=500",$F$62:$F$116,Таблица1[[#This Row],[АСТРА]]) -> 0 | AF125: 5 | AG125: =IF(Таблица1[[#This Row],[профиль]]=Таблица1[[#This Row],[толщ]],CONCATENATE(Таблица1[[#This Row],[Столбец33]]," ",Таблица1[[#This Row],[толщ]]),CONCATENATE(Таблица1[[#This Row],[Столбец33]]," ",Таблица1[[#This Row],[профиль]],"х",Таблица1[[#This Row],[толщ]])) -> Квадрат 25 | AH125: =CONCATENATE(Таблица1[[#This Row],[Столбец33]]," ",Таблица1[[#This Row],[профиль]]) -> Квадрат 25 | AI125: Квадрат 25, 25.0 мм, кв25 | AJ125: Квадрат | AK125: =IF(Таблица1[[#This Row],[профиль]]=Таблица1[[#This Row],[толщ]],Таблица1[[#This Row],[толщ]],CONCATENATE(Таблица1[[#This Row],[профиль]],"х",Таблица1[[#This Row],[точка]])) -> 25 | AL125: 25 | AM125: 25 | AN125: =SUBSTITUTE(Таблица1[[#This Row],[толщ]],",",".") -> 25 | AO125: =4.91*2 -> 9.82 | AP125: =SUMIFS($U$8:$U$57,$K$8:$K$57,Таблица1[[#This Row],[ГОСТ]]) -> 0
A126: =IF(Таблица1[[#This Row],[Столбец19]]=0,"z","") -> z | F126: =SUMIFS($G$62:$G$116,$D$62:$D$116,500,$C$62:$C$116,Таблица1[[#This Row],[Дл]],$F$62:$F$116,Таблица1[[#This Row],[АСТРА]]) -> 0 | G126: =Таблица1[[#This Row],[толщ]] -> 6 | H126: =Таблица1[[#This Row],[ГОСТ]] -> Квадрат 6 | I126: =SUMIFS($N$62:$N$116,$C$62:$C$116,Таблица1[[#This Row],[Дл]],$D$62:$D$116,"=500",$F$62:$F$116,Таблица1[[#This Row],[АСТРА]]) -> 0 | J126: =SUMIFS($N$62:$N$116,$C$62:$C$116,"<"&Таблица1[[#This Row],[Дл]],$D$62:$D$116,"=500",$F$62:$F$116,Таблица1[[#This Row],[АСТРА]]) -> 0 | M126: =SUMIFS($J$8:$J$57,$K$8:$K$57,Таблица1[[#This Row],[Столбец5]]) -> 0 | N126: =Таблица1[[#This Row],[пол.мас.цел]]+Таблица1[[#This Row],[пол.мас.дел]] -> 0 | O126: =SUMIFS($Q$62:$Q$116,$C$62:$C$116,Таблица1[[#This Row],[Дл]],$D$62:$D$116,"=500",$F$62:$F$116,Таблица1[[#This Row],[АСТРА]]) -> 0 | P126: =SUMIFS($Q$62:$Q$116,$C$62:$C$116,"<"&Таблица1[[#This Row],[Дл]],$D$62:$D$116,"=500",$F$62:$F$116,Таблица1[[#This Row],[АСТРА]]) -> 0 | Q126: =Таблица1[[#This Row],[ост.с.цел]]+Таблица1[[#This Row],[ост.с.дел]] -> 0 | R126: =Таблица1[[#This Row],[лом.целых]]+Таблица1[[#This Row],[лом.делов]]-Таблица1[[#This Row],[лом.на.пор.]] -> 0 | S126: =Таблица1[[#This Row],[лом]]+Таблица1[[#This Row],[корр.масс]] -> 0 | T126: =SUMIFS($T$62:$T$116,$C$62:$C$116,Таблица1[[#This Row],[Дл]],$D$62:$D$116,"=500",$F$62:$F$116,Таблица1[[#This Row],[АСТРА]]) -> 0 | U126: =SUMIFS($T$62:$T$116,$C$62:$C$116,"<"&Таблица1[[#This Row],[Дл]],$D$62:$D$116,"=500",$F$62:$F$116,Таблица1[[#This Row],[АСТРА]]) -> 0 | V126: =Таблица1[[#This Row],[Столбец17]]+Таблица1[[#This Row],[Столбец18]]+Таблица1[[#This Row],[лом.на.пор.]] -> 0 | W126: =Таблица1[[#This Row],[Столбец19]]-Таблица1[[#This Row],[корр.масс]] -> 0 | Y126: =SUMIFS($X$62:$X$116,$C$62:$C$116,Таблица1[[#This Row],[Дл]],$D$62:$D$116,"=500",$F$62:$F$116,Таблица1[[#This Row],[АСТРА]]) -> 0 | Z126: =SUMIFS($X$62:$X$116,$C$62:$C$116,"<"&Таблица1[[#This Row],[Дл]],$D$62:$D$116,"=500",$F$62:$F$116,Таблица1[[#This Row],[АСТРА]]) -> 0 | AA126: =Таблица1[[#This Row],[Столбец23]]+Таблица1[[#This Row],[Столбец24]] -> 0 | AB126: =Таблица1[[#This Row],[лом.целых]]+Таблица1[[#This Row],[лом.делов]]-Таблица1[[#This Row],[лом.на.пор.]] -> 0 | AC126: =IF(Таблица1[[#This Row],[резы]]*Таблица1[[#This Row],[шир.рез]]/1000*Таблица1[[#This Row],[коэф]]/2<0,0,Таблица1[[#This Row],[резы]]*Таблица1[[#This Row],[шир.рез]]/1000*Таблица1[[#This Row],[коэф]]/2) -> 0 | AD126: =SUMIFS($Y$62:$Y$116,$C$62:$C$116,Таблица1[[#This Row],[Дл]],$D$62:$D$116,"=500",$F$62:$F$116,Таблица1[[#This Row],[АСТРА]]) -> 0 | AE126: =SUMIFS($Y$62:$Y$116,$C$62:$C$116,"<"&Таблица1[[#This Row],[Дл]],$D$62:$D$116,"=500",$F$62:$F$116,Таблица1[[#This Row],[АСТРА]]) -> 0 | AF126: 5 | AG126: =IF(Таблица1[[#This Row],[профиль]]=Таблица1[[#This Row],[толщ]],CONCATENATE(Таблица1[[#This Row],[Столбец33]]," ",Таблица1[[#This Row],[толщ]]),CONCATENATE(Таблица1[[#This Row],[Столбец33]]," ",Таблица1[[#This Row],[профиль]],"х",Таблица1[[#This Row],[толщ]])) -> Квадрат 6 | AH126: =CONCATENATE(Таблица1[[#This Row],[Столбец33]]," ",Таблица1[[#This Row],[профиль]]) -> Квадрат 6 | AI126: Квадрат 6, 6.0 мм | AJ126: Квадрат | AK126: =IF(Таблица1[[#This Row],[профиль]]=Таблица1[[#This Row],[толщ]],Таблица1[[#This Row],[толщ]],CONCATENATE(Таблица1[[#This Row],[профиль]],"х",Таблица1[[#This Row],[точка]])) -> 6 | AL126: 6 | AM126: 6 | AN126: =SUBSTITUTE(Таблица1[[#This Row],[толщ]],",",".") -> 6 | AO126: =0.283*2 -> 0.566 | AP126: =SUMIFS($U$8:$U$57,$K$8:$K$57,Таблица1[[#This Row],[ГОСТ]]) -> 0
A127: =IF(Таблица1[[#This Row],[Столбец19]]=0,"z","") -> z | D127: 3000 | F127: =SUMIFS($G$62:$G$116,$D$62:$D$116,500,$C$62:$C$116,Таблица1[[#This Row],[Дл]],$F$62:$F$116,Таблица1[[#This Row],[АСТРА]]) -> 0 | G127: =Таблица1[[#This Row],[толщ]] -> 8 | H127: =Таблица1[[#This Row],[ГОСТ]] -> Квадрат 8 | I127: =SUMIFS($N$62:$N$116,$C$62:$C$116,Таблица1[[#This Row],[Дл]],$D$62:$D$116,"=500",$F$62:$F$116,Таблица1[[#This Row],[АСТРА]]) -> 0 | J127: =SUMIFS($N$62:$N$116,$C$62:$C$116,"<"&Таблица1[[#This Row],[Дл]],$D$62:$D$116,"=500",$F$62:$F$116,Таблица1[[#This Row],[АСТРА]]) -> 0 | M127: =SUMIFS($J$8:$J$57,$K$8:$K$57,Таблица1[[#This Row],[Столбец5]]) -> 0 | N127: =Таблица1[[#This Row],[пол.мас.цел]]+Таблица1[[#This Row],[пол.мас.дел]] -> 0 | O127: =SUMIFS($Q$62:$Q$116,$C$62:$C$116,Таблица1[[#This Row],[Дл]],$D$62:$D$116,"=500",$F$62:$F$116,Таблица1[[#This Row],[АСТРА]]) -> 0 | P127: =SUMIFS($Q$62:$Q$116,$C$62:$C$116,"<"&Таблица1[[#This Row],[Дл]],$D$62:$D$116,"=500",$F$62:$F$116,Таблица1[[#This Row],[АСТРА]]) -> 0 | Q127: =Таблица1[[#This Row],[ост.с.цел]]+Таблица1[[#This Row],[ост.с.дел]] -> 0 | R127: =Таблица1[[#This Row],[лом.целых]]+Таблица1[[#This Row],[лом.делов]]-Таблица1[[#This Row],[лом.на.пор.]] -> 0 | S127: =Таблица1[[#This Row],[лом]]+Таблица1[[#This Row],[корр.масс]] -> 0 | T127: =SUMIFS($T$62:$T$116,$C$62:$C$116,Таблица1[[#This Row],[Дл]],$D$62:$D$116,"=500",$F$62:$F$116,Таблица1[[#This Row],[АСТРА]]) -> 0 | U127: =SUMIFS($T$62:$T$116,$C$62:$C$116,"<"&Таблица1[[#This Row],[Дл]],$D$62:$D$116,"=500",$F$62:$F$116,Таблица1[[#This Row],[АСТРА]]) -> 0 | V127: =Таблица1[[#This Row],[Столбец17]]+Таблица1[[#This Row],[Столбец18]]+Таблица1[[#This Row],[лом.на.пор.]] -> 0 | W127: =Таблица1[[#This Row],[Столбец19]]-Таблица1[[#This Row],[корр.масс]] -> 0 | Y127: =SUMIFS($X$62:$X$116,$C$62:$C$116,Таблица1[[#This Row],[Дл]],$D$62:$D$116,"=500",$F$62:$F$116,Таблица1[[#This Row],[АСТРА]]) -> 0 | Z127: =SUMIFS($X$62:$X$116,$C$62:$C$116,"<"&Таблица1[[#This Row],[Дл]],$D$62:$D$116,"=500",$F$62:$F$116,Таблица1[[#This Row],[АСТРА]]) -> 0 | AA127: =Таблица1[[#This Row],[Столбец23]]+Таблица1[[#This Row],[Столбец24]] -> 0 | AB127: =Таблица1[[#This Row],[лом.целых]]+Таблица1[[#This Row],[лом.делов]]-Таблица1[[#This Row],[лом.на.пор.]] -> 0 | AC127: =IF(Таблица1[[#This Row],[резы]]*Таблица1[[#This Row],[шир.рез]]/1000*Таблица1[[#This Row],[коэф]]/2<0,0,Таблица1[[#This Row],[резы]]*Таблица1[[#This Row],[шир.рез]]/1000*Таблица1[[#This Row],[коэф]]/2) -> 0 | AD127: =SUMIFS($Y$62:$Y$116,$C$62:$C$116,Таблица1[[#This Row],[Дл]],$D$62:$D$116,"=500",$F$62:$F$116,Таблица1[[#This Row],[АСТРА]]) -> 0 | AE127: =SUMIFS($Y$62:$Y$116,$C$62:$C$116,"<"&Таблица1[[#This Row],[Дл]],$D$62:$D$116,"=500",$F$62:$F$116,Таблица1[[#This Row],[АСТРА]]) -> 0 | AF127: 5 | AG127: =IF(Таблица1[[#This Row],[профиль]]=Таблица1[[#This Row],[толщ]],CONCATENATE(Таблица1[[#This Row],[Столбец33]]," ",Таблица1[[#This Row],[толщ]]),CONCATENATE(Таблица1[[#This Row],[Столбец33]]," ",Таблица1[[#This Row],[профиль]],"х",Таблица1[[#This Row],[толщ]])) -> Квадрат 8 | AH127: =CONCATENATE(Таблица1[[#This Row],[Столбец33]]," ",Таблица1[[#This Row],[профиль]]) -> Квадрат 8 | AI127: Квадрат 8, 8.0 мм | AJ127: Квадрат | AK127: =IF(Таблица1[[#This Row],[профиль]]=Таблица1[[#This Row],[толщ]],Таблица1[[#This Row],[толщ]],CONCATENATE(Таблица1[[#This Row],[профиль]],"х",Таблица1[[#This Row],[точка]])) -> 8 | AL127: 8 | AM127: 8 | AN127: =SUBSTITUTE(Таблица1[[#This Row],[толщ]],",",".") -> 8 | AO127: =0.502*2 -> 1.004 | AP127: =SUMIFS($U$8:$U$57,$K$8:$K$57,Таблица1[[#This Row],[ГОСТ]]) -> 0
A128: =IF(Таблица1[[#This Row],[Столбец19]]=0,"z","") -> z | D128: 6000 | F128: =SUMIFS($G$62:$G$116,$D$62:$D$116,500,$C$62:$C$116,Таблица1[[#This Row],[Дл]],$F$62:$F$116,Таблица1[[#This Row],[АСТРА]]) -> 0 | G128: =Таблица1[[#This Row],[толщ]] -> 10 | H128: =Таблица1[[#This Row],[ГОСТ]] -> Круг 10 | I128: =SUMIFS($N$62:$N$116,$C$62:$C$116,Таблица1[[#This Row],[Дл]],$D$62:$D$116,"=500",$F$62:$F$116,Таблица1[[#This Row],[АСТРА]]) -> 0 | J128: =SUMIFS($N$62:$N$116,$C$62:$C$116,"<"&Таблица1[[#This Row],[Дл]],$D$62:$D$116,"=500",$F$62:$F$116,Таблица1[[#This Row],[АСТРА]]) -> 0 | M128: =SUMIFS($J$8:$J$57,$K$8:$K$57,Таблица1[[#This Row],[Столбец5]]) -> 0 | N128: =Таблица1[[#This Row],[пол.мас.цел]]+Таблица1[[#This Row],[пол.мас.дел]] -> 0 | O128: =SUMIFS($Q$62:$Q$116,$C$62:$C$116,Таблица1[[#This Row],[Дл]],$D$62:$D$116,"=500",$F$62:$F$116,Таблица1[[#This Row],[АСТРА]]) -> 0 | P128: =SUMIFS($Q$62:$Q$116,$C$62:$C$116,"<"&Таблица1[[#This Row],[Дл]],$D$62:$D$116,"=500",$F$62:$F$116,Таблица1[[#This Row],[АСТРА]]) -> 0 | Q128: =Таблица1[[#This Row],[ост.с.цел]]+Таблица1[[#This Row],[ост.с.дел]] -> 0 | R128: =Таблица1[[#This Row],[лом.целых]]+Таблица1[[#This Row],[лом.делов]]-Таблица1[[#This Row],[лом.на.пор.]] -> 0 | S128: =Таблица1[[#This Row],[лом]]+Таблица1[[#This Row],[корр.масс]] -> 0 | T128: =SUMIFS($T$62:$T$116,$C$62:$C$116,Таблица1[[#This Row],[Дл]],$D$62:$D$116,"=500",$F$62:$F$116,Таблица1[[#This Row],[АСТРА]]) -> 0 | U128: =SUMIFS($T$62:$T$116,$C$62:$C$116,"<"&Таблица1[[#This Row],[Дл]],$D$62:$D$116,"=500",$F$62:$F$116,Таблица1[[#This Row],[АСТРА]]) -> 0 | V128: =Таблица1[[#This Row],[Столбец17]]+Таблица1[[#This Row],[Столбец18]]+Таблица1[[#This Row],[лом.на.пор.]] -> 0 | W128: =Таблица1[[#This Row],[Столбец19]]-Таблица1[[#This Row],[корр.масс]] -> 0 | Y128: =SUMIFS($X$62:$X$116,$C$62:$C$116,Таблица1[[#This Row],[Дл]],$D$62:$D$116,"=500",$F$62:$F$116,Таблица1[[#This Row],[АСТРА]]) -> 0 | Z128: =SUMIFS($X$62:$X$116,$C$62:$C$116,"<"&Таблица1[[#This Row],[Дл]],$D$62:$D$116,"=500",$F$62:$F$116,Таблица1[[#This Row],[АСТРА]]) -> 0 | AA128: =Таблица1[[#This Row],[Столбец23]]+Таблица1[[#This Row],[Столбец24]] -> 0 | AB128: =Таблица1[[#This Row],[лом.целых]]+Таблица1[[#This Row],[лом.делов]]-Таблица1[[#This Row],[лом.на.пор.]] -> 0 | AC128: =IF(Таблица1[[#This Row],[резы]]*Таблица1[[#This Row],[шир.рез]]/1000*Таблица1[[#This Row],[коэф]]/2<0,0,Таблица1[[#This Row],[резы]]*Таблица1[[#This Row],[шир.рез]]/1000*Таблица1[[#This Row],[коэф]]/2) -> 0 | AD128: =SUMIFS($Y$62:$Y$116,$C$62:$C$116,Таблица1[[#This Row],[Дл]],$D$62:$D$116,"=500",$F$62:$F$116,Таблица1[[#This Row],[АСТРА]]) -> 0 | AE128: =SUMIFS($Y$62:$Y$116,$C$62:$C$116,"<"&Таблица1[[#This Row],[Дл]],$D$62:$D$116,"=500",$F$62:$F$116,Таблица1[[#This Row],[АСТРА]]) -> 0 | AF128: 5 | AG128: =IF(Таблица1[[#This Row],[профиль]]=Таблица1[[#This Row],[толщ]],CONCATENATE(Таблица1[[#This Row],[Столбец33]]," ",Таблица1[[#This Row],[толщ]]),CONCATENATE(Таблица1[[#This Row],[Столбец33]]," ",Таблица1[[#This Row],[профиль]],"х",Таблица1[[#This Row],[толщ]])) -> Круг 10 | AH128: =CONCATENATE(Таблица1[[#This Row],[Столбец33]]," ",Таблица1[[#This Row],[профиль]]) -> Круг 10 | AI128: Круг 10, 10.0 мм, кр10 | AJ128: Круг | AK128: =IF(Таблица1[[#This Row],[профиль]]=Таблица1[[#This Row],[толщ]],Таблица1[[#This Row],[толщ]],CONCATENATE(Таблица1[[#This Row],[профиль]],"х",Таблица1[[#This Row],[точка]])) -> 10 | AL128: 10 | AM128: 10 | AN128: =SUBSTITUTE(Таблица1[[#This Row],[толщ]],",",".") -> 10 | AO128: =0.617*2 -> 1.234 | AP128: =SUMIFS($U$8:$U$57,$K$8:$K$57,Таблица1[[#This Row],[ГОСТ]]) -> 0
A129: =IF(Таблица1[[#This Row],[Столбец19]]=0,"z","") -> z | D129: 3000 | F129: =SUMIFS($G$62:$G$116,$D$62:$D$116,500,$C$62:$C$116,Таблица1[[#This Row],[Дл]],$F$62:$F$116,Таблица1[[#This Row],[АСТРА]]) -> 0 | G129: =Таблица1[[#This Row],[толщ]] -> 12 | H129: =Таблица1[[#This Row],[ГОСТ]] -> Круг 12 | I129: =SUMIFS($N$62:$N$116,$C$62:$C$116,Таблица1[[#This Row],[Дл]],$D$62:$D$116,"=500",$F$62:$F$116,Таблица1[[#This Row],[АСТРА]]) -> 0 | J129: =SUMIFS($N$62:$N$116,$C$62:$C$116,"<"&Таблица1[[#This Row],[Дл]],$D$62:$D$116,"=500",$F$62:$F$116,Таблица1[[#This Row],[АСТРА]]) -> 0 | M129: =SUMIFS($J$8:$J$57,$K$8:$K$57,Таблица1[[#This Row],[Столбец5]]) -> 0 | N129: =Таблица1[[#This Row],[пол.мас.цел]]+Таблица1[[#This Row],[пол.мас.дел]] -> 0 | O129: =SUMIFS($Q$62:$Q$116,$C$62:$C$116,Таблица1[[#This Row],[Дл]],$D$62:$D$116,"=500",$F$62:$F$116,Таблица1[[#This Row],[АСТРА]]) -> 0 | P129: =SUMIFS($Q$62:$Q$116,$C$62:$C$116,"<"&Таблица1[[#This Row],[Дл]],$D$62:$D$116,"=500",$F$62:$F$116,Таблица1[[#This Row],[АСТРА]]) -> 0 | Q129: =Таблица1[[#This Row],[ост.с.цел]]+Таблица1[[#This Row],[ост.с.дел]] -> 0 | R129: =Таблица1[[#This Row],[лом.целых]]+Таблица1[[#This Row],[лом.делов]]-Таблица1[[#This Row],[лом.на.пор.]] -> 0 | S129: =Таблица1[[#This Row],[лом]]+Таблица1[[#This Row],[корр.масс]] -> 0 | T129: =SUMIFS($T$62:$T$116,$C$62:$C$116,Таблица1[[#This Row],[Дл]],$D$62:$D$116,"=500",$F$62:$F$116,Таблица1[[#This Row],[АСТРА]]) -> 0 | U129: =SUMIFS($T$62:$T$116,$C$62:$C$116,"<"&Таблица1[[#This Row],[Дл]],$D$62:$D$116,"=500",$F$62:$F$116,Таблица1[[#This Row],[АСТРА]]) -> 0 | V129: =Таблица1[[#This Row],[Столбец17]]+Таблица1[[#This Row],[Столбец18]]+Таблица1[[#This Row],[лом.на.пор.]] -> 0 | W129: =Таблица1[[#This Row],[Столбец19]]-Таблица1[[#This Row],[корр.масс]] -> 0 | Y129: =SUMIFS($X$62:$X$116,$C$62:$C$116,Таблица1[[#This Row],[Дл]],$D$62:$D$116,"=500",$F$62:$F$116,Таблица1[[#This Row],[АСТРА]]) -> 0 | Z129: =SUMIFS($X$62:$X$116,$C$62:$C$116,"<"&Таблица1[[#This Row],[Дл]],$D$62:$D$116,"=500",$F$62:$F$116,Таблица1[[#This Row],[АСТРА]]) -> 0 | AA129: =Таблица1[[#This Row],[Столбец23]]+Таблица1[[#This Row],[Столбец24]] -> 0 | AB129: =Таблица1[[#This Row],[лом.целых]]+Таблица1[[#This Row],[лом.делов]]-Таблица1[[#This Row],[лом.на.пор.]] -> 0 | AC129: =IF(Таблица1[[#This Row],[резы]]*Таблица1[[#This Row],[шир.рез]]/1000*Таблица1[[#This Row],[коэф]]/2<0,0,Таблица1[[#This Row],[резы]]*Таблица1[[#This Row],[шир.рез]]/1000*Таблица1[[#This Row],[коэф]]/2) -> 0 | AD129: =SUMIFS($Y$62:$Y$116,$C$62:$C$116,Таблица1[[#This Row],[Дл]],$D$62:$D$116,"=500",$F$62:$F$116,Таблица1[[#This Row],[АСТРА]]) -> 0 | AE129: =SUMIFS($Y$62:$Y$116,$C$62:$C$116,"<"&Таблица1[[#This Row],[Дл]],$D$62:$D$116,"=500",$F$62:$F$116,Таблица1[[#This Row],[АСТРА]]) -> 0 | AF129: 5 | AG129: =IF(Таблица1[[#This Row],[профиль]]=Таблица1[[#This Row],[толщ]],CONCATENATE(Таблица1[[#This Row],[Столбец33]]," ",Таблица1[[#This Row],[толщ]]),CONCATENATE(Таблица1[[#This Row],[Столбец33]]," ",Таблица1[[#This Row],[профиль]],"х",Таблица1[[#This Row],[толщ]])) -> Круг 12 | AH129: =CONCATENATE(Таблица1[[#This Row],[Столбец33]]," ",Таблица1[[#This Row],[профиль]]) -> Круг 12 | AI129: Круг 12, 12.0 мм, кр12 | AJ129: Круг | AK129: =IF(Таблица1[[#This Row],[профиль]]=Таблица1[[#This Row],[толщ]],Таблица1[[#This Row],[толщ]],CONCATENATE(Таблица1[[#This Row],[профиль]],"х",Таблица1[[#This Row],[точка]])) -> 12 | AL129: 12 | AM129: 12 | AN129: =SUBSTITUTE(Таблица1[[#This Row],[толщ]],",",".") -> 12 | AO129: =0.888*2 -> 1.776 | AP129: =SUMIFS($U$8:$U$57,$K$8:$K$57,Таблица1[[#This Row],[ГОСТ]]) -> 0
A130: =IF(Таблица1[[#This Row],[Столбец19]]=0,"z","") -> z | D130: 3000 | F130: =SUMIFS($G$62:$G$116,$D$62:$D$116,500,$C$62:$C$116,Таблица1[[#This Row],[Дл]],$F$62:$F$116,Таблица1[[#This Row],[АСТРА]]) -> 0 | G130: =Таблица1[[#This Row],[толщ]] -> 16 | H130: =Таблица1[[#This Row],[ГОСТ]] -> Круг 16 | I130: =SUMIFS($N$62:$N$116,$C$62:$C$116,Таблица1[[#This Row],[Дл]],$D$62:$D$116,"=500",$F$62:$F$116,Таблица1[[#This Row],[АСТРА]]) -> 0 | J130: =SUMIFS($N$62:$N$116,$C$62:$C$116,"<"&Таблица1[[#This Row],[Дл]],$D$62:$D$116,"=500",$F$62:$F$116,Таблица1[[#This Row],[АСТРА]]) -> 0 | M130: =SUMIFS($J$8:$J$57,$K$8:$K$57,Таблица1[[#This Row],[Столбец5]]) -> 0 | N130: =Таблица1[[#This Row],[пол.мас.цел]]+Таблица1[[#This Row],[пол.мас.дел]] -> 0 | O130: =SUMIFS($Q$62:$Q$116,$C$62:$C$116,Таблица1[[#This Row],[Дл]],$D$62:$D$116,"=500",$F$62:$F$116,Таблица1[[#This Row],[АСТРА]]) -> 0 | P130: =SUMIFS($Q$62:$Q$116,$C$62:$C$116,"<"&Таблица1[[#This Row],[Дл]],$D$62:$D$116,"=500",$F$62:$F$116,Таблица1[[#This Row],[АСТРА]]) -> 0 | Q130: =Таблица1[[#This Row],[ост.с.цел]]+Таблица1[[#This Row],[ост.с.дел]] -> 0 | R130: =Таблица1[[#This Row],[лом.целых]]+Таблица1[[#This Row],[лом.делов]]-Таблица1[[#This Row],[лом.на.пор.]] -> 0 | S130: =Таблица1[[#This Row],[лом]]+Таблица1[[#This Row],[корр.масс]] -> 0 | T130: =SUMIFS($T$62:$T$116,$C$62:$C$116,Таблица1[[#This Row],[Дл]],$D$62:$D$116,"=500",$F$62:$F$116,Таблица1[[#This Row],[АСТРА]]) -> 0 | U130: =SUMIFS($T$62:$T$116,$C$62:$C$116,"<"&Таблица1[[#This Row],[Дл]],$D$62:$D$116,"=500",$F$62:$F$116,Таблица1[[#This Row],[АСТРА]]) -> 0 | V130: =Таблица1[[#This Row],[Столбец17]]+Таблица1[[#This Row],[Столбец18]]+Таблица1[[#This Row],[лом.на.пор.]] -> 0 | W130: =Таблица1[[#This Row],[Столбец19]]-Таблица1[[#This Row],[корр.масс]] -> 0 | Y130: =SUMIFS($X$62:$X$116,$C$62:$C$116,Таблица1[[#This Row],[Дл]],$D$62:$D$116,"=500",$F$62:$F$116,Таблица1[[#This Row],[АСТРА]]) -> 0 | Z130: =SUMIFS($X$62:$X$116,$C$62:$C$116,"<"&Таблица1[[#This Row],[Дл]],$D$62:$D$116,"=500",$F$62:$F$116,Таблица1[[#This Row],[АСТРА]]) -> 0 | AA130: =Таблица1[[#This Row],[Столбец23]]+Таблица1[[#This Row],[Столбец24]] -> 0 | AB130: =Таблица1[[#This Row],[лом.целых]]+Таблица1[[#This Row],[лом.делов]]-Таблица1[[#This Row],[лом.на.пор.]] -> 0 | AC130: =IF(Таблица1[[#This Row],[резы]]*Таблица1[[#This Row],[шир.рез]]/1000*Таблица1[[#This Row],[коэф]]/2<0,0,Таблица1[[#This Row],[резы]]*Таблица1[[#This Row],[шир.рез]]/1000*Таблица1[[#This Row],[коэф]]/2) -> 0 | AD130: =SUMIFS($Y$62:$Y$116,$C$62:$C$116,Таблица1[[#This Row],[Дл]],$D$62:$D$116,"=500",$F$62:$F$116,Таблица1[[#This Row],[АСТРА]]) -> 0 | AE130: =SUMIFS($Y$62:$Y$116,$C$62:$C$116,"<"&Таблица1[[#This Row],[Дл]],$D$62:$D$116,"=500",$F$62:$F$116,Таблица1[[#This Row],[АСТРА]]) -> 0 | AF130: 5 | AG130: =IF(Таблица1[[#This Row],[профиль]]=Таблица1[[#This Row],[толщ]],CONCATENATE(Таблица1[[#This Row],[Столбец33]]," ",Таблица1[[#This Row],[толщ]]),CONCATENATE(Таблица1[[#This Row],[Столбец33]]," ",Таблица1[[#This Row],[профиль]],"х",Таблица1[[#This Row],[толщ]])) -> Круг 16 | AH130: =CONCATENATE(Таблица1[[#This Row],[Столбец33]]," ",Таблица1[[#This Row],[профиль]]) -> Круг 16 | AI130: Круг 16, 16.0 мм, кр16 | AJ130: Круг | AK130: =IF(Таблица1[[#This Row],[профиль]]=Таблица1[[#This Row],[толщ]],Таблица1[[#This Row],[толщ]],CONCATENATE(Таблица1[[#This Row],[профиль]],"х",Таблица1[[#This Row],[точка]])) -> 16 | AL130: 16 | AM130: 16 | AN130: =SUBSTITUTE(Таблица1[[#This Row],[толщ]],",",".") -> 16 | AO130: =1.58*2 -> 3.16 | AP130: =SUMIFS($U$8:$U$57,$K$8:$K$57,Таблица1[[#This Row],[ГОСТ]]) -> 0
A131: =IF(Таблица1[[#This Row],[Столбец19]]=0,"z","") -> z | D131: 200 | F131: =SUMIFS($G$62:$G$116,$D$62:$D$116,500,$C$62:$C$116,Таблица1[[#This Row],[Дл]],$F$62:$F$116,Таблица1[[#This Row],[АСТРА]]) -> 0 | G131: =Таблица1[[#This Row],[толщ]] -> 160 | H131: =Таблица1[[#This Row],[ГОСТ]] -> Круг 160 | I131: =SUMIFS($N$62:$N$116,$C$62:$C$116,Таблица1[[#This Row],[Дл]],$D$62:$D$116,"=500",$F$62:$F$116,Таблица1[[#This Row],[АСТРА]]) -> 0 | J131: =SUMIFS($N$62:$N$116,$C$62:$C$116,"<"&Таблица1[[#This Row],[Дл]],$D$62:$D$116,"=500",$F$62:$F$116,Таблица1[[#This Row],[АСТРА]]) -> 0 | M131: =SUMIFS($J$8:$J$57,$K$8:$K$57,Таблица1[[#This Row],[Столбец5]]) -> 0 | N131: =Таблица1[[#This Row],[пол.мас.цел]]+Таблица1[[#This Row],[пол.мас.дел]] -> 0 | O131: =SUMIFS($Q$62:$Q$116,$C$62:$C$116,Таблица1[[#This Row],[Дл]],$D$62:$D$116,"=500",$F$62:$F$116,Таблица1[[#This Row],[АСТРА]]) -> 0 | P131: =SUMIFS($Q$62:$Q$116,$C$62:$C$116,"<"&Таблица1[[#This Row],[Дл]],$D$62:$D$116,"=500",$F$62:$F$116,Таблица1[[#This Row],[АСТРА]]) -> 0 | Q131: =Таблица1[[#This Row],[ост.с.цел]]+Таблица1[[#This Row],[ост.с.дел]] -> 0 | R131: =Таблица1[[#This Row],[лом.целых]]+Таблица1[[#This Row],[лом.делов]]-Таблица1[[#This Row],[лом.на.пор.]] -> 0 | S131: =Таблица1[[#This Row],[лом]]+Таблица1[[#This Row],[корр.масс]] -> 0 | T131: =SUMIFS($T$62:$T$116,$C$62:$C$116,Таблица1[[#This Row],[Дл]],$D$62:$D$116,"=500",$F$62:$F$116,Таблица1[[#This Row],[АСТРА]]) -> 0 | U131: =SUMIFS($T$62:$T$116,$C$62:$C$116,"<"&Таблица1[[#This Row],[Дл]],$D$62:$D$116,"=500",$F$62:$F$116,Таблица1[[#This Row],[АСТРА]]) -> 0 | V131: =Таблица1[[#This Row],[Столбец17]]+Таблица1[[#This Row],[Столбец18]]+Таблица1[[#This Row],[лом.на.пор.]] -> 0 | W131: =Таблица1[[#This Row],[Столбец19]]-Таблица1[[#This Row],[корр.масс]] -> 0 | Y131: =SUMIFS($X$62:$X$116,$C$62:$C$116,Таблица1[[#This Row],[Дл]],$D$62:$D$116,"=500",$F$62:$F$116,Таблица1[[#This Row],[АСТРА]]) -> 0 | Z131: =SUMIFS($X$62:$X$116,$C$62:$C$116,"<"&Таблица1[[#This Row],[Дл]],$D$62:$D$116,"=500",$F$62:$F$116,Таблица1[[#This Row],[АСТРА]]) -> 0 | AA131: =Таблица1[[#This Row],[Столбец23]]+Таблица1[[#This Row],[Столбец24]] -> 0 | AB131: =Таблица1[[#This Row],[лом.целых]]+Таблица1[[#This Row],[лом.делов]]-Таблица1[[#This Row],[лом.на.пор.]] -> 0 | AC131: =IF(Таблица1[[#This Row],[резы]]*Таблица1[[#This Row],[шир.рез]]/1000*Таблица1[[#This Row],[коэф]]/2<0,0,Таблица1[[#This Row],[резы]]*Таблица1[[#This Row],[шир.рез]]/1000*Таблица1[[#This Row],[коэф]]/2) -> 0 | AD131: =SUMIFS($Y$62:$Y$116,$C$62:$C$116,Таблица1[[#This Row],[Дл]],$D$62:$D$116,"=500",$F$62:$F$116,Таблица1[[#This Row],[АСТРА]]) -> 0 | AE131: =SUMIFS($Y$62:$Y$116,$C$62:$C$116,"<"&Таблица1[[#This Row],[Дл]],$D$62:$D$116,"=500",$F$62:$F$116,Таблица1[[#This Row],[АСТРА]]) -> 0 | AF131: 5 | AG131: =IF(Таблица1[[#This Row],[профиль]]=Таблица1[[#This Row],[толщ]],CONCATENATE(Таблица1[[#This Row],[Столбец33]]," ",Таблица1[[#This Row],[толщ]]),CONCATENATE(Таблица1[[#This Row],[Столбец33]]," ",Таблица1[[#This Row],[профиль]],"х",Таблица1[[#This Row],[толщ]])) -> Круг 160 | AH131: =CONCATENATE(Таблица1[[#This Row],[Столбец33]]," ",Таблица1[[#This Row],[профиль]]) -> Круг 160 | AI131: Круг 160, 160.0 мм | AJ131: Круг | AK131: =IF(Таблица1[[#This Row],[профиль]]=Таблица1[[#This Row],[толщ]],Таблица1[[#This Row],[толщ]],CONCATENATE(Таблица1[[#This Row],[профиль]],"х",Таблица1[[#This Row],[точка]])) -> 160 | AL131: 160 | AM131: 160 | AN131: =SUBSTITUTE(Таблица1[[#This Row],[толщ]],",",".") -> 160 | AO131: =157.834*2 -> 315.668 | AP131: =SUMIFS($U$8:$U$57,$K$8:$K$57,Таблица1[[#This Row],[ГОСТ]]) -> 0
A132: =IF(Таблица1[[#This Row],[Столбец19]]=0,"z","") -> z | D132: 3000 | F132: =SUMIFS($G$62:$G$116,$D$62:$D$116,500,$C$62:$C$116,Таблица1[[#This Row],[Дл]],$F$62:$F$116,Таблица1[[#This Row],[АСТРА]]) -> 0 | G132: =Таблица1[[#This Row],[толщ]] -> 18 | H132: =Таблица1[[#This Row],[ГОСТ]] -> Круг 18 | I132: =SUMIFS($N$62:$N$116,$C$62:$C$116,Таблица1[[#This Row],[Дл]],$D$62:$D$116,"=500",$F$62:$F$116,Таблица1[[#This Row],[АСТРА]]) -> 0 | J132: =SUMIFS($N$62:$N$116,$C$62:$C$116,"<"&Таблица1[[#This Row],[Дл]],$D$62:$D$116,"=500",$F$62:$F$116,Таблица1[[#This Row],[АСТРА]]) -> 0 | M132: =SUMIFS($J$8:$J$57,$K$8:$K$57,Таблица1[[#This Row],[Столбец5]]) -> 0 | N132: =Таблица1[[#This Row],[пол.мас.цел]]+Таблица1[[#This Row],[пол.мас.дел]] -> 0 | O132: =SUMIFS($Q$62:$Q$116,$C$62:$C$116,Таблица1[[#This Row],[Дл]],$D$62:$D$116,"=500",$F$62:$F$116,Таблица1[[#This Row],[АСТРА]]) -> 0 | P132: =SUMIFS($Q$62:$Q$116,$C$62:$C$116,"<"&Таблица1[[#This Row],[Дл]],$D$62:$D$116,"=500",$F$62:$F$116,Таблица1[[#This Row],[АСТРА]]) -> 0 | Q132: =Таблица1[[#This Row],[ост.с.цел]]+Таблица1[[#This Row],[ост.с.дел]] -> 0 | R132: =Таблица1[[#This Row],[лом.целых]]+Таблица1[[#This Row],[лом.делов]]-Таблица1[[#This Row],[лом.на.пор.]] -> 0 | S132: =Таблица1[[#This Row],[лом]]+Таблица1[[#This Row],[корр.масс]] -> 0 | T132: =SUMIFS($T$62:$T$116,$C$62:$C$116,Таблица1[[#This Row],[Дл]],$D$62:$D$116,"=500",$F$62:$F$116,Таблица1[[#This Row],[АСТРА]]) -> 0 | U132: =SUMIFS($T$62:$T$116,$C$62:$C$116,"<"&Таблица1[[#This Row],[Дл]],$D$62:$D$116,"=500",$F$62:$F$116,Таблица1[[#This Row],[АСТРА]]) -> 0 | V132: =Таблица1[[#This Row],[Столбец17]]+Таблица1[[#This Row],[Столбец18]]+Таблица1[[#This Row],[лом.на.пор.]] -> 0 | W132: =Таблица1[[#This Row],[Столбец19]]-Таблица1[[#This Row],[корр.масс]] -> 0 | Y132: =SUMIFS($X$62:$X$116,$C$62:$C$116,Таблица1[[#This Row],[Дл]],$D$62:$D$116,"=500",$F$62:$F$116,Таблица1[[#This Row],[АСТРА]]) -> 0 | Z132: =SUMIFS($X$62:$X$116,$C$62:$C$116,"<"&Таблица1[[#This Row],[Дл]],$D$62:$D$116,"=500",$F$62:$F$116,Таблица1[[#This Row],[АСТРА]]) -> 0 | AA132: =Таблица1[[#This Row],[Столбец23]]+Таблица1[[#This Row],[Столбец24]] -> 0 | AB132: =Таблица1[[#This Row],[лом.целых]]+Таблица1[[#This Row],[лом.делов]]-Таблица1[[#This Row],[лом.на.пор.]] -> 0 | AC132: =IF(Таблица1[[#This Row],[резы]]*Таблица1[[#This Row],[шир.рез]]/1000*Таблица1[[#This Row],[коэф]]/2<0,0,Таблица1[[#This Row],[резы]]*Таблица1[[#This Row],[шир.рез]]/1000*Таблица1[[#This Row],[коэф]]/2) -> 0 | AD132: =SUMIFS($Y$62:$Y$116,$C$62:$C$116,Таблица1[[#This Row],[Дл]],$D$62:$D$116,"=500",$F$62:$F$116,Таблица1[[#This Row],[АСТРА]]) -> 0 | AE132: =SUMIFS($Y$62:$Y$116,$C$62:$C$116,"<"&Таблица1[[#This Row],[Дл]],$D$62:$D$116,"=500",$F$62:$F$116,Таблица1[[#This Row],[АСТРА]]) -> 0 | AF132: 5 | AG132: =IF(Таблица1[[#This Row],[профиль]]=Таблица1[[#This Row],[толщ]],CONCATENATE(Таблица1[[#This Row],[Столбец33]]," ",Таблица1[[#This Row],[толщ]]),CONCATENATE(Таблица1[[#This Row],[Столбец33]]," ",Таблица1[[#This Row],[профиль]],"х",Таблица1[[#This Row],[толщ]])) -> Круг 18 | AH132: =CONCATENATE(Таблица1[[#This Row],[Столбец33]]," ",Таблица1[[#This Row],[профиль]]) -> Круг 18 | AI132: Круг 18, 18.0 мм | AJ132: Круг | AK132: =IF(Таблица1[[#This Row],[профиль]]=Таблица1[[#This Row],[толщ]],Таблица1[[#This Row],[толщ]],CONCATENATE(Таблица1[[#This Row],[профиль]],"х",Таблица1[[#This Row],[точка]])) -> 18 | AL132: 18 | AM132: 18 | AN132: =SUBSTITUTE(Таблица1[[#This Row],[толщ]],",",".") -> 18 | AO132: =1.998*2 -> 3.996 | AP132: =SUMIFS($U$8:$U$57,$K$8:$K$57,Таблица1[[#This Row],[ГОСТ]]) -> 0
A133: =IF(Таблица1[[#This Row],[Столбец19]]=0,"z","") -> z | D133: 3000 | F133: =SUMIFS($G$62:$G$116,$D$62:$D$116,500,$C$62:$C$116,Таблица1[[#This Row],[Дл]],$F$62:$F$116,Таблица1[[#This Row],[АСТРА]]) -> 0 | G133: =Таблица1[[#This Row],[толщ]] -> 20 | H133: =Таблица1[[#This Row],[ГОСТ]] -> Круг 20 | I133: =SUMIFS($N$62:$N$116,$C$62:$C$116,Таблица1[[#This Row],[Дл]],$D$62:$D$116,"=500",$F$62:$F$116,Таблица1[[#This Row],[АСТРА]]) -> 0 | J133: =SUMIFS($N$62:$N$116,$C$62:$C$116,"<"&Таблица1[[#This Row],[Дл]],$D$62:$D$116,"=500",$F$62:$F$116,Таблица1[[#This Row],[АСТРА]]) -> 0 | M133: =SUMIFS($J$8:$J$57,$K$8:$K$57,Таблица1[[#This Row],[Столбец5]]) -> 0 | N133: =Таблица1[[#This Row],[пол.мас.цел]]+Таблица1[[#This Row],[пол.мас.дел]] -> 0 | O133: =SUMIFS($Q$62:$Q$116,$C$62:$C$116,Таблица1[[#This Row],[Дл]],$D$62:$D$116,"=500",$F$62:$F$116,Таблица1[[#This Row],[АСТРА]]) -> 0 | P133: =SUMIFS($Q$62:$Q$116,$C$62:$C$116,"<"&Таблица1[[#This Row],[Дл]],$D$62:$D$116,"=500",$F$62:$F$116,Таблица1[[#This Row],[АСТРА]]) -> 0 | Q133: =Таблица1[[#This Row],[ост.с.цел]]+Таблица1[[#This Row],[ост.с.дел]] -> 0 | R133: =Таблица1[[#This Row],[лом.целых]]+Таблица1[[#This Row],[лом.делов]]-Таблица1[[#This Row],[лом.на.пор.]] -> 0 | S133: =Таблица1[[#This Row],[лом]]+Таблица1[[#This Row],[корр.масс]] -> 0 | T133: =SUMIFS($T$62:$T$116,$C$62:$C$116,Таблица1[[#This Row],[Дл]],$D$62:$D$116,"=500",$F$62:$F$116,Таблица1[[#This Row],[АСТРА]]) -> 0 | U133: =SUMIFS($T$62:$T$116,$C$62:$C$116,"<"&Таблица1[[#This Row],[Дл]],$D$62:$D$116,"=500",$F$62:$F$116,Таблица1[[#This Row],[АСТРА]]) -> 0 | V133: =Таблица1[[#This Row],[Столбец17]]+Таблица1[[#This Row],[Столбец18]]+Таблица1[[#This Row],[лом.на.пор.]] -> 0 | W133: =Таблица1[[#This Row],[Столбец19]]-Таблица1[[#This Row],[корр.масс]] -> 0 | Y133: =SUMIFS($X$62:$X$116,$C$62:$C$116,Таблица1[[#This Row],[Дл]],$D$62:$D$116,"=500",$F$62:$F$116,Таблица1[[#This Row],[АСТРА]]) -> 0 | Z133: =SUMIFS($X$62:$X$116,$C$62:$C$116,"<"&Таблица1[[#This Row],[Дл]],$D$62:$D$116,"=500",$F$62:$F$116,Таблица1[[#This Row],[АСТРА]]) -> 0 | AA133: =Таблица1[[#This Row],[Столбец23]]+Таблица1[[#This Row],[Столбец24]] -> 0 | AB133: =Таблица1[[#This Row],[лом.целых]]+Таблица1[[#This Row],[лом.делов]]-Таблица1[[#This Row],[лом.на.пор.]] -> 0 | AC133: =IF(Таблица1[[#This Row],[резы]]*Таблица1[[#This Row],[шир.рез]]/1000*Таблица1[[#This Row],[коэф]]/2<0,0,Таблица1[[#This Row],[резы]]*Таблица1[[#This Row],[шир.рез]]/1000*Таблица1[[#This Row],[коэф]]/2) -> 0 | AD133: =SUMIFS($Y$62:$Y$116,$C$62:$C$116,Таблица1[[#This Row],[Дл]],$D$62:$D$116,"=500",$F$62:$F$116,Таблица1[[#This Row],[АСТРА]]) -> 0 | AE133: =SUMIFS($Y$62:$Y$116,$C$62:$C$116,"<"&Таблица1[[#This Row],[Дл]],$D$62:$D$116,"=500",$F$62:$F$116,Таблица1[[#This Row],[АСТРА]]) -> 0 | AF133: 5 | AG133: =IF(Таблица1[[#This Row],[профиль]]=Таблица1[[#This Row],[толщ]],CONCATENATE(Таблица1[[#This Row],[Столбец33]]," ",Таблица1[[#This Row],[толщ]]),CONCATENATE(Таблица1[[#This Row],[Столбец33]]," ",Таблица1[[#This Row],[профиль]],"х",Таблица1[[#This Row],[толщ]])) -> Круг 20 | AH133: =CONCATENATE(Таблица1[[#This Row],[Столбец33]]," ",Таблица1[[#This Row],[профиль]]) -> Круг 20 | AI133: Круг 20, 20.0 мм, кр20 | AJ133: Круг | AK133: =IF(Таблица1[[#This Row],[профиль]]=Таблица1[[#This Row],[толщ]],Таблица1[[#This Row],[толщ]],CONCATENATE(Таблица1[[#This Row],[профиль]],"х",Таблица1[[#This Row],[точка]])) -> 20 | AL133: 20 | AM133: 20 | AN133: =SUBSTITUTE(Таблица1[[#This Row],[толщ]],",",".") -> 20 | AO133: =2.466*2 -> 4.932 | AP133: =SUMIFS($U$8:$U$57,$K$8:$K$57,Таблица1[[#This Row],[ГОСТ]]) -> 0
A134: =IF(Таблица1[[#This Row],[Столбец19]]=0,"z","") -> z | D134: 1000 | F134: =SUMIFS($G$62:$G$116,$D$62:$D$116,500,$C$62:$C$116,Таблица1[[#This Row],[Дл]],$F$62:$F$116,Таблица1[[#This Row],[АСТРА]]) -> 0 | G134: =Таблица1[[#This Row],[толщ]] -> 200 | H134: =Таблица1[[#This Row],[ГОСТ]] -> Круг 200 | I134: =SUMIFS($N$62:$N$116,$C$62:$C$116,Таблица1[[#This Row],[Дл]],$D$62:$D$116,"=500",$F$62:$F$116,Таблица1[[#This Row],[АСТРА]]) -> 0 | J134: =SUMIFS($N$62:$N$116,$C$62:$C$116,"<"&Таблица1[[#This Row],[Дл]],$D$62:$D$116,"=500",$F$62:$F$116,Таблица1[[#This Row],[АСТРА]]) -> 0 | M134: =SUMIFS($J$8:$J$57,$K$8:$K$57,Таблица1[[#This Row],[Столбец5]]) -> 0 | N134: =Таблица1[[#This Row],[пол.мас.цел]]+Таблица1[[#This Row],[пол.мас.дел]] -> 0 | O134: =SUMIFS($Q$62:$Q$116,$C$62:$C$116,Таблица1[[#This Row],[Дл]],$D$62:$D$116,"=500",$F$62:$F$116,Таблица1[[#This Row],[АСТРА]]) -> 0 | P134: =SUMIFS($Q$62:$Q$116,$C$62:$C$116,"<"&Таблица1[[#This Row],[Дл]],$D$62:$D$116,"=500",$F$62:$F$116,Таблица1[[#This Row],[АСТРА]]) -> 0 | Q134: =Таблица1[[#This Row],[ост.с.цел]]+Таблица1[[#This Row],[ост.с.дел]] -> 0 | R134: =Таблица1[[#This Row],[лом.целых]]+Таблица1[[#This Row],[лом.делов]]-Таблица1[[#This Row],[лом.на.пор.]] -> 0 | S134: =Таблица1[[#This Row],[лом]]+Таблица1[[#This Row],[корр.масс]] -> 0 | T134: =SUMIFS($T$62:$T$116,$C$62:$C$116,Таблица1[[#This Row],[Дл]],$D$62:$D$116,"=500",$F$62:$F$116,Таблица1[[#This Row],[АСТРА]]) -> 0 | U134: =SUMIFS($T$62:$T$116,$C$62:$C$116,"<"&Таблица1[[#This Row],[Дл]],$D$62:$D$116,"=500",$F$62:$F$116,Таблица1[[#This Row],[АСТРА]]) -> 0 | V134: =Таблица1[[#This Row],[Столбец17]]+Таблица1[[#This Row],[Столбец18]]+Таблица1[[#This Row],[лом.на.пор.]] -> 0 | W134: =Таблица1[[#This Row],[Столбец19]]-Таблица1[[#This Row],[корр.масс]] -> 0 | Y134: =SUMIFS($X$62:$X$116,$C$62:$C$116,Таблица1[[#This Row],[Дл]],$D$62:$D$116,"=500",$F$62:$F$116,Таблица1[[#This Row],[АСТРА]]) -> 0 | Z134: =SUMIFS($X$62:$X$116,$C$62:$C$116,"<"&Таблица1[[#This Row],[Дл]],$D$62:$D$116,"=500",$F$62:$F$116,Таблица1[[#This Row],[АСТРА]]) -> 0 | AA134: =Таблица1[[#This Row],[Столбец23]]+Таблица1[[#This Row],[Столбец24]] -> 0 | AB134: =Таблица1[[#This Row],[лом.целых]]+Таблица1[[#This Row],[лом.делов]]-Таблица1[[#This Row],[лом.на.пор.]] -> 0 | AC134: =IF(Таблица1[[#This Row],[резы]]*Таблица1[[#This Row],[шир.рез]]/1000*Таблица1[[#This Row],[коэф]]/2<0,0,Таблица1[[#This Row],[резы]]*Таблица1[[#This Row],[шир.рез]]/1000*Таблица1[[#This Row],[коэф]]/2) -> 0 | AD134: =SUMIFS($Y$62:$Y$116,$C$62:$C$116,Таблица1[[#This Row],[Дл]],$D$62:$D$116,"=500",$F$62:$F$116,Таблица1[[#This Row],[АСТРА]]) -> 0 | AE134: =SUMIFS($Y$62:$Y$116,$C$62:$C$116,"<"&Таблица1[[#This Row],[Дл]],$D$62:$D$116,"=500",$F$62:$F$116,Таблица1[[#This Row],[АСТРА]]) -> 0 | AF134: 5 | AG134: =IF(Таблица1[[#This Row],[профиль]]=Таблица1[[#This Row],[толщ]],CONCATENATE(Таблица1[[#This Row],[Столбец33]]," ",Таблица1[[#This Row],[толщ]]),CONCATENATE(Таблица1[[#This Row],[Столбец33]]," ",Таблица1[[#This Row],[профиль]],"х",Таблица1[[#This Row],[толщ]])) -> Круг 200 | AH134: =CONCATENATE(Таблица1[[#This Row],[Столбец33]]," ",Таблица1[[#This Row],[профиль]]) -> Круг 200 | AI134: Круг 200, 200.0 мм | AJ134: Круг | AK134: =IF(Таблица1[[#This Row],[профиль]]=Таблица1[[#This Row],[толщ]],Таблица1[[#This Row],[толщ]],CONCATENATE(Таблица1[[#This Row],[профиль]],"х",Таблица1[[#This Row],[точка]])) -> 200 | AL134: 200 | AM134: 200 | AN134: =SUBSTITUTE(Таблица1[[#This Row],[толщ]],",",".") -> 200 | AO134: =246.62*2 -> 493.24 | AP134: =SUMIFS($U$8:$U$57,$K$8:$K$57,Таблица1[[#This Row],[ГОСТ]]) -> 0
A135: =IF(Таблица1[[#This Row],[Столбец19]]=0,"z","") -> z | D135: 3000 | F135: =SUMIFS($G$62:$G$116,$D$62:$D$116,500,$C$62:$C$116,Таблица1[[#This Row],[Дл]],$F$62:$F$116,Таблица1[[#This Row],[АСТРА]]) -> 0 | G135: =Таблица1[[#This Row],[толщ]] -> 22 | H135: =Таблица1[[#This Row],[ГОСТ]] -> Круг 22 | I135: =SUMIFS($N$62:$N$116,$C$62:$C$116,Таблица1[[#This Row],[Дл]],$D$62:$D$116,"=500",$F$62:$F$116,Таблица1[[#This Row],[АСТРА]]) -> 0 | J135: =SUMIFS($N$62:$N$116,$C$62:$C$116,"<"&Таблица1[[#This Row],[Дл]],$D$62:$D$116,"=500",$F$62:$F$116,Таблица1[[#This Row],[АСТРА]]) -> 0 | M135: =SUMIFS($J$8:$J$57,$K$8:$K$57,Таблица1[[#This Row],[Столбец5]]) -> 0 | N135: =Таблица1[[#This Row],[пол.мас.цел]]+Таблица1[[#This Row],[пол.мас.дел]] -> 0 | O135: =SUMIFS($Q$62:$Q$116,$C$62:$C$116,Таблица1[[#This Row],[Дл]],$D$62:$D$116,"=500",$F$62:$F$116,Таблица1[[#This Row],[АСТРА]]) -> 0 | P135: =SUMIFS($Q$62:$Q$116,$C$62:$C$116,"<"&Таблица1[[#This Row],[Дл]],$D$62:$D$116,"=500",$F$62:$F$116,Таблица1[[#This Row],[АСТРА]]) -> 0 | Q135: =Таблица1[[#This Row],[ост.с.цел]]+Таблица1[[#This Row],[ост.с.дел]] -> 0 | R135: =Таблица1[[#This Row],[лом.целых]]+Таблица1[[#This Row],[лом.делов]]-Таблица1[[#This Row],[лом.на.пор.]] -> 0 | S135: =Таблица1[[#This Row],[лом]]+Таблица1[[#This Row],[корр.масс]] -> 0 | T135: =SUMIFS($T$62:$T$116,$C$62:$C$116,Таблица1[[#This Row],[Дл]],$D$62:$D$116,"=500",$F$62:$F$116,Таблица1[[#This Row],[АСТРА]]) -> 0 | U135: =SUMIFS($T$62:$T$116,$C$62:$C$116,"<"&Таблица1[[#This Row],[Дл]],$D$62:$D$116,"=500",$F$62:$F$116,Таблица1[[#This Row],[АСТРА]]) -> 0 | V135: =Таблица1[[#This Row],[Столбец17]]+Таблица1[[#This Row],[Столбец18]]+Таблица1[[#This Row],[лом.на.пор.]] -> 0 | W135: =Таблица1[[#This Row],[Столбец19]]-Таблица1[[#This Row],[корр.масс]] -> 0 | Y135: =SUMIFS($X$62:$X$116,$C$62:$C$116,Таблица1[[#This Row],[Дл]],$D$62:$D$116,"=500",$F$62:$F$116,Таблица1[[#This Row],[АСТРА]]) -> 0 | Z135: =SUMIFS($X$62:$X$116,$C$62:$C$116,"<"&Таблица1[[#This Row],[Дл]],$D$62:$D$116,"=500",$F$62:$F$116,Таблица1[[#This Row],[АСТРА]]) -> 0 | AA135: =Таблица1[[#This Row],[Столбец23]]+Таблица1[[#This Row],[Столбец24]] -> 0 | AB135: =Таблица1[[#This Row],[лом.целых]]+Таблица1[[#This Row],[лом.делов]]-Таблица1[[#This Row],[лом.на.пор.]] -> 0 | AC135: =IF(Таблица1[[#This Row],[резы]]*Таблица1[[#This Row],[шир.рез]]/1000*Таблица1[[#This Row],[коэф]]/2<0,0,Таблица1[[#This Row],[резы]]*Таблица1[[#This Row],[шир.рез]]/1000*Таблица1[[#This Row],[коэф]]/2) -> 0 | AD135: =SUMIFS($Y$62:$Y$116,$C$62:$C$116,Таблица1[[#This Row],[Дл]],$D$62:$D$116,"=500",$F$62:$F$116,Таблица1[[#This Row],[АСТРА]]) -> 0 | AE135: =SUMIFS($Y$62:$Y$116,$C$62:$C$116,"<"&Таблица1[[#This Row],[Дл]],$D$62:$D$116,"=500",$F$62:$F$116,Таблица1[[#This Row],[АСТРА]]) -> 0 | AF135: 5 | AG135: =IF(Таблица1[[#This Row],[профиль]]=Таблица1[[#This Row],[толщ]],CONCATENATE(Таблица1[[#This Row],[Столбец33]]," ",Таблица1[[#This Row],[толщ]]),CONCATENATE(Таблица1[[#This Row],[Столбец33]]," ",Таблица1[[#This Row],[профиль]],"х",Таблица1[[#This Row],[толщ]])) -> Круг 22 | AH135: =CONCATENATE(Таблица1[[#This Row],[Столбец33]]," ",Таблица1[[#This Row],[профиль]]) -> Круг 22 | AI135: Круг 22, 22.0 мм | AJ135: Круг | AK135: =IF(Таблица1[[#This Row],[профиль]]=Таблица1[[#This Row],[толщ]],Таблица1[[#This Row],[толщ]],CONCATENATE(Таблица1[[#This Row],[профиль]],"х",Таблица1[[#This Row],[точка]])) -> 22 | AL135: 22 | AM135: 22 | AN135: =SUBSTITUTE(Таблица1[[#This Row],[толщ]],",",".") -> 22 | AO135: =2.984*2 -> 5.968 | AP135: =SUMIFS($U$8:$U$57,$K$8:$K$57,Таблица1[[#This Row],[ГОСТ]]) -> 0
A136: =IF(Таблица1[[#This Row],[Столбец19]]=0,"z","") -> z | D136: 1000 | F136: =SUMIFS($G$62:$G$116,$D$62:$D$116,500,$C$62:$C$116,Таблица1[[#This Row],[Дл]],$F$62:$F$116,Таблица1[[#This Row],[АСТРА]]) -> 0 | G136: =Таблица1[[#This Row],[толщ]] -> 25 | H136: =Таблица1[[#This Row],[ГОСТ]] -> Круг 25 | I136: =SUMIFS($N$62:$N$116,$C$62:$C$116,Таблица1[[#This Row],[Дл]],$D$62:$D$116,"=500",$F$62:$F$116,Таблица1[[#This Row],[АСТРА]]) -> 0 | J136: =SUMIFS($N$62:$N$116,$C$62:$C$116,"<"&Таблица1[[#This Row],[Дл]],$D$62:$D$116,"=500",$F$62:$F$116,Таблица1[[#This Row],[АСТРА]]) -> 0 | M136: =SUMIFS($J$8:$J$57,$K$8:$K$57,Таблица1[[#This Row],[Столбец5]]) -> 0 | N136: =Таблица1[[#This Row],[пол.мас.цел]]+Таблица1[[#This Row],[пол.мас.дел]] -> 0 | O136: =SUMIFS($Q$62:$Q$116,$C$62:$C$116,Таблица1[[#This Row],[Дл]],$D$62:$D$116,"=500",$F$62:$F$116,Таблица1[[#This Row],[АСТРА]]) -> 0 | P136: =SUMIFS($Q$62:$Q$116,$C$62:$C$116,"<"&Таблица1[[#This Row],[Дл]],$D$62:$D$116,"=500",$F$62:$F$116,Таблица1[[#This Row],[АСТРА]]) -> 0 | Q136: =Таблица1[[#This Row],[ост.с.цел]]+Таблица1[[#This Row],[ост.с.дел]] -> 0 | R136: =Таблица1[[#This Row],[лом.целых]]+Таблица1[[#This Row],[лом.делов]]-Таблица1[[#This Row],[лом.на.пор.]] -> 0 | S136: =Таблица1[[#This Row],[лом]]+Таблица1[[#This Row],[корр.масс]] -> 0 | T136: =SUMIFS($T$62:$T$116,$C$62:$C$116,Таблица1[[#This Row],[Дл]],$D$62:$D$116,"=500",$F$62:$F$116,Таблица1[[#This Row],[АСТРА]]) -> 0 | U136: =SUMIFS($T$62:$T$116,$C$62:$C$116,"<"&Таблица1[[#This Row],[Дл]],$D$62:$D$116,"=500",$F$62:$F$116,Таблица1[[#This Row],[АСТРА]]) -> 0 | V136: =Таблица1[[#This Row],[Столбец17]]+Таблица1[[#This Row],[Столбец18]]+Таблица1[[#This Row],[лом.на.пор.]] -> 0 | W136: =Таблица1[[#This Row],[Столбец19]]-Таблица1[[#This Row],[корр.масс]] -> 0 | Y136: =SUMIFS($X$62:$X$116,$C$62:$C$116,Таблица1[[#This Row],[Дл]],$D$62:$D$116,"=500",$F$62:$F$116,Таблица1[[#This Row],[АСТРА]]) -> 0 | Z136: =SUMIFS($X$62:$X$116,$C$62:$C$116,"<"&Таблица1[[#This Row],[Дл]],$D$62:$D$116,"=500",$F$62:$F$116,Таблица1[[#This Row],[АСТРА]]) -> 0 | AA136: =Таблица1[[#This Row],[Столбец23]]+Таблица1[[#This Row],[Столбец24]] -> 0 | AB136: =Таблица1[[#This Row],[лом.целых]]+Таблица1[[#This Row],[лом.делов]]-Таблица1[[#This Row],[лом.на.пор.]] -> 0 | AC136: =IF(Таблица1[[#This Row],[резы]]*Таблица1[[#This Row],[шир.рез]]/1000*Таблица1[[#This Row],[коэф]]/2<0,0,Таблица1[[#This Row],[резы]]*Таблица1[[#This Row],[шир.рез]]/1000*Таблица1[[#This Row],[коэф]]/2) -> 0 | AD136: =SUMIFS($Y$62:$Y$116,$C$62:$C$116,Таблица1[[#This Row],[Дл]],$D$62:$D$116,"=500",$F$62:$F$116,Таблица1[[#This Row],[АСТРА]]) -> 0 | AE136: =SUMIFS($Y$62:$Y$116,$C$62:$C$116,"<"&Таблица1[[#This Row],[Дл]],$D$62:$D$116,"=500",$F$62:$F$116,Таблица1[[#This Row],[АСТРА]]) -> 0 | AF136: 5 | AG136: =IF(Таблица1[[#This Row],[профиль]]=Таблица1[[#This Row],[толщ]],CONCATENATE(Таблица1[[#This Row],[Столбец33]]," ",Таблица1[[#This Row],[толщ]]),CONCATENATE(Таблица1[[#This Row],[Столбец33]]," ",Таблица1[[#This Row],[профиль]],"х",Таблица1[[#This Row],[толщ]])) -> Круг 25 | AH136: =CONCATENATE(Таблица1[[#This Row],[Столбец33]]," ",Таблица1[[#This Row],[профиль]]) -> Круг 25 | AI136: Круг 25, 25.0 мм | AJ136: Круг | AK136: =IF(Таблица1[[#This Row],[профиль]]=Таблица1[[#This Row],[толщ]],Таблица1[[#This Row],[толщ]],CONCATENATE(Таблица1[[#This Row],[профиль]],"х",Таблица1[[#This Row],[точка]])) -> 25 | AL136: 25 | AM136: 25 | AN136: =SUBSTITUTE(Таблица1[[#This Row],[толщ]],",",".") -> 25 | AO136: =3.853*2 -> 7.706 | AP136: =SUMIFS($U$8:$U$57,$K$8:$K$57,Таблица1[[#This Row],[ГОСТ]]) -> 0
A137: =IF(Таблица1[[#This Row],[Столбец19]]=0,"z","") -> z | D137: 3000 | F137: =SUMIFS($G$62:$G$116,$D$62:$D$116,500,$C$62:$C$116,Таблица1[[#This Row],[Дл]],$F$62:$F$116,Таблица1[[#This Row],[АСТРА]]) -> 0 | G137: =Таблица1[[#This Row],[толщ]] -> 30 | H137: =Таблица1[[#This Row],[ГОСТ]] -> Круг 30 | I137: =SUMIFS($N$62:$N$116,$C$62:$C$116,Таблица1[[#This Row],[Дл]],$D$62:$D$116,"=500",$F$62:$F$116,Таблица1[[#This Row],[АСТРА]]) -> 0 | J137: =SUMIFS($N$62:$N$116,$C$62:$C$116,"<"&Таблица1[[#This Row],[Дл]],$D$62:$D$116,"=500",$F$62:$F$116,Таблица1[[#This Row],[АСТРА]]) -> 0 | M137: =SUMIFS($J$8:$J$57,$K$8:$K$57,Таблица1[[#This Row],[Столбец5]]) -> 0 | N137: =Таблица1[[#This Row],[пол.мас.цел]]+Таблица1[[#This Row],[пол.мас.дел]] -> 0 | O137: =SUMIFS($Q$62:$Q$116,$C$62:$C$116,Таблица1[[#This Row],[Дл]],$D$62:$D$116,"=500",$F$62:$F$116,Таблица1[[#This Row],[АСТРА]]) -> 0 | P137: =SUMIFS($Q$62:$Q$116,$C$62:$C$116,"<"&Таблица1[[#This Row],[Дл]],$D$62:$D$116,"=500",$F$62:$F$116,Таблица1[[#This Row],[АСТРА]]) -> 0 | Q137: =Таблица1[[#This Row],[ост.с.цел]]+Таблица1[[#This Row],[ост.с.дел]] -> 0 | R137: =Таблица1[[#This Row],[лом.целых]]+Таблица1[[#This Row],[лом.делов]]-Таблица1[[#This Row],[лом.на.пор.]] -> 0 | S137: =Таблица1[[#This Row],[лом]]+Таблица1[[#This Row],[корр.масс]] -> 0 | T137: =SUMIFS($T$62:$T$116,$C$62:$C$116,Таблица1[[#This Row],[Дл]],$D$62:$D$116,"=500",$F$62:$F$116,Таблица1[[#This Row],[АСТРА]]) -> 0 | U137: =SUMIFS($T$62:$T$116,$C$62:$C$116,"<"&Таблица1[[#This Row],[Дл]],$D$62:$D$116,"=500",$F$62:$F$116,Таблица1[[#This Row],[АСТРА]]) -> 0 | V137: =Таблица1[[#This Row],[Столбец17]]+Таблица1[[#This Row],[Столбец18]]+Таблица1[[#This Row],[лом.на.пор.]] -> 0 | W137: =Таблица1[[#This Row],[Столбец19]]-Таблица1[[#This Row],[корр.масс]] -> 0 | Y137: =SUMIFS($X$62:$X$116,$C$62:$C$116,Таблица1[[#This Row],[Дл]],$D$62:$D$116,"=500",$F$62:$F$116,Таблица1[[#This Row],[АСТРА]]) -> 0 | Z137: =SUMIFS($X$62:$X$116,$C$62:$C$116,"<"&Таблица1[[#This Row],[Дл]],$D$62:$D$116,"=500",$F$62:$F$116,Таблица1[[#This Row],[АСТРА]]) -> 0 | AA137: =Таблица1[[#This Row],[Столбец23]]+Таблица1[[#This Row],[Столбец24]] -> 0 | AB137: =Таблица1[[#This Row],[лом.целых]]+Таблица1[[#This Row],[лом.делов]]-Таблица1[[#This Row],[лом.на.пор.]] -> 0 | AC137: =IF(Таблица1[[#This Row],[резы]]*Таблица1[[#This Row],[шир.рез]]/1000*Таблица1[[#This Row],[коэф]]/2<0,0,Таблица1[[#This Row],[резы]]*Таблица1[[#This Row],[шир.рез]]/1000*Таблица1[[#This Row],[коэф]]/2) -> 0 | AD137: =SUMIFS($Y$62:$Y$116,$C$62:$C$116,Таблица1[[#This Row],[Дл]],$D$62:$D$116,"=500",$F$62:$F$116,Таблица1[[#This Row],[АСТРА]]) -> 0 | AE137: =SUMIFS($Y$62:$Y$116,$C$62:$C$116,"<"&Таблица1[[#This Row],[Дл]],$D$62:$D$116,"=500",$F$62:$F$116,Таблица1[[#This Row],[АСТРА]]) -> 0 | AF137: 5 | AG137: =IF(Таблица1[[#This Row],[профиль]]=Таблица1[[#This Row],[толщ]],CONCATENATE(Таблица1[[#This Row],[Столбец33]]," ",Таблица1[[#This Row],[толщ]]),CONCATENATE(Таблица1[[#This Row],[Столбец33]]," ",Таблица1[[#This Row],[профиль]],"х",Таблица1[[#This Row],[толщ]])) -> Круг 30 | AH137: =CONCATENATE(Таблица1[[#This Row],[Столбец33]]," ",Таблица1[[#This Row],[профиль]]) -> Круг 30 | AI137: Круг 30, 30.0 мм | AJ137: Круг | AK137: =IF(Таблица1[[#This Row],[профиль]]=Таблица1[[#This Row],[толщ]],Таблица1[[#This Row],[толщ]],CONCATENATE(Таблица1[[#This Row],[профиль]],"х",Таблица1[[#This Row],[точка]])) -> 30 | AL137: 30 | AM137: 30 | AN137: =SUBSTITUTE(Таблица1[[#This Row],[толщ]],",",".") -> 30 | AO137: =5.549*2 -> 11.098 | AP137: =SUMIFS($U$8:$U$57,$K$8:$K$57,Таблица1[[#This Row],[ГОСТ]]) -> 0
A138: =IF(Таблица1[[#This Row],[Столбец19]]=0,"z","") -> z | D138: 3000 | F138: =SUMIFS($G$62:$G$116,$D$62:$D$116,500,$C$62:$C$116,Таблица1[[#This Row],[Дл]],$F$62:$F$116,Таблица1[[#This Row],[АСТРА]]) -> 0 | G138: =Таблица1[[#This Row],[толщ]] -> 32 | H138: =Таблица1[[#This Row],[ГОСТ]] -> Круг 32 | I138: =SUMIFS($N$62:$N$116,$C$62:$C$116,Таблица1[[#This Row],[Дл]],$D$62:$D$116,"=500",$F$62:$F$116,Таблица1[[#This Row],[АСТРА]]) -> 0 | J138: =SUMIFS($N$62:$N$116,$C$62:$C$116,"<"&Таблица1[[#This Row],[Дл]],$D$62:$D$116,"=500",$F$62:$F$116,Таблица1[[#This Row],[АСТРА]]) -> 0 | M138: =SUMIFS($J$8:$J$57,$K$8:$K$57,Таблица1[[#This Row],[Столбец5]]) -> 0 | N138: =Таблица1[[#This Row],[пол.мас.цел]]+Таблица1[[#This Row],[пол.мас.дел]] -> 0 | O138: =SUMIFS($Q$62:$Q$116,$C$62:$C$116,Таблица1[[#This Row],[Дл]],$D$62:$D$116,"=500",$F$62:$F$116,Таблица1[[#This Row],[АСТРА]]) -> 0 | P138: =SUMIFS($Q$62:$Q$116,$C$62:$C$116,"<"&Таблица1[[#This Row],[Дл]],$D$62:$D$116,"=500",$F$62:$F$116,Таблица1[[#This Row],[АСТРА]]) -> 0 | Q138: =Таблица1[[#This Row],[ост.с.цел]]+Таблица1[[#This Row],[ост.с.дел]] -> 0 | R138: =Таблица1[[#This Row],[лом.целых]]+Таблица1[[#This Row],[лом.делов]]-Таблица1[[#This Row],[лом.на.пор.]] -> 0 | S138: =Таблица1[[#This Row],[лом]]+Таблица1[[#This Row],[корр.масс]] -> 0 | T138: =SUMIFS($T$62:$T$116,$C$62:$C$116,Таблица1[[#This Row],[Дл]],$D$62:$D$116,"=500",$F$62:$F$116,Таблица1[[#This Row],[АСТРА]]) -> 0 | U138: =SUMIFS($T$62:$T$116,$C$62:$C$116,"<"&Таблица1[[#This Row],[Дл]],$D$62:$D$116,"=500",$F$62:$F$116,Таблица1[[#This Row],[АСТРА]]) -> 0 | V138: =Таблица1[[#This Row],[Столбец17]]+Таблица1[[#This Row],[Столбец18]]+Таблица1[[#This Row],[лом.на.пор.]] -> 0 | W138: =Таблица1[[#This Row],[Столбец19]]-Таблица1[[#This Row],[корр.масс]] -> 0 | Y138: =SUMIFS($X$62:$X$116,$C$62:$C$116,Таблица1[[#This Row],[Дл]],$D$62:$D$116,"=500",$F$62:$F$116,Таблица1[[#This Row],[АСТРА]]) -> 0 | Z138: =SUMIFS($X$62:$X$116,$C$62:$C$116,"<"&Таблица1[[#This Row],[Дл]],$D$62:$D$116,"=500",$F$62:$F$116,Таблица1[[#This Row],[АСТРА]]) -> 0 | AA138: =Таблица1[[#This Row],[Столбец23]]+Таблица1[[#This Row],[Столбец24]] -> 0 | AB138: =Таблица1[[#This Row],[лом.целых]]+Таблица1[[#This Row],[лом.делов]]-Таблица1[[#This Row],[лом.на.пор.]] -> 0 | AC138: =IF(Таблица1[[#This Row],[резы]]*Таблица1[[#This Row],[шир.рез]]/1000*Таблица1[[#This Row],[коэф]]/2<0,0,Таблица1[[#This Row],[резы]]*Таблица1[[#This Row],[шир.рез]]/1000*Таблица1[[#This Row],[коэф]]/2) -> 0 | AD138: =SUMIFS($Y$62:$Y$116,$C$62:$C$116,Таблица1[[#This Row],[Дл]],$D$62:$D$116,"=500",$F$62:$F$116,Таблица1[[#This Row],[АСТРА]]) -> 0 | AE138: =SUMIFS($Y$62:$Y$116,$C$62:$C$116,"<"&Таблица1[[#This Row],[Дл]],$D$62:$D$116,"=500",$F$62:$F$116,Таблица1[[#This Row],[АСТРА]]) -> 0 | AF138: 5 | AG138: =IF(Таблица1[[#This Row],[профиль]]=Таблица1[[#This Row],[толщ]],CONCATENATE(Таблица1[[#This Row],[Столбец33]]," ",Таблица1[[#This Row],[толщ]]),CONCATENATE(Таблица1[[#This Row],[Столбец33]]," ",Таблица1[[#This Row],[профиль]],"х",Таблица1[[#This Row],[толщ]])) -> Круг 32 | AH138: =CONCATENATE(Таблица1[[#This Row],[Столбец33]]," ",Таблица1[[#This Row],[профиль]]) -> Круг 32 | AI138: Круг 32, 32.0 мм, кр32 | AJ138: Круг | AK138: =IF(Таблица1[[#This Row],[профиль]]=Таблица1[[#This Row],[толщ]],Таблица1[[#This Row],[толщ]],CONCATENATE(Таблица1[[#This Row],[профиль]],"х",Таблица1[[#This Row],[точка]])) -> 32 | AL138: 32 | AM138: 32 | AN138: =SUBSTITUTE(Таблица1[[#This Row],[толщ]],",",".") -> 32 | AO138: =6.313*2 -> 12.626 | AP138: =SUMIFS($U$8:$U$57,$K$8:$K$57,Таблица1[[#This Row],[ГОСТ]]) -> 0
A139: =IF(Таблица1[[#This Row],[Столбец19]]=0,"z","") -> z | D139: 1000 | F139: =SUMIFS($G$62:$G$116,$D$62:$D$116,500,$C$62:$C$116,Таблица1[[#This Row],[Дл]],$F$62:$F$116,Таблица1[[#This Row],[АСТРА]]) -> 0 | G139: =Таблица1[[#This Row],[толщ]] -> 35 | H139: =Таблица1[[#This Row],[ГОСТ]] -> Круг 35 | I139: =SUMIFS($N$62:$N$116,$C$62:$C$116,Таблица1[[#This Row],[Дл]],$D$62:$D$116,"=500",$F$62:$F$116,Таблица1[[#This Row],[АСТРА]]) -> 0 | J139: =SUMIFS($N$62:$N$116,$C$62:$C$116,"<"&Таблица1[[#This Row],[Дл]],$D$62:$D$116,"=500",$F$62:$F$116,Таблица1[[#This Row],[АСТРА]]) -> 0 | M139: =SUMIFS($J$8:$J$57,$K$8:$K$57,Таблица1[[#This Row],[Столбец5]]) -> 0 | N139: =Таблица1[[#This Row],[пол.мас.цел]]+Таблица1[[#This Row],[пол.мас.дел]] -> 0 | O139: =SUMIFS($Q$62:$Q$116,$C$62:$C$116,Таблица1[[#This Row],[Дл]],$D$62:$D$116,"=500",$F$62:$F$116,Таблица1[[#This Row],[АСТРА]]) -> 0 | P139: =SUMIFS($Q$62:$Q$116,$C$62:$C$116,"<"&Таблица1[[#This Row],[Дл]],$D$62:$D$116,"=500",$F$62:$F$116,Таблица1[[#This Row],[АСТРА]]) -> 0 | Q139: =Таблица1[[#This Row],[ост.с.цел]]+Таблица1[[#This Row],[ост.с.дел]] -> 0 | R139: =Таблица1[[#This Row],[лом.целых]]+Таблица1[[#This Row],[лом.делов]]-Таблица1[[#This Row],[лом.на.пор.]] -> 0 | S139: =Таблица1[[#This Row],[лом]]+Таблица1[[#This Row],[корр.масс]] -> 0 | T139: =SUMIFS($T$62:$T$116,$C$62:$C$116,Таблица1[[#This Row],[Дл]],$D$62:$D$116,"=500",$F$62:$F$116,Таблица1[[#This Row],[АСТРА]]) -> 0 | U139: =SUMIFS($T$62:$T$116,$C$62:$C$116,"<"&Таблица1[[#This Row],[Дл]],$D$62:$D$116,"=500",$F$62:$F$116,Таблица1[[#This Row],[АСТРА]]) -> 0 | V139: =Таблица1[[#This Row],[Столбец17]]+Таблица1[[#This Row],[Столбец18]]+Таблица1[[#This Row],[лом.на.пор.]] -> 0 | W139: =Таблица1[[#This Row],[Столбец19]]-Таблица1[[#This Row],[корр.масс]] -> 0 | Y139: =SUMIFS($X$62:$X$116,$C$62:$C$116,Таблица1[[#This Row],[Дл]],$D$62:$D$116,"=500",$F$62:$F$116,Таблица1[[#This Row],[АСТРА]]) -> 0 | Z139: =SUMIFS($X$62:$X$116,$C$62:$C$116,"<"&Таблица1[[#This Row],[Дл]],$D$62:$D$116,"=500",$F$62:$F$116,Таблица1[[#This Row],[АСТРА]]) -> 0 | AA139: =Таблица1[[#This Row],[Столбец23]]+Таблица1[[#This Row],[Столбец24]] -> 0 | AB139: =Таблица1[[#This Row],[лом.целых]]+Таблица1[[#This Row],[лом.делов]]-Таблица1[[#This Row],[лом.на.пор.]] -> 0 | AC139: =IF(Таблица1[[#This Row],[резы]]*Таблица1[[#This Row],[шир.рез]]/1000*Таблица1[[#This Row],[коэф]]/2<0,0,Таблица1[[#This Row],[резы]]*Таблица1[[#This Row],[шир.рез]]/1000*Таблица1[[#This Row],[коэф]]/2) -> 0 | AD139: =SUMIFS($Y$62:$Y$116,$C$62:$C$116,Таблица1[[#This Row],[Дл]],$D$62:$D$116,"=500",$F$62:$F$116,Таблица1[[#This Row],[АСТРА]]) -> 0 | AE139: =SUMIFS($Y$62:$Y$116,$C$62:$C$116,"<"&Таблица1[[#This Row],[Дл]],$D$62:$D$116,"=500",$F$62:$F$116,Таблица1[[#This Row],[АСТРА]]) -> 0 | AF139: 5 | AG139: =IF(Таблица1[[#This Row],[профиль]]=Таблица1[[#This Row],[толщ]],CONCATENATE(Таблица1[[#This Row],[Столбец33]]," ",Таблица1[[#This Row],[толщ]]),CONCATENATE(Таблица1[[#This Row],[Столбец33]]," ",Таблица1[[#This Row],[профиль]],"х",Таблица1[[#This Row],[толщ]])) -> Круг 35 | AH139: =CONCATENATE(Таблица1[[#This Row],[Столбец33]]," ",Таблица1[[#This Row],[профиль]]) -> Круг 35 | AI139: Круг 35, 35.0 мм | AJ139: Круг | AK139: =IF(Таблица1[[#This Row],[профиль]]=Таблица1[[#This Row],[толщ]],Таблица1[[#This Row],[толщ]],CONCATENATE(Таблица1[[#This Row],[профиль]],"х",Таблица1[[#This Row],[точка]])) -> 35 | AL139: 35 | AM139: 35 | AN139: =SUBSTITUTE(Таблица1[[#This Row],[толщ]],",",".") -> 35 | AO139: =7.553*2 -> 15.106 | AP139: =SUMIFS($U$8:$U$57,$K$8:$K$57,Таблица1[[#This Row],[ГОСТ]]) -> 0
A140: =IF(Таблица1[[#This Row],[Столбец19]]=0,"z","") -> z | D140: 220 | F140: =SUMIFS($G$62:$G$116,$D$62:$D$116,500,$C$62:$C$116,Таблица1[[#This Row],[Дл]],$F$62:$F$116,Таблица1[[#This Row],[АСТРА]]) -> 0 | G140: =Таблица1[[#This Row],[толщ]] -> 36 | H140: =Таблица1[[#This Row],[ГОСТ]] -> Круг 36 | I140: =SUMIFS($N$62:$N$116,$C$62:$C$116,Таблица1[[#This Row],[Дл]],$D$62:$D$116,"=500",$F$62:$F$116,Таблица1[[#This Row],[АСТРА]]) -> 0 | J140: =SUMIFS($N$62:$N$116,$C$62:$C$116,"<"&Таблица1[[#This Row],[Дл]],$D$62:$D$116,"=500",$F$62:$F$116,Таблица1[[#This Row],[АСТРА]]) -> 0 | M140: =SUMIFS($J$8:$J$57,$K$8:$K$57,Таблица1[[#This Row],[Столбец5]]) -> 0 | N140: =Таблица1[[#This Row],[пол.мас.цел]]+Таблица1[[#This Row],[пол.мас.дел]] -> 0 | O140: =SUMIFS($Q$62:$Q$116,$C$62:$C$116,Таблица1[[#This Row],[Дл]],$D$62:$D$116,"=500",$F$62:$F$116,Таблица1[[#This Row],[АСТРА]]) -> 0 | P140: =SUMIFS($Q$62:$Q$116,$C$62:$C$116,"<"&Таблица1[[#This Row],[Дл]],$D$62:$D$116,"=500",$F$62:$F$116,Таблица1[[#This Row],[АСТРА]]) -> 0 | Q140: =Таблица1[[#This Row],[ост.с.цел]]+Таблица1[[#This Row],[ост.с.дел]] -> 0 | R140: =Таблица1[[#This Row],[лом.целых]]+Таблица1[[#This Row],[лом.делов]]-Таблица1[[#This Row],[лом.на.пор.]] -> 0 | S140: =Таблица1[[#This Row],[лом]]+Таблица1[[#This Row],[корр.масс]] -> 0 | T140: =SUMIFS($T$62:$T$116,$C$62:$C$116,Таблица1[[#This Row],[Дл]],$D$62:$D$116,"=500",$F$62:$F$116,Таблица1[[#This Row],[АСТРА]]) -> 0 | U140: =SUMIFS($T$62:$T$116,$C$62:$C$116,"<"&Таблица1[[#This Row],[Дл]],$D$62:$D$116,"=500",$F$62:$F$116,Таблица1[[#This Row],[АСТРА]]) -> 0 | V140: =Таблица1[[#This Row],[Столбец17]]+Таблица1[[#This Row],[Столбец18]]+Таблица1[[#This Row],[лом.на.пор.]] -> 0 | W140: =Таблица1[[#This Row],[Столбец19]]-Таблица1[[#This Row],[корр.масс]] -> 0 | Y140: =SUMIFS($X$62:$X$116,$C$62:$C$116,Таблица1[[#This Row],[Дл]],$D$62:$D$116,"=500",$F$62:$F$116,Таблица1[[#This Row],[АСТРА]]) -> 0 | Z140: =SUMIFS($X$62:$X$116,$C$62:$C$116,"<"&Таблица1[[#This Row],[Дл]],$D$62:$D$116,"=500",$F$62:$F$116,Таблица1[[#This Row],[АСТРА]]) -> 0 | AA140: =Таблица1[[#This Row],[Столбец23]]+Таблица1[[#This Row],[Столбец24]] -> 0 | AB140: =Таблица1[[#This Row],[лом.целых]]+Таблица1[[#This Row],[лом.делов]]-Таблица1[[#This Row],[лом.на.пор.]] -> 0 | AC140: =IF(Таблица1[[#This Row],[резы]]*Таблица1[[#This Row],[шир.рез]]/1000*Таблица1[[#This Row],[коэф]]/2<0,0,Таблица1[[#This Row],[резы]]*Таблица1[[#This Row],[шир.рез]]/1000*Таблица1[[#This Row],[коэф]]/2) -> 0 | AD140: =SUMIFS($Y$62:$Y$116,$C$62:$C$116,Таблица1[[#This Row],[Дл]],$D$62:$D$116,"=500",$F$62:$F$116,Таблица1[[#This Row],[АСТРА]]) -> 0 | AE140: =SUMIFS($Y$62:$Y$116,$C$62:$C$116,"<"&Таблица1[[#This Row],[Дл]],$D$62:$D$116,"=500",$F$62:$F$116,Таблица1[[#This Row],[АСТРА]]) -> 0 | AF140: 5 | AG140: =IF(Таблица1[[#This Row],[профиль]]=Таблица1[[#This Row],[толщ]],CONCATENATE(Таблица1[[#This Row],[Столбец33]]," ",Таблица1[[#This Row],[толщ]]),CONCATENATE(Таблица1[[#This Row],[Столбец33]]," ",Таблица1[[#This Row],[профиль]],"х",Таблица1[[#This Row],[толщ]])) -> Круг 36 | AH140: =CONCATENATE(Таблица1[[#This Row],[Столбец33]]," ",Таблица1[[#This Row],[профиль]]) -> Круг 36 | AI140: Круг 36, 36.0 мм, кр36 | AJ140: Круг | AK140: =IF(Таблица1[[#This Row],[профиль]]=Таблица1[[#This Row],[толщ]],Таблица1[[#This Row],[толщ]],CONCATENATE(Таблица1[[#This Row],[профиль]],"х",Таблица1[[#This Row],[точка]])) -> 36 | AL140: 36 | AM140: 36 | AN140: =SUBSTITUTE(Таблица1[[#This Row],[толщ]],",",".") -> 36 | AO140: =8.02*2 -> 16.04 | AP140: =SUMIFS($U$8:$U$57,$K$8:$K$57,Таблица1[[#This Row],[ГОСТ]]) -> 0
A141: =IF(Таблица1[[#This Row],[Столбец19]]=0,"z","") -> z | D141: 3000 | F141: =SUMIFS($G$62:$G$116,$D$62:$D$116,500,$C$62:$C$116,Таблица1[[#This Row],[Дл]],$F$62:$F$116,Таблица1[[#This Row],[АСТРА]]) -> 0 | G141: =Таблица1[[#This Row],[толщ]] -> 40 | H141: =Таблица1[[#This Row],[ГОСТ]] -> Круг 40 | I141: =SUMIFS($N$62:$N$116,$C$62:$C$116,Таблица1[[#This Row],[Дл]],$D$62:$D$116,"=500",$F$62:$F$116,Таблица1[[#This Row],[АСТРА]]) -> 0 | J141: =SUMIFS($N$62:$N$116,$C$62:$C$116,"<"&Таблица1[[#This Row],[Дл]],$D$62:$D$116,"=500",$F$62:$F$116,Таблица1[[#This Row],[АСТРА]]) -> 0 | M141: =SUMIFS($J$8:$J$57,$K$8:$K$57,Таблица1[[#This Row],[Столбец5]]) -> 0 | N141: =Таблица1[[#This Row],[пол.мас.цел]]+Таблица1[[#This Row],[пол.мас.дел]] -> 0 | O141: =SUMIFS($Q$62:$Q$116,$C$62:$C$116,Таблица1[[#This Row],[Дл]],$D$62:$D$116,"=500",$F$62:$F$116,Таблица1[[#This Row],[АСТРА]]) -> 0 | P141: =SUMIFS($Q$62:$Q$116,$C$62:$C$116,"<"&Таблица1[[#This Row],[Дл]],$D$62:$D$116,"=500",$F$62:$F$116,Таблица1[[#This Row],[АСТРА]]) -> 0 | Q141: =Таблица1[[#This Row],[ост.с.цел]]+Таблица1[[#This Row],[ост.с.дел]] -> 0 | R141: =Таблица1[[#This Row],[лом.целых]]+Таблица1[[#This Row],[лом.делов]]-Таблица1[[#This Row],[лом.на.пор.]] -> 0 | S141: =Таблица1[[#This Row],[лом]]+Таблица1[[#This Row],[корр.масс]] -> 0 | T141: =SUMIFS($T$62:$T$116,$C$62:$C$116,Таблица1[[#This Row],[Дл]],$D$62:$D$116,"=500",$F$62:$F$116,Таблица1[[#This Row],[АСТРА]]) -> 0 | U141: =SUMIFS($T$62:$T$116,$C$62:$C$116,"<"&Таблица1[[#This Row],[Дл]],$D$62:$D$116,"=500",$F$62:$F$116,Таблица1[[#This Row],[АСТРА]]) -> 0 | V141: =Таблица1[[#This Row],[Столбец17]]+Таблица1[[#This Row],[Столбец18]]+Таблица1[[#This Row],[лом.на.пор.]] -> 0 | W141: =Таблица1[[#This Row],[Столбец19]]-Таблица1[[#This Row],[корр.масс]] -> 0 | Y141: =SUMIFS($X$62:$X$116,$C$62:$C$116,Таблица1[[#This Row],[Дл]],$D$62:$D$116,"=500",$F$62:$F$116,Таблица1[[#This Row],[АСТРА]]) -> 0 | Z141: =SUMIFS($X$62:$X$116,$C$62:$C$116,"<"&Таблица1[[#This Row],[Дл]],$D$62:$D$116,"=500",$F$62:$F$116,Таблица1[[#This Row],[АСТРА]]) -> 0 | AA141: =Таблица1[[#This Row],[Столбец23]]+Таблица1[[#This Row],[Столбец24]] -> 0 | AB141: =Таблица1[[#This Row],[лом.целых]]+Таблица1[[#This Row],[лом.делов]]-Таблица1[[#This Row],[лом.на.пор.]] -> 0 | AC141: =IF(Таблица1[[#This Row],[резы]]*Таблица1[[#This Row],[шир.рез]]/1000*Таблица1[[#This Row],[коэф]]/2<0,0,Таблица1[[#This Row],[резы]]*Таблица1[[#This Row],[шир.рез]]/1000*Таблица1[[#This Row],[коэф]]/2) -> 0 | AD141: =SUMIFS($Y$62:$Y$116,$C$62:$C$116,Таблица1[[#This Row],[Дл]],$D$62:$D$116,"=500",$F$62:$F$116,Таблица1[[#This Row],[АСТРА]]) -> 0 | AE141: =SUMIFS($Y$62:$Y$116,$C$62:$C$116,"<"&Таблица1[[#This Row],[Дл]],$D$62:$D$116,"=500",$F$62:$F$116,Таблица1[[#This Row],[АСТРА]]) -> 0 | AF141: 5 | AG141: =IF(Таблица1[[#This Row],[профиль]]=Таблица1[[#This Row],[толщ]],CONCATENATE(Таблица1[[#This Row],[Столбец33]]," ",Таблица1[[#This Row],[толщ]]),CONCATENATE(Таблица1[[#This Row],[Столбец33]]," ",Таблица1[[#This Row],[профиль]],"х",Таблица1[[#This Row],[толщ]])) -> Круг 40 | AH141: =CONCATENATE(Таблица1[[#This Row],[Столбец33]]," ",Таблица1[[#This Row],[профиль]]) -> Круг 40 | AI141: Круг 40, 40.0 мм | AJ141: Круг | AK141: =IF(Таблица1[[#This Row],[профиль]]=Таблица1[[#This Row],[толщ]],Таблица1[[#This Row],[толщ]],CONCATENATE(Таблица1[[#This Row],[профиль]],"х",Таблица1[[#This Row],[точка]])) -> 40 | AL141: 40 | AM141: 40 | AN141: =SUBSTITUTE(Таблица1[[#This Row],[толщ]],",",".") -> 40 | AO141: =9.865*2 -> 19.73 | AP141: =SUMIFS($U$8:$U$57,$K$8:$K$57,Таблица1[[#This Row],[ГОСТ]]) -> 0
A142: =IF(Таблица1[[#This Row],[Столбец19]]=0,"z","") -> z | D142: 1000 | F142: =SUMIFS($G$62:$G$116,$D$62:$D$116,500,$C$62:$C$116,Таблица1[[#This Row],[Дл]],$F$62:$F$116,Таблица1[[#This Row],[АСТРА]]) -> 0 | G142: =Таблица1[[#This Row],[толщ]] -> 60 | H142: =Таблица1[[#This Row],[ГОСТ]] -> Круг 60 | I142: =SUMIFS($N$62:$N$116,$C$62:$C$116,Таблица1[[#This Row],[Дл]],$D$62:$D$116,"=500",$F$62:$F$116,Таблица1[[#This Row],[АСТРА]]) -> 0 | J142: =SUMIFS($N$62:$N$116,$C$62:$C$116,"<"&Таблица1[[#This Row],[Дл]],$D$62:$D$116,"=500",$F$62:$F$116,Таблица1[[#This Row],[АСТРА]]) -> 0 | M142: =SUMIFS($J$8:$J$57,$K$8:$K$57,Таблица1[[#This Row],[Столбец5]]) -> 0 | N142: =Таблица1[[#This Row],[пол.мас.цел]]+Таблица1[[#This Row],[пол.мас.дел]] -> 0 | O142: =SUMIFS($Q$62:$Q$116,$C$62:$C$116,Таблица1[[#This Row],[Дл]],$D$62:$D$116,"=500",$F$62:$F$116,Таблица1[[#This Row],[АСТРА]]) -> 0 | P142: =SUMIFS($Q$62:$Q$116,$C$62:$C$116,"<"&Таблица1[[#This Row],[Дл]],$D$62:$D$116,"=500",$F$62:$F$116,Таблица1[[#This Row],[АСТРА]]) -> 0 | Q142: =Таблица1[[#This Row],[ост.с.цел]]+Таблица1[[#This Row],[ост.с.дел]] -> 0 | R142: =Таблица1[[#This Row],[лом.целых]]+Таблица1[[#This Row],[лом.делов]]-Таблица1[[#This Row],[лом.на.пор.]] -> 0 | S142: =Таблица1[[#This Row],[лом]]+Таблица1[[#This Row],[корр.масс]] -> 0 | T142: =SUMIFS($T$62:$T$116,$C$62:$C$116,Таблица1[[#This Row],[Дл]],$D$62:$D$116,"=500",$F$62:$F$116,Таблица1[[#This Row],[АСТРА]]) -> 0 | U142: =SUMIFS($T$62:$T$116,$C$62:$C$116,"<"&Таблица1[[#This Row],[Дл]],$D$62:$D$116,"=500",$F$62:$F$116,Таблица1[[#This Row],[АСТРА]]) -> 0 | V142: =Таблица1[[#This Row],[Столбец17]]+Таблица1[[#This Row],[Столбец18]]+Таблица1[[#This Row],[лом.на.пор.]] -> 0 | W142: =Таблица1[[#This Row],[Столбец19]]-Таблица1[[#This Row],[корр.масс]] -> 0 | Y142: =SUMIFS($X$62:$X$116,$C$62:$C$116,Таблица1[[#This Row],[Дл]],$D$62:$D$116,"=500",$F$62:$F$116,Таблица1[[#This Row],[АСТРА]]) -> 0 | Z142: =SUMIFS($X$62:$X$116,$C$62:$C$116,"<"&Таблица1[[#This Row],[Дл]],$D$62:$D$116,"=500",$F$62:$F$116,Таблица1[[#This Row],[АСТРА]]) -> 0 | AA142: =Таблица1[[#This Row],[Столбец23]]+Таблица1[[#This Row],[Столбец24]] -> 0 | AB142: =Таблица1[[#This Row],[лом.целых]]+Таблица1[[#This Row],[лом.делов]]-Таблица1[[#This Row],[лом.на.пор.]] -> 0 | AC142: =IF(Таблица1[[#This Row],[резы]]*Таблица1[[#This Row],[шир.рез]]/1000*Таблица1[[#This Row],[коэф]]/2<0,0,Таблица1[[#This Row],[резы]]*Таблица1[[#This Row],[шир.рез]]/1000*Таблица1[[#This Row],[коэф]]/2) -> 0 | AD142: =SUMIFS($Y$62:$Y$116,$C$62:$C$116,Таблица1[[#This Row],[Дл]],$D$62:$D$116,"=500",$F$62:$F$116,Таблица1[[#This Row],[АСТРА]]) -> 0 | AE142: =SUMIFS($Y$62:$Y$116,$C$62:$C$116,"<"&Таблица1[[#This Row],[Дл]],$D$62:$D$116,"=500",$F$62:$F$116,Таблица1[[#This Row],[АСТРА]]) -> 0 | AF142: 5 | AG142: =IF(Таблица1[[#This Row],[профиль]]=Таблица1[[#This Row],[толщ]],CONCATENATE(Таблица1[[#This Row],[Столбец33]]," ",Таблица1[[#This Row],[толщ]]),CONCATENATE(Таблица1[[#This Row],[Столбец33]]," ",Таблица1[[#This Row],[профиль]],"х",Таблица1[[#This Row],[толщ]])) -> Круг 60 | AH142: =CONCATENATE(Таблица1[[#This Row],[Столбец33]]," ",Таблица1[[#This Row],[профиль]]) -> Круг 60 | AI142: Круг 60, 60.0 мм, кр60 | AJ142: Круг | AK142: =IF(Таблица1[[#This Row],[профиль]]=Таблица1[[#This Row],[толщ]],Таблица1[[#This Row],[толщ]],CONCATENATE(Таблица1[[#This Row],[профиль]],"х",Таблица1[[#This Row],[точка]])) -> 60 | AL142: 60 | AM142: 60 | AN142: =SUBSTITUTE(Таблица1[[#This Row],[толщ]],",",".") -> 60 | AO142: =22.195*2 -> 44.39 | AP142: =SUMIFS($U$8:$U$57,$K$8:$K$57,Таблица1[[#This Row],[ГОСТ]]) -> 0
A143: =IF(Таблица1[[#This Row],[Столбец19]]=0,"z","") -> z | D143: 3000 | F143: =SUMIFS($G$62:$G$116,$D$62:$D$116,500,$C$62:$C$116,Таблица1[[#This Row],[Дл]],$F$62:$F$116,Таблица1[[#This Row],[АСТРА]]) -> 0 | G143: =Таблица1[[#This Row],[толщ]] -> 20 | H143: =Таблица1[[#This Row],[ГОСТ]] -> Круг бронзовый 20 | I143: =SUMIFS($N$62:$N$116,$C$62:$C$116,Таблица1[[#This Row],[Дл]],$D$62:$D$116,"=500",$F$62:$F$116,Таблица1[[#This Row],[АСТРА]]) -> 0 | J143: =SUMIFS($N$62:$N$116,$C$62:$C$116,"<"&Таблица1[[#This Row],[Дл]],$D$62:$D$116,"=500",$F$62:$F$116,Таблица1[[#This Row],[АСТРА]]) -> 0 | M143: =SUMIFS($J$8:$J$57,$K$8:$K$57,Таблица1[[#This Row],[Столбец5]]) -> 0 | N143: =Таблица1[[#This Row],[пол.мас.цел]]+Таблица1[[#This Row],[пол.мас.дел]] -> 0 | O143: =SUMIFS($Q$62:$Q$116,$C$62:$C$116,Таблица1[[#This Row],[Дл]],$D$62:$D$116,"=500",$F$62:$F$116,Таблица1[[#This Row],[АСТРА]]) -> 0 | P143: =SUMIFS($Q$62:$Q$116,$C$62:$C$116,"<"&Таблица1[[#This Row],[Дл]],$D$62:$D$116,"=500",$F$62:$F$116,Таблица1[[#This Row],[АСТРА]]) -> 0 | Q143: =Таблица1[[#This Row],[ост.с.цел]]+Таблица1[[#This Row],[ост.с.дел]] -> 0 | R143: =Таблица1[[#This Row],[лом.целых]]+Таблица1[[#This Row],[лом.делов]]-Таблица1[[#This Row],[лом.на.пор.]] -> 0 | S143: =Таблица1[[#This Row],[лом]]+Таблица1[[#This Row],[корр.масс]] -> 0 | T143: =SUMIFS($T$62:$T$116,$C$62:$C$116,Таблица1[[#This Row],[Дл]],$D$62:$D$116,"=500",$F$62:$F$116,Таблица1[[#This Row],[АСТРА]]) -> 0 | U143: =SUMIFS($T$62:$T$116,$C$62:$C$116,"<"&Таблица1[[#This Row],[Дл]],$D$62:$D$116,"=500",$F$62:$F$116,Таблица1[[#This Row],[АСТРА]]) -> 0 | V143: =Таблица1[[#This Row],[Столбец17]]+Таблица1[[#This Row],[Столбец18]]+Таблица1[[#This Row],[лом.на.пор.]] -> 0 | W143: =Таблица1[[#This Row],[Столбец19]]-Таблица1[[#This Row],[корр.масс]] -> 0 | Y143: =SUMIFS($X$62:$X$116,$C$62:$C$116,Таблица1[[#This Row],[Дл]],$D$62:$D$116,"=500",$F$62:$F$116,Таблица1[[#This Row],[АСТРА]]) -> 0 | Z143: =SUMIFS($X$62:$X$116,$C$62:$C$116,"<"&Таблица1[[#This Row],[Дл]],$D$62:$D$116,"=500",$F$62:$F$116,Таблица1[[#This Row],[АСТРА]]) -> 0 | AA143: =Таблица1[[#This Row],[Столбец23]]+Таблица1[[#This Row],[Столбец24]] -> 0 | AB143: =Таблица1[[#This Row],[лом.целых]]+Таблица1[[#This Row],[лом.делов]]-Таблица1[[#This Row],[лом.на.пор.]] -> 0 | AC143: =IF(Таблица1[[#This Row],[резы]]*Таблица1[[#This Row],[шир.рез]]/1000*Таблица1[[#This Row],[коэф]]/2<0,0,Таблица1[[#This Row],[резы]]*Таблица1[[#This Row],[шир.рез]]/1000*Таблица1[[#This Row],[коэф]]/2) -> 0 | AD143: =SUMIFS($Y$62:$Y$116,$C$62:$C$116,Таблица1[[#This Row],[Дл]],$D$62:$D$116,"=500",$F$62:$F$116,Таблица1[[#This Row],[АСТРА]]) -> 0 | AE143: =SUMIFS($Y$62:$Y$116,$C$62:$C$116,"<"&Таблица1[[#This Row],[Дл]],$D$62:$D$116,"=500",$F$62:$F$116,Таблица1[[#This Row],[АСТРА]]) -> 0 | AF143: 5 | AG143: =IF(Таблица1[[#This Row],[профиль]]=Таблица1[[#This Row],[толщ]],CONCATENATE(Таблица1[[#This Row],[Столбец33]]," ",Таблица1[[#This Row],[толщ]]),CONCATENATE(Таблица1[[#This Row],[Столбец33]]," ",Таблица1[[#This Row],[профиль]],"х",Таблица1[[#This Row],[толщ]])) -> Круг бронзовый 20 | AH143: =CONCATENATE(Таблица1[[#This Row],[Столбец33]]," ",Таблица1[[#This Row],[профиль]]) -> Круг бронзовый 20 | AI143: Круг бронзовый 20, 20.0 мм, крбр | AJ143: Круг бронзовый | AK143: =IF(Таблица1[[#This Row],[профиль]]=Таблица1[[#This Row],[толщ]],Таблица1[[#This Row],[толщ]],CONCATENATE(Таблица1[[#This Row],[профиль]],"х",Таблица1[[#This Row],[точка]])) -> 20 | AL143: 20 | AM143: 20 | AN143: =SUBSTITUTE(Таблица1[[#This Row],[толщ]],",",".") -> 20 | AO143: =2.37*2 -> 4.74 | AP143: =SUMIFS($U$8:$U$57,$K$8:$K$57,Таблица1[[#This Row],[ГОСТ]]) -> 0
A144: =IF(Таблица1[[#This Row],[Столбец19]]=0,"z","") -> z | D144: 3000 | F144: =SUMIFS($G$62:$G$116,$D$62:$D$116,500,$C$62:$C$116,Таблица1[[#This Row],[Дл]],$F$62:$F$116,Таблица1[[#This Row],[АСТРА]]) -> 0 | G144: =Таблица1[[#This Row],[толщ]] -> 20 | H144: =Таблица1[[#This Row],[ГОСТ]] -> Круг медный 20 | I144: =SUMIFS($N$62:$N$116,$C$62:$C$116,Таблица1[[#This Row],[Дл]],$D$62:$D$116,"=500",$F$62:$F$116,Таблица1[[#This Row],[АСТРА]]) -> 0 | J144: =SUMIFS($N$62:$N$116,$C$62:$C$116,"<"&Таблица1[[#This Row],[Дл]],$D$62:$D$116,"=500",$F$62:$F$116,Таблица1[[#This Row],[АСТРА]]) -> 0 | M144: =SUMIFS($J$8:$J$57,$K$8:$K$57,Таблица1[[#This Row],[Столбец5]]) -> 0 | N144: =Таблица1[[#This Row],[пол.мас.цел]]+Таблица1[[#This Row],[пол.мас.дел]] -> 0 | O144: =SUMIFS($Q$62:$Q$116,$C$62:$C$116,Таблица1[[#This Row],[Дл]],$D$62:$D$116,"=500",$F$62:$F$116,Таблица1[[#This Row],[АСТРА]]) -> 0 | P144: =SUMIFS($Q$62:$Q$116,$C$62:$C$116,"<"&Таблица1[[#This Row],[Дл]],$D$62:$D$116,"=500",$F$62:$F$116,Таблица1[[#This Row],[АСТРА]]) -> 0 | Q144: =Таблица1[[#This Row],[ост.с.цел]]+Таблица1[[#This Row],[ост.с.дел]] -> 0 | R144: =Таблица1[[#This Row],[лом.целых]]+Таблица1[[#This Row],[лом.делов]]-Таблица1[[#This Row],[лом.на.пор.]] -> 0 | S144: =Таблица1[[#This Row],[лом]]+Таблица1[[#This Row],[корр.масс]] -> 0 | T144: =SUMIFS($T$62:$T$116,$C$62:$C$116,Таблица1[[#This Row],[Дл]],$D$62:$D$116,"=500",$F$62:$F$116,Таблица1[[#This Row],[АСТРА]]) -> 0 | U144: =SUMIFS($T$62:$T$116,$C$62:$C$116,"<"&Таблица1[[#This Row],[Дл]],$D$62:$D$116,"=500",$F$62:$F$116,Таблица1[[#This Row],[АСТРА]]) -> 0 | V144: =Таблица1[[#This Row],[Столбец17]]+Таблица1[[#This Row],[Столбец18]]+Таблица1[[#This Row],[лом.на.пор.]] -> 0 | W144: =Таблица1[[#This Row],[Столбец19]]-Таблица1[[#This Row],[корр.масс]] -> 0 | Y144: =SUMIFS($X$62:$X$116,$C$62:$C$116,Таблица1[[#This Row],[Дл]],$D$62:$D$116,"=500",$F$62:$F$116,Таблица1[[#This Row],[АСТРА]]) -> 0 | Z144: =SUMIFS($X$62:$X$116,$C$62:$C$116,"<"&Таблица1[[#This Row],[Дл]],$D$62:$D$116,"=500",$F$62:$F$116,Таблица1[[#This Row],[АСТРА]]) -> 0 | AA144: =Таблица1[[#This Row],[Столбец23]]+Таблица1[[#This Row],[Столбец24]] -> 0 | AB144: =Таблица1[[#This Row],[лом.целых]]+Таблица1[[#This Row],[лом.делов]]-Таблица1[[#This Row],[лом.на.пор.]] -> 0 | AC144: =IF(Таблица1[[#This Row],[резы]]*Таблица1[[#This Row],[шир.рез]]/1000*Таблица1[[#This Row],[коэф]]/2<0,0,Таблица1[[#This Row],[резы]]*Таблица1[[#This Row],[шир.рез]]/1000*Таблица1[[#This Row],[коэф]]/2) -> 0 | AD144: =SUMIFS($Y$62:$Y$116,$C$62:$C$116,Таблица1[[#This Row],[Дл]],$D$62:$D$116,"=500",$F$62:$F$116,Таблица1[[#This Row],[АСТРА]]) -> 0 | AE144: =SUMIFS($Y$62:$Y$116,$C$62:$C$116,"<"&Таблица1[[#This Row],[Дл]],$D$62:$D$116,"=500",$F$62:$F$116,Таблица1[[#This Row],[АСТРА]]) -> 0 | AF144: 5 | AG144: =IF(Таблица1[[#This Row],[профиль]]=Таблица1[[#This Row],[толщ]],CONCATENATE(Таблица1[[#This Row],[Столбец33]]," ",Таблица1[[#This Row],[толщ]]),CONCATENATE(Таблица1[[#This Row],[Столбец33]]," ",Таблица1[[#This Row],[профиль]],"х",Таблица1[[#This Row],[толщ]])) -> Круг медный 20 | AH144: =CONCATENATE(Таблица1[[#This Row],[Столбец33]]," ",Таблица1[[#This Row],[профиль]]) -> Круг медный 20 | AI144: Круг медный 20, 20.0 мм, крмед | AJ144: Круг медный | AK144: =IF(Таблица1[[#This Row],[профиль]]=Таблица1[[#This Row],[толщ]],Таблица1[[#This Row],[толщ]],CONCATENATE(Таблица1[[#This Row],[профиль]],"х",Таблица1[[#This Row],[точка]])) -> 20 | AL144: 20 | AM144: 20 | AN144: =SUBSTITUTE(Таблица1[[#This Row],[толщ]],",",".") -> 20 | AO144: =2.779*2 -> 5.558 | AP144: =SUMIFS($U$8:$U$57,$K$8:$K$57,Таблица1[[#This Row],[ГОСТ]]) -> 0
A145: =IF(Таблица1[[#This Row],[Столбец19]]=0,"z","") -> z | D145: 3000 | F145: =SUMIFS($G$62:$G$116,$D$62:$D$116,500,$C$62:$C$116,Таблица1[[#This Row],[Дл]],$F$62:$F$116,Таблица1[[#This Row],[АСТРА]]) -> 0 | G145: =Таблица1[[#This Row],[толщ]] -> 2 | H145: =Таблица1[[#This Row],[ГОСТ]] -> Труба 100х100х2 | I145: =SUMIFS($N$62:$N$116,$C$62:$C$116,Таблица1[[#This Row],[Дл]],$D$62:$D$116,"=500",$F$62:$F$116,Таблица1[[#This Row],[АСТРА]]) -> 0 | J145: =SUMIFS($N$62:$N$116,$C$62:$C$116,"<"&Таблица1[[#This Row],[Дл]],$D$62:$D$116,"=500",$F$62:$F$116,Таблица1[[#This Row],[АСТРА]]) -> 0 | M145: =SUMIFS($J$8:$J$57,$K$8:$K$57,Таблица1[[#This Row],[Столбец5]]) -> 0 | N145: =Таблица1[[#This Row],[пол.мас.цел]]+Таблица1[[#This Row],[пол.мас.дел]] -> 0 | O145: =SUMIFS($Q$62:$Q$116,$C$62:$C$116,Таблица1[[#This Row],[Дл]],$D$62:$D$116,"=500",$F$62:$F$116,Таблица1[[#This Row],[АСТРА]]) -> 0 | P145: =SUMIFS($Q$62:$Q$116,$C$62:$C$116,"<"&Таблица1[[#This Row],[Дл]],$D$62:$D$116,"=500",$F$62:$F$116,Таблица1[[#This Row],[АСТРА]]) -> 0 | Q145: =Таблица1[[#This Row],[ост.с.цел]]+Таблица1[[#This Row],[ост.с.дел]] -> 0 | R145: =Таблица1[[#This Row],[лом.целых]]+Таблица1[[#This Row],[лом.делов]]-Таблица1[[#This Row],[лом.на.пор.]] -> 0 | S145: =Таблица1[[#This Row],[лом]]+Таблица1[[#This Row],[корр.масс]] -> 0 | T145: =SUMIFS($T$62:$T$116,$C$62:$C$116,Таблица1[[#This Row],[Дл]],$D$62:$D$116,"=500",$F$62:$F$116,Таблица1[[#This Row],[АСТРА]]) -> 0 | U145: =SUMIFS($T$62:$T$116,$C$62:$C$116,"<"&Таблица1[[#This Row],[Дл]],$D$62:$D$116,"=500",$F$62:$F$116,Таблица1[[#This Row],[АСТРА]]) -> 0 | V145: =Таблица1[[#This Row],[Столбец17]]+Таблица1[[#This Row],[Столбец18]]+Таблица1[[#This Row],[лом.на.пор.]] -> 0 | W145: =Таблица1[[#This Row],[Столбец19]]-Таблица1[[#This Row],[корр.масс]] -> 0 | Y145: =SUMIFS($X$62:$X$116,$C$62:$C$116,Таблица1[[#This Row],[Дл]],$D$62:$D$116,"=500",$F$62:$F$116,Таблица1[[#This Row],[АСТРА]]) -> 0 | Z145: =SUMIFS($X$62:$X$116,$C$62:$C$116,"<"&Таблица1[[#This Row],[Дл]],$D$62:$D$116,"=500",$F$62:$F$116,Таблица1[[#This Row],[АСТРА]]) -> 0 | AA145: =Таблица1[[#This Row],[Столбец23]]+Таблица1[[#This Row],[Столбец24]] -> 0 | AB145: =Таблица1[[#This Row],[лом.целых]]+Таблица1[[#This Row],[лом.делов]]-Таблица1[[#This Row],[лом.на.пор.]] -> 0 | AC145: =IF(Таблица1[[#This Row],[резы]]*Таблица1[[#This Row],[шир.рез]]/1000*Таблица1[[#This Row],[коэф]]/2<0,0,Таблица1[[#This Row],[резы]]*Таблица1[[#This Row],[шир.рез]]/1000*Таблица1[[#This Row],[коэф]]/2) -> 0 | AD145: =SUMIFS($Y$62:$Y$116,$C$62:$C$116,Таблица1[[#This Row],[Дл]],$D$62:$D$116,"=500",$F$62:$F$116,Таблица1[[#This Row],[АСТРА]]) -> 0 | AE145: =SUMIFS($Y$62:$Y$116,$C$62:$C$116,"<"&Таблица1[[#This Row],[Дл]],$D$62:$D$116,"=500",$F$62:$F$116,Таблица1[[#This Row],[АСТРА]]) -> 0 | AF145: 5 | AG145: =IF(Таблица1[[#This Row],[профиль]]=Таблица1[[#This Row],[толщ]],CONCATENATE(Таблица1[[#This Row],[Столбец33]]," ",Таблица1[[#This Row],[толщ]]),CONCATENATE(Таблица1[[#This Row],[Столбец33]]," ",Таблица1[[#This Row],[профиль]],"х",Таблица1[[#This Row],[толщ]])) -> Труба 100х100х2 | AH145: =CONCATENATE(Таблица1[[#This Row],[Столбец33]]," ",Таблица1[[#This Row],[профиль]]) -> Труба 100х100 | AI145: Труба 100х100, 2.0 мм, тр100100 | AJ145: Труба | AK145: =IF(Таблица1[[#This Row],[профиль]]=Таблица1[[#This Row],[толщ]],Таблица1[[#This Row],[толщ]],CONCATENATE(Таблица1[[#This Row],[профиль]],"х",Таблица1[[#This Row],[точка]])) -> 100х100х2 | AL145: 100х100 | AM145: 2 | AN145: =SUBSTITUTE(Таблица1[[#This Row],[толщ]],",",".") -> 2 | AO145: 12.2 | AP145: =SUMIFS($U$8:$U$57,$K$8:$K$57,Таблица1[[#This Row],[ГОСТ]]) -> 0
A146: =IF(Таблица1[[#This Row],[Столбец19]]=0,"z","") -> z | D146: 6000 | F146: =SUMIFS($G$62:$G$116,$D$62:$D$116,500,$C$62:$C$116,Таблица1[[#This Row],[Дл]],$F$62:$F$116,Таблица1[[#This Row],[АСТРА]]) -> 0 | G146: =Таблица1[[#This Row],[толщ]] -> 3 | H146: =Таблица1[[#This Row],[ГОСТ]] -> Труба 100х60х3 | I146: =SUMIFS($N$62:$N$116,$C$62:$C$116,Таблица1[[#This Row],[Дл]],$D$62:$D$116,"=500",$F$62:$F$116,Таблица1[[#This Row],[АСТРА]]) -> 0 | J146: =SUMIFS($N$62:$N$116,$C$62:$C$116,"<"&Таблица1[[#This Row],[Дл]],$D$62:$D$116,"=500",$F$62:$F$116,Таблица1[[#This Row],[АСТРА]]) -> 0 | M146: =SUMIFS($J$8:$J$57,$K$8:$K$57,Таблица1[[#This Row],[Столбец5]]) -> 0 | N146: =Таблица1[[#This Row],[пол.мас.цел]]+Таблица1[[#This Row],[пол.мас.дел]] -> 0 | O146: =SUMIFS($Q$62:$Q$116,$C$62:$C$116,Таблица1[[#This Row],[Дл]],$D$62:$D$116,"=500",$F$62:$F$116,Таблица1[[#This Row],[АСТРА]]) -> 0 | P146: =SUMIFS($Q$62:$Q$116,$C$62:$C$116,"<"&Таблица1[[#This Row],[Дл]],$D$62:$D$116,"=500",$F$62:$F$116,Таблица1[[#This Row],[АСТРА]]) -> 0 | Q146: =Таблица1[[#This Row],[ост.с.цел]]+Таблица1[[#This Row],[ост.с.дел]] -> 0 | R146: =Таблица1[[#This Row],[лом.целых]]+Таблица1[[#This Row],[лом.делов]]-Таблица1[[#This Row],[лом.на.пор.]] -> 0 | S146: =Таблица1[[#This Row],[лом]]+Таблица1[[#This Row],[корр.масс]] -> 0 | T146: =SUMIFS($T$62:$T$116,$C$62:$C$116,Таблица1[[#This Row],[Дл]],$D$62:$D$116,"=500",$F$62:$F$116,Таблица1[[#This Row],[АСТРА]]) -> 0 | U146: =SUMIFS($T$62:$T$116,$C$62:$C$116,"<"&Таблица1[[#This Row],[Дл]],$D$62:$D$116,"=500",$F$62:$F$116,Таблица1[[#This Row],[АСТРА]]) -> 0 | V146: =Таблица1[[#This Row],[Столбец17]]+Таблица1[[#This Row],[Столбец18]]+Таблица1[[#This Row],[лом.на.пор.]] -> 0 | W146: =Таблица1[[#This Row],[Столбец19]]-Таблица1[[#This Row],[корр.масс]] -> 0 | Y146: =SUMIFS($X$62:$X$116,$C$62:$C$116,Таблица1[[#This Row],[Дл]],$D$62:$D$116,"=500",$F$62:$F$116,Таблица1[[#This Row],[АСТРА]]) -> 0 | Z146: =SUMIFS($X$62:$X$116,$C$62:$C$116,"<"&Таблица1[[#This Row],[Дл]],$D$62:$D$116,"=500",$F$62:$F$116,Таблица1[[#This Row],[АСТРА]]) -> 0 | AA146: =Таблица1[[#This Row],[Столбец23]]+Таблица1[[#This Row],[Столбец24]] -> 0 | AB146: =Таблица1[[#This Row],[лом.целых]]+Таблица1[[#This Row],[лом.делов]]-Таблица1[[#This Row],[лом.на.пор.]] -> 0 | AC146: =IF(Таблица1[[#This Row],[резы]]*Таблица1[[#This Row],[шир.рез]]/1000*Таблица1[[#This Row],[коэф]]/2<0,0,Таблица1[[#This Row],[резы]]*Таблица1[[#This Row],[шир.рез]]/1000*Таблица1[[#This Row],[коэф]]/2) -> 0 | AD146: =SUMIFS($Y$62:$Y$116,$C$62:$C$116,Таблица1[[#This Row],[Дл]],$D$62:$D$116,"=500",$F$62:$F$116,Таблица1[[#This Row],[АСТРА]]) -> 0 | AE146: =SUMIFS($Y$62:$Y$116,$C$62:$C$116,"<"&Таблица1[[#This Row],[Дл]],$D$62:$D$116,"=500",$F$62:$F$116,Таблица1[[#This Row],[АСТРА]]) -> 0 | AF146: 5 | AG146: =IF(Таблица1[[#This Row],[профиль]]=Таблица1[[#This Row],[толщ]],CONCATENATE(Таблица1[[#This Row],[Столбец33]]," ",Таблица1[[#This Row],[толщ]]),CONCATENATE(Таблица1[[#This Row],[Столбец33]]," ",Таблица1[[#This Row],[профиль]],"х",Таблица1[[#This Row],[толщ]])) -> Труба 100х60х3 | AH146: =CONCATENATE(Таблица1[[#This Row],[Столбец33]]," ",Таблица1[[#This Row],[профиль]]) -> Труба 100х60 | AI146: Труба 100х60, 3.0 мм | AJ146: Труба | AK146: =IF(Таблица1[[#This Row],[профиль]]=Таблица1[[#This Row],[толщ]],Таблица1[[#This Row],[толщ]],CONCATENATE(Таблица1[[#This Row],[профиль]],"х",Таблица1[[#This Row],[точка]])) -> 100х60х3 | AL146: 100х60 | AM146: 3 | AN146: =SUBSTITUTE(Таблица1[[#This Row],[толщ]],",",".") -> 3 | AO146: 9.69 | AP146: =SUMIFS($U$8:$U$57,$K$8:$K$57,Таблица1[[#This Row],[ГОСТ]]) -> 0
A147: =IF(Таблица1[[#This Row],[Столбец19]]=0,"z","") -> z | D147: 3000 | F147: =SUMIFS($G$62:$G$116,$D$62:$D$116,500,$C$62:$C$116,Таблица1[[#This Row],[Дл]],$F$62:$F$116,Таблица1[[#This Row],[АСТРА]]) -> 0 | G147: =Таблица1[[#This Row],[толщ]] -> 1 | H147: =Таблица1[[#This Row],[ГОСТ]] -> Труба 10х10х1 | I147: =SUMIFS($N$62:$N$116,$C$62:$C$116,Таблица1[[#This Row],[Дл]],$D$62:$D$116,"=500",$F$62:$F$116,Таблица1[[#This Row],[АСТРА]]) -> 0 | J147: =SUMIFS($N$62:$N$116,$C$62:$C$116,"<"&Таблица1[[#This Row],[Дл]],$D$62:$D$116,"=500",$F$62:$F$116,Таблица1[[#This Row],[АСТРА]]) -> 0 | M147: =SUMIFS($J$8:$J$57,$K$8:$K$57,Таблица1[[#This Row],[Столбец5]]) -> 0 | N147: =Таблица1[[#This Row],[пол.мас.цел]]+Таблица1[[#This Row],[пол.мас.дел]] -> 0 | O147: =SUMIFS($Q$62:$Q$116,$C$62:$C$116,Таблица1[[#This Row],[Дл]],$D$62:$D$116,"=500",$F$62:$F$116,Таблица1[[#This Row],[АСТРА]]) -> 0 | P147: =SUMIFS($Q$62:$Q$116,$C$62:$C$116,"<"&Таблица1[[#This Row],[Дл]],$D$62:$D$116,"=500",$F$62:$F$116,Таблица1[[#This Row],[АСТРА]]) -> 0 | Q147: =Таблица1[[#This Row],[ост.с.цел]]+Таблица1[[#This Row],[ост.с.дел]] -> 0 | R147: =Таблица1[[#This Row],[лом.целых]]+Таблица1[[#This Row],[лом.делов]]-Таблица1[[#This Row],[лом.на.пор.]] -> 0 | S147: =Таблица1[[#This Row],[лом]]+Таблица1[[#This Row],[корр.масс]] -> 0 | T147: =SUMIFS($T$62:$T$116,$C$62:$C$116,Таблица1[[#This Row],[Дл]],$D$62:$D$116,"=500",$F$62:$F$116,Таблица1[[#This Row],[АСТРА]]) -> 0 | U147: =SUMIFS($T$62:$T$116,$C$62:$C$116,"<"&Таблица1[[#This Row],[Дл]],$D$62:$D$116,"=500",$F$62:$F$116,Таблица1[[#This Row],[АСТРА]]) -> 0 | V147: =Таблица1[[#This Row],[Столбец17]]+Таблица1[[#This Row],[Столбец18]]+Таблица1[[#This Row],[лом.на.пор.]] -> 0 | W147: =Таблица1[[#This Row],[Столбец19]]-Таблица1[[#This Row],[корр.масс]] -> 0 | Y147: =SUMIFS($X$62:$X$116,$C$62:$C$116,Таблица1[[#This Row],[Дл]],$D$62:$D$116,"=500",$F$62:$F$116,Таблица1[[#This Row],[АСТРА]]) -> 0 | Z147: =SUMIFS($X$62:$X$116,$C$62:$C$116,"<"&Таблица1[[#This Row],[Дл]],$D$62:$D$116,"=500",$F$62:$F$116,Таблица1[[#This Row],[АСТРА]]) -> 0 | AA147: =Таблица1[[#This Row],[Столбец23]]+Таблица1[[#This Row],[Столбец24]] -> 0 | AB147: =Таблица1[[#This Row],[лом.целых]]+Таблица1[[#This Row],[лом.делов]]-Таблица1[[#This Row],[лом.на.пор.]] -> 0 | AC147: =IF(Таблица1[[#This Row],[резы]]*Таблица1[[#This Row],[шир.рез]]/1000*Таблица1[[#This Row],[коэф]]/2<0,0,Таблица1[[#This Row],[резы]]*Таблица1[[#This Row],[шир.рез]]/1000*Таблица1[[#This Row],[коэф]]/2) -> 0 | AD147: =SUMIFS($Y$62:$Y$116,$C$62:$C$116,Таблица1[[#This Row],[Дл]],$D$62:$D$116,"=500",$F$62:$F$116,Таблица1[[#This Row],[АСТРА]]) -> 0 | AE147: =SUMIFS($Y$62:$Y$116,$C$62:$C$116,"<"&Таблица1[[#This Row],[Дл]],$D$62:$D$116,"=500",$F$62:$F$116,Таблица1[[#This Row],[АСТРА]]) -> 0 | AF147: 5 | AG147: =IF(Таблица1[[#This Row],[профиль]]=Таблица1[[#This Row],[толщ]],CONCATENATE(Таблица1[[#This Row],[Столбец33]]," ",Таблица1[[#This Row],[толщ]]),CONCATENATE(Таблица1[[#This Row],[Столбец33]]," ",Таблица1[[#This Row],[профиль]],"х",Таблица1[[#This Row],[толщ]])) -> Труба 10х10х1 | AH147: =CONCATENATE(Таблица1[[#This Row],[Столбец33]]," ",Таблица1[[#This Row],[профиль]]) -> Труба 10х10 | AI147: Труба 10х10, 1.0 мм, тр1010 | AJ147: Труба | AK147: =IF(Таблица1[[#This Row],[профиль]]=Таблица1[[#This Row],[толщ]],Таблица1[[#This Row],[толщ]],CONCATENATE(Таблица1[[#This Row],[профиль]],"х",Таблица1[[#This Row],[точка]])) -> 10х10х1 | AL147: 10х10 | AM147: 1 | AN147: =SUBSTITUTE(Таблица1[[#This Row],[толщ]],",",".") -> 1 | AO147: 0.54 | AP147: =SUMIFS($U$8:$U$57,$K$8:$K$57,Таблица1[[#This Row],[ГОСТ]]) -> 0
A148: =IF(Таблица1[[#This Row],[Столбец19]]=0,"z","") -> z | D148: 3000 | F148: =SUMIFS($G$62:$G$116,$D$62:$D$116,500,$C$62:$C$116,Таблица1[[#This Row],[Дл]],$F$62:$F$116,Таблица1[[#This Row],[АСТРА]]) -> 0 | G148: =Таблица1[[#This Row],[толщ]] -> 1.2 | H148: =Таблица1[[#This Row],[ГОСТ]] -> Труба 10х10х1,2 | I148: =SUMIFS($N$62:$N$116,$C$62:$C$116,Таблица1[[#This Row],[Дл]],$D$62:$D$116,"=500",$F$62:$F$116,Таблица1[[#This Row],[АСТРА]]) -> 0 | J148: =SUMIFS($N$62:$N$116,$C$62:$C$116,"<"&Таблица1[[#This Row],[Дл]],$D$62:$D$116,"=500",$F$62:$F$116,Таблица1[[#This Row],[АСТРА]]) -> 0 | M148: =SUMIFS($J$8:$J$57,$K$8:$K$57,Таблица1[[#This Row],[Столбец5]]) -> 0 | N148: =Таблица1[[#This Row],[пол.мас.цел]]+Таблица1[[#This Row],[пол.мас.дел]] -> 0 | O148: =SUMIFS($Q$62:$Q$116,$C$62:$C$116,Таблица1[[#This Row],[Дл]],$D$62:$D$116,"=500",$F$62:$F$116,Таблица1[[#This Row],[АСТРА]]) -> 0 | P148: =SUMIFS($Q$62:$Q$116,$C$62:$C$116,"<"&Таблица1[[#This Row],[Дл]],$D$62:$D$116,"=500",$F$62:$F$116,Таблица1[[#This Row],[АСТРА]]) -> 0 | Q148: =Таблица1[[#This Row],[ост.с.цел]]+Таблица1[[#This Row],[ост.с.дел]] -> 0 | R148: =Таблица1[[#This Row],[лом.целых]]+Таблица1[[#This Row],[лом.делов]]-Таблица1[[#This Row],[лом.на.пор.]] -> 0 | S148: =Таблица1[[#This Row],[лом]]+Таблица1[[#This Row],[корр.масс]] -> 0 | T148: =SUMIFS($T$62:$T$116,$C$62:$C$116,Таблица1[[#This Row],[Дл]],$D$62:$D$116,"=500",$F$62:$F$116,Таблица1[[#This Row],[АСТРА]]) -> 0 | U148: =SUMIFS($T$62:$T$116,$C$62:$C$116,"<"&Таблица1[[#This Row],[Дл]],$D$62:$D$116,"=500",$F$62:$F$116,Таблица1[[#This Row],[АСТРА]]) -> 0 | V148: =Таблица1[[#This Row],[Столбец17]]+Таблица1[[#This Row],[Столбец18]]+Таблица1[[#This Row],[лом.на.пор.]] -> 0 | W148: =Таблица1[[#This Row],[Столбец19]]-Таблица1[[#This Row],[корр.масс]] -> 0 | Y148: =SUMIFS($X$62:$X$116,$C$62:$C$116,Таблица1[[#This Row],[Дл]],$D$62:$D$116,"=500",$F$62:$F$116,Таблица1[[#This Row],[АСТРА]]) -> 0 | Z148: =SUMIFS($X$62:$X$116,$C$62:$C$116,"<"&Таблица1[[#This Row],[Дл]],$D$62:$D$116,"=500",$F$62:$F$116,Таблица1[[#This Row],[АСТРА]]) -> 0 | AA148: =Таблица1[[#This Row],[Столбец23]]+Таблица1[[#This Row],[Столбец24]] -> 0 | AB148: =Таблица1[[#This Row],[лом.целых]]+Таблица1[[#This Row],[лом.делов]]-Таблица1[[#This Row],[лом.на.пор.]] -> 0 | AC148: =IF(Таблица1[[#This Row],[резы]]*Таблица1[[#This Row],[шир.рез]]/1000*Таблица1[[#This Row],[коэф]]/2<0,0,Таблица1[[#This Row],[резы]]*Таблица1[[#This Row],[шир.рез]]/1000*Таблица1[[#This Row],[коэф]]/2) -> 0 | AD148: =SUMIFS($Y$62:$Y$116,$C$62:$C$116,Таблица1[[#This Row],[Дл]],$D$62:$D$116,"=500",$F$62:$F$116,Таблица1[[#This Row],[АСТРА]]) -> 0 | AE148: =SUMIFS($Y$62:$Y$116,$C$62:$C$116,"<"&Таблица1[[#This Row],[Дл]],$D$62:$D$116,"=500",$F$62:$F$116,Таблица1[[#This Row],[АСТРА]]) -> 0 | AF148: 5 | AG148: =IF(Таблица1[[#This Row],[профиль]]=Таблица1[[#This Row],[толщ]],CONCATENATE(Таблица1[[#This Row],[Столбец33]]," ",Таблица1[[#This Row],[толщ]]),CONCATENATE(Таблица1[[#This Row],[Столбец33]]," ",Таблица1[[#This Row],[профиль]],"х",Таблица1[[#This Row],[толщ]])) -> Труба 10х10х1,2 | AH148: =CONCATENATE(Таблица1[[#This Row],[Столбец33]]," ",Таблица1[[#This Row],[профиль]]) -> Труба 10х10 | AI148: Труба 10х10, 1.2 мм, тр1010 | AJ148: Труба | AK148: =IF(Таблица1[[#This Row],[профиль]]=Таблица1[[#This Row],[толщ]],Таблица1[[#This Row],[толщ]],CONCATENATE(Таблица1[[#This Row],[профиль]],"х",Таблица1[[#This Row],[точка]])) -> 10х10х1.2 | AL148: 10х10 | AM148: 1.2 | AN148: =SUBSTITUTE(Таблица1[[#This Row],[толщ]],",",".") -> 1.2 | AO148: 0.62 | AP148: =SUMIFS($U$8:$U$57,$K$8:$K$57,Таблица1[[#This Row],[ГОСТ]]) -> 0
A149: =IF(Таблица1[[#This Row],[Столбец19]]=0,"z","") -> z | D149: 3000 | F149: =SUMIFS($G$62:$G$116,$D$62:$D$116,500,$C$62:$C$116,Таблица1[[#This Row],[Дл]],$F$62:$F$116,Таблица1[[#This Row],[АСТРА]]) -> 0 | G149: =Таблица1[[#This Row],[толщ]] -> 3 | H149: =Таблица1[[#This Row],[ГОСТ]] -> Труба 125х3 | I149: =SUMIFS($N$62:$N$116,$C$62:$C$116,Таблица1[[#This Row],[Дл]],$D$62:$D$116,"=500",$F$62:$F$116,Таблица1[[#This Row],[АСТРА]]) -> 0 | J149: =SUMIFS($N$62:$N$116,$C$62:$C$116,"<"&Таблица1[[#This Row],[Дл]],$D$62:$D$116,"=500",$F$62:$F$116,Таблица1[[#This Row],[АСТРА]]) -> 0 | M149: =SUMIFS($J$8:$J$57,$K$8:$K$57,Таблица1[[#This Row],[Столбец5]]) -> 0 | N149: =Таблица1[[#This Row],[пол.мас.цел]]+Таблица1[[#This Row],[пол.мас.дел]] -> 0 | O149: =SUMIFS($Q$62:$Q$116,$C$62:$C$116,Таблица1[[#This Row],[Дл]],$D$62:$D$116,"=500",$F$62:$F$116,Таблица1[[#This Row],[АСТРА]]) -> 0 | P149: =SUMIFS($Q$62:$Q$116,$C$62:$C$116,"<"&Таблица1[[#This Row],[Дл]],$D$62:$D$116,"=500",$F$62:$F$116,Таблица1[[#This Row],[АСТРА]]) -> 0 | Q149: =Таблица1[[#This Row],[ост.с.цел]]+Таблица1[[#This Row],[ост.с.дел]] -> 0 | R149: =Таблица1[[#This Row],[лом.целых]]+Таблица1[[#This Row],[лом.делов]]-Таблица1[[#This Row],[лом.на.пор.]] -> 0 | S149: =Таблица1[[#This Row],[лом]]+Таблица1[[#This Row],[корр.масс]] -> 0 | T149: =SUMIFS($T$62:$T$116,$C$62:$C$116,Таблица1[[#This Row],[Дл]],$D$62:$D$116,"=500",$F$62:$F$116,Таблица1[[#This Row],[АСТРА]]) -> 0 | U149: =SUMIFS($T$62:$T$116,$C$62:$C$116,"<"&Таблица1[[#This Row],[Дл]],$D$62:$D$116,"=500",$F$62:$F$116,Таблица1[[#This Row],[АСТРА]]) -> 0 | V149: =Таблица1[[#This Row],[Столбец17]]+Таблица1[[#This Row],[Столбец18]]+Таблица1[[#This Row],[лом.на.пор.]] -> 0 | W149: =Таблица1[[#This Row],[Столбец19]]-Таблица1[[#This Row],[корр.масс]] -> 0 | Y149: =SUMIFS($X$62:$X$116,$C$62:$C$116,Таблица1[[#This Row],[Дл]],$D$62:$D$116,"=500",$F$62:$F$116,Таблица1[[#This Row],[АСТРА]]) -> 0 | Z149: =SUMIFS($X$62:$X$116,$C$62:$C$116,"<"&Таблица1[[#This Row],[Дл]],$D$62:$D$116,"=500",$F$62:$F$116,Таблица1[[#This Row],[АСТРА]]) -> 0 | AA149: =Таблица1[[#This Row],[Столбец23]]+Таблица1[[#This Row],[Столбец24]] -> 0 | AB149: =Таблица1[[#This Row],[лом.целых]]+Таблица1[[#This Row],[лом.делов]]-Таблица1[[#This Row],[лом.на.пор.]] -> 0 | AC149: =IF(Таблица1[[#This Row],[резы]]*Таблица1[[#This Row],[шир.рез]]/1000*Таблица1[[#This Row],[коэф]]/2<0,0,Таблица1[[#This Row],[резы]]*Таблица1[[#This Row],[шир.рез]]/1000*Таблица1[[#This Row],[коэф]]/2) -> 0 | AD149: =SUMIFS($Y$62:$Y$116,$C$62:$C$116,Таблица1[[#This Row],[Дл]],$D$62:$D$116,"=500",$F$62:$F$116,Таблица1[[#This Row],[АСТРА]]) -> 0 | AE149: =SUMIFS($Y$62:$Y$116,$C$62:$C$116,"<"&Таблица1[[#This Row],[Дл]],$D$62:$D$116,"=500",$F$62:$F$116,Таблица1[[#This Row],[АСТРА]]) -> 0 | AF149: 5 | AG149: =IF(Таблица1[[#This Row],[профиль]]=Таблица1[[#This Row],[толщ]],CONCATENATE(Таблица1[[#This Row],[Столбец33]]," ",Таблица1[[#This Row],[толщ]]),CONCATENATE(Таблица1[[#This Row],[Столбец33]]," ",Таблица1[[#This Row],[профиль]],"х",Таблица1[[#This Row],[толщ]])) -> Труба 125х3 | AH149: =CONCATENATE(Таблица1[[#This Row],[Столбец33]]," ",Таблица1[[#This Row],[профиль]]) -> Труба 125 | AI149: Труба 125, 3.0 мм | AJ149: Труба | AK149: =IF(Таблица1[[#This Row],[профиль]]=Таблица1[[#This Row],[толщ]],Таблица1[[#This Row],[толщ]],CONCATENATE(Таблица1[[#This Row],[профиль]],"х",Таблица1[[#This Row],[точка]])) -> 125х3 | AL149: 125 | AM149: 3 | AN149: =SUBSTITUTE(Таблица1[[#This Row],[толщ]],",",".") -> 3 | AO149: 18.05 | AP149: =SUMIFS($U$8:$U$57,$K$8:$K$57,Таблица1[[#This Row],[ГОСТ]]) -> 0
A150: =IF(Таблица1[[#This Row],[Столбец19]]=0,"z","") -> z | D150: 3000 | F150: =SUMIFS($G$62:$G$116,$D$62:$D$116,500,$C$62:$C$116,Таблица1[[#This Row],[Дл]],$F$62:$F$116,Таблица1[[#This Row],[АСТРА]]) -> 0 | G150: =Таблица1[[#This Row],[толщ]] -> 1 | H150: =Таблица1[[#This Row],[ГОСТ]] -> Труба 14х1 | I150: =SUMIFS($N$62:$N$116,$C$62:$C$116,Таблица1[[#This Row],[Дл]],$D$62:$D$116,"=500",$F$62:$F$116,Таблица1[[#This Row],[АСТРА]]) -> 0 | J150: =SUMIFS($N$62:$N$116,$C$62:$C$116,"<"&Таблица1[[#This Row],[Дл]],$D$62:$D$116,"=500",$F$62:$F$116,Таблица1[[#This Row],[АСТРА]]) -> 0 | M150: =SUMIFS($J$8:$J$57,$K$8:$K$57,Таблица1[[#This Row],[Столбец5]]) -> 0 | N150: =Таблица1[[#This Row],[пол.мас.цел]]+Таблица1[[#This Row],[пол.мас.дел]] -> 0 | O150: =SUMIFS($Q$62:$Q$116,$C$62:$C$116,Таблица1[[#This Row],[Дл]],$D$62:$D$116,"=500",$F$62:$F$116,Таблица1[[#This Row],[АСТРА]]) -> 0 | P150: =SUMIFS($Q$62:$Q$116,$C$62:$C$116,"<"&Таблица1[[#This Row],[Дл]],$D$62:$D$116,"=500",$F$62:$F$116,Таблица1[[#This Row],[АСТРА]]) -> 0 | Q150: =Таблица1[[#This Row],[ост.с.цел]]+Таблица1[[#This Row],[ост.с.дел]] -> 0 | R150: =Таблица1[[#This Row],[лом.целых]]+Таблица1[[#This Row],[лом.делов]]-Таблица1[[#This Row],[лом.на.пор.]] -> 0 | S150: =Таблица1[[#This Row],[лом]]+Таблица1[[#This Row],[корр.масс]] -> 0 | T150: =SUMIFS($T$62:$T$116,$C$62:$C$116,Таблица1[[#This Row],[Дл]],$D$62:$D$116,"=500",$F$62:$F$116,Таблица1[[#This Row],[АСТРА]]) -> 0 | U150: =SUMIFS($T$62:$T$116,$C$62:$C$116,"<"&Таблица1[[#This Row],[Дл]],$D$62:$D$116,"=500",$F$62:$F$116,Таблица1[[#This Row],[АСТРА]]) -> 0 | V150: =Таблица1[[#This Row],[Столбец17]]+Таблица1[[#This Row],[Столбец18]]+Таблица1[[#This Row],[лом.на.пор.]] -> 0 | W150: =Таблица1[[#This Row],[Столбец19]]-Таблица1[[#This Row],[корр.масс]] -> 0 | Y150: =SUMIFS($X$62:$X$116,$C$62:$C$116,Таблица1[[#This Row],[Дл]],$D$62:$D$116,"=500",$F$62:$F$116,Таблица1[[#This Row],[АСТРА]]) -> 0 | Z150: =SUMIFS($X$62:$X$116,$C$62:$C$116,"<"&Таблица1[[#This Row],[Дл]],$D$62:$D$116,"=500",$F$62:$F$116,Таблица1[[#This Row],[АСТРА]]) -> 0 | AA150: =Таблица1[[#This Row],[Столбец23]]+Таблица1[[#This Row],[Столбец24]] -> 0 | AB150: =Таблица1[[#This Row],[лом.целых]]+Таблица1[[#This Row],[лом.делов]]-Таблица1[[#This Row],[лом.на.пор.]] -> 0 | AC150: =IF(Таблица1[[#This Row],[резы]]*Таблица1[[#This Row],[шир.рез]]/1000*Таблица1[[#This Row],[коэф]]/2<0,0,Таблица1[[#This Row],[резы]]*Таблица1[[#This Row],[шир.рез]]/1000*Таблица1[[#This Row],[коэф]]/2) -> 0 | AD150: =SUMIFS($Y$62:$Y$116,$C$62:$C$116,Таблица1[[#This Row],[Дл]],$D$62:$D$116,"=500",$F$62:$F$116,Таблица1[[#This Row],[АСТРА]]) -> 0 | AE150: =SUMIFS($Y$62:$Y$116,$C$62:$C$116,"<"&Таблица1[[#This Row],[Дл]],$D$62:$D$116,"=500",$F$62:$F$116,Таблица1[[#This Row],[АСТРА]]) -> 0 | AF150: 5 | AG150: =IF(Таблица1[[#This Row],[профиль]]=Таблица1[[#This Row],[толщ]],CONCATENATE(Таблица1[[#This Row],[Столбец33]]," ",Таблица1[[#This Row],[толщ]]),CONCATENATE(Таблица1[[#This Row],[Столбец33]]," ",Таблица1[[#This Row],[профиль]],"х",Таблица1[[#This Row],[толщ]])) -> Труба 14х1 | AH150: =CONCATENATE(Таблица1[[#This Row],[Столбец33]]," ",Таблица1[[#This Row],[профиль]]) -> Труба 14 | AI150: Труба 14, 1.0 мм, тр14 | AJ150: Труба | AK150: =IF(Таблица1[[#This Row],[профиль]]=Таблица1[[#This Row],[толщ]],Таблица1[[#This Row],[толщ]],CONCATENATE(Таблица1[[#This Row],[профиль]],"х",Таблица1[[#This Row],[точка]])) -> 14х1 | AL150: 14 | AM150: 1 | AN150: =SUBSTITUTE(Таблица1[[#This Row],[толщ]],",",".") -> 1 | AO150: 1.63 | AP150: =SUMIFS($U$8:$U$57,$K$8:$K$57,Таблица1[[#This Row],[ГОСТ]]) -> 0
A151: =IF(Таблица1[[#This Row],[Столбец19]]=0,"z","") -> z | D151: 6010 | F151: =SUMIFS($G$62:$G$116,$D$62:$D$116,500,$C$62:$C$116,Таблица1[[#This Row],[Дл]],$F$62:$F$116,Таблица1[[#This Row],[АСТРА]]) -> 0 | G151: =Таблица1[[#This Row],[толщ]] -> 4 | H151: =Таблица1[[#This Row],[ГОСТ]] -> Труба 150х150х4 | I151: =SUMIFS($N$62:$N$116,$C$62:$C$116,Таблица1[[#This Row],[Дл]],$D$62:$D$116,"=500",$F$62:$F$116,Таблица1[[#This Row],[АСТРА]]) -> 0 | J151: =SUMIFS($N$62:$N$116,$C$62:$C$116,"<"&Таблица1[[#This Row],[Дл]],$D$62:$D$116,"=500",$F$62:$F$116,Таблица1[[#This Row],[АСТРА]]) -> 0 | M151: =SUMIFS($J$8:$J$57,$K$8:$K$57,Таблица1[[#This Row],[Столбец5]]) -> 0 | N151: =Таблица1[[#This Row],[пол.мас.цел]]+Таблица1[[#This Row],[пол.мас.дел]] -> 0 | O151: =SUMIFS($Q$62:$Q$116,$C$62:$C$116,Таблица1[[#This Row],[Дл]],$D$62:$D$116,"=500",$F$62:$F$116,Таблица1[[#This Row],[АСТРА]]) -> 0 | P151: =SUMIFS($Q$62:$Q$116,$C$62:$C$116,"<"&Таблица1[[#This Row],[Дл]],$D$62:$D$116,"=500",$F$62:$F$116,Таблица1[[#This Row],[АСТРА]]) -> 0 | Q151: =Таблица1[[#This Row],[ост.с.цел]]+Таблица1[[#This Row],[ост.с.дел]] -> 0 | R151: =Таблица1[[#This Row],[лом.целых]]+Таблица1[[#This Row],[лом.делов]]-Таблица1[[#This Row],[лом.на.пор.]] -> 0 | S151: =Таблица1[[#This Row],[лом]]+Таблица1[[#This Row],[корр.масс]] -> 0 | T151: =SUMIFS($T$62:$T$116,$C$62:$C$116,Таблица1[[#This Row],[Дл]],$D$62:$D$116,"=500",$F$62:$F$116,Таблица1[[#This Row],[АСТРА]]) -> 0 | U151: =SUMIFS($T$62:$T$116,$C$62:$C$116,"<"&Таблица1[[#This Row],[Дл]],$D$62:$D$116,"=500",$F$62:$F$116,Таблица1[[#This Row],[АСТРА]]) -> 0 | V151: =Таблица1[[#This Row],[Столбец17]]+Таблица1[[#This Row],[Столбец18]]+Таблица1[[#This Row],[лом.на.пор.]] -> 0 | W151: =Таблица1[[#This Row],[Столбец19]]-Таблица1[[#This Row],[корр.масс]] -> 0 | Y151: =SUMIFS($X$62:$X$116,$C$62:$C$116,Таблица1[[#This Row],[Дл]],$D$62:$D$116,"=500",$F$62:$F$116,Таблица1[[#This Row],[АСТРА]]) -> 0 | Z151: =SUMIFS($X$62:$X$116,$C$62:$C$116,"<"&Таблица1[[#This Row],[Дл]],$D$62:$D$116,"=500",$F$62:$F$116,Таблица1[[#This Row],[АСТРА]]) -> 0 | AA151: =Таблица1[[#This Row],[Столбец23]]+Таблица1[[#This Row],[Столбец24]] -> 0 | AB151: =Таблица1[[#This Row],[лом.целых]]+Таблица1[[#This Row],[лом.делов]]-Таблица1[[#This Row],[лом.на.пор.]] -> 0 | AC151: =IF(Таблица1[[#This Row],[резы]]*Таблица1[[#This Row],[шир.рез]]/1000*Таблица1[[#This Row],[коэф]]/2<0,0,Таблица1[[#This Row],[резы]]*Таблица1[[#This Row],[шир.рез]]/1000*Таблица1[[#This Row],[коэф]]/2) -> 0 | AD151: =SUMIFS($Y$62:$Y$116,$C$62:$C$116,Таблица1[[#This Row],[Дл]],$D$62:$D$116,"=500",$F$62:$F$116,Таблица1[[#This Row],[АСТРА]]) -> 0 | AE151: =SUMIFS($Y$62:$Y$116,$C$62:$C$116,"<"&Таблица1[[#This Row],[Дл]],$D$62:$D$116,"=500",$F$62:$F$116,Таблица1[[#This Row],[АСТРА]]) -> 0 | AF151: 5 | AG151: =IF(Таблица1[[#This Row],[профиль]]=Таблица1[[#This Row],[толщ]],CONCATENATE(Таблица1[[#This Row],[Столбец33]]," ",Таблица1[[#This Row],[толщ]]),CONCATENATE(Таблица1[[#This Row],[Столбец33]]," ",Таблица1[[#This Row],[профиль]],"х",Таблица1[[#This Row],[толщ]])) -> Труба 150х150х4 | AH151: =CONCATENATE(Таблица1[[#This Row],[Столбец33]]," ",Таблица1[[#This Row],[профиль]]) -> Труба 150х150 | AI151: Труба 150х150, 4.0 мм | AJ151: Труба | AK151: =IF(Таблица1[[#This Row],[профиль]]=Таблица1[[#This Row],[толщ]],Таблица1[[#This Row],[толщ]],CONCATENATE(Таблица1[[#This Row],[профиль]],"х",Таблица1[[#This Row],[точка]])) -> 150х150х4 | AL151: 150х150 | AM151: 4 | AN151: =SUBSTITUTE(Таблица1[[#This Row],[толщ]],",",".") -> 4 | AO151: 36.24 | AP151: =SUMIFS($U$8:$U$57,$K$8:$K$57,Таблица1[[#This Row],[ГОСТ]]) -> 0
